Workbook

Sheet Inicio
B1: SISTEMA DE EVALUACIÓN Y PLAN NUTRICIONAL | BZ1: Oscuro
B2: ISAK · Bioquímicos · Historia Clínica · SMAE/USDA · Plan Nutricional · Menús
B4: ATENCIÓN AL CLIENTE | D4: CLIENTES REGISTRADOS | E4: ÚLTIMA EVALUACIÓN | F4: ALIMENTOS SMAE + USDA | G4: RECETAS GUARDADAS
B5: 📋 Historia Clínica | D5: =COUNTA('Base de Datos'!C4:C1002) -> 1 | E5: =IF(COUNT('Base de Datos'!B4:B1002)=0,"Sin datos",MAX('Base de Datos'!B4:B1002)) -> 2026-08-27 | F5: =COUNTA('Base SMAE'!A13:A2638)+COUNTA('Base USDA'!B6:B5436) -> 150 | G5: =COUNTA(Recetario!C8:C300) -> 0 | BY5: Historia Clínica
B6: 📏 Antropometría | BY6: Antropometría
B7: 🧪 Bioquímicos | D7: ACCIONES | BY7: Bioquímicos
B8: 🧮 Cálculos | D8: 🔄 SIGUIENTE CLIENTE Vacía la captura para empezar con otro cliente | F8: 🌓 ALTERNAR TEMA Cambia entre claro y oscuro | BY8: Cálculos
B10: PLAN Y MENÚ
B11: 🔥 Plan Nutricional | D11: 💾 RESPALDAR Y VERIFICAR Copia la base y revisa que no haya nada roto | F11: ↩ DESHACER ÚLTIMO REGISTRO Doble clic · quita la última evaluación | BY11: Plan Nutricional
B12: 🍽 Menú | BY12: Menú
B13: 📖 Recetario | BY13: Recetario
B14: 🔢 Calc. Equivalencias | D14: 📅 AGENDA Y VENCIMIENTOS Quién tiene el plan vencido o por vencer | F14: 💰 PANEL DE INGRESOS Planes vendidos, altas, renovaciones e ingreso | BY14: Calculadora Equivalencias
B15: 🏃 Nutrición Deportiva | BY15: Nutrición Deportiva
B17: BASES DE DATOS | D17: Copia sin registrar · v1.0
B18: 🍎 Base SMAE | BY18: Base SMAE
B19: 🌎 Base USDA | BY19: Base USDA
B20: 🗂 Base de clientes | BY20: Base de Datos
B22: DOCUMENTOS Y AYUDA
B23: 📈 Comparativa | BY23: Comparativa
B24: 🖨 Reporte | BY24: Reporte
B25: 🤖 Asistente IA | BY25: Asistente IA
B26: 📚 Instrucciones | BY26: Instrucciones
B27: ⚙ Configuración | BY27: Configuración

Sheet Historia Clínica (hidden)
A1: HISTORIA CLÍNICA NUTRICIONAL | G1: 🏠 Inicio | I1: 🔍 CARGAR CLIENTE PARA SEGUIMIENTO 👆 UN CLIC AQUÍ
A3: 🖼️ Espacio para imagen/banner (2000 × 450 px) — 👆 UN CLIC AQUÍ
H4: 👤 FOTO DEL CLIENTE 👆 UN CLIC PARA CAMBIAR | J4: Cliente seleccionado:
A5: ① ANTECEDENTES HEREDOFAMILIARES
A6: Diabetes mellitus (parentesco): | B6: Sí — mamá y abuela materna | J6: ↑ Elige de la lista y usa los botones de cargar/eliminar
A7: Hipertensión arterial (parentesco): | B7: Sí — papá
A8: Obesidad (parentesco): | B8: Sí — mamá
A9: Dislipidemias (parentesco): | B9: No
A10: Cardiopatías (parentesco): | B10: Sí — abuelo paterno, infarto a los 62
A11: Cáncer (tipo y parentesco): | B11: No
A12: Enfermedad tiroidea (parentesco): | B12: Sí — hipotiroidismo, mamá
A13: Otros antecedentes relevantes: | B13: Sin otros de relevancia
A15: ② ANTECEDENTES PERSONALES PATOLÓGICOS | H15: Estatus del paciente
A16: Enfermedades diagnosticadas actuales: | B16: Hipotiroidismo subclínico, dx hace 2 años | H16: Activo
A17: Cirugías previas: | B17: Cesárea (2019)
A18: Alergias / intolerancias alimentarias: | B18: Intolerancia a la lactosa (leve) | H18: Plan contratado
A19: Medicamentos actuales: | B19: Levotiroxina 50 mcg en ayuno | H19: Mensual
A20: Suplementos actuales: | B20: Ninguno
A21: Hospitalizaciones relevantes: | B21: Ninguna | H21: Fecha de registro
H22: 2026-08-27 | J22: 🩺 SIGNOS VITALES | M22: Valores de referencia (adulto)
A23: ③ ANTECEDENTES PERSONALES NO PATOLÓGICOS | J23: T/A (mmHg) | K23: 118/76 | M23: Óptima < 120/80 · elevada 120-129/<80 · HTA1 130-139/80-89
A24: Tabaquismo (sí/no, cantidad): | B24: No | H24: Nombre | J24: F. cardiaca (lpm) | K24: 72 | M24: 60 a 100 lpm en reposo · deportistas entrenados 40-60
A25: Consumo de alcohol (frecuencia, cantidad): | B25: Social, 2 copas cada 15 días | H25: Paciente de Prueba | J25: F. respiratoria (rpm) | K25: 16 | M25: 12 a 20 rpm en reposo
A26: Actividad física habitual (tipo, frecuencia, duración): | B26: Camina 30 min, 3 veces por semana | J26: Temperatura (°C) | K26: 36.6 | M26: 36.1 a 37.2 °C
H27: Edad | J27: SpO₂ (%) | K27: 97 | M27: 95 a 100 % · por debajo de 92 % requiere valoración
A28: Horas de sueño promedio: | B28: 6 a 6.5 horas | H28: 36 | J28: Glucosa capilar (mg/dL) | K28: 88 | M28: Ayuno 70-99 · casual < 140 mg/dL
A29: Nivel de estrés percibido (bajo/medio/alto): | B29: Moderado — carga de trabajo
H30: Sexo | J30: 💲 COBRO DEL PLAN
A31: ④ HISTORIA GINECO-OBSTÉTRICA (si aplica) | H31: Femenino | J31: ¿Registrar precio? | K31: Sí
A32: Menarca / edad: | B32: 12 años | J32: Precio cobrado | K32: 800
A33: Ciclo menstrual (regular/irregular): | B33: Regular, 28 días | H33: Correo
A34: Gestas / partos / cesáreas: | B34: 1 gesta / 0 partos / 1 cesárea | H34: prueba@ejemplo.com
A35: Anticoncepción actual: | B35: DIU de cobre
A36: Menopausia (edad, si aplica): | B36: No aplica | H36: Teléfono | J36: 💬 ENVIAR WHATSAPP Seguimiento, recordatorio de cita o comprobante de pago. 👆 UN CLIC AQUÍ
A37: ⑤ HÁBITOS DE ALIMENTACIÓN | H37: 0
A38: Número de comidas al día: | B38: 4
A39: Horarios habituales de comida: | B39: 8:00, 13:30, 17:00 y 21:00 | H39: Fecha de nacimiento
A40: ¿Quién prepara los alimentos?: | B40: Ella misma | H40: 1990-05-14
A41: Lugar donde come habitualmente: | B41: Casa entre semana, fuera los fines
A42: Consumo de agua simple (litros/día): | B42: 1.5 litros | H42: Peso (kg)
A43: Alimentos preferidos: | B43: Pollo, arroz, fruta, café con leche | H43: 68.4
A45: Alimentos que evita o le desagradan: | B45: Pescado y verduras amargas | H45: Estatura (cm)
H46: 162
A47: Consumo de ultraprocesados (frecuencia): | B47: Galletas y refresco, 3 veces por semana
A48: Consumo de comida fuera de casa (frecuencia): | B48: 2 veces por semana | H48: Cintura (cm)
A49: Antojos / ansiedad por comer: | B49: Dulce por la tarde, sobre todo en días de mucho trabajo | H49: 78
A50: Dietas previas realizadas y resultado: | B50: Dieta baja en carbohidratos hace 3 años, la dejó al mes
H51: Cadera (cm)
A52: Recordatorio de 24 horas (día habitual): | B52: Café con leche y pan dulce · pollo con arroz y ensalada · fruta con yogur · quesadillas y agua de jamaica | H52: 98
H54: Cuello (cm)
H55: 32
A56: ⑥ CONTEXTO PSICOSOCIAL Y OBJETIVOS
A57: Ocupación / horario laboral: | B57: Administrativa, 9:00 a 18:00, sentada | H57: Actividad
A58: Motivo principal de consulta: | B58: Quiere bajar de peso y dejar de sentirse cansada | H58: Actividad moderada (Pasa una buena parte del día de pie durante su trabajo y actividades)
A60: Objetivo del paciente (en sus palabras): | B60: Bajar 6 kg de grasa en 4 meses sin perder músculo | H60: Ejercicio
H61: Ejercicio moderado (Varios días a la semana de ejercicio, algo de entrenamiento de resistencia)
A62: Intentos previos y por qué no funcionaron:
H63: Objetivo
A64: Nivel de apoyo familiar/social percibido: | H64: Pérdida de grasa
A65: Disponibilidad de tiempo/presupuesto para comer sano:
H66: Plan inicia
A67: Ficha de uso interno del profesional. Manejar conforme a confidencialidad clínica. | H67: 2026-08-27
H68: Progreso del plan
A69: ⑦ PREFERENCIAS ALIMENTARIAS | H69: =IFERROR(IF(OR($H$67="",$H$19=""),"",MIN(1,MAX(0,(TODAY()-$H$67)/(EDATE($H$67,IF($H$19="Trimestral",3,IF($H$19="Semestral",6,1)))-$H$67)))),"") -> 0
A70: Alimentos deseados / que le gustaría incluir: | H70: =IFERROR(IF(OR($H$67="",$H$19=""),"",IF(EDATE($H$67,IF($H$19="Trimestral",3,IF($H$19="Semestral",6,1)))<TODAY(),"Venció el "&RIGHT("0"&DAY(EDATE($H$67,IF($H$19="Trimestral",3,IF($H$19="Semestral",6,1)))),2)&"/"&RIGHT("0"&MONTH(EDATE($H$67,IF($H$19="Trimestral",3,IF($H$19="Semestral",6,1)))),2)&"/"&YEAR(EDATE($H$67,IF($H$19="Trimestral",3,IF($H$19="Semestral",6,1)))),"Vence el "&RIGHT("0"&DAY(EDATE($H$67,IF($H$19="Trimestral",3,IF($H$19="Semestral",6,1)))),2)&"/"&RIGHT("0"&MONTH(EDATE($H$67,IF($H$19="Trimestral",3,IF($H$19="Semestral",6,1)))),2)&"/"&YEAR(EDATE($H$67,IF($H$19="Trimestral",3,IF($H$19="Semestral",6,1))))&" · faltan "&(EDATE($H$67,IF($H$19="Trimestral",3,IF($H$19="Semestral",6,1)))-TODAY())&" días")),"") -> Vence el 27/09/2026 · faltan 31 días
A72: Alimentos no deseados / que prefiere evitar:
H73: ✅ REGISTRAR PACIENTE (cliente nuevo — guarda TODO: antropometría + bioquímicos + historia clínica) 👆 UN CLIC AQUÍ
A74: Alimentos favoritos:
A77: ⑧ COMENTARIOS GENERALES
A78: Cualquier otro dato relevante que no encaje arriba: | H78: 🔁 REGISTRAR SEGUIMIENTO (consulta de control — guarda TODO igual, para el historial del cliente) 👆 UN CLIC AQUÍ
A83: ⚠️ ZONA DE RIESGO — ELIMINACIÓN PERMANENTE | H83: Los botones de cada hoja (Antropometría, Bioquímicos) siguen guardando solo su parte, por si necesitas actualizar algo suelto.
A84: 🗑️ ELIMINAR CLIENTE Y TODOS SUS DATOS Borra TODOS los registros de Base de Datos de un cliente (todas sus evaluaciones históricas). Acción irreversible. 👆 DOBLE CLIC AQUÍ
A88: 🗑️ ELIMINAR UNA EVALUACIÓN (SEGUIMIENTO) Borra UNA sola consulta registrada por error (eliges cliente y fecha). Conserva el resto del historial del cliente. 👆 DOBLE CLIC AQUÍ

Sheet Plan Nutricional (hidden)
A1: PLAN NUTRICIONAL — CÁLCULO DE ENERGÍA | D1: 🏠 Inicio
A3: 🖼️ Espacio para imagen/banner (2000 × 450 px) — 👆 UN CLIC AQUÍ
A4: ① DATOS DEL CLIENTE (automático) | F4: (cálculo interno — no editar)
A5: Peso (kg): | B5: =Antropometría!F7 -> 68.4 | F5: De Lorenzo | G5: =9*B5+11.7*B6-857 -> 1654
A6: Talla (cm): | B6: =Antropometría!F8 -> 162 | F6: Ten Haaf-MLG | G6: =22.771*Cálculos!B28+484.264 -> 1739.131672
A7: Edad: | B7: =Antropometría!B7 -> 36 | F7: Cunningham | G7: =500+22*Cálculos!B28 -> 1712.379289
A8: Sexo: | B8: =Antropometría!B8 -> F | F8: Harris-Benedict revisada | G8: =IF(B8="M",88.362+13.397*B5+4.799*B6-5.677*B7,447.593+9.247*B5+3.098*B6-4.33*B7) -> 1426.0838
F9: Mifflin-St Jeor | G9: =10*B5+6.25*B6-5*B7+IF(B8="M",5,-161) -> 1355.5
A10: ② FACTOR DE ACTIVIDAD Y OBJETIVO | F10: Owen | G10: =IF(B8="M",879+10.2*B5,795+7.18*B5) -> 1286.112
A11: Factor de actividad: | C11: NIVEL DE ACTIVIDAD FISICA: 1.20-1.39 sedentario · 1.40-1.59 ligero · 1.60-1.89 moderado · 1.90-2.50 muy activo | F11: Cunningham 1991 (Katch-McArdle) | G11: =370+21.6*Cálculos!B28 -> 1560.336029
A12: Objetivo: | B12: ='Historia Clínica'!H64 -> Pérdida de grasa | C12: ← se llena desde Historia Clínica (Objetivo) | D12: =_xlfn.IFS(B12="Pérdida de grasa",-0.15,B12="Mantenimiento",0,B12="Ganancia de masa muscular",0.1) -> -0.15 | F12: Mifflin-MLG | G12: =413+19.7*Cálculos!B28 -> 1498.630545
A13: Selecciona una fórmula: | F13: Tinsley | G13: =284+25.9*Cálculos!B28 -> 1711.301072
A14: ③ RESULTADOS (según fórmula seleccionada) | F14: Promedio | G14: =IFERROR(AVERAGE(G5:G13,G15:G24),"") -> 1541.257698
A15: GEB — Gasto Energético Basal: | B15: =IFERROR(INDEX($G$5:$G$24,MATCH($B$13,$F$5:$F$24,0)),"") ->  | C15: Fórmula seleccionada arriba | F15: Harris-Benedict 1919 | G15: =IFERROR(IF(B8="M",66.473+13.7516*B5+5.0033*B6-6.755*B7,655.096+9.5634*B5+1.8496*B6-4.6756*B7),"") -> 1440.54616
A16: GET — Gasto Energético Total: | B16: =IF($B$38="METs",IFERROR(ROUND(B15*$B$39+$E$47,0),0),ROUND(B15*B11,0)) ->  | F16: FAO/OMS/UNU (peso) | G16: =IFERROR(IF(B8="M",IF(B7<=30,15.3*B5+679,IF(B7<=60,11.6*B5+879,13.5*B5+487)),IF(B7<=30,14.7*B5+496,IF(B7<=60,8.7*B5+829,10.5*B5+596))),"") -> 1424.08
A17: ETA — Efecto Térmico de los Alimentos (~10%): | B17: =IF($B$38="METs",ROUND(B16*0.1,0),0) -> 0 | C17: Solo con METs. Con GER × factor el efecto térmico ya va incluido; sumarlo otra vez lo contaría dos veces. | F17: FAO/OMS/UNU (peso y talla) | G17: =IFERROR(IF(B8="M",IF(B7<=30,15.4*B5-27*(B6/100)+717,IF(B7<=60,11.3*B5-16*(B6/100)+901,8.8*B5+1128*(B6/100)-1071)),IF(B7<=30,13.3*B5+334*(B6/100)+35,IF(B7<=60,8.7*B5-25*(B6/100)+865,9.2*B5+637*(B6/100)-302))),"") -> 1419.58
A18: GET + ETA: | B18: =B16+B17 ->  | F18: Schofield (peso) | G18: =IFERROR(239*(IF(B8="M",IF(B7<=30,0.063*B5+2.896,IF(B7<=60,0.048*B5+3.653,0.049*B5+2.459)),IF(B7<=30,0.062*B5+2.036,IF(B7<=60,0.034*B5+3.538,0.038*B5+2.755)))),"") -> 1401.4004
A19: ENERGÍA OBJETIVO: | B19: =ROUND(B18*(1+D12),0) ->  | F19: Owen-MLG | G19: =IFERROR(IF(B8="M",290+22.3*Cálculos!B28,334+19.7*Cálculos!B28),"") -> 1419.630545
A20: =_xlfn.IFS(B12="Pérdida de grasa","Recomendación: déficit de 15% (ajustable −10% a −20% según velocidad deseada). Prioriza proteína alta y entrenamiento de fuerza para preservar masa muscular.",B12="Mantenimiento","Recomendación: sin déficit ni superávit. Útil para estabilizar peso o en fase de mantenimiento post-dieta.",B12="Ganancia de masa muscular","Recomendación: superávit de 10% (ajustable +10% a +20% según tolerancia a ganancia de grasa). Combinar con entrenamiento de fuerza progresivo.") -> Recomendación: déficit de 15% (ajustable −10% a −20% según velocidad deseada). Prioriza proteína alta y entrenamiento de fuerza para preservar masa muscular. | F20: Ten Haaf completa | G20: =IFERROR(11.936*B5+587.728*(B6/100)-8.129*B7+191.027*IF(B8="M",1,0)+29.279,"") -> 1505.17676
A21: ④ DISTRIBUCIÓN DE MACRONUTRIMENTOS | F21: Wong | G21: =IFERROR(669+13*B5+192*IF(B8="M",1,0),"") -> 1558.2
A22: Modo: | B22: Por g/kg de peso | F22: Marra | G22: =IFERROR(17.2*B5-5.95*B7+748,"") -> 1710.28
A23: % Proteína: | F23: Freire | G23: =IFERROR(729.5+175.64*IF(B8="M",1,0)-7.23*B7+15.87*B5+1.08*B6,"") -> 1729.688
A24: % Grasa: | F24: Jagim | G24: =IFERROR(IF(B8="M",775.33+19.46*B5,288.6+21.1*B5),"") -> 1731.84
A25: % Hidratos de carbono: | B25: =1-B23-B24 -> 1
A27: g/kg de peso — Proteína:
A28: g/kg de peso — Grasa:
A29: HC (g/kg de peso, informativo): | B29: =IFERROR(B34/B5,"") -> 
A30: =_xlfn.IFS($B$12="Pérdida de grasa","Recomendado en pérdida de grasa: 1.6–2.4 g/kg proteína (proteger músculo), 0.5–1.0 g/kg grasa (mínimo hormonal), resto en HC.",$B$12="Mantenimiento","Recomendado en mantenimiento: 1.2–1.8 g/kg proteína, 0.8–1.2 g/kg grasa, resto en HC.",$B$12="Ganancia de masa muscular","Recomendado en ganancia muscular: 1.6–2.2 g/kg proteína, 0.8–1.2 g/kg grasa, resto en HC (superávit favorece HC/entrenamiento).") -> Recomendado en pérdida de grasa: 1.6–2.4 g/kg proteína (proteger músculo), 0.5–1.0 g/kg grasa (mínimo hormonal), resto en HC.
A32: Proteína (g/día): | B32: =IF(B22="Por g/kg de peso",B27*B5,ROUND(B19*B23/4,0)) -> 0
A33: Grasa (g/día): | B33: =IF(B22="Por g/kg de peso",B28*B5,ROUND(B19*B24/9,0)) -> 0
A34: Hidratos de carbono (g/día): | B34: =IF(B22="Por g/kg de peso",(B19-(B32*4)-(B33*9))/4,ROUND((B19-(B32*4)-(B33*9))/4,0)) -> 
A36: ⑤ GET POR METs — alternativa al factor de actividad
A37: Suma la energía de cada actividad concreta en vez de usar un solo factor para todo el día. Las celdas color crema son las que se escriben.
A38: Método del GET: | C38: ← elige cuál alimenta el GET de la fila 16
A39: Actividad cotidiana / NEAT (factor sobre el GEB): | C39: · 1.2 sedentario · 1.3 de pie · 1.4 trabajo físico
A40: Actividad | B40: METs | C40: min/sesión | D40: ses./semana | E40: kcal/día | G40: METs de referencia (Compendium):
B41: =IFERROR(IF(A41="","",INDEX('Base METs'!$B$2:$B$823,MATCH(A41,'Base METs'!$A$2:$A$823,0))),"") ->  | E41: =IFERROR(IF(OR(B41="",C41="",D41=""),"",ROUND(B41*3.5*$B$5/200*C41*D41/7,1)),"") ->  | G41: Dormir 0.95 · Sentado 1.3
B42: =IFERROR(IF(A42="","",INDEX('Base METs'!$B$2:$B$823,MATCH(A42,'Base METs'!$A$2:$A$823,0))),"") ->  | G42: Caminar 3.0-4.3
B43: =IFERROR(IF(A43="","",INDEX('Base METs'!$B$2:$B$823,MATCH(A43,'Base METs'!$A$2:$A$823,0))),"") ->  | G43: Trotar 7.0 · Correr 8.3-11.5
B44: =IFERROR(IF(A44="","",INDEX('Base METs'!$B$2:$B$823,MATCH(A44,'Base METs'!$A$2:$A$823,0))),"") ->  | G44: Pesas 3.5-6.0 · Circuito 8.0
B45: =IFERROR(IF(A45="","",INDEX('Base METs'!$B$2:$B$823,MATCH(A45,'Base METs'!$A$2:$A$823,0))),"") ->  | G45: Ciclismo 4.0-10.0
B46: =IFERROR(IF(A46="","",INDEX('Base METs'!$B$2:$B$823,MATCH(A46,'Base METs'!$A$2:$A$823,0))),"") ->  | G46: Natación 5.8-9.8 · Yoga 2.5-4.0
A47: Energía de actividad (kcal/día): | E47: =ROUND(SUM(E41:E46),0) -> 0 | G47: Fútbol 7.0 · Básquet 6.5
A49: GEB (de la fórmula elegida arriba): | B49: =B15 -> 
A50: GET por METs (GEB + actividad): | B50: =IFERROR(ROUND(B15*$B$39+$E$47,0),"") -> 
A51: Factor de actividad equivalente: | B51: =IFERROR(ROUND((B15*$B$39+$E$47)/B15,2),"") ->  | C51: ← compáralo con el factor de la fila 11

Sheet Menú (hidden)
A1: MENÚ — HASTA 4 OPCIONES POR DÍA | G1: 🏠 Inicio
A3: 🖼️ Espacio para imagen/banner (2000 × 450 px) — 👆 UN CLIC AQUÍ
A4: Nombre del menú: | G4: Base de datos:
G5: SMAE | BH5: EQUIVALENTES USADOS POR GRUPO (día completo)
B7: Desayuno | P7: Desayuno | AD7: Desayuno | AR7: Desayuno | BH7: Grupo | BI7: Opc.1 | BJ7: Opc.2 | BK7: Opc.3 | BL7: Opc.4
B8: Opción 1 | P8: Opción 2 | AD8: Opción 3 | AR8: Opción 4 | BH8: A O A AG | BI8: =SUMIF(G15:G24,"A O A AG",F15:F24)+SUMIF(G37:G46,"A O A AG",F37:F46)+SUMIF(G59:G68,"A O A AG",F59:F68)+SUMIF(G81:G90,"A O A AG",F81:F90)+SUMIF(G103:G112,"A O A AG",F103:F112) -> 0 | BJ8: =SUMIF(U15:U24,"A O A AG",T15:T24)+SUMIF(U37:U46,"A O A AG",T37:T46)+SUMIF(U59:U68,"A O A AG",T59:T68)+SUMIF(U81:U90,"A O A AG",T81:T90)+SUMIF(U103:U112,"A O A AG",T103:T112) -> 0 | BK8: =SUMIF(AI15:AI24,"A O A AG",AH15:AH24)+SUMIF(AI37:AI46,"A O A AG",AH37:AH46)+SUMIF(AI59:AI68,"A O A AG",AH59:AH68)+SUMIF(AI81:AI90,"A O A AG",AH81:AH90)+SUMIF(AI103:AI112,"A O A AG",AH103:AH112) -> 0 | BL8: =SUMIF(AW15:AW24,"A O A AG",AV15:AV24)+SUMIF(AW37:AW46,"A O A AG",AV37:AV46)+SUMIF(AW59:AW68,"A O A AG",AV59:AV68)+SUMIF(AW81:AW90,"A O A AG",AV81:AV90)+SUMIF(AW103:AW112,"A O A AG",AV103:AV112) -> 0
BH9: A O A BG | BI9: =SUMIF(G15:G24,"A O A BG",F15:F24)+SUMIF(G37:G46,"A O A BG",F37:F46)+SUMIF(G59:G68,"A O A BG",F59:F68)+SUMIF(G81:G90,"A O A BG",F81:F90)+SUMIF(G103:G112,"A O A BG",F103:F112) -> 0 | BJ9: =SUMIF(U15:U24,"A O A BG",T15:T24)+SUMIF(U37:U46,"A O A BG",T37:T46)+SUMIF(U59:U68,"A O A BG",T59:T68)+SUMIF(U81:U90,"A O A BG",T81:T90)+SUMIF(U103:U112,"A O A BG",T103:T112) -> 0 | BK9: =SUMIF(AI15:AI24,"A O A BG",AH15:AH24)+SUMIF(AI37:AI46,"A O A BG",AH37:AH46)+SUMIF(AI59:AI68,"A O A BG",AH59:AH68)+SUMIF(AI81:AI90,"A O A BG",AH81:AH90)+SUMIF(AI103:AI112,"A O A BG",AH103:AH112) -> 0 | BL9: =SUMIF(AW15:AW24,"A O A BG",AV15:AV24)+SUMIF(AW37:AW46,"A O A BG",AV37:AV46)+SUMIF(AW59:AW68,"A O A BG",AV59:AV68)+SUMIF(AW81:AW90,"A O A BG",AV81:AV90)+SUMIF(AW103:AW112,"A O A BG",AV103:AV112) -> 0
B10: Preparación: | P10: Preparación: | AD10: Preparación: | AR10: Preparación: | BH10: A O A MBG | BI10: =SUMIF(G15:G24,"A O A MBG",F15:F24)+SUMIF(G37:G46,"A O A MBG",F37:F46)+SUMIF(G59:G68,"A O A MBG",F59:F68)+SUMIF(G81:G90,"A O A MBG",F81:F90)+SUMIF(G103:G112,"A O A MBG",F103:F112) -> 0 | BJ10: =SUMIF(U15:U24,"A O A MBG",T15:T24)+SUMIF(U37:U46,"A O A MBG",T37:T46)+SUMIF(U59:U68,"A O A MBG",T59:T68)+SUMIF(U81:U90,"A O A MBG",T81:T90)+SUMIF(U103:U112,"A O A MBG",T103:T112) -> 0 | BK10: =SUMIF(AI15:AI24,"A O A MBG",AH15:AH24)+SUMIF(AI37:AI46,"A O A MBG",AH37:AH46)+SUMIF(AI59:AI68,"A O A MBG",AH59:AH68)+SUMIF(AI81:AI90,"A O A MBG",AH81:AH90)+SUMIF(AI103:AI112,"A O A MBG",AH103:AH112) -> 0 | BL10: =SUMIF(AW15:AW24,"A O A MBG",AV15:AV24)+SUMIF(AW37:AW46,"A O A MBG",AV37:AV46)+SUMIF(AW59:AW68,"A O A MBG",AV59:AV68)+SUMIF(AW81:AW90,"A O A MBG",AV81:AV90)+SUMIF(AW103:AW112,"A O A MBG",AV103:AV112) -> 0
BH11: A O A MG | BI11: =SUMIF(G15:G24,"A O A MG",F15:F24)+SUMIF(G37:G46,"A O A MG",F37:F46)+SUMIF(G59:G68,"A O A MG",F59:F68)+SUMIF(G81:G90,"A O A MG",F81:F90)+SUMIF(G103:G112,"A O A MG",F103:F112) -> 0 | BJ11: =SUMIF(U15:U24,"A O A MG",T15:T24)+SUMIF(U37:U46,"A O A MG",T37:T46)+SUMIF(U59:U68,"A O A MG",T59:T68)+SUMIF(U81:U90,"A O A MG",T81:T90)+SUMIF(U103:U112,"A O A MG",T103:T112) -> 0 | BK11: =SUMIF(AI15:AI24,"A O A MG",AH15:AH24)+SUMIF(AI37:AI46,"A O A MG",AH37:AH46)+SUMIF(AI59:AI68,"A O A MG",AH59:AH68)+SUMIF(AI81:AI90,"A O A MG",AH81:AH90)+SUMIF(AI103:AI112,"A O A MG",AH103:AH112) -> 0 | BL11: =SUMIF(AW15:AW24,"A O A MG",AV15:AV24)+SUMIF(AW37:AW46,"A O A MG",AV37:AV46)+SUMIF(AW59:AW68,"A O A MG",AV59:AV68)+SUMIF(AW81:AW90,"A O A MG",AV81:AV90)+SUMIF(AW103:AW112,"A O A MG",AV103:AV112) -> 0
BH12: AZÚCAR C/P | BI12: =SUMIF(G15:G24,"AZÚCAR C/P",F15:F24)+SUMIF(G37:G46,"AZÚCAR C/P",F37:F46)+SUMIF(G59:G68,"AZÚCAR C/P",F59:F68)+SUMIF(G81:G90,"AZÚCAR C/P",F81:F90)+SUMIF(G103:G112,"AZÚCAR C/P",F103:F112) -> 0 | BJ12: =SUMIF(U15:U24,"AZÚCAR C/P",T15:T24)+SUMIF(U37:U46,"AZÚCAR C/P",T37:T46)+SUMIF(U59:U68,"AZÚCAR C/P",T59:T68)+SUMIF(U81:U90,"AZÚCAR C/P",T81:T90)+SUMIF(U103:U112,"AZÚCAR C/P",T103:T112) -> 0 | BK12: =SUMIF(AI15:AI24,"AZÚCAR C/P",AH15:AH24)+SUMIF(AI37:AI46,"AZÚCAR C/P",AH37:AH46)+SUMIF(AI59:AI68,"AZÚCAR C/P",AH59:AH68)+SUMIF(AI81:AI90,"AZÚCAR C/P",AH81:AH90)+SUMIF(AI103:AI112,"AZÚCAR C/P",AH103:AH112) -> 0 | BL12: =SUMIF(AW15:AW24,"AZÚCAR C/P",AV15:AV24)+SUMIF(AW37:AW46,"AZÚCAR C/P",AV37:AV46)+SUMIF(AW59:AW68,"AZÚCAR C/P",AV59:AV68)+SUMIF(AW81:AW90,"AZÚCAR C/P",AV81:AV90)+SUMIF(AW103:AW112,"AZÚCAR C/P",AV103:AV112) -> 0
B13: 📷 Imagen 👆 UN CLIC | P13: 📷 Imagen 👆 UN CLIC | AD13: 📷 Imagen 👆 UN CLIC | AR13: 📷 Imagen 👆 UN CLIC | BH13: AZÚCAR S/P | BI13: =SUMIF(G15:G24,"AZÚCAR S/P",F15:F24)+SUMIF(G37:G46,"AZÚCAR S/P",F37:F46)+SUMIF(G59:G68,"AZÚCAR S/P",F59:F68)+SUMIF(G81:G90,"AZÚCAR S/P",F81:F90)+SUMIF(G103:G112,"AZÚCAR S/P",F103:F112) -> 0 | BJ13: =SUMIF(U15:U24,"AZÚCAR S/P",T15:T24)+SUMIF(U37:U46,"AZÚCAR S/P",T37:T46)+SUMIF(U59:U68,"AZÚCAR S/P",T59:T68)+SUMIF(U81:U90,"AZÚCAR S/P",T81:T90)+SUMIF(U103:U112,"AZÚCAR S/P",T103:T112) -> 0 | BK13: =SUMIF(AI15:AI24,"AZÚCAR S/P",AH15:AH24)+SUMIF(AI37:AI46,"AZÚCAR S/P",AH37:AH46)+SUMIF(AI59:AI68,"AZÚCAR S/P",AH59:AH68)+SUMIF(AI81:AI90,"AZÚCAR S/P",AH81:AH90)+SUMIF(AI103:AI112,"AZÚCAR S/P",AH103:AH112) -> 0 | BL13: =SUMIF(AW15:AW24,"AZÚCAR S/P",AV15:AV24)+SUMIF(AW37:AW46,"AZÚCAR S/P",AV37:AV46)+SUMIF(AW59:AW68,"AZÚCAR S/P",AV59:AV68)+SUMIF(AW81:AW90,"AZÚCAR S/P",AV81:AV90)+SUMIF(AW103:AW112,"AZÚCAR S/P",AV103:AV112) -> 0
B14: Alimento | C14: Medida | D14: (unidad) | E14: Cant. | F14: Eq | G14: Grupo | P14: Alimento | Q14: Medida | R14: (unidad) | S14: Cant. | T14: Eq | U14: Grupo | AD14: Alimento | AE14: Medida | AF14: (unidad) | AG14: Cant. | AH14: Eq | AI14: Grupo | AR14: Alimento | AS14: Medida | AT14: (unidad) | AU14: Cant. | AV14: Eq | AW14: Grupo | BH14: CEREALES C/G | BI14: =SUMIF(G15:G24,"CEREALES C/G",F15:F24)+SUMIF(G37:G46,"CEREALES C/G",F37:F46)+SUMIF(G59:G68,"CEREALES C/G",F59:F68)+SUMIF(G81:G90,"CEREALES C/G",F81:F90)+SUMIF(G103:G112,"CEREALES C/G",F103:F112) -> 0 | BJ14: =SUMIF(U15:U24,"CEREALES C/G",T15:T24)+SUMIF(U37:U46,"CEREALES C/G",T37:T46)+SUMIF(U59:U68,"CEREALES C/G",T59:T68)+SUMIF(U81:U90,"CEREALES C/G",T81:T90)+SUMIF(U103:U112,"CEREALES C/G",T103:T112) -> 0 | BK14: =SUMIF(AI15:AI24,"CEREALES C/G",AH15:AH24)+SUMIF(AI37:AI46,"CEREALES C/G",AH37:AH46)+SUMIF(AI59:AI68,"CEREALES C/G",AH59:AH68)+SUMIF(AI81:AI90,"CEREALES C/G",AH81:AH90)+SUMIF(AI103:AI112,"CEREALES C/G",AH103:AH112) -> 0 | BL14: =SUMIF(AW15:AW24,"CEREALES C/G",AV15:AV24)+SUMIF(AW37:AW46,"CEREALES C/G",AV37:AV46)+SUMIF(AW59:AW68,"CEREALES C/G",AV59:AV68)+SUMIF(AW81:AW90,"CEREALES C/G",AV81:AV90)+SUMIF(AW103:AW112,"CEREALES C/G",AV103:AV112) -> 0
D15: =IF($B15="","",IF($C15="Gramos","gramos",IF($G$5="SMAE",IFERROR(INDEX('Base SMAE'!$E$13:$E$2638,MATCH($B15,'Base SMAE'!$A$13:$A$2638,0)),"gramos"),"gramos"))) ->  | F15: =IF(OR($B15="",$E15=""),"",IF($G$5="SMAE",IFERROR(IF($C15="Gramos",$E15/H15,$E15/I15),""),IFERROR($E15/100,""))) ->  | G15: =IF($B15="","",IF($G$5="SMAE",IFERROR(INDEX('Base SMAE'!$B$13:$B$2638,MATCH($B15,'Base SMAE'!$A$13:$A$2638,0)),IFERROR(INDEX('Base USDA'!$D$6:$D$5436,MATCH($B15,'Base USDA'!$B$6:$B$5436,0)),"")),IFERROR(INDEX('Base USDA'!$D$6:$D$5436,MATCH($B15,'Base USDA'!$B$6:$B$5436,0)),IFERROR(INDEX('Base SMAE'!$B$13:$B$2638,MATCH($B15,'Base SMAE'!$A$13:$A$2638,0)),"")))) ->  | H15: =IF($B15="","",IF($G$5="SMAE",IFERROR(INDEX('Base SMAE'!$G$13:$G$2638,MATCH($B15,'Base SMAE'!$A$13:$A$2638,0)),""),100)) ->  | I15: =IF($B15="","",IF($G$5="SMAE",IFERROR(INDEX('Base SMAE'!$D$13:$D$2638,MATCH($B15,'Base SMAE'!$A$13:$A$2638,0)),""),100)) ->  | J15: =IF(OR($B15="",$E15=""),"",IF($G$5="SMAE",IF(IFERROR((INDEX('Base SMAE'!$H$13:$H$2638,MATCH($B15,'Base SMAE'!$A$13:$A$2638,0)))*F15,"")="",IFERROR((INDEX('Base USDA'!$E$6:$E$5436,MATCH($B15,'Base USDA'!$B$6:$B$5436,0)))*F15,""),IFERROR((INDEX('Base SMAE'!$H$13:$H$2638,MATCH($B15,'Base SMAE'!$A$13:$A$2638,0)))*F15,"")),IF(IFERROR((INDEX('Base USDA'!$E$6:$E$5436,MATCH($B15,'Base USDA'!$B$6:$B$5436,0)))*F15,"")="",IFERROR((INDEX('Base SMAE'!$H$13:$H$2638,MATCH($B15,'Base SMAE'!$A$13:$A$2638,0)))*F15,""),IFERROR((INDEX('Base USDA'!$E$6:$E$5436,MATCH($B15,'Base USDA'!$B$6:$B$5436,0)))*F15,"")))) ->  | K15: =IF(OR($B15="",$E15=""),"",IF($G$5="SMAE",IF(IFERROR((INDEX('Base SMAE'!$I$13:$I$2638,MATCH($B15,'Base SMAE'!$A$13:$A$2638,0)))*F15,"")="",IFERROR((INDEX('Base USDA'!$F$6:$F$5436,MATCH($B15,'Base USDA'!$B$6:$B$5436,0)))*F15,""),IFERROR((INDEX('Base SMAE'!$I$13:$I$2638,MATCH($B15,'Base SMAE'!$A$13:$A$2638,0)))*F15,"")),IF(IFERROR((INDEX('Base USDA'!$F$6:$F$5436,MATCH($B15,'Base USDA'!$B$6:$B$5436,0)))*F15,"")="",IFERROR((INDEX('Base SMAE'!$I$13:$I$2638,MATCH($B15,'Base SMAE'!$A$13:$A$2638,0)))*F15,""),IFERROR((INDEX('Base USDA'!$F$6:$F$5436,MATCH($B15,'Base USDA'!$B$6:$B$5436,0)))*F15,"")))) ->  | L15: =IF(OR($B15="",$E15=""),"",IF($G$5="SMAE",IF(IFERROR((INDEX('Base SMAE'!$J$13:$J$2638,MATCH($B15,'Base SMAE'!$A$13:$A$2638,0)))*F15,"")="",IFERROR((INDEX('Base USDA'!$J$6:$J$5436,MATCH($B15,'Base USDA'!$B$6:$B$5436,0)))*F15,""),IFERROR((INDEX('Base SMAE'!$J$13:$J$2638,MATCH($B15,'Base SMAE'!$A$13:$A$2638,0)))*F15,"")),IF(IFERROR((INDEX('Base USDA'!$J$6:$J$5436,MATCH($B15,'Base USDA'!$B$6:$B$5436,0)))*F15,"")="",IFERROR((INDEX('Base SMAE'!$J$13:$J$2638,MATCH($B15,'Base SMAE'!$A$13:$A$2638,0)))*F15,""),IFERROR((INDEX('Base USDA'!$J$6:$J$5436,MATCH($B15,'Base USDA'!$B$6:$B$5436,0)))*F15,"")))) ->  | M15: =IF(OR($B15="",$E15=""),"",IF($G$5="SMAE",IF(IFERROR((INDEX('Base SMAE'!$K$13:$K$2638,MATCH($B15,'Base SMAE'!$A$13:$A$2638,0)))*F15,"")="",IFERROR((INDEX('Base USDA'!$G$6:$G$5436,MATCH($B15,'Base USDA'!$B$6:$B$5436,0)))*F15,""),IFERROR((INDEX('Base SMAE'!$K$13:$K$2638,MATCH($B15,'Base SMAE'!$A$13:$A$2638,0)))*F15,"")),IF(IFERROR((INDEX('Base USDA'!$G$6:$G$5436,MATCH($B15,'Base USDA'!$B$6:$B$5436,0)))*F15,"")="",IFERROR((INDEX('Base SMAE'!$K$13:$K$2638,MATCH($B15,'Base SMAE'!$A$13:$A$2638,0)))*F15,""),IFERROR((INDEX('Base USDA'!$G$6:$G$5436,MATCH($B15,'Base USDA'!$B$6:$B$5436,0)))*F15,"")))) ->  | N15: =IF(OR($B15="",$E15=""),"",IF($G$5="SMAE",IF(IFERROR((INDEX('Base SMAE'!$L$13:$L$2638,MATCH($B15,'Base SMAE'!$A$13:$A$2638,0)))*F15,"")="",IFERROR((INDEX('Base USDA'!$I$6:$I$5436,MATCH($B15,'Base USDA'!$B$6:$B$5436,0)))*F15,""),IFERROR((INDEX('Base SMAE'!$L$13:$L$2638,MATCH($B15,'Base SMAE'!$A$13:$A$2638,0)))*F15,"")),IF(IFERROR((INDEX('Base USDA'!$I$6:$I$5436,MATCH($B15,'Base USDA'!$B$6:$B$5436,0)))*F15,"")="",IFERROR((INDEX('Base SMAE'!$L$13:$L$2638,MATCH($B15,'Base SMAE'!$A$13:$A$2638,0)))*F15,""),IFERROR((INDEX('Base USDA'!$I$6:$I$5436,MATCH($B15,'Base USDA'!$B$6:$B$5436,0)))*F15,"")))) ->  | R15: =IF($P15="","",IF($Q15="Gramos","gramos",IF($G$5="SMAE",IFERROR(INDEX('Base SMAE'!$E$13:$E$2638,MATCH($P15,'Base SMAE'!$A$13:$A$2638,0)),"gramos"),"gramos"))) ->  | T15: =IF(OR($P15="",$S15=""),"",IF($G$5="SMAE",IFERROR(IF($Q15="Gramos",$S15/V15,$S15/W15),""),IFERROR($S15/100,""))) ->  | U15: =IF($P15="","",IF($G$5="SMAE",IFERROR(INDEX('Base SMAE'!$B$13:$B$2638,MATCH($P15,'Base SMAE'!$A$13:$A$2638,0)),IFERROR(INDEX('Base USDA'!$D$6:$D$5436,MATCH($P15,'Base USDA'!$B$6:$B$5436,0)),"")),IFERROR(INDEX('Base USDA'!$D$6:$D$5436,MATCH($P15,'Base USDA'!$B$6:$B$5436,0)),IFERROR(INDEX('Base SMAE'!$B$13:$B$2638,MATCH($P15,'Base SMAE'!$A$13:$A$2638,0)),"")))) ->  | V15: =IF($P15="","",IF($G$5="SMAE",IFERROR(INDEX('Base SMAE'!$G$13:$G$2638,MATCH($P15,'Base SMAE'!$A$13:$A$2638,0)),""),100)) ->  | W15: =IF($P15="","",IF($G$5="SMAE",IFERROR(INDEX('Base SMAE'!$D$13:$D$2638,MATCH($P15,'Base SMAE'!$A$13:$A$2638,0)),""),100)) ->  | X15: =IF(OR($P15="",$S15=""),"",IF($G$5="SMAE",IF(IFERROR((INDEX('Base SMAE'!$H$13:$H$2638,MATCH($P15,'Base SMAE'!$A$13:$A$2638,0)))*T15,"")="",IFERROR((INDEX('Base USDA'!$E$6:$E$5436,MATCH($P15,'Base USDA'!$B$6:$B$5436,0)))*T15,""),IFERROR((INDEX('Base SMAE'!$H$13:$H$2638,MATCH($P15,'Base SMAE'!$A$13:$A$2638,0)))*T15,"")),IF(IFERROR((INDEX('Base USDA'!$E$6:$E$5436,MATCH($P15,'Base USDA'!$B$6:$B$5436,0)))*T15,"")="",IFERROR((INDEX('Base SMAE'!$H$13:$H$2638,MATCH($P15,'Base SMAE'!$A$13:$A$2638,0)))*T15,""),IFERROR((INDEX('Base USDA'!$E$6:$E$5436,MATCH($P15,'Base USDA'!$B$6:$B$5436,0)))*T15,"")))) ->  | Y15: =IF(OR($P15="",$S15=""),"",IF($G$5="SMAE",IF(IFERROR((INDEX('Base SMAE'!$I$13:$I$2638,MATCH($P15,'Base SMAE'!$A$13:$A$2638,0)))*T15,"")="",IFERROR((INDEX('Base USDA'!$F$6:$F$5436,MATCH($P15,'Base USDA'!$B$6:$B$5436,0)))*T15,""),IFERROR((INDEX('Base SMAE'!$I$13:$I$2638,MATCH($P15,'Base SMAE'!$A$13:$A$2638,0)))*T15,"")),IF(IFERROR((INDEX('Base USDA'!$F$6:$F$5436,MATCH($P15,'Base USDA'!$B$6:$B$5436,0)))*T15,"")="",IFERROR((INDEX('Base SMAE'!$I$13:$I$2638,MATCH($P15,'Base SMAE'!$A$13:$A$2638,0)))*T15,""),IFERROR((INDEX('Base USDA'!$F$6:$F$5436,MATCH($P15,'Base USDA'!$B$6:$B$5436,0)))*T15,"")))) ->  | Z15: =IF(OR($P15="",$S15=""),"",IF($G$5="SMAE",IF(IFERROR((INDEX('Base SMAE'!$J$13:$J$2638,MATCH($P15,'Base SMAE'!$A$13:$A$2638,0)))*T15,"")="",IFERROR((INDEX('Base USDA'!$J$6:$J$5436,MATCH($P15,'Base USDA'!$B$6:$B$5436,0)))*T15,""),IFERROR((INDEX('Base SMAE'!$J$13:$J$2638,MATCH($P15,'Base SMAE'!$A$13:$A$2638,0)))*T15,"")),IF(IFERROR((INDEX('Base USDA'!$J$6:$J$5436,MATCH($P15,'Base USDA'!$B$6:$B$5436,0)))*T15,"")="",IFERROR((INDEX('Base SMAE'!$J$13:$J$2638,MATCH($P15,'Base SMAE'!$A$13:$A$2638,0)))*T15,""),IFERROR((INDEX('Base USDA'!$J$6:$J$5436,MATCH($P15,'Base USDA'!$B$6:$B$5436,0)))*T15,"")))) ->  | AA15: =IF(OR($P15="",$S15=""),"",IF($G$5="SMAE",IF(IFERROR((INDEX('Base SMAE'!$K$13:$K$2638,MATCH($P15,'Base SMAE'!$A$13:$A$2638,0)))*T15,"")="",IFERROR((INDEX('Base USDA'!$G$6:$G$5436,MATCH($P15,'Base USDA'!$B$6:$B$5436,0)))*T15,""),IFERROR((INDEX('Base SMAE'!$K$13:$K$2638,MATCH($P15,'Base SMAE'!$A$13:$A$2638,0)))*T15,"")),IF(IFERROR((INDEX('Base USDA'!$G$6:$G$5436,MATCH($P15,'Base USDA'!$B$6:$B$5436,0)))*T15,"")="",IFERROR((INDEX('Base SMAE'!$K$13:$K$2638,MATCH($P15,'Base SMAE'!$A$13:$A$2638,0)))*T15,""),IFERROR((INDEX('Base USDA'!$G$6:$G$5436,MATCH($P15,'Base USDA'!$B$6:$B$5436,0)))*T15,"")))) ->  | AB15: =IF(OR($P15="",$S15=""),"",IF($G$5="SMAE",IF(IFERROR((INDEX('Base SMAE'!$L$13:$L$2638,MATCH($P15,'Base SMAE'!$A$13:$A$2638,0)))*T15,"")="",IFERROR((INDEX('Base USDA'!$I$6:$I$5436,MATCH($P15,'Base USDA'!$B$6:$B$5436,0)))*T15,""),IFERROR((INDEX('Base SMAE'!$L$13:$L$2638,MATCH($P15,'Base SMAE'!$A$13:$A$2638,0)))*T15,"")),IF(IFERROR((INDEX('Base USDA'!$I$6:$I$5436,MATCH($P15,'Base USDA'!$B$6:$B$5436,0)))*T15,"")="",IFERROR((INDEX('Base SMAE'!$L$13:$L$2638,MATCH($P15,'Base SMAE'!$A$13:$A$2638,0)))*T15,""),IFERROR((INDEX('Base USDA'!$I$6:$I$5436,MATCH($P15,'Base USDA'!$B$6:$B$5436,0)))*T15,"")))) ->  | AF15: =IF($AD15="","",IF($AE15="Gramos","gramos",IF($G$5="SMAE",IFERROR(INDEX('Base SMAE'!$E$13:$E$2638,MATCH($AD15,'Base SMAE'!$A$13:$A$2638,0)),"gramos"),"gramos"))) ->  | AH15: =IF(OR($AD15="",$AG15=""),"",IF($G$5="SMAE",IFERROR(IF($AE15="Gramos",$AG15/AJ15,$AG15/AK15),""),IFERROR($AG15/100,""))) ->  | AI15: =IF($AD15="","",IF($G$5="SMAE",IFERROR(INDEX('Base SMAE'!$B$13:$B$2638,MATCH($AD15,'Base SMAE'!$A$13:$A$2638,0)),IFERROR(INDEX('Base USDA'!$D$6:$D$5436,MATCH($AD15,'Base USDA'!$B$6:$B$5436,0)),"")),IFERROR(INDEX('Base USDA'!$D$6:$D$5436,MATCH($AD15,'Base USDA'!$B$6:$B$5436,0)),IFERROR(INDEX('Base SMAE'!$B$13:$B$2638,MATCH($AD15,'Base SMAE'!$A$13:$A$2638,0)),"")))) ->  | AJ15: =IF($AD15="","",IF($G$5="SMAE",IFERROR(INDEX('Base SMAE'!$G$13:$G$2638,MATCH($AD15,'Base SMAE'!$A$13:$A$2638,0)),""),100)) ->  | AK15: =IF($AD15="","",IF($G$5="SMAE",IFERROR(INDEX('Base SMAE'!$D$13:$D$2638,MATCH($AD15,'Base SMAE'!$A$13:$A$2638,0)),""),100)) ->  | AL15: =IF(OR($AD15="",$AG15=""),"",IF($G$5="SMAE",IF(IFERROR((INDEX('Base SMAE'!$H$13:$H$2638,MATCH($AD15,'Base SMAE'!$A$13:$A$2638,0)))*AH15,"")="",IFERROR((INDEX('Base USDA'!$E$6:$E$5436,MATCH($AD15,'Base USDA'!$B$6:$B$5436,0)))*AH15,""),IFERROR((INDEX('Base SMAE'!$H$13:$H$2638,MATCH($AD15,'Base SMAE'!$A$13:$A$2638,0)))*AH15,"")),IF(IFERROR((INDEX('Base USDA'!$E$6:$E$5436,MATCH($AD15,'Base USDA'!$B$6:$B$5436,0)))*AH15,"")="",IFERROR((INDEX('Base SMAE'!$H$13:$H$2638,MATCH($AD15,'Base SMAE'!$A$13:$A$2638,0)))*AH15,""),IFERROR((INDEX('Base USDA'!$E$6:$E$5436,MATCH($AD15,'Base USDA'!$B$6:$B$5436,0)))*AH15,"")))) ->  | AM15: =IF(OR($AD15="",$AG15=""),"",IF($G$5="SMAE",IF(IFERROR((INDEX('Base SMAE'!$I$13:$I$2638,MATCH($AD15,'Base SMAE'!$A$13:$A$2638,0)))*AH15,"")="",IFERROR((INDEX('Base USDA'!$F$6:$F$5436,MATCH($AD15,'Base USDA'!$B$6:$B$5436,0)))*AH15,""),IFERROR((INDEX('Base SMAE'!$I$13:$I$2638,MATCH($AD15,'Base SMAE'!$A$13:$A$2638,0)))*AH15,"")),IF(IFERROR((INDEX('Base USDA'!$F$6:$F$5436,MATCH($AD15,'Base USDA'!$B$6:$B$5436,0)))*AH15,"")="",IFERROR((INDEX('Base SMAE'!$I$13:$I$2638,MATCH($AD15,'Base SMAE'!$A$13:$A$2638,0)))*AH15,""),IFERROR((INDEX('Base USDA'!$F$6:$F$5436,MATCH($AD15,'Base USDA'!$B$6:$B$5436,0)))*AH15,"")))) ->  | AN15: =IF(OR($AD15="",$AG15=""),"",IF($G$5="SMAE",IF(IFERROR((INDEX('Base SMAE'!$J$13:$J$2638,MATCH($AD15,'Base SMAE'!$A$13:$A$2638,0)))*AH15,"")="",IFERROR((INDEX('Base USDA'!$J$6:$J$5436,MATCH($AD15,'Base USDA'!$B$6:$B$5436,0)))*AH15,""),IFERROR((INDEX('Base SMAE'!$J$13:$J$2638,MATCH($AD15,'Base SMAE'!$A$13:$A$2638,0)))*AH15,"")),IF(IFERROR((INDEX('Base USDA'!$J$6:$J$5436,MATCH($AD15,'Base USDA'!$B$6:$B$5436,0)))*AH15,"")="",IFERROR((INDEX('Base SMAE'!$J$13:$J$2638,MATCH($AD15,'Base SMAE'!$A$13:$A$2638,0)))*AH15,""),IFERROR((INDEX('Base USDA'!$J$6:$J$5436,MATCH($AD15,'Base USDA'!$B$6:$B$5436,0)))*AH15,"")))) ->  | AO15: =IF(OR($AD15="",$AG15=""),"",IF($G$5="SMAE",IF(IFERROR((INDEX('Base SMAE'!$K$13:$K$2638,MATCH($AD15,'Base SMAE'!$A$13:$A$2638,0)))*AH15,"")="",IFERROR((INDEX('Base USDA'!$G$6:$G$5436,MATCH($AD15,'Base USDA'!$B$6:$B$5436,0)))*AH15,""),IFERROR((INDEX('Base SMAE'!$K$13:$K$2638,MATCH($AD15,'Base SMAE'!$A$13:$A$2638,0)))*AH15,"")),IF(IFERROR((INDEX('Base USDA'!$G$6:$G$5436,MATCH($AD15,'Base USDA'!$B$6:$B$5436,0)))*AH15,"")="",IFERROR((INDEX('Base SMAE'!$K$13:$K$2638,MATCH($AD15,'Base SMAE'!$A$13:$A$2638,0)))*AH15,""),IFERROR((INDEX('Base USDA'!$G$6:$G$5436,MATCH($AD15,'Base USDA'!$B$6:$B$5436,0)))*AH15,"")))) ->  | AP15: =IF(OR($AD15="",$AG15=""),"",IF($G$5="SMAE",IF(IFERROR((INDEX('Base SMAE'!$L$13:$L$2638,MATCH($AD15,'Base SMAE'!$A$13:$A$2638,0)))*AH15,"")="",IFERROR((INDEX('Base USDA'!$I$6:$I$5436,MATCH($AD15,'Base USDA'!$B$6:$B$5436,0)))*AH15,""),IFERROR((INDEX('Base SMAE'!$L$13:$L$2638,MATCH($AD15,'Base SMAE'!$A$13:$A$2638,0)))*AH15,"")),IF(IFERROR((INDEX('Base USDA'!$I$6:$I$5436,MATCH($AD15,'Base USDA'!$B$6:$B$5436,0)))*AH15,"")="",IFERROR((INDEX('Base SMAE'!$L$13:$L$2638,MATCH($AD15,'Base SMAE'!$A$13:$A$2638,0)))*AH15,""),IFERROR((INDEX('Base USDA'!$I$6:$I$5436,MATCH($AD15,'Base USDA'!$B$6:$B$5436,0)))*AH15,"")))) ->  | AT15: =IF($AR15="","",IF($AS15="Gramos","gramos",IF($G$5="SMAE",IFERROR(INDEX('Base SMAE'!$E$13:$E$2638,MATCH($AR15,'Base SMAE'!$A$13:$A$2638,0)),"gramos"),"gramos"))) ->  | AV15: =IF(OR($AR15="",$AU15=""),"",IF($G$5="SMAE",IFERROR(IF($AS15="Gramos",$AU15/AX15,$AU15/AY15),""),IFERROR($AU15/100,""))) ->  | AW15: =IF($AR15="","",IF($G$5="SMAE",IFERROR(INDEX('Base SMAE'!$B$13:$B$2638,MATCH($AR15,'Base SMAE'!$A$13:$A$2638,0)),IFERROR(INDEX('Base USDA'!$D$6:$D$5436,MATCH($AR15,'Base USDA'!$B$6:$B$5436,0)),"")),IFERROR(INDEX('Base USDA'!$D$6:$D$5436,MATCH($AR15,'Base USDA'!$B$6:$B$5436,0)),IFERROR(INDEX('Base SMAE'!$B$13:$B$2638,MATCH($AR15,'Base SMAE'!$A$13:$A$2638,0)),"")))) ->  | AX15: =IF($AR15="","",IF($G$5="SMAE",IFERROR(INDEX('Base SMAE'!$G$13:$G$2638,MATCH($AR15,'Base SMAE'!$A$13:$A$2638,0)),""),100)) ->  | AY15: =IF($AR15="","",IF($G$5="SMAE",IFERROR(INDEX('Base SMAE'!$D$13:$D$2638,MATCH($AR15,'Base SMAE'!$A$13:$A$2638,0)),""),100)) ->  | AZ15: =IF(OR($AR15="",$AU15=""),"",IF($G$5="SMAE",IF(IFERROR((INDEX('Base SMAE'!$H$13:$H$2638,MATCH($AR15,'Base SMAE'!$A$13:$A$2638,0)))*AV15,"")="",IFERROR((INDEX('Base USDA'!$E$6:$E$5436,MATCH($AR15,'Base USDA'!$B$6:$B$5436,0)))*AV15,""),IFERROR((INDEX('Base SMAE'!$H$13:$H$2638,MATCH($AR15,'Base SMAE'!$A$13:$A$2638,0)))*AV15,"")),IF(IFERROR((INDEX('Base USDA'!$E$6:$E$5436,MATCH($AR15,'Base USDA'!$B$6:$B$5436,0)))*AV15,"")="",IFERROR((INDEX('Base SMAE'!$H$13:$H$2638,MATCH($AR15,'Base SMAE'!$A$13:$A$2638,0)))*AV15,""),IFERROR((INDEX('Base USDA'!$E$6:$E$5436,MATCH($AR15,'Base USDA'!$B$6:$B$5436,0)))*AV15,"")))) ->  | BA15: =IF(OR($AR15="",$AU15=""),"",IF($G$5="SMAE",IF(IFERROR((INDEX('Base SMAE'!$I$13:$I$2638,MATCH($AR15,'Base SMAE'!$A$13:$A$2638,0)))*AV15,"")="",IFERROR((INDEX('Base USDA'!$F$6:$F$5436,MATCH($AR15,'Base USDA'!$B$6:$B$5436,0)))*AV15,""),IFERROR((INDEX('Base SMAE'!$I$13:$I$2638,MATCH($AR15,'Base SMAE'!$A$13:$A$2638,0)))*AV15,"")),IF(IFERROR((INDEX('Base USDA'!$F$6:$F$5436,MATCH($AR15,'Base USDA'!$B$6:$B$5436,0)))*AV15,"")="",IFERROR((INDEX('Base SMAE'!$I$13:$I$2638,MATCH($AR15,'Base SMAE'!$A$13:$A$2638,0)))*AV15,""),IFERROR((INDEX('Base USDA'!$F$6:$F$5436,MATCH($AR15,'Base USDA'!$B$6:$B$5436,0)))*AV15,"")))) ->  | BB15: =IF(OR($AR15="",$AU15=""),"",IF($G$5="SMAE",IF(IFERROR((INDEX('Base SMAE'!$J$13:$J$2638,MATCH($AR15,'Base SMAE'!$A$13:$A$2638,0)))*AV15,"")="",IFERROR((INDEX('Base USDA'!$J$6:$J$5436,MATCH($AR15,'Base USDA'!$B$6:$B$5436,0)))*AV15,""),IFERROR((INDEX('Base SMAE'!$J$13:$J$2638,MATCH($AR15,'Base SMAE'!$A$13:$A$2638,0)))*AV15,"")),IF(IFERROR((INDEX('Base USDA'!$J$6:$J$5436,MATCH($AR15,'Base USDA'!$B$6:$B$5436,0)))*AV15,"")="",IFERROR((INDEX('Base SMAE'!$J$13:$J$2638,MATCH($AR15,'Base SMAE'!$A$13:$A$2638,0)))*AV15,""),IFERROR((INDEX('Base USDA'!$J$6:$J$5436,MATCH($AR15,'Base USDA'!$B$6:$B$5436,0)))*AV15,"")))) ->  | BC15: =IF(OR($AR15="",$AU15=""),"",IF($G$5="SMAE",IF(IFERROR((INDEX('Base SMAE'!$K$13:$K$2638,MATCH($AR15,'Base SMAE'!$A$13:$A$2638,0)))*AV15,"")="",IFERROR((INDEX('Base USDA'!$G$6:$G$5436,MATCH($AR15,'Base USDA'!$B$6:$B$5436,0)))*AV15,""),IFERROR((INDEX('Base SMAE'!$K$13:$K$2638,MATCH($AR15,'Base SMAE'!$A$13:$A$2638,0)))*AV15,"")),IF(IFERROR((INDEX('Base USDA'!$G$6:$G$5436,MATCH($AR15,'Base USDA'!$B$6:$B$5436,0)))*AV15,"")="",IFERROR((INDEX('Base SMAE'!$K$13:$K$2638,MATCH($AR15,'Base SMAE'!$A$13:$A$2638,0)))*AV15,""),IFERROR((INDEX('Base USDA'!$G$6:$G$5436,MATCH($AR15,'Base USDA'!$B$6:$B$5436,0)))*AV15,"")))) ->  | BD15: =IF(OR($AR15="",$AU15=""),"",IF($G$5="SMAE",IF(IFERROR((INDEX('Base SMAE'!$L$13:$L$2638,MATCH($AR15,'Base SMAE'!$A$13:$A$2638,0)))*AV15,"")="",IFERROR((INDEX('Base USDA'!$I$6:$I$5436,MATCH($AR15,'Base USDA'!$B$6:$B$5436,0)))*AV15,""),IFERROR((INDEX('Base SMAE'!$L$13:$L$2638,MATCH($AR15,'Base SMAE'!$A$13:$A$2638,0)))*AV15,"")),IF(IFERROR((INDEX('Base USDA'!$I$6:$I$5436,MATCH($AR15,'Base USDA'!$B$6:$B$5436,0)))*AV15,"")="",IFERROR((INDEX('Base SMAE'!$L$13:$L$2638,MATCH($AR15,'Base SMAE'!$A$13:$A$2638,0)))*AV15,""),IFERROR((INDEX('Base USDA'!$I$6:$I$5436,MATCH($AR15,'Base USDA'!$B$6:$B$5436,0)))*AV15,"")))) ->  | BH15: CEREALES S/G | BI15: =SUMIF(G15:G24,"CEREALES S/G",F15:F24)+SUMIF(G37:G46,"CEREALES S/G",F37:F46)+SUMIF(G59:G68,"CEREALES S/G",F59:F68)+SUMIF(G81:G90,"CEREALES S/G",F81:F90)+SUMIF(G103:G112,"CEREALES S/G",F103:F112) -> 0 | BJ15: =SUMIF(U15:U24,"CEREALES S/G",T15:T24)+SUMIF(U37:U46,"CEREALES S/G",T37:T46)+SUMIF(U59:U68,"CEREALES S/G",T59:T68)+SUMIF(U81:U90,"CEREALES S/G",T81:T90)+SUMIF(U103:U112,"CEREALES S/G",T103:T112) -> 0 | BK15: =SUMIF(AI15:AI24,"CEREALES S/G",AH15:AH24)+SUMIF(AI37:AI46,"CEREALES S/G",AH37:AH46)+SUMIF(AI59:AI68,"CEREALES S/G",AH59:AH68)+SUMIF(AI81:AI90,"CEREALES S/G",AH81:AH90)+SUMIF(AI103:AI112,"CEREALES S/G",AH103:AH112) -> 0 | BL15: =SUMIF(AW15:AW24,"CEREALES S/G",AV15:AV24)+SUMIF(AW37:AW46,"CEREALES S/G",AV37:AV46)+SUMIF(AW59:AW68,"CEREALES S/G",AV59:AV68)+SUMIF(AW81:AW90,"CEREALES S/G",AV81:AV90)+SUMIF(AW103:AW112,"CEREALES S/G",AV103:AV112) -> 0 | CB15: =IF($B15="",0,IF(ISNUMBER(MATCH($B15,'Base SMAE'!$A$13:$A$2638,0)),IFERROR($F15,0),0)) -> 0 | CC15: =IF($B15="",0,IF(ISNUMBER(MATCH($B15,'Base SMAE'!$A$13:$A$2638,0)),0,IFERROR(IF($C15="Gramos",$E15,IFERROR(($E15/$I15)*$H15,0))/100,0))) -> 0 | CD15: =IF($P15="",0,IF(ISNUMBER(MATCH($P15,'Base SMAE'!$A$13:$A$2638,0)),IFERROR($T15,0),0)) -> 0 | CE15: =IF($P15="",0,IF(ISNUMBER(MATCH($P15,'Base SMAE'!$A$13:$A$2638,0)),0,IFERROR(IF($Q15="Gramos",$S15,IFERROR(($S15/$W15)*$V15,0))/100,0))) -> 0 | CF15: =IF($AD15="",0,IF(ISNUMBER(MATCH($AD15,'Base SMAE'!$A$13:$A$2638,0)),IFERROR($AH15,0),0)) -> 0 | CG15: =IF($AD15="",0,IF(ISNUMBER(MATCH($AD15,'Base SMAE'!$A$13:$A$2638,0)),0,IFERROR(IF($AE15="Gramos",$AG15,IFERROR(($AG15/$AK15)*$AJ15,0))/100,0))) -> 0 | CH15: =IF($AR15="",0,IF(ISNUMBER(MATCH($AR15,'Base SMAE'!$A$13:$A$2638,0)),IFERROR($AV15,0),0)) -> 0 | CI15: =IF($AR15="",0,IF(ISNUMBER(MATCH($AR15,'Base SMAE'!$A$13:$A$2638,0)),0,IFERROR(IF($AS15="Gramos",$AU15,IFERROR(($AU15/$AY15)*$AX15,0))/100,0))) -> 0
D16: =IF($B16="","",IF($C16="Gramos","gramos",IF($G$5="SMAE",IFERROR(INDEX('Base SMAE'!$E$13:$E$2638,MATCH($B16,'Base SMAE'!$A$13:$A$2638,0)),"gramos"),"gramos"))) ->  | G16: =IF($B16="","",IF($G$5="SMAE",IFERROR(INDEX('Base SMAE'!$B$13:$B$2638,MATCH($B16,'Base SMAE'!$A$13:$A$2638,0)),IFERROR(INDEX('Base USDA'!$D$6:$D$5436,MATCH($B16,'Base USDA'!$B$6:$B$5436,0)),"")),IFERROR(INDEX('Base USDA'!$D$6:$D$5436,MATCH($B16,'Base USDA'!$B$6:$B$5436,0)),IFERROR(INDEX('Base SMAE'!$B$13:$B$2638,MATCH($B16,'Base SMAE'!$A$13:$A$2638,0)),"")))) ->  | H16: =IF($B16="","",IF($G$5="SMAE",IFERROR(INDEX('Base SMAE'!$G$13:$G$2638,MATCH($B16,'Base SMAE'!$A$13:$A$2638,0)),""),100)) ->  | I16: =IF($B16="","",IF($G$5="SMAE",IFERROR(INDEX('Base SMAE'!$D$13:$D$2638,MATCH($B16,'Base SMAE'!$A$13:$A$2638,0)),""),100)) ->  | J16: =IF(OR($B16="",$E16=""),"",IF($G$5="SMAE",IF(IFERROR((INDEX('Base SMAE'!$H$13:$H$2638,MATCH($B16,'Base SMAE'!$A$13:$A$2638,0)))*F16,"")="",IFERROR((INDEX('Base USDA'!$E$6:$E$5436,MATCH($B16,'Base USDA'!$B$6:$B$5436,0)))*F16,""),IFERROR((INDEX('Base SMAE'!$H$13:$H$2638,MATCH($B16,'Base SMAE'!$A$13:$A$2638,0)))*F16,"")),IF(IFERROR((INDEX('Base USDA'!$E$6:$E$5436,MATCH($B16,'Base USDA'!$B$6:$B$5436,0)))*F16,"")="",IFERROR((INDEX('Base SMAE'!$H$13:$H$2638,MATCH($B16,'Base SMAE'!$A$13:$A$2638,0)))*F16,""),IFERROR((INDEX('Base USDA'!$E$6:$E$5436,MATCH($B16,'Base USDA'!$B$6:$B$5436,0)))*F16,"")))) ->  | K16: =IF(OR($B16="",$E16=""),"",IF($G$5="SMAE",IF(IFERROR((INDEX('Base SMAE'!$I$13:$I$2638,MATCH($B16,'Base SMAE'!$A$13:$A$2638,0)))*F16,"")="",IFERROR((INDEX('Base USDA'!$F$6:$F$5436,MATCH($B16,'Base USDA'!$B$6:$B$5436,0)))*F16,""),IFERROR((INDEX('Base SMAE'!$I$13:$I$2638,MATCH($B16,'Base SMAE'!$A$13:$A$2638,0)))*F16,"")),IF(IFERROR((INDEX('Base USDA'!$F$6:$F$5436,MATCH($B16,'Base USDA'!$B$6:$B$5436,0)))*F16,"")="",IFERROR((INDEX('Base SMAE'!$I$13:$I$2638,MATCH($B16,'Base SMAE'!$A$13:$A$2638,0)))*F16,""),IFERROR((INDEX('Base USDA'!$F$6:$F$5436,MATCH($B16,'Base USDA'!$B$6:$B$5436,0)))*F16,"")))) ->  | L16: =IF(OR($B16="",$E16=""),"",IF($G$5="SMAE",IF(IFERROR((INDEX('Base SMAE'!$J$13:$J$2638,MATCH($B16,'Base SMAE'!$A$13:$A$2638,0)))*F16,"")="",IFERROR((INDEX('Base USDA'!$J$6:$J$5436,MATCH($B16,'Base USDA'!$B$6:$B$5436,0)))*F16,""),IFERROR((INDEX('Base SMAE'!$J$13:$J$2638,MATCH($B16,'Base SMAE'!$A$13:$A$2638,0)))*F16,"")),IF(IFERROR((INDEX('Base USDA'!$J$6:$J$5436,MATCH($B16,'Base USDA'!$B$6:$B$5436,0)))*F16,"")="",IFERROR((INDEX('Base SMAE'!$J$13:$J$2638,MATCH($B16,'Base SMAE'!$A$13:$A$2638,0)))*F16,""),IFERROR((INDEX('Base USDA'!$J$6:$J$5436,MATCH($B16,'Base USDA'!$B$6:$B$5436,0)))*F16,"")))) ->  | M16: =IF(OR($B16="",$E16=""),"",IF($G$5="SMAE",IF(IFERROR((INDEX('Base SMAE'!$K$13:$K$2638,MATCH($B16,'Base SMAE'!$A$13:$A$2638,0)))*F16,"")="",IFERROR((INDEX('Base USDA'!$G$6:$G$5436,MATCH($B16,'Base USDA'!$B$6:$B$5436,0)))*F16,""),IFERROR((INDEX('Base SMAE'!$K$13:$K$2638,MATCH($B16,'Base SMAE'!$A$13:$A$2638,0)))*F16,"")),IF(IFERROR((INDEX('Base USDA'!$G$6:$G$5436,MATCH($B16,'Base USDA'!$B$6:$B$5436,0)))*F16,"")="",IFERROR((INDEX('Base SMAE'!$K$13:$K$2638,MATCH($B16,'Base SMAE'!$A$13:$A$2638,0)))*F16,""),IFERROR((INDEX('Base USDA'!$G$6:$G$5436,MATCH($B16,'Base USDA'!$B$6:$B$5436,0)))*F16,"")))) ->  | N16: =IF(OR($B16="",$E16=""),"",IF($G$5="SMAE",IF(IFERROR((INDEX('Base SMAE'!$L$13:$L$2638,MATCH($B16,'Base SMAE'!$A$13:$A$2638,0)))*F16,"")="",IFERROR((INDEX('Base USDA'!$I$6:$I$5436,MATCH($B16,'Base USDA'!$B$6:$B$5436,0)))*F16,""),IFERROR((INDEX('Base SMAE'!$L$13:$L$2638,MATCH($B16,'Base SMAE'!$A$13:$A$2638,0)))*F16,"")),IF(IFERROR((INDEX('Base USDA'!$I$6:$I$5436,MATCH($B16,'Base USDA'!$B$6:$B$5436,0)))*F16,"")="",IFERROR((INDEX('Base SMAE'!$L$13:$L$2638,MATCH($B16,'Base SMAE'!$A$13:$A$2638,0)))*F16,""),IFERROR((INDEX('Base USDA'!$I$6:$I$5436,MATCH($B16,'Base USDA'!$B$6:$B$5436,0)))*F16,"")))) ->  | R16: =IF($P16="","",IF($Q16="Gramos","gramos",IF($G$5="SMAE",IFERROR(INDEX('Base SMAE'!$E$13:$E$2638,MATCH($P16,'Base SMAE'!$A$13:$A$2638,0)),"gramos"),"gramos"))) ->  | U16: =IF($P16="","",IF($G$5="SMAE",IFERROR(INDEX('Base SMAE'!$B$13:$B$2638,MATCH($P16,'Base SMAE'!$A$13:$A$2638,0)),IFERROR(INDEX('Base USDA'!$D$6:$D$5436,MATCH($P16,'Base USDA'!$B$6:$B$5436,0)),"")),IFERROR(INDEX('Base USDA'!$D$6:$D$5436,MATCH($P16,'Base USDA'!$B$6:$B$5436,0)),IFERROR(INDEX('Base SMAE'!$B$13:$B$2638,MATCH($P16,'Base SMAE'!$A$13:$A$2638,0)),"")))) ->  | V16: =IF($P16="","",IF($G$5="SMAE",IFERROR(INDEX('Base SMAE'!$G$13:$G$2638,MATCH($P16,'Base SMAE'!$A$13:$A$2638,0)),""),100)) ->  | W16: =IF($P16="","",IF($G$5="SMAE",IFERROR(INDEX('Base SMAE'!$D$13:$D$2638,MATCH($P16,'Base SMAE'!$A$13:$A$2638,0)),""),100)) ->  | X16: =IF(OR($P16="",$S16=""),"",IF($G$5="SMAE",IF(IFERROR((INDEX('Base SMAE'!$H$13:$H$2638,MATCH($P16,'Base SMAE'!$A$13:$A$2638,0)))*T16,"")="",IFERROR((INDEX('Base USDA'!$E$6:$E$5436,MATCH($P16,'Base USDA'!$B$6:$B$5436,0)))*T16,""),IFERROR((INDEX('Base SMAE'!$H$13:$H$2638,MATCH($P16,'Base SMAE'!$A$13:$A$2638,0)))*T16,"")),IF(IFERROR((INDEX('Base USDA'!$E$6:$E$5436,MATCH($P16,'Base USDA'!$B$6:$B$5436,0)))*T16,"")="",IFERROR((INDEX('Base SMAE'!$H$13:$H$2638,MATCH($P16,'Base SMAE'!$A$13:$A$2638,0)))*T16,""),IFERROR((INDEX('Base USDA'!$E$6:$E$5436,MATCH($P16,'Base USDA'!$B$6:$B$5436,0)))*T16,"")))) ->  | Y16: =IF(OR($P16="",$S16=""),"",IF($G$5="SMAE",IF(IFERROR((INDEX('Base SMAE'!$I$13:$I$2638,MATCH($P16,'Base SMAE'!$A$13:$A$2638,0)))*T16,"")="",IFERROR((INDEX('Base USDA'!$F$6:$F$5436,MATCH($P16,'Base USDA'!$B$6:$B$5436,0)))*T16,""),IFERROR((INDEX('Base SMAE'!$I$13:$I$2638,MATCH($P16,'Base SMAE'!$A$13:$A$2638,0)))*T16,"")),IF(IFERROR((INDEX('Base USDA'!$F$6:$F$5436,MATCH($P16,'Base USDA'!$B$6:$B$5436,0)))*T16,"")="",IFERROR((INDEX('Base SMAE'!$I$13:$I$2638,MATCH($P16,'Base SMAE'!$A$13:$A$2638,0)))*T16,""),IFERROR((INDEX('Base USDA'!$F$6:$F$5436,MATCH($P16,'Base USDA'!$B$6:$B$5436,0)))*T16,"")))) ->  | Z16: =IF(OR($P16="",$S16=""),"",IF($G$5="SMAE",IF(IFERROR((INDEX('Base SMAE'!$J$13:$J$2638,MATCH($P16,'Base SMAE'!$A$13:$A$2638,0)))*T16,"")="",IFERROR((INDEX('Base USDA'!$J$6:$J$5436,MATCH($P16,'Base USDA'!$B$6:$B$5436,0)))*T16,""),IFERROR((INDEX('Base SMAE'!$J$13:$J$2638,MATCH($P16,'Base SMAE'!$A$13:$A$2638,0)))*T16,"")),IF(IFERROR((INDEX('Base USDA'!$J$6:$J$5436,MATCH($P16,'Base USDA'!$B$6:$B$5436,0)))*T16,"")="",IFERROR((INDEX('Base SMAE'!$J$13:$J$2638,MATCH($P16,'Base SMAE'!$A$13:$A$2638,0)))*T16,""),IFERROR((INDEX('Base USDA'!$J$6:$J$5436,MATCH($P16,'Base USDA'!$B$6:$B$5436,0)))*T16,"")))) ->  | AA16: =IF(OR($P16="",$S16=""),"",IF($G$5="SMAE",IF(IFERROR((INDEX('Base SMAE'!$K$13:$K$2638,MATCH($P16,'Base SMAE'!$A$13:$A$2638,0)))*T16,"")="",IFERROR((INDEX('Base USDA'!$G$6:$G$5436,MATCH($P16,'Base USDA'!$B$6:$B$5436,0)))*T16,""),IFERROR((INDEX('Base SMAE'!$K$13:$K$2638,MATCH($P16,'Base SMAE'!$A$13:$A$2638,0)))*T16,"")),IF(IFERROR((INDEX('Base USDA'!$G$6:$G$5436,MATCH($P16,'Base USDA'!$B$6:$B$5436,0)))*T16,"")="",IFERROR((INDEX('Base SMAE'!$K$13:$K$2638,MATCH($P16,'Base SMAE'!$A$13:$A$2638,0)))*T16,""),IFERROR((INDEX('Base USDA'!$G$6:$G$5436,MATCH($P16,'Base USDA'!$B$6:$B$5436,0)))*T16,"")))) ->  | AB16: =IF(OR($P16="",$S16=""),"",IF($G$5="SMAE",IF(IFERROR((INDEX('Base SMAE'!$L$13:$L$2638,MATCH($P16,'Base SMAE'!$A$13:$A$2638,0)))*T16,"")="",IFERROR((INDEX('Base USDA'!$I$6:$I$5436,MATCH($P16,'Base USDA'!$B$6:$B$5436,0)))*T16,""),IFERROR((INDEX('Base SMAE'!$L$13:$L$2638,MATCH($P16,'Base SMAE'!$A$13:$A$2638,0)))*T16,"")),IF(IFERROR((INDEX('Base USDA'!$I$6:$I$5436,MATCH($P16,'Base USDA'!$B$6:$B$5436,0)))*T16,"")="",IFERROR((INDEX('Base SMAE'!$L$13:$L$2638,MATCH($P16,'Base SMAE'!$A$13:$A$2638,0)))*T16,""),IFERROR((INDEX('Base USDA'!$I$6:$I$5436,MATCH($P16,'Base USDA'!$B$6:$B$5436,0)))*T16,"")))) ->  | AF16: =IF($AD16="","",IF($AE16="Gramos","gramos",IF($G$5="SMAE",IFERROR(INDEX('Base SMAE'!$E$13:$E$2638,MATCH($AD16,'Base SMAE'!$A$13:$A$2638,0)),"gramos"),"gramos"))) ->  | AI16: =IF($AD16="","",IF($G$5="SMAE",IFERROR(INDEX('Base SMAE'!$B$13:$B$2638,MATCH($AD16,'Base SMAE'!$A$13:$A$2638,0)),IFERROR(INDEX('Base USDA'!$D$6:$D$5436,MATCH($AD16,'Base USDA'!$B$6:$B$5436,0)),"")),IFERROR(INDEX('Base USDA'!$D$6:$D$5436,MATCH($AD16,'Base USDA'!$B$6:$B$5436,0)),IFERROR(INDEX('Base SMAE'!$B$13:$B$2638,MATCH($AD16,'Base SMAE'!$A$13:$A$2638,0)),"")))) ->  | AJ16: =IF($AD16="","",IF($G$5="SMAE",IFERROR(INDEX('Base SMAE'!$G$13:$G$2638,MATCH($AD16,'Base SMAE'!$A$13:$A$2638,0)),""),100)) ->  | AK16: =IF($AD16="","",IF($G$5="SMAE",IFERROR(INDEX('Base SMAE'!$D$13:$D$2638,MATCH($AD16,'Base SMAE'!$A$13:$A$2638,0)),""),100)) ->  | AL16: =IF(OR($AD16="",$AG16=""),"",IF($G$5="SMAE",IF(IFERROR((INDEX('Base SMAE'!$H$13:$H$2638,MATCH($AD16,'Base SMAE'!$A$13:$A$2638,0)))*AH16,"")="",IFERROR((INDEX('Base USDA'!$E$6:$E$5436,MATCH($AD16,'Base USDA'!$B$6:$B$5436,0)))*AH16,""),IFERROR((INDEX('Base SMAE'!$H$13:$H$2638,MATCH($AD16,'Base SMAE'!$A$13:$A$2638,0)))*AH16,"")),IF(IFERROR((INDEX('Base USDA'!$E$6:$E$5436,MATCH($AD16,'Base USDA'!$B$6:$B$5436,0)))*AH16,"")="",IFERROR((INDEX('Base SMAE'!$H$13:$H$2638,MATCH($AD16,'Base SMAE'!$A$13:$A$2638,0)))*AH16,""),IFERROR((INDEX('Base USDA'!$E$6:$E$5436,MATCH($AD16,'Base USDA'!$B$6:$B$5436,0)))*AH16,"")))) ->  | AM16: =IF(OR($AD16="",$AG16=""),"",IF($G$5="SMAE",IF(IFERROR((INDEX('Base SMAE'!$I$13:$I$2638,MATCH($AD16,'Base SMAE'!$A$13:$A$2638,0)))*AH16,"")="",IFERROR((INDEX('Base USDA'!$F$6:$F$5436,MATCH($AD16,'Base USDA'!$B$6:$B$5436,0)))*AH16,""),IFERROR((INDEX('Base SMAE'!$I$13:$I$2638,MATCH($AD16,'Base SMAE'!$A$13:$A$2638,0)))*AH16,"")),IF(IFERROR((INDEX('Base USDA'!$F$6:$F$5436,MATCH($AD16,'Base USDA'!$B$6:$B$5436,0)))*AH16,"")="",IFERROR((INDEX('Base SMAE'!$I$13:$I$2638,MATCH($AD16,'Base SMAE'!$A$13:$A$2638,0)))*AH16,""),IFERROR((INDEX('Base USDA'!$F$6:$F$5436,MATCH($AD16,'Base USDA'!$B$6:$B$5436,0)))*AH16,"")))) ->  | AN16: =IF(OR($AD16="",$AG16=""),"",IF($G$5="SMAE",IF(IFERROR((INDEX('Base SMAE'!$J$13:$J$2638,MATCH($AD16,'Base SMAE'!$A$13:$A$2638,0)))*AH16,"")="",IFERROR((INDEX('Base USDA'!$J$6:$J$5436,MATCH($AD16,'Base USDA'!$B$6:$B$5436,0)))*AH16,""),IFERROR((INDEX('Base SMAE'!$J$13:$J$2638,MATCH($AD16,'Base SMAE'!$A$13:$A$2638,0)))*AH16,"")),IF(IFERROR((INDEX('Base USDA'!$J$6:$J$5436,MATCH($AD16,'Base USDA'!$B$6:$B$5436,0)))*AH16,"")="",IFERROR((INDEX('Base SMAE'!$J$13:$J$2638,MATCH($AD16,'Base SMAE'!$A$13:$A$2638,0)))*AH16,""),IFERROR((INDEX('Base USDA'!$J$6:$J$5436,MATCH($AD16,'Base USDA'!$B$6:$B$5436,0)))*AH16,"")))) ->  | AO16: =IF(OR($AD16="",$AG16=""),"",IF($G$5="SMAE",IF(IFERROR((INDEX('Base SMAE'!$K$13:$K$2638,MATCH($AD16,'Base SMAE'!$A$13:$A$2638,0)))*AH16,"")="",IFERROR((INDEX('Base USDA'!$G$6:$G$5436,MATCH($AD16,'Base USDA'!$B$6:$B$5436,0)))*AH16,""),IFERROR((INDEX('Base SMAE'!$K$13:$K$2638,MATCH($AD16,'Base SMAE'!$A$13:$A$2638,0)))*AH16,"")),IF(IFERROR((INDEX('Base USDA'!$G$6:$G$5436,MATCH($AD16,'Base USDA'!$B$6:$B$5436,0)))*AH16,"")="",IFERROR((INDEX('Base SMAE'!$K$13:$K$2638,MATCH($AD16,'Base SMAE'!$A$13:$A$2638,0)))*AH16,""),IFERROR((INDEX('Base USDA'!$G$6:$G$5436,MATCH($AD16,'Base USDA'!$B$6:$B$5436,0)))*AH16,"")))) ->  | AP16: =IF(OR($AD16="",$AG16=""),"",IF($G$5="SMAE",IF(IFERROR((INDEX('Base SMAE'!$L$13:$L$2638,MATCH($AD16,'Base SMAE'!$A$13:$A$2638,0)))*AH16,"")="",IFERROR((INDEX('Base USDA'!$I$6:$I$5436,MATCH($AD16,'Base USDA'!$B$6:$B$5436,0)))*AH16,""),IFERROR((INDEX('Base SMAE'!$L$13:$L$2638,MATCH($AD16,'Base SMAE'!$A$13:$A$2638,0)))*AH16,"")),IF(IFERROR((INDEX('Base USDA'!$I$6:$I$5436,MATCH($AD16,'Base USDA'!$B$6:$B$5436,0)))*AH16,"")="",IFERROR((INDEX('Base SMAE'!$L$13:$L$2638,MATCH($AD16,'Base SMAE'!$A$13:$A$2638,0)))*AH16,""),IFERROR((INDEX('Base USDA'!$I$6:$I$5436,MATCH($AD16,'Base USDA'!$B$6:$B$5436,0)))*AH16,"")))) ->  | AT16: =IF($AR16="","",IF($AS16="Gramos","gramos",IF($G$5="SMAE",IFERROR(INDEX('Base SMAE'!$E$13:$E$2638,MATCH($AR16,'Base SMAE'!$A$13:$A$2638,0)),"gramos"),"gramos"))) ->  | AV16: =IF(OR($AR16="",$AU16=""),"",IF($G$5="SMAE",IFERROR(IF($AS16="Gramos",$AU16/AX16,$AU16/AY16),""),IFERROR($AU16/100,""))) ->  | AW16: =IF($AR16="","",IF($G$5="SMAE",IFERROR(INDEX('Base SMAE'!$B$13:$B$2638,MATCH($AR16,'Base SMAE'!$A$13:$A$2638,0)),IFERROR(INDEX('Base USDA'!$D$6:$D$5436,MATCH($AR16,'Base USDA'!$B$6:$B$5436,0)),"")),IFERROR(INDEX('Base USDA'!$D$6:$D$5436,MATCH($AR16,'Base USDA'!$B$6:$B$5436,0)),IFERROR(INDEX('Base SMAE'!$B$13:$B$2638,MATCH($AR16,'Base SMAE'!$A$13:$A$2638,0)),"")))) ->  | AX16: =IF($AR16="","",IF($G$5="SMAE",IFERROR(INDEX('Base SMAE'!$G$13:$G$2638,MATCH($AR16,'Base SMAE'!$A$13:$A$2638,0)),""),100)) ->  | AY16: =IF($AR16="","",IF($G$5="SMAE",IFERROR(INDEX('Base SMAE'!$D$13:$D$2638,MATCH($AR16,'Base SMAE'!$A$13:$A$2638,0)),""),100)) ->  | AZ16: =IF(OR($AR16="",$AU16=""),"",IF($G$5="SMAE",IF(IFERROR((INDEX('Base SMAE'!$H$13:$H$2638,MATCH($AR16,'Base SMAE'!$A$13:$A$2638,0)))*AV16,"")="",IFERROR((INDEX('Base USDA'!$E$6:$E$5436,MATCH($AR16,'Base USDA'!$B$6:$B$5436,0)))*AV16,""),IFERROR((INDEX('Base SMAE'!$H$13:$H$2638,MATCH($AR16,'Base SMAE'!$A$13:$A$2638,0)))*AV16,"")),IF(IFERROR((INDEX('Base USDA'!$E$6:$E$5436,MATCH($AR16,'Base USDA'!$B$6:$B$5436,0)))*AV16,"")="",IFERROR((INDEX('Base SMAE'!$H$13:$H$2638,MATCH($AR16,'Base SMAE'!$A$13:$A$2638,0)))*AV16,""),IFERROR((INDEX('Base USDA'!$E$6:$E$5436,MATCH($AR16,'Base USDA'!$B$6:$B$5436,0)))*AV16,"")))) ->  | BA16: =IF(OR($AR16="",$AU16=""),"",IF($G$5="SMAE",IF(IFERROR((INDEX('Base SMAE'!$I$13:$I$2638,MATCH($AR16,'Base SMAE'!$A$13:$A$2638,0)))*AV16,"")="",IFERROR((INDEX('Base USDA'!$F$6:$F$5436,MATCH($AR16,'Base USDA'!$B$6:$B$5436,0)))*AV16,""),IFERROR((INDEX('Base SMAE'!$I$13:$I$2638,MATCH($AR16,'Base SMAE'!$A$13:$A$2638,0)))*AV16,"")),IF(IFERROR((INDEX('Base USDA'!$F$6:$F$5436,MATCH($AR16,'Base USDA'!$B$6:$B$5436,0)))*AV16,"")="",IFERROR((INDEX('Base SMAE'!$I$13:$I$2638,MATCH($AR16,'Base SMAE'!$A$13:$A$2638,0)))*AV16,""),IFERROR((INDEX('Base USDA'!$F$6:$F$5436,MATCH($AR16,'Base USDA'!$B$6:$B$5436,0)))*AV16,"")))) ->  | BB16: =IF(OR($AR16="",$AU16=""),"",IF($G$5="SMAE",IF(IFERROR((INDEX('Base SMAE'!$J$13:$J$2638,MATCH($AR16,'Base SMAE'!$A$13:$A$2638,0)))*AV16,"")="",IFERROR((INDEX('Base USDA'!$J$6:$J$5436,MATCH($AR16,'Base USDA'!$B$6:$B$5436,0)))*AV16,""),IFERROR((INDEX('Base SMAE'!$J$13:$J$2638,MATCH($AR16,'Base SMAE'!$A$13:$A$2638,0)))*AV16,"")),IF(IFERROR((INDEX('Base USDA'!$J$6:$J$5436,MATCH($AR16,'Base USDA'!$B$6:$B$5436,0)))*AV16,"")="",IFERROR((INDEX('Base SMAE'!$J$13:$J$2638,MATCH($AR16,'Base SMAE'!$A$13:$A$2638,0)))*AV16,""),IFERROR((INDEX('Base USDA'!$J$6:$J$5436,MATCH($AR16,'Base USDA'!$B$6:$B$5436,0)))*AV16,"")))) ->  | BC16: =IF(OR($AR16="",$AU16=""),"",IF($G$5="SMAE",IF(IFERROR((INDEX('Base SMAE'!$K$13:$K$2638,MATCH($AR16,'Base SMAE'!$A$13:$A$2638,0)))*AV16,"")="",IFERROR((INDEX('Base USDA'!$G$6:$G$5436,MATCH($AR16,'Base USDA'!$B$6:$B$5436,0)))*AV16,""),IFERROR((INDEX('Base SMAE'!$K$13:$K$2638,MATCH($AR16,'Base SMAE'!$A$13:$A$2638,0)))*AV16,"")),IF(IFERROR((INDEX('Base USDA'!$G$6:$G$5436,MATCH($AR16,'Base USDA'!$B$6:$B$5436,0)))*AV16,"")="",IFERROR((INDEX('Base SMAE'!$K$13:$K$2638,MATCH($AR16,'Base SMAE'!$A$13:$A$2638,0)))*AV16,""),IFERROR((INDEX('Base USDA'!$G$6:$G$5436,MATCH($AR16,'Base USDA'!$B$6:$B$5436,0)))*AV16,"")))) ->  | BD16: =IF(OR($AR16="",$AU16=""),"",IF($G$5="SMAE",IF(IFERROR((INDEX('Base SMAE'!$L$13:$L$2638,MATCH($AR16,'Base SMAE'!$A$13:$A$2638,0)))*AV16,"")="",IFERROR((INDEX('Base USDA'!$I$6:$I$5436,MATCH($AR16,'Base USDA'!$B$6:$B$5436,0)))*AV16,""),IFERROR((INDEX('Base SMAE'!$L$13:$L$2638,MATCH($AR16,'Base SMAE'!$A$13:$A$2638,0)))*AV16,"")),IF(IFERROR((INDEX('Base USDA'!$I$6:$I$5436,MATCH($AR16,'Base USDA'!$B$6:$B$5436,0)))*AV16,"")="",IFERROR((INDEX('Base SMAE'!$L$13:$L$2638,MATCH($AR16,'Base SMAE'!$A$13:$A$2638,0)))*AV16,""),IFERROR((INDEX('Base USDA'!$I$6:$I$5436,MATCH($AR16,'Base USDA'!$B$6:$B$5436,0)))*AV16,"")))) ->  | BH16: FRUTA | BI16: =SUMIF(G15:G24,"FRUTA",F15:F24)+SUMIF(G37:G46,"FRUTA",F37:F46)+SUMIF(G59:G68,"FRUTA",F59:F68)+SUMIF(G81:G90,"FRUTA",F81:F90)+SUMIF(G103:G112,"FRUTA",F103:F112) -> 0 | BJ16: =SUMIF(U15:U24,"FRUTA",T15:T24)+SUMIF(U37:U46,"FRUTA",T37:T46)+SUMIF(U59:U68,"FRUTA",T59:T68)+SUMIF(U81:U90,"FRUTA",T81:T90)+SUMIF(U103:U112,"FRUTA",T103:T112) -> 0 | BK16: =SUMIF(AI15:AI24,"FRUTA",AH15:AH24)+SUMIF(AI37:AI46,"FRUTA",AH37:AH46)+SUMIF(AI59:AI68,"FRUTA",AH59:AH68)+SUMIF(AI81:AI90,"FRUTA",AH81:AH90)+SUMIF(AI103:AI112,"FRUTA",AH103:AH112) -> 0 | BL16: =SUMIF(AW15:AW24,"FRUTA",AV15:AV24)+SUMIF(AW37:AW46,"FRUTA",AV37:AV46)+SUMIF(AW59:AW68,"FRUTA",AV59:AV68)+SUMIF(AW81:AW90,"FRUTA",AV81:AV90)+SUMIF(AW103:AW112,"FRUTA",AV103:AV112) -> 0 | CB16: =IF($B16="",0,IF(ISNUMBER(MATCH($B16,'Base SMAE'!$A$13:$A$2638,0)),IFERROR($F16,0),0)) -> 0 | CC16: =IF($B16="",0,IF(ISNUMBER(MATCH($B16,'Base SMAE'!$A$13:$A$2638,0)),0,IFERROR(IF($C16="Gramos",$E16,IFERROR(($E16/$I16)*$H16,0))/100,0))) -> 0 | CD16: =IF($P16="",0,IF(ISNUMBER(MATCH($P16,'Base SMAE'!$A$13:$A$2638,0)),IFERROR($T16,0),0)) -> 0 | CE16: =IF($P16="",0,IF(ISNUMBER(MATCH($P16,'Base SMAE'!$A$13:$A$2638,0)),0,IFERROR(IF($Q16="Gramos",$S16,IFERROR(($S16/$W16)*$V16,0))/100,0))) -> 0 | CF16: =IF($AD16="",0,IF(ISNUMBER(MATCH($AD16,'Base SMAE'!$A$13:$A$2638,0)),IFERROR($AH16,0),0)) -> 0 | CG16: =IF($AD16="",0,IF(ISNUMBER(MATCH($AD16,'Base SMAE'!$A$13:$A$2638,0)),0,IFERROR(IF($AE16="Gramos",$AG16,IFERROR(($AG16/$AK16)*$AJ16,0))/100,0))) -> 0 | CH16: =IF($AR16="",0,IF(ISNUMBER(MATCH($AR16,'Base SMAE'!$A$13:$A$2638,0)),IFERROR($AV16,0),0)) -> 0 | CI16: =IF($AR16="",0,IF(ISNUMBER(MATCH($AR16,'Base SMAE'!$A$13:$A$2638,0)),0,IFERROR(IF($AS16="Gramos",$AU16,IFERROR(($AU16/$AY16)*$AX16,0))/100,0))) -> 0
D17: =IF($B17="","",IF($C17="Gramos","gramos",IF($G$5="SMAE",IFERROR(INDEX('Base SMAE'!$E$13:$E$2638,MATCH($B17,'Base SMAE'!$A$13:$A$2638,0)),"gramos"),"gramos"))) ->  | G17: =IF($B17="","",IF($G$5="SMAE",IFERROR(INDEX('Base SMAE'!$B$13:$B$2638,MATCH($B17,'Base SMAE'!$A$13:$A$2638,0)),IFERROR(INDEX('Base USDA'!$D$6:$D$5436,MATCH($B17,'Base USDA'!$B$6:$B$5436,0)),"")),IFERROR(INDEX('Base USDA'!$D$6:$D$5436,MATCH($B17,'Base USDA'!$B$6:$B$5436,0)),IFERROR(INDEX('Base SMAE'!$B$13:$B$2638,MATCH($B17,'Base SMAE'!$A$13:$A$2638,0)),"")))) ->  | H17: =IF($B17="","",IF($G$5="SMAE",IFERROR(INDEX('Base SMAE'!$G$13:$G$2638,MATCH($B17,'Base SMAE'!$A$13:$A$2638,0)),""),100)) ->  | I17: =IF($B17="","",IF($G$5="SMAE",IFERROR(INDEX('Base SMAE'!$D$13:$D$2638,MATCH($B17,'Base SMAE'!$A$13:$A$2638,0)),""),100)) ->  | J17: =IF(OR($B17="",$E17=""),"",IF($G$5="SMAE",IF(IFERROR((INDEX('Base SMAE'!$H$13:$H$2638,MATCH($B17,'Base SMAE'!$A$13:$A$2638,0)))*F17,"")="",IFERROR((INDEX('Base USDA'!$E$6:$E$5436,MATCH($B17,'Base USDA'!$B$6:$B$5436,0)))*F17,""),IFERROR((INDEX('Base SMAE'!$H$13:$H$2638,MATCH($B17,'Base SMAE'!$A$13:$A$2638,0)))*F17,"")),IF(IFERROR((INDEX('Base USDA'!$E$6:$E$5436,MATCH($B17,'Base USDA'!$B$6:$B$5436,0)))*F17,"")="",IFERROR((INDEX('Base SMAE'!$H$13:$H$2638,MATCH($B17,'Base SMAE'!$A$13:$A$2638,0)))*F17,""),IFERROR((INDEX('Base USDA'!$E$6:$E$5436,MATCH($B17,'Base USDA'!$B$6:$B$5436,0)))*F17,"")))) ->  | K17: =IF(OR($B17="",$E17=""),"",IF($G$5="SMAE",IF(IFERROR((INDEX('Base SMAE'!$I$13:$I$2638,MATCH($B17,'Base SMAE'!$A$13:$A$2638,0)))*F17,"")="",IFERROR((INDEX('Base USDA'!$F$6:$F$5436,MATCH($B17,'Base USDA'!$B$6:$B$5436,0)))*F17,""),IFERROR((INDEX('Base SMAE'!$I$13:$I$2638,MATCH($B17,'Base SMAE'!$A$13:$A$2638,0)))*F17,"")),IF(IFERROR((INDEX('Base USDA'!$F$6:$F$5436,MATCH($B17,'Base USDA'!$B$6:$B$5436,0)))*F17,"")="",IFERROR((INDEX('Base SMAE'!$I$13:$I$2638,MATCH($B17,'Base SMAE'!$A$13:$A$2638,0)))*F17,""),IFERROR((INDEX('Base USDA'!$F$6:$F$5436,MATCH($B17,'Base USDA'!$B$6:$B$5436,0)))*F17,"")))) ->  | L17: =IF(OR($B17="",$E17=""),"",IF($G$5="SMAE",IF(IFERROR((INDEX('Base SMAE'!$J$13:$J$2638,MATCH($B17,'Base SMAE'!$A$13:$A$2638,0)))*F17,"")="",IFERROR((INDEX('Base USDA'!$J$6:$J$5436,MATCH($B17,'Base USDA'!$B$6:$B$5436,0)))*F17,""),IFERROR((INDEX('Base SMAE'!$J$13:$J$2638,MATCH($B17,'Base SMAE'!$A$13:$A$2638,0)))*F17,"")),IF(IFERROR((INDEX('Base USDA'!$J$6:$J$5436,MATCH($B17,'Base USDA'!$B$6:$B$5436,0)))*F17,"")="",IFERROR((INDEX('Base SMAE'!$J$13:$J$2638,MATCH($B17,'Base SMAE'!$A$13:$A$2638,0)))*F17,""),IFERROR((INDEX('Base USDA'!$J$6:$J$5436,MATCH($B17,'Base USDA'!$B$6:$B$5436,0)))*F17,"")))) ->  | M17: =IF(OR($B17="",$E17=""),"",IF($G$5="SMAE",IF(IFERROR((INDEX('Base SMAE'!$K$13:$K$2638,MATCH($B17,'Base SMAE'!$A$13:$A$2638,0)))*F17,"")="",IFERROR((INDEX('Base USDA'!$G$6:$G$5436,MATCH($B17,'Base USDA'!$B$6:$B$5436,0)))*F17,""),IFERROR((INDEX('Base SMAE'!$K$13:$K$2638,MATCH($B17,'Base SMAE'!$A$13:$A$2638,0)))*F17,"")),IF(IFERROR((INDEX('Base USDA'!$G$6:$G$5436,MATCH($B17,'Base USDA'!$B$6:$B$5436,0)))*F17,"")="",IFERROR((INDEX('Base SMAE'!$K$13:$K$2638,MATCH($B17,'Base SMAE'!$A$13:$A$2638,0)))*F17,""),IFERROR((INDEX('Base USDA'!$G$6:$G$5436,MATCH($B17,'Base USDA'!$B$6:$B$5436,0)))*F17,"")))) ->  | N17: =IF(OR($B17="",$E17=""),"",IF($G$5="SMAE",IF(IFERROR((INDEX('Base SMAE'!$L$13:$L$2638,MATCH($B17,'Base SMAE'!$A$13:$A$2638,0)))*F17,"")="",IFERROR((INDEX('Base USDA'!$I$6:$I$5436,MATCH($B17,'Base USDA'!$B$6:$B$5436,0)))*F17,""),IFERROR((INDEX('Base SMAE'!$L$13:$L$2638,MATCH($B17,'Base SMAE'!$A$13:$A$2638,0)))*F17,"")),IF(IFERROR((INDEX('Base USDA'!$I$6:$I$5436,MATCH($B17,'Base USDA'!$B$6:$B$5436,0)))*F17,"")="",IFERROR((INDEX('Base SMAE'!$L$13:$L$2638,MATCH($B17,'Base SMAE'!$A$13:$A$2638,0)))*F17,""),IFERROR((INDEX('Base USDA'!$I$6:$I$5436,MATCH($B17,'Base USDA'!$B$6:$B$5436,0)))*F17,"")))) ->  | R17: =IF($P17="","",IF($Q17="Gramos","gramos",IF($G$5="SMAE",IFERROR(INDEX('Base SMAE'!$E$13:$E$2638,MATCH($P17,'Base SMAE'!$A$13:$A$2638,0)),"gramos"),"gramos"))) ->  | U17: =IF($P17="","",IF($G$5="SMAE",IFERROR(INDEX('Base SMAE'!$B$13:$B$2638,MATCH($P17,'Base SMAE'!$A$13:$A$2638,0)),IFERROR(INDEX('Base USDA'!$D$6:$D$5436,MATCH($P17,'Base USDA'!$B$6:$B$5436,0)),"")),IFERROR(INDEX('Base USDA'!$D$6:$D$5436,MATCH($P17,'Base USDA'!$B$6:$B$5436,0)),IFERROR(INDEX('Base SMAE'!$B$13:$B$2638,MATCH($P17,'Base SMAE'!$A$13:$A$2638,0)),"")))) ->  | V17: =IF($P17="","",IF($G$5="SMAE",IFERROR(INDEX('Base SMAE'!$G$13:$G$2638,MATCH($P17,'Base SMAE'!$A$13:$A$2638,0)),""),100)) ->  | W17: =IF($P17="","",IF($G$5="SMAE",IFERROR(INDEX('Base SMAE'!$D$13:$D$2638,MATCH($P17,'Base SMAE'!$A$13:$A$2638,0)),""),100)) ->  | X17: =IF(OR($P17="",$S17=""),"",IF($G$5="SMAE",IF(IFERROR((INDEX('Base SMAE'!$H$13:$H$2638,MATCH($P17,'Base SMAE'!$A$13:$A$2638,0)))*T17,"")="",IFERROR((INDEX('Base USDA'!$E$6:$E$5436,MATCH($P17,'Base USDA'!$B$6:$B$5436,0)))*T17,""),IFERROR((INDEX('Base SMAE'!$H$13:$H$2638,MATCH($P17,'Base SMAE'!$A$13:$A$2638,0)))*T17,"")),IF(IFERROR((INDEX('Base USDA'!$E$6:$E$5436,MATCH($P17,'Base USDA'!$B$6:$B$5436,0)))*T17,"")="",IFERROR((INDEX('Base SMAE'!$H$13:$H$2638,MATCH($P17,'Base SMAE'!$A$13:$A$2638,0)))*T17,""),IFERROR((INDEX('Base USDA'!$E$6:$E$5436,MATCH($P17,'Base USDA'!$B$6:$B$5436,0)))*T17,"")))) ->  | Y17: =IF(OR($P17="",$S17=""),"",IF($G$5="SMAE",IF(IFERROR((INDEX('Base SMAE'!$I$13:$I$2638,MATCH($P17,'Base SMAE'!$A$13:$A$2638,0)))*T17,"")="",IFERROR((INDEX('Base USDA'!$F$6:$F$5436,MATCH($P17,'Base USDA'!$B$6:$B$5436,0)))*T17,""),IFERROR((INDEX('Base SMAE'!$I$13:$I$2638,MATCH($P17,'Base SMAE'!$A$13:$A$2638,0)))*T17,"")),IF(IFERROR((INDEX('Base USDA'!$F$6:$F$5436,MATCH($P17,'Base USDA'!$B$6:$B$5436,0)))*T17,"")="",IFERROR((INDEX('Base SMAE'!$I$13:$I$2638,MATCH($P17,'Base SMAE'!$A$13:$A$2638,0)))*T17,""),IFERROR((INDEX('Base USDA'!$F$6:$F$5436,MATCH($P17,'Base USDA'!$B$6:$B$5436,0)))*T17,"")))) ->  | Z17: =IF(OR($P17="",$S17=""),"",IF($G$5="SMAE",IF(IFERROR((INDEX('Base SMAE'!$J$13:$J$2638,MATCH($P17,'Base SMAE'!$A$13:$A$2638,0)))*T17,"")="",IFERROR((INDEX('Base USDA'!$J$6:$J$5436,MATCH($P17,'Base USDA'!$B$6:$B$5436,0)))*T17,""),IFERROR((INDEX('Base SMAE'!$J$13:$J$2638,MATCH($P17,'Base SMAE'!$A$13:$A$2638,0)))*T17,"")),IF(IFERROR((INDEX('Base USDA'!$J$6:$J$5436,MATCH($P17,'Base USDA'!$B$6:$B$5436,0)))*T17,"")="",IFERROR((INDEX('Base SMAE'!$J$13:$J$2638,MATCH($P17,'Base SMAE'!$A$13:$A$2638,0)))*T17,""),IFERROR((INDEX('Base USDA'!$J$6:$J$5436,MATCH($P17,'Base USDA'!$B$6:$B$5436,0)))*T17,"")))) ->  | AA17: =IF(OR($P17="",$S17=""),"",IF($G$5="SMAE",IF(IFERROR((INDEX('Base SMAE'!$K$13:$K$2638,MATCH($P17,'Base SMAE'!$A$13:$A$2638,0)))*T17,"")="",IFERROR((INDEX('Base USDA'!$G$6:$G$5436,MATCH($P17,'Base USDA'!$B$6:$B$5436,0)))*T17,""),IFERROR((INDEX('Base SMAE'!$K$13:$K$2638,MATCH($P17,'Base SMAE'!$A$13:$A$2638,0)))*T17,"")),IF(IFERROR((INDEX('Base USDA'!$G$6:$G$5436,MATCH($P17,'Base USDA'!$B$6:$B$5436,0)))*T17,"")="",IFERROR((INDEX('Base SMAE'!$K$13:$K$2638,MATCH($P17,'Base SMAE'!$A$13:$A$2638,0)))*T17,""),IFERROR((INDEX('Base USDA'!$G$6:$G$5436,MATCH($P17,'Base USDA'!$B$6:$B$5436,0)))*T17,"")))) ->  | AB17: =IF(OR($P17="",$S17=""),"",IF($G$5="SMAE",IF(IFERROR((INDEX('Base SMAE'!$L$13:$L$2638,MATCH($P17,'Base SMAE'!$A$13:$A$2638,0)))*T17,"")="",IFERROR((INDEX('Base USDA'!$I$6:$I$5436,MATCH($P17,'Base USDA'!$B$6:$B$5436,0)))*T17,""),IFERROR((INDEX('Base SMAE'!$L$13:$L$2638,MATCH($P17,'Base SMAE'!$A$13:$A$2638,0)))*T17,"")),IF(IFERROR((INDEX('Base USDA'!$I$6:$I$5436,MATCH($P17,'Base USDA'!$B$6:$B$5436,0)))*T17,"")="",IFERROR((INDEX('Base SMAE'!$L$13:$L$2638,MATCH($P17,'Base SMAE'!$A$13:$A$2638,0)))*T17,""),IFERROR((INDEX('Base USDA'!$I$6:$I$5436,MATCH($P17,'Base USDA'!$B$6:$B$5436,0)))*T17,"")))) ->  | AF17: =IF($AD17="","",IF($AE17="Gramos","gramos",IF($G$5="SMAE",IFERROR(INDEX('Base SMAE'!$E$13:$E$2638,MATCH($AD17,'Base SMAE'!$A$13:$A$2638,0)),"gramos"),"gramos"))) ->  | AI17: =IF($AD17="","",IF($G$5="SMAE",IFERROR(INDEX('Base SMAE'!$B$13:$B$2638,MATCH($AD17,'Base SMAE'!$A$13:$A$2638,0)),IFERROR(INDEX('Base USDA'!$D$6:$D$5436,MATCH($AD17,'Base USDA'!$B$6:$B$5436,0)),"")),IFERROR(INDEX('Base USDA'!$D$6:$D$5436,MATCH($AD17,'Base USDA'!$B$6:$B$5436,0)),IFERROR(INDEX('Base SMAE'!$B$13:$B$2638,MATCH($AD17,'Base SMAE'!$A$13:$A$2638,0)),"")))) ->  | AJ17: =IF($AD17="","",IF($G$5="SMAE",IFERROR(INDEX('Base SMAE'!$G$13:$G$2638,MATCH($AD17,'Base SMAE'!$A$13:$A$2638,0)),""),100)) ->  | AK17: =IF($AD17="","",IF($G$5="SMAE",IFERROR(INDEX('Base SMAE'!$D$13:$D$2638,MATCH($AD17,'Base SMAE'!$A$13:$A$2638,0)),""),100)) ->  | AL17: =IF(OR($AD17="",$AG17=""),"",IF($G$5="SMAE",IF(IFERROR((INDEX('Base SMAE'!$H$13:$H$2638,MATCH($AD17,'Base SMAE'!$A$13:$A$2638,0)))*AH17,"")="",IFERROR((INDEX('Base USDA'!$E$6:$E$5436,MATCH($AD17,'Base USDA'!$B$6:$B$5436,0)))*AH17,""),IFERROR((INDEX('Base SMAE'!$H$13:$H$2638,MATCH($AD17,'Base SMAE'!$A$13:$A$2638,0)))*AH17,"")),IF(IFERROR((INDEX('Base USDA'!$E$6:$E$5436,MATCH($AD17,'Base USDA'!$B$6:$B$5436,0)))*AH17,"")="",IFERROR((INDEX('Base SMAE'!$H$13:$H$2638,MATCH($AD17,'Base SMAE'!$A$13:$A$2638,0)))*AH17,""),IFERROR((INDEX('Base USDA'!$E$6:$E$5436,MATCH($AD17,'Base USDA'!$B$6:$B$5436,0)))*AH17,"")))) ->  | AM17: =IF(OR($AD17="",$AG17=""),"",IF($G$5="SMAE",IF(IFERROR((INDEX('Base SMAE'!$I$13:$I$2638,MATCH($AD17,'Base SMAE'!$A$13:$A$2638,0)))*AH17,"")="",IFERROR((INDEX('Base USDA'!$F$6:$F$5436,MATCH($AD17,'Base USDA'!$B$6:$B$5436,0)))*AH17,""),IFERROR((INDEX('Base SMAE'!$I$13:$I$2638,MATCH($AD17,'Base SMAE'!$A$13:$A$2638,0)))*AH17,"")),IF(IFERROR((INDEX('Base USDA'!$F$6:$F$5436,MATCH($AD17,'Base USDA'!$B$6:$B$5436,0)))*AH17,"")="",IFERROR((INDEX('Base SMAE'!$I$13:$I$2638,MATCH($AD17,'Base SMAE'!$A$13:$A$2638,0)))*AH17,""),IFERROR((INDEX('Base USDA'!$F$6:$F$5436,MATCH($AD17,'Base USDA'!$B$6:$B$5436,0)))*AH17,"")))) ->  | AN17: =IF(OR($AD17="",$AG17=""),"",IF($G$5="SMAE",IF(IFERROR((INDEX('Base SMAE'!$J$13:$J$2638,MATCH($AD17,'Base SMAE'!$A$13:$A$2638,0)))*AH17,"")="",IFERROR((INDEX('Base USDA'!$J$6:$J$5436,MATCH($AD17,'Base USDA'!$B$6:$B$5436,0)))*AH17,""),IFERROR((INDEX('Base SMAE'!$J$13:$J$2638,MATCH($AD17,'Base SMAE'!$A$13:$A$2638,0)))*AH17,"")),IF(IFERROR((INDEX('Base USDA'!$J$6:$J$5436,MATCH($AD17,'Base USDA'!$B$6:$B$5436,0)))*AH17,"")="",IFERROR((INDEX('Base SMAE'!$J$13:$J$2638,MATCH($AD17,'Base SMAE'!$A$13:$A$2638,0)))*AH17,""),IFERROR((INDEX('Base USDA'!$J$6:$J$5436,MATCH($AD17,'Base USDA'!$B$6:$B$5436,0)))*AH17,"")))) ->  | AO17: =IF(OR($AD17="",$AG17=""),"",IF($G$5="SMAE",IF(IFERROR((INDEX('Base SMAE'!$K$13:$K$2638,MATCH($AD17,'Base SMAE'!$A$13:$A$2638,0)))*AH17,"")="",IFERROR((INDEX('Base USDA'!$G$6:$G$5436,MATCH($AD17,'Base USDA'!$B$6:$B$5436,0)))*AH17,""),IFERROR((INDEX('Base SMAE'!$K$13:$K$2638,MATCH($AD17,'Base SMAE'!$A$13:$A$2638,0)))*AH17,"")),IF(IFERROR((INDEX('Base USDA'!$G$6:$G$5436,MATCH($AD17,'Base USDA'!$B$6:$B$5436,0)))*AH17,"")="",IFERROR((INDEX('Base SMAE'!$K$13:$K$2638,MATCH($AD17,'Base SMAE'!$A$13:$A$2638,0)))*AH17,""),IFERROR((INDEX('Base USDA'!$G$6:$G$5436,MATCH($AD17,'Base USDA'!$B$6:$B$5436,0)))*AH17,"")))) ->  | AP17: =IF(OR($AD17="",$AG17=""),"",IF($G$5="SMAE",IF(IFERROR((INDEX('Base SMAE'!$L$13:$L$2638,MATCH($AD17,'Base SMAE'!$A$13:$A$2638,0)))*AH17,"")="",IFERROR((INDEX('Base USDA'!$I$6:$I$5436,MATCH($AD17,'Base USDA'!$B$6:$B$5436,0)))*AH17,""),IFERROR((INDEX('Base SMAE'!$L$13:$L$2638,MATCH($AD17,'Base SMAE'!$A$13:$A$2638,0)))*AH17,"")),IF(IFERROR((INDEX('Base USDA'!$I$6:$I$5436,MATCH($AD17,'Base USDA'!$B$6:$B$5436,0)))*AH17,"")="",IFERROR((INDEX('Base SMAE'!$L$13:$L$2638,MATCH($AD17,'Base SMAE'!$A$13:$A$2638,0)))*AH17,""),IFERROR((INDEX('Base USDA'!$I$6:$I$5436,MATCH($AD17,'Base USDA'!$B$6:$B$5436,0)))*AH17,"")))) ->  | AT17: =IF($AR17="","",IF($AS17="Gramos","gramos",IF($G$5="SMAE",IFERROR(INDEX('Base SMAE'!$E$13:$E$2638,MATCH($AR17,'Base SMAE'!$A$13:$A$2638,0)),"gramos"),"gramos"))) ->  | AW17: =IF($AR17="","",IF($G$5="SMAE",IFERROR(INDEX('Base SMAE'!$B$13:$B$2638,MATCH($AR17,'Base SMAE'!$A$13:$A$2638,0)),IFERROR(INDEX('Base USDA'!$D$6:$D$5436,MATCH($AR17,'Base USDA'!$B$6:$B$5436,0)),"")),IFERROR(INDEX('Base USDA'!$D$6:$D$5436,MATCH($AR17,'Base USDA'!$B$6:$B$5436,0)),IFERROR(INDEX('Base SMAE'!$B$13:$B$2638,MATCH($AR17,'Base SMAE'!$A$13:$A$2638,0)),"")))) ->  | AX17: =IF($AR17="","",IF($G$5="SMAE",IFERROR(INDEX('Base SMAE'!$G$13:$G$2638,MATCH($AR17,'Base SMAE'!$A$13:$A$2638,0)),""),100)) ->  | AY17: =IF($AR17="","",IF($G$5="SMAE",IFERROR(INDEX('Base SMAE'!$D$13:$D$2638,MATCH($AR17,'Base SMAE'!$A$13:$A$2638,0)),""),100)) ->  | AZ17: =IF(OR($AR17="",$AU17=""),"",IF($G$5="SMAE",IF(IFERROR((INDEX('Base SMAE'!$H$13:$H$2638,MATCH($AR17,'Base SMAE'!$A$13:$A$2638,0)))*AV17,"")="",IFERROR((INDEX('Base USDA'!$E$6:$E$5436,MATCH($AR17,'Base USDA'!$B$6:$B$5436,0)))*AV17,""),IFERROR((INDEX('Base SMAE'!$H$13:$H$2638,MATCH($AR17,'Base SMAE'!$A$13:$A$2638,0)))*AV17,"")),IF(IFERROR((INDEX('Base USDA'!$E$6:$E$5436,MATCH($AR17,'Base USDA'!$B$6:$B$5436,0)))*AV17,"")="",IFERROR((INDEX('Base SMAE'!$H$13:$H$2638,MATCH($AR17,'Base SMAE'!$A$13:$A$2638,0)))*AV17,""),IFERROR((INDEX('Base USDA'!$E$6:$E$5436,MATCH($AR17,'Base USDA'!$B$6:$B$5436,0)))*AV17,"")))) ->  | BA17: =IF(OR($AR17="",$AU17=""),"",IF($G$5="SMAE",IF(IFERROR((INDEX('Base SMAE'!$I$13:$I$2638,MATCH($AR17,'Base SMAE'!$A$13:$A$2638,0)))*AV17,"")="",IFERROR((INDEX('Base USDA'!$F$6:$F$5436,MATCH($AR17,'Base USDA'!$B$6:$B$5436,0)))*AV17,""),IFERROR((INDEX('Base SMAE'!$I$13:$I$2638,MATCH($AR17,'Base SMAE'!$A$13:$A$2638,0)))*AV17,"")),IF(IFERROR((INDEX('Base USDA'!$F$6:$F$5436,MATCH($AR17,'Base USDA'!$B$6:$B$5436,0)))*AV17,"")="",IFERROR((INDEX('Base SMAE'!$I$13:$I$2638,MATCH($AR17,'Base SMAE'!$A$13:$A$2638,0)))*AV17,""),IFERROR((INDEX('Base USDA'!$F$6:$F$5436,MATCH($AR17,'Base USDA'!$B$6:$B$5436,0)))*AV17,"")))) ->  | BB17: =IF(OR($AR17="",$AU17=""),"",IF($G$5="SMAE",IF(IFERROR((INDEX('Base SMAE'!$J$13:$J$2638,MATCH($AR17,'Base SMAE'!$A$13:$A$2638,0)))*AV17,"")="",IFERROR((INDEX('Base USDA'!$J$6:$J$5436,MATCH($AR17,'Base USDA'!$B$6:$B$5436,0)))*AV17,""),IFERROR((INDEX('Base SMAE'!$J$13:$J$2638,MATCH($AR17,'Base SMAE'!$A$13:$A$2638,0)))*AV17,"")),IF(IFERROR((INDEX('Base USDA'!$J$6:$J$5436,MATCH($AR17,'Base USDA'!$B$6:$B$5436,0)))*AV17,"")="",IFERROR((INDEX('Base SMAE'!$J$13:$J$2638,MATCH($AR17,'Base SMAE'!$A$13:$A$2638,0)))*AV17,""),IFERROR((INDEX('Base USDA'!$J$6:$J$5436,MATCH($AR17,'Base USDA'!$B$6:$B$5436,0)))*AV17,"")))) ->  | BC17: =IF(OR($AR17="",$AU17=""),"",IF($G$5="SMAE",IF(IFERROR((INDEX('Base SMAE'!$K$13:$K$2638,MATCH($AR17,'Base SMAE'!$A$13:$A$2638,0)))*AV17,"")="",IFERROR((INDEX('Base USDA'!$G$6:$G$5436,MATCH($AR17,'Base USDA'!$B$6:$B$5436,0)))*AV17,""),IFERROR((INDEX('Base SMAE'!$K$13:$K$2638,MATCH($AR17,'Base SMAE'!$A$13:$A$2638,0)))*AV17,"")),IF(IFERROR((INDEX('Base USDA'!$G$6:$G$5436,MATCH($AR17,'Base USDA'!$B$6:$B$5436,0)))*AV17,"")="",IFERROR((INDEX('Base SMAE'!$K$13:$K$2638,MATCH($AR17,'Base SMAE'!$A$13:$A$2638,0)))*AV17,""),IFERROR((INDEX('Base USDA'!$G$6:$G$5436,MATCH($AR17,'Base USDA'!$B$6:$B$5436,0)))*AV17,"")))) ->  | BD17: =IF(OR($AR17="",$AU17=""),"",IF($G$5="SMAE",IF(IFERROR((INDEX('Base SMAE'!$L$13:$L$2638,MATCH($AR17,'Base SMAE'!$A$13:$A$2638,0)))*AV17,"")="",IFERROR((INDEX('Base USDA'!$I$6:$I$5436,MATCH($AR17,'Base USDA'!$B$6:$B$5436,0)))*AV17,""),IFERROR((INDEX('Base SMAE'!$L$13:$L$2638,MATCH($AR17,'Base SMAE'!$A$13:$A$2638,0)))*AV17,"")),IF(IFERROR((INDEX('Base USDA'!$I$6:$I$5436,MATCH($AR17,'Base USDA'!$B$6:$B$5436,0)))*AV17,"")="",IFERROR((INDEX('Base SMAE'!$L$13:$L$2638,MATCH($AR17,'Base SMAE'!$A$13:$A$2638,0)))*AV17,""),IFERROR((INDEX('Base USDA'!$I$6:$I$5436,MATCH($AR17,'Base USDA'!$B$6:$B$5436,0)))*AV17,"")))) ->  | BH17: GRASAS C/P | BI17: =SUMIF(G15:G24,"GRASAS C/P",F15:F24)+SUMIF(G37:G46,"GRASAS C/P",F37:F46)+SUMIF(G59:G68,"GRASAS C/P",F59:F68)+SUMIF(G81:G90,"GRASAS C/P",F81:F90)+SUMIF(G103:G112,"GRASAS C/P",F103:F112) -> 0 | BJ17: =SUMIF(U15:U24,"GRASAS C/P",T15:T24)+SUMIF(U37:U46,"GRASAS C/P",T37:T46)+SUMIF(U59:U68,"GRASAS C/P",T59:T68)+SUMIF(U81:U90,"GRASAS C/P",T81:T90)+SUMIF(U103:U112,"GRASAS C/P",T103:T112) -> 0 | BK17: =SUMIF(AI15:AI24,"GRASAS C/P",AH15:AH24)+SUMIF(AI37:AI46,"GRASAS C/P",AH37:AH46)+SUMIF(AI59:AI68,"GRASAS C/P",AH59:AH68)+SUMIF(AI81:AI90,"GRASAS C/P",AH81:AH90)+SUMIF(AI103:AI112,"GRASAS C/P",AH103:AH112) -> 0 | BL17: =SUMIF(AW15:AW24,"GRASAS C/P",AV15:AV24)+SUMIF(AW37:AW46,"GRASAS C/P",AV37:AV46)+SUMIF(AW59:AW68,"GRASAS C/P",AV59:AV68)+SUMIF(AW81:AW90,"GRASAS C/P",AV81:AV90)+SUMIF(AW103:AW112,"GRASAS C/P",AV103:AV112) -> 0 | CB17: =IF($B17="",0,IF(ISNUMBER(MATCH($B17,'Base SMAE'!$A$13:$A$2638,0)),IFERROR($F17,0),0)) -> 0 | CC17: =IF($B17="",0,IF(ISNUMBER(MATCH($B17,'Base SMAE'!$A$13:$A$2638,0)),0,IFERROR(IF($C17="Gramos",$E17,IFERROR(($E17/$I17)*$H17,0))/100,0))) -> 0 | CD17: =IF($P17="",0,IF(ISNUMBER(MATCH($P17,'Base SMAE'!$A$13:$A$2638,0)),IFERROR($T17,0),0)) -> 0 | CE17: =IF($P17="",0,IF(ISNUMBER(MATCH($P17,'Base SMAE'!$A$13:$A$2638,0)),0,IFERROR(IF($Q17="Gramos",$S17,IFERROR(($S17/$W17)*$V17,0))/100,0))) -> 0 | CF17: =IF($AD17="",0,IF(ISNUMBER(MATCH($AD17,'Base SMAE'!$A$13:$A$2638,0)),IFERROR($AH17,0),0)) -> 0 | CG17: =IF($AD17="",0,IF(ISNUMBER(MATCH($AD17,'Base SMAE'!$A$13:$A$2638,0)),0,IFERROR(IF($AE17="Gramos",$AG17,IFERROR(($AG17/$AK17)*$AJ17,0))/100,0))) -> 0 | CH17: =IF($AR17="",0,IF(ISNUMBER(MATCH($AR17,'Base SMAE'!$A$13:$A$2638,0)),IFERROR($AV17,0),0)) -> 0 | CI17: =IF($AR17="",0,IF(ISNUMBER(MATCH($AR17,'Base SMAE'!$A$13:$A$2638,0)),0,IFERROR(IF($AS17="Gramos",$AU17,IFERROR(($AU17/$AY17)*$AX17,0))/100,0))) -> 0
D18: =IF($B18="","",IF($C18="Gramos","gramos",IF($G$5="SMAE",IFERROR(INDEX('Base SMAE'!$E$13:$E$2638,MATCH($B18,'Base SMAE'!$A$13:$A$2638,0)),"gramos"),"gramos"))) ->  | G18: =IF($B18="","",IF($G$5="SMAE",IFERROR(INDEX('Base SMAE'!$B$13:$B$2638,MATCH($B18,'Base SMAE'!$A$13:$A$2638,0)),IFERROR(INDEX('Base USDA'!$D$6:$D$5436,MATCH($B18,'Base USDA'!$B$6:$B$5436,0)),"")),IFERROR(INDEX('Base USDA'!$D$6:$D$5436,MATCH($B18,'Base USDA'!$B$6:$B$5436,0)),IFERROR(INDEX('Base SMAE'!$B$13:$B$2638,MATCH($B18,'Base SMAE'!$A$13:$A$2638,0)),"")))) ->  | H18: =IF($B18="","",IF($G$5="SMAE",IFERROR(INDEX('Base SMAE'!$G$13:$G$2638,MATCH($B18,'Base SMAE'!$A$13:$A$2638,0)),""),100)) ->  | I18: =IF($B18="","",IF($G$5="SMAE",IFERROR(INDEX('Base SMAE'!$D$13:$D$2638,MATCH($B18,'Base SMAE'!$A$13:$A$2638,0)),""),100)) ->  | J18: =IF(OR($B18="",$E18=""),"",IF($G$5="SMAE",IF(IFERROR((INDEX('Base SMAE'!$H$13:$H$2638,MATCH($B18,'Base SMAE'!$A$13:$A$2638,0)))*F18,"")="",IFERROR((INDEX('Base USDA'!$E$6:$E$5436,MATCH($B18,'Base USDA'!$B$6:$B$5436,0)))*F18,""),IFERROR((INDEX('Base SMAE'!$H$13:$H$2638,MATCH($B18,'Base SMAE'!$A$13:$A$2638,0)))*F18,"")),IF(IFERROR((INDEX('Base USDA'!$E$6:$E$5436,MATCH($B18,'Base USDA'!$B$6:$B$5436,0)))*F18,"")="",IFERROR((INDEX('Base SMAE'!$H$13:$H$2638,MATCH($B18,'Base SMAE'!$A$13:$A$2638,0)))*F18,""),IFERROR((INDEX('Base USDA'!$E$6:$E$5436,MATCH($B18,'Base USDA'!$B$6:$B$5436,0)))*F18,"")))) ->  | K18: =IF(OR($B18="",$E18=""),"",IF($G$5="SMAE",IF(IFERROR((INDEX('Base SMAE'!$I$13:$I$2638,MATCH($B18,'Base SMAE'!$A$13:$A$2638,0)))*F18,"")="",IFERROR((INDEX('Base USDA'!$F$6:$F$5436,MATCH($B18,'Base USDA'!$B$6:$B$5436,0)))*F18,""),IFERROR((INDEX('Base SMAE'!$I$13:$I$2638,MATCH($B18,'Base SMAE'!$A$13:$A$2638,0)))*F18,"")),IF(IFERROR((INDEX('Base USDA'!$F$6:$F$5436,MATCH($B18,'Base USDA'!$B$6:$B$5436,0)))*F18,"")="",IFERROR((INDEX('Base SMAE'!$I$13:$I$2638,MATCH($B18,'Base SMAE'!$A$13:$A$2638,0)))*F18,""),IFERROR((INDEX('Base USDA'!$F$6:$F$5436,MATCH($B18,'Base USDA'!$B$6:$B$5436,0)))*F18,"")))) ->  | L18: =IF(OR($B18="",$E18=""),"",IF($G$5="SMAE",IF(IFERROR((INDEX('Base SMAE'!$J$13:$J$2638,MATCH($B18,'Base SMAE'!$A$13:$A$2638,0)))*F18,"")="",IFERROR((INDEX('Base USDA'!$J$6:$J$5436,MATCH($B18,'Base USDA'!$B$6:$B$5436,0)))*F18,""),IFERROR((INDEX('Base SMAE'!$J$13:$J$2638,MATCH($B18,'Base SMAE'!$A$13:$A$2638,0)))*F18,"")),IF(IFERROR((INDEX('Base USDA'!$J$6:$J$5436,MATCH($B18,'Base USDA'!$B$6:$B$5436,0)))*F18,"")="",IFERROR((INDEX('Base SMAE'!$J$13:$J$2638,MATCH($B18,'Base SMAE'!$A$13:$A$2638,0)))*F18,""),IFERROR((INDEX('Base USDA'!$J$6:$J$5436,MATCH($B18,'Base USDA'!$B$6:$B$5436,0)))*F18,"")))) ->  | M18: =IF(OR($B18="",$E18=""),"",IF($G$5="SMAE",IF(IFERROR((INDEX('Base SMAE'!$K$13:$K$2638,MATCH($B18,'Base SMAE'!$A$13:$A$2638,0)))*F18,"")="",IFERROR((INDEX('Base USDA'!$G$6:$G$5436,MATCH($B18,'Base USDA'!$B$6:$B$5436,0)))*F18,""),IFERROR((INDEX('Base SMAE'!$K$13:$K$2638,MATCH($B18,'Base SMAE'!$A$13:$A$2638,0)))*F18,"")),IF(IFERROR((INDEX('Base USDA'!$G$6:$G$5436,MATCH($B18,'Base USDA'!$B$6:$B$5436,0)))*F18,"")="",IFERROR((INDEX('Base SMAE'!$K$13:$K$2638,MATCH($B18,'Base SMAE'!$A$13:$A$2638,0)))*F18,""),IFERROR((INDEX('Base USDA'!$G$6:$G$5436,MATCH($B18,'Base USDA'!$B$6:$B$5436,0)))*F18,"")))) ->  | N18: =IF(OR($B18="",$E18=""),"",IF($G$5="SMAE",IF(IFERROR((INDEX('Base SMAE'!$L$13:$L$2638,MATCH($B18,'Base SMAE'!$A$13:$A$2638,0)))*F18,"")="",IFERROR((INDEX('Base USDA'!$I$6:$I$5436,MATCH($B18,'Base USDA'!$B$6:$B$5436,0)))*F18,""),IFERROR((INDEX('Base SMAE'!$L$13:$L$2638,MATCH($B18,'Base SMAE'!$A$13:$A$2638,0)))*F18,"")),IF(IFERROR((INDEX('Base USDA'!$I$6:$I$5436,MATCH($B18,'Base USDA'!$B$6:$B$5436,0)))*F18,"")="",IFERROR((INDEX('Base SMAE'!$L$13:$L$2638,MATCH($B18,'Base SMAE'!$A$13:$A$2638,0)))*F18,""),IFERROR((INDEX('Base USDA'!$I$6:$I$5436,MATCH($B18,'Base USDA'!$B$6:$B$5436,0)))*F18,"")))) ->  | R18: =IF($P18="","",IF($Q18="Gramos","gramos",IF($G$5="SMAE",IFERROR(INDEX('Base SMAE'!$E$13:$E$2638,MATCH($P18,'Base SMAE'!$A$13:$A$2638,0)),"gramos"),"gramos"))) ->  | U18: =IF($P18="","",IF($G$5="SMAE",IFERROR(INDEX('Base SMAE'!$B$13:$B$2638,MATCH($P18,'Base SMAE'!$A$13:$A$2638,0)),IFERROR(INDEX('Base USDA'!$D$6:$D$5436,MATCH($P18,'Base USDA'!$B$6:$B$5436,0)),"")),IFERROR(INDEX('Base USDA'!$D$6:$D$5436,MATCH($P18,'Base USDA'!$B$6:$B$5436,0)),IFERROR(INDEX('Base SMAE'!$B$13:$B$2638,MATCH($P18,'Base SMAE'!$A$13:$A$2638,0)),"")))) ->  | V18: =IF($P18="","",IF($G$5="SMAE",IFERROR(INDEX('Base SMAE'!$G$13:$G$2638,MATCH($P18,'Base SMAE'!$A$13:$A$2638,0)),""),100)) ->  | W18: =IF($P18="","",IF($G$5="SMAE",IFERROR(INDEX('Base SMAE'!$D$13:$D$2638,MATCH($P18,'Base SMAE'!$A$13:$A$2638,0)),""),100)) ->  | X18: =IF(OR($P18="",$S18=""),"",IF($G$5="SMAE",IF(IFERROR((INDEX('Base SMAE'!$H$13:$H$2638,MATCH($P18,'Base SMAE'!$A$13:$A$2638,0)))*T18,"")="",IFERROR((INDEX('Base USDA'!$E$6:$E$5436,MATCH($P18,'Base USDA'!$B$6:$B$5436,0)))*T18,""),IFERROR((INDEX('Base SMAE'!$H$13:$H$2638,MATCH($P18,'Base SMAE'!$A$13:$A$2638,0)))*T18,"")),IF(IFERROR((INDEX('Base USDA'!$E$6:$E$5436,MATCH($P18,'Base USDA'!$B$6:$B$5436,0)))*T18,"")="",IFERROR((INDEX('Base SMAE'!$H$13:$H$2638,MATCH($P18,'Base SMAE'!$A$13:$A$2638,0)))*T18,""),IFERROR((INDEX('Base USDA'!$E$6:$E$5436,MATCH($P18,'Base USDA'!$B$6:$B$5436,0)))*T18,"")))) ->  | Y18: =IF(OR($P18="",$S18=""),"",IF($G$5="SMAE",IF(IFERROR((INDEX('Base SMAE'!$I$13:$I$2638,MATCH($P18,'Base SMAE'!$A$13:$A$2638,0)))*T18,"")="",IFERROR((INDEX('Base USDA'!$F$6:$F$5436,MATCH($P18,'Base USDA'!$B$6:$B$5436,0)))*T18,""),IFERROR((INDEX('Base SMAE'!$I$13:$I$2638,MATCH($P18,'Base SMAE'!$A$13:$A$2638,0)))*T18,"")),IF(IFERROR((INDEX('Base USDA'!$F$6:$F$5436,MATCH($P18,'Base USDA'!$B$6:$B$5436,0)))*T18,"")="",IFERROR((INDEX('Base SMAE'!$I$13:$I$2638,MATCH($P18,'Base SMAE'!$A$13:$A$2638,0)))*T18,""),IFERROR((INDEX('Base USDA'!$F$6:$F$5436,MATCH($P18,'Base USDA'!$B$6:$B$5436,0)))*T18,"")))) ->  | Z18: =IF(OR($P18="",$S18=""),"",IF($G$5="SMAE",IF(IFERROR((INDEX('Base SMAE'!$J$13:$J$2638,MATCH($P18,'Base SMAE'!$A$13:$A$2638,0)))*T18,"")="",IFERROR((INDEX('Base USDA'!$J$6:$J$5436,MATCH($P18,'Base USDA'!$B$6:$B$5436,0)))*T18,""),IFERROR((INDEX('Base SMAE'!$J$13:$J$2638,MATCH($P18,'Base SMAE'!$A$13:$A$2638,0)))*T18,"")),IF(IFERROR((INDEX('Base USDA'!$J$6:$J$5436,MATCH($P18,'Base USDA'!$B$6:$B$5436,0)))*T18,"")="",IFERROR((INDEX('Base SMAE'!$J$13:$J$2638,MATCH($P18,'Base SMAE'!$A$13:$A$2638,0)))*T18,""),IFERROR((INDEX('Base USDA'!$J$6:$J$5436,MATCH($P18,'Base USDA'!$B$6:$B$5436,0)))*T18,"")))) ->  | AA18: =IF(OR($P18="",$S18=""),"",IF($G$5="SMAE",IF(IFERROR((INDEX('Base SMAE'!$K$13:$K$2638,MATCH($P18,'Base SMAE'!$A$13:$A$2638,0)))*T18,"")="",IFERROR((INDEX('Base USDA'!$G$6:$G$5436,MATCH($P18,'Base USDA'!$B$6:$B$5436,0)))*T18,""),IFERROR((INDEX('Base SMAE'!$K$13:$K$2638,MATCH($P18,'Base SMAE'!$A$13:$A$2638,0)))*T18,"")),IF(IFERROR((INDEX('Base USDA'!$G$6:$G$5436,MATCH($P18,'Base USDA'!$B$6:$B$5436,0)))*T18,"")="",IFERROR((INDEX('Base SMAE'!$K$13:$K$2638,MATCH($P18,'Base SMAE'!$A$13:$A$2638,0)))*T18,""),IFERROR((INDEX('Base USDA'!$G$6:$G$5436,MATCH($P18,'Base USDA'!$B$6:$B$5436,0)))*T18,"")))) ->  | AB18: =IF(OR($P18="",$S18=""),"",IF($G$5="SMAE",IF(IFERROR((INDEX('Base SMAE'!$L$13:$L$2638,MATCH($P18,'Base SMAE'!$A$13:$A$2638,0)))*T18,"")="",IFERROR((INDEX('Base USDA'!$I$6:$I$5436,MATCH($P18,'Base USDA'!$B$6:$B$5436,0)))*T18,""),IFERROR((INDEX('Base SMAE'!$L$13:$L$2638,MATCH($P18,'Base SMAE'!$A$13:$A$2638,0)))*T18,"")),IF(IFERROR((INDEX('Base USDA'!$I$6:$I$5436,MATCH($P18,'Base USDA'!$B$6:$B$5436,0)))*T18,"")="",IFERROR((INDEX('Base SMAE'!$L$13:$L$2638,MATCH($P18,'Base SMAE'!$A$13:$A$2638,0)))*T18,""),IFERROR((INDEX('Base USDA'!$I$6:$I$5436,MATCH($P18,'Base USDA'!$B$6:$B$5436,0)))*T18,"")))) ->  | AF18: =IF($AD18="","",IF($AE18="Gramos","gramos",IF($G$5="SMAE",IFERROR(INDEX('Base SMAE'!$E$13:$E$2638,MATCH($AD18,'Base SMAE'!$A$13:$A$2638,0)),"gramos"),"gramos"))) ->  | AI18: =IF($AD18="","",IF($G$5="SMAE",IFERROR(INDEX('Base SMAE'!$B$13:$B$2638,MATCH($AD18,'Base SMAE'!$A$13:$A$2638,0)),IFERROR(INDEX('Base USDA'!$D$6:$D$5436,MATCH($AD18,'Base USDA'!$B$6:$B$5436,0)),"")),IFERROR(INDEX('Base USDA'!$D$6:$D$5436,MATCH($AD18,'Base USDA'!$B$6:$B$5436,0)),IFERROR(INDEX('Base SMAE'!$B$13:$B$2638,MATCH($AD18,'Base SMAE'!$A$13:$A$2638,0)),"")))) ->  | AJ18: =IF($AD18="","",IF($G$5="SMAE",IFERROR(INDEX('Base SMAE'!$G$13:$G$2638,MATCH($AD18,'Base SMAE'!$A$13:$A$2638,0)),""),100)) ->  | AK18: =IF($AD18="","",IF($G$5="SMAE",IFERROR(INDEX('Base SMAE'!$D$13:$D$2638,MATCH($AD18,'Base SMAE'!$A$13:$A$2638,0)),""),100)) ->  | AL18: =IF(OR($AD18="",$AG18=""),"",IF($G$5="SMAE",IF(IFERROR((INDEX('Base SMAE'!$H$13:$H$2638,MATCH($AD18,'Base SMAE'!$A$13:$A$2638,0)))*AH18,"")="",IFERROR((INDEX('Base USDA'!$E$6:$E$5436,MATCH($AD18,'Base USDA'!$B$6:$B$5436,0)))*AH18,""),IFERROR((INDEX('Base SMAE'!$H$13:$H$2638,MATCH($AD18,'Base SMAE'!$A$13:$A$2638,0)))*AH18,"")),IF(IFERROR((INDEX('Base USDA'!$E$6:$E$5436,MATCH($AD18,'Base USDA'!$B$6:$B$5436,0)))*AH18,"")="",IFERROR((INDEX('Base SMAE'!$H$13:$H$2638,MATCH($AD18,'Base SMAE'!$A$13:$A$2638,0)))*AH18,""),IFERROR((INDEX('Base USDA'!$E$6:$E$5436,MATCH($AD18,'Base USDA'!$B$6:$B$5436,0)))*AH18,"")))) ->  | AM18: =IF(OR($AD18="",$AG18=""),"",IF($G$5="SMAE",IF(IFERROR((INDEX('Base SMAE'!$I$13:$I$2638,MATCH($AD18,'Base SMAE'!$A$13:$A$2638,0)))*AH18,"")="",IFERROR((INDEX('Base USDA'!$F$6:$F$5436,MATCH($AD18,'Base USDA'!$B$6:$B$5436,0)))*AH18,""),IFERROR((INDEX('Base SMAE'!$I$13:$I$2638,MATCH($AD18,'Base SMAE'!$A$13:$A$2638,0)))*AH18,"")),IF(IFERROR((INDEX('Base USDA'!$F$6:$F$5436,MATCH($AD18,'Base USDA'!$B$6:$B$5436,0)))*AH18,"")="",IFERROR((INDEX('Base SMAE'!$I$13:$I$2638,MATCH($AD18,'Base SMAE'!$A$13:$A$2638,0)))*AH18,""),IFERROR((INDEX('Base USDA'!$F$6:$F$5436,MATCH($AD18,'Base USDA'!$B$6:$B$5436,0)))*AH18,"")))) ->  | AN18: =IF(OR($AD18="",$AG18=""),"",IF($G$5="SMAE",IF(IFERROR((INDEX('Base SMAE'!$J$13:$J$2638,MATCH($AD18,'Base SMAE'!$A$13:$A$2638,0)))*AH18,"")="",IFERROR((INDEX('Base USDA'!$J$6:$J$5436,MATCH($AD18,'Base USDA'!$B$6:$B$5436,0)))*AH18,""),IFERROR((INDEX('Base SMAE'!$J$13:$J$2638,MATCH($AD18,'Base SMAE'!$A$13:$A$2638,0)))*AH18,"")),IF(IFERROR((INDEX('Base USDA'!$J$6:$J$5436,MATCH($AD18,'Base USDA'!$B$6:$B$5436,0)))*AH18,"")="",IFERROR((INDEX('Base SMAE'!$J$13:$J$2638,MATCH($AD18,'Base SMAE'!$A$13:$A$2638,0)))*AH18,""),IFERROR((INDEX('Base USDA'!$J$6:$J$5436,MATCH($AD18,'Base USDA'!$B$6:$B$5436,0)))*AH18,"")))) ->  | AO18: =IF(OR($AD18="",$AG18=""),"",IF($G$5="SMAE",IF(IFERROR((INDEX('Base SMAE'!$K$13:$K$2638,MATCH($AD18,'Base SMAE'!$A$13:$A$2638,0)))*AH18,"")="",IFERROR((INDEX('Base USDA'!$G$6:$G$5436,MATCH($AD18,'Base USDA'!$B$6:$B$5436,0)))*AH18,""),IFERROR((INDEX('Base SMAE'!$K$13:$K$2638,MATCH($AD18,'Base SMAE'!$A$13:$A$2638,0)))*AH18,"")),IF(IFERROR((INDEX('Base USDA'!$G$6:$G$5436,MATCH($AD18,'Base USDA'!$B$6:$B$5436,0)))*AH18,"")="",IFERROR((INDEX('Base SMAE'!$K$13:$K$2638,MATCH($AD18,'Base SMAE'!$A$13:$A$2638,0)))*AH18,""),IFERROR((INDEX('Base USDA'!$G$6:$G$5436,MATCH($AD18,'Base USDA'!$B$6:$B$5436,0)))*AH18,"")))) ->  | AP18: =IF(OR($AD18="",$AG18=""),"",IF($G$5="SMAE",IF(IFERROR((INDEX('Base SMAE'!$L$13:$L$2638,MATCH($AD18,'Base SMAE'!$A$13:$A$2638,0)))*AH18,"")="",IFERROR((INDEX('Base USDA'!$I$6:$I$5436,MATCH($AD18,'Base USDA'!$B$6:$B$5436,0)))*AH18,""),IFERROR((INDEX('Base SMAE'!$L$13:$L$2638,MATCH($AD18,'Base SMAE'!$A$13:$A$2638,0)))*AH18,"")),IF(IFERROR((INDEX('Base USDA'!$I$6:$I$5436,MATCH($AD18,'Base USDA'!$B$6:$B$5436,0)))*AH18,"")="",IFERROR((INDEX('Base SMAE'!$L$13:$L$2638,MATCH($AD18,'Base SMAE'!$A$13:$A$2638,0)))*AH18,""),IFERROR((INDEX('Base USDA'!$I$6:$I$5436,MATCH($AD18,'Base USDA'!$B$6:$B$5436,0)))*AH18,"")))) ->  | AT18: =IF($AR18="","",IF($AS18="Gramos","gramos",IF($G$5="SMAE",IFERROR(INDEX('Base SMAE'!$E$13:$E$2638,MATCH($AR18,'Base SMAE'!$A$13:$A$2638,0)),"gramos"),"gramos"))) ->  | AW18: =IF($AR18="","",IF($G$5="SMAE",IFERROR(INDEX('Base SMAE'!$B$13:$B$2638,MATCH($AR18,'Base SMAE'!$A$13:$A$2638,0)),IFERROR(INDEX('Base USDA'!$D$6:$D$5436,MATCH($AR18,'Base USDA'!$B$6:$B$5436,0)),"")),IFERROR(INDEX('Base USDA'!$D$6:$D$5436,MATCH($AR18,'Base USDA'!$B$6:$B$5436,0)),IFERROR(INDEX('Base SMAE'!$B$13:$B$2638,MATCH($AR18,'Base SMAE'!$A$13:$A$2638,0)),"")))) ->  | AX18: =IF($AR18="","",IF($G$5="SMAE",IFERROR(INDEX('Base SMAE'!$G$13:$G$2638,MATCH($AR18,'Base SMAE'!$A$13:$A$2638,0)),""),100)) ->  | AY18: =IF($AR18="","",IF($G$5="SMAE",IFERROR(INDEX('Base SMAE'!$D$13:$D$2638,MATCH($AR18,'Base SMAE'!$A$13:$A$2638,0)),""),100)) ->  | AZ18: =IF(OR($AR18="",$AU18=""),"",IF($G$5="SMAE",IF(IFERROR((INDEX('Base SMAE'!$H$13:$H$2638,MATCH($AR18,'Base SMAE'!$A$13:$A$2638,0)))*AV18,"")="",IFERROR((INDEX('Base USDA'!$E$6:$E$5436,MATCH($AR18,'Base USDA'!$B$6:$B$5436,0)))*AV18,""),IFERROR((INDEX('Base SMAE'!$H$13:$H$2638,MATCH($AR18,'Base SMAE'!$A$13:$A$2638,0)))*AV18,"")),IF(IFERROR((INDEX('Base USDA'!$E$6:$E$5436,MATCH($AR18,'Base USDA'!$B$6:$B$5436,0)))*AV18,"")="",IFERROR((INDEX('Base SMAE'!$H$13:$H$2638,MATCH($AR18,'Base SMAE'!$A$13:$A$2638,0)))*AV18,""),IFERROR((INDEX('Base USDA'!$E$6:$E$5436,MATCH($AR18,'Base USDA'!$B$6:$B$5436,0)))*AV18,"")))) ->  | BA18: =IF(OR($AR18="",$AU18=""),"",IF($G$5="SMAE",IF(IFERROR((INDEX('Base SMAE'!$I$13:$I$2638,MATCH($AR18,'Base SMAE'!$A$13:$A$2638,0)))*AV18,"")="",IFERROR((INDEX('Base USDA'!$F$6:$F$5436,MATCH($AR18,'Base USDA'!$B$6:$B$5436,0)))*AV18,""),IFERROR((INDEX('Base SMAE'!$I$13:$I$2638,MATCH($AR18,'Base SMAE'!$A$13:$A$2638,0)))*AV18,"")),IF(IFERROR((INDEX('Base USDA'!$F$6:$F$5436,MATCH($AR18,'Base USDA'!$B$6:$B$5436,0)))*AV18,"")="",IFERROR((INDEX('Base SMAE'!$I$13:$I$2638,MATCH($AR18,'Base SMAE'!$A$13:$A$2638,0)))*AV18,""),IFERROR((INDEX('Base USDA'!$F$6:$F$5436,MATCH($AR18,'Base USDA'!$B$6:$B$5436,0)))*AV18,"")))) ->  | BB18: =IF(OR($AR18="",$AU18=""),"",IF($G$5="SMAE",IF(IFERROR((INDEX('Base SMAE'!$J$13:$J$2638,MATCH($AR18,'Base SMAE'!$A$13:$A$2638,0)))*AV18,"")="",IFERROR((INDEX('Base USDA'!$J$6:$J$5436,MATCH($AR18,'Base USDA'!$B$6:$B$5436,0)))*AV18,""),IFERROR((INDEX('Base SMAE'!$J$13:$J$2638,MATCH($AR18,'Base SMAE'!$A$13:$A$2638,0)))*AV18,"")),IF(IFERROR((INDEX('Base USDA'!$J$6:$J$5436,MATCH($AR18,'Base USDA'!$B$6:$B$5436,0)))*AV18,"")="",IFERROR((INDEX('Base SMAE'!$J$13:$J$2638,MATCH($AR18,'Base SMAE'!$A$13:$A$2638,0)))*AV18,""),IFERROR((INDEX('Base USDA'!$J$6:$J$5436,MATCH($AR18,'Base USDA'!$B$6:$B$5436,0)))*AV18,"")))) ->  | BC18: =IF(OR($AR18="",$AU18=""),"",IF($G$5="SMAE",IF(IFERROR((INDEX('Base SMAE'!$K$13:$K$2638,MATCH($AR18,'Base SMAE'!$A$13:$A$2638,0)))*AV18,"")="",IFERROR((INDEX('Base USDA'!$G$6:$G$5436,MATCH($AR18,'Base USDA'!$B$6:$B$5436,0)))*AV18,""),IFERROR((INDEX('Base SMAE'!$K$13:$K$2638,MATCH($AR18,'Base SMAE'!$A$13:$A$2638,0)))*AV18,"")),IF(IFERROR((INDEX('Base USDA'!$G$6:$G$5436,MATCH($AR18,'Base USDA'!$B$6:$B$5436,0)))*AV18,"")="",IFERROR((INDEX('Base SMAE'!$K$13:$K$2638,MATCH($AR18,'Base SMAE'!$A$13:$A$2638,0)))*AV18,""),IFERROR((INDEX('Base USDA'!$G$6:$G$5436,MATCH($AR18,'Base USDA'!$B$6:$B$5436,0)))*AV18,"")))) ->  | BD18: =IF(OR($AR18="",$AU18=""),"",IF($G$5="SMAE",IF(IFERROR((INDEX('Base SMAE'!$L$13:$L$2638,MATCH($AR18,'Base SMAE'!$A$13:$A$2638,0)))*AV18,"")="",IFERROR((INDEX('Base USDA'!$I$6:$I$5436,MATCH($AR18,'Base USDA'!$B$6:$B$5436,0)))*AV18,""),IFERROR((INDEX('Base SMAE'!$L$13:$L$2638,MATCH($AR18,'Base SMAE'!$A$13:$A$2638,0)))*AV18,"")),IF(IFERROR((INDEX('Base USDA'!$I$6:$I$5436,MATCH($AR18,'Base USDA'!$B$6:$B$5436,0)))*AV18,"")="",IFERROR((INDEX('Base SMAE'!$L$13:$L$2638,MATCH($AR18,'Base SMAE'!$A$13:$A$2638,0)))*AV18,""),IFERROR((INDEX('Base USDA'!$I$6:$I$5436,MATCH($AR18,'Base USDA'!$B$6:$B$5436,0)))*AV18,"")))) ->  | BH18: GRASAS S/P | BI18: =SUMIF(G15:G24,"GRASAS S/P",F15:F24)+SUMIF(G37:G46,"GRASAS S/P",F37:F46)+SUMIF(G59:G68,"GRASAS S/P",F59:F68)+SUMIF(G81:G90,"GRASAS S/P",F81:F90)+SUMIF(G103:G112,"GRASAS S/P",F103:F112) -> 0 | BJ18: =SUMIF(U15:U24,"GRASAS S/P",T15:T24)+SUMIF(U37:U46,"GRASAS S/P",T37:T46)+SUMIF(U59:U68,"GRASAS S/P",T59:T68)+SUMIF(U81:U90,"GRASAS S/P",T81:T90)+SUMIF(U103:U112,"GRASAS S/P",T103:T112) -> 0 | BK18: =SUMIF(AI15:AI24,"GRASAS S/P",AH15:AH24)+SUMIF(AI37:AI46,"GRASAS S/P",AH37:AH46)+SUMIF(AI59:AI68,"GRASAS S/P",AH59:AH68)+SUMIF(AI81:AI90,"GRASAS S/P",AH81:AH90)+SUMIF(AI103:AI112,"GRASAS S/P",AH103:AH112) -> 0 | BL18: =SUMIF(AW15:AW24,"GRASAS S/P",AV15:AV24)+SUMIF(AW37:AW46,"GRASAS S/P",AV37:AV46)+SUMIF(AW59:AW68,"GRASAS S/P",AV59:AV68)+SUMIF(AW81:AW90,"GRASAS S/P",AV81:AV90)+SUMIF(AW103:AW112,"GRASAS S/P",AV103:AV112) -> 0 | CB18: =IF($B18="",0,IF(ISNUMBER(MATCH($B18,'Base SMAE'!$A$13:$A$2638,0)),IFERROR($F18,0),0)) -> 0 | CC18: =IF($B18="",0,IF(ISNUMBER(MATCH($B18,'Base SMAE'!$A$13:$A$2638,0)),0,IFERROR(IF($C18="Gramos",$E18,IFERROR(($E18/$I18)*$H18,0))/100,0))) -> 0 | CD18: =IF($P18="",0,IF(ISNUMBER(MATCH($P18,'Base SMAE'!$A$13:$A$2638,0)),IFERROR($T18,0),0)) -> 0 | CE18: =IF($P18="",0,IF(ISNUMBER(MATCH($P18,'Base SMAE'!$A$13:$A$2638,0)),0,IFERROR(IF($Q18="Gramos",$S18,IFERROR(($S18/$W18)*$V18,0))/100,0))) -> 0 | CF18: =IF($AD18="",0,IF(ISNUMBER(MATCH($AD18,'Base SMAE'!$A$13:$A$2638,0)),IFERROR($AH18,0),0)) -> 0 | CG18: =IF($AD18="",0,IF(ISNUMBER(MATCH($AD18,'Base SMAE'!$A$13:$A$2638,0)),0,IFERROR(IF($AE18="Gramos",$AG18,IFERROR(($AG18/$AK18)*$AJ18,0))/100,0))) -> 0 | CH18: =IF($AR18="",0,IF(ISNUMBER(MATCH($AR18,'Base SMAE'!$A$13:$A$2638,0)),IFERROR($AV18,0),0)) -> 0 | CI18: =IF($AR18="",0,IF(ISNUMBER(MATCH($AR18,'Base SMAE'!$A$13:$A$2638,0)),0,IFERROR(IF($AS18="Gramos",$AU18,IFERROR(($AU18/$AY18)*$AX18,0))/100,0))) -> 0
D19: =IF($B19="","",IF($C19="Gramos","gramos",IF($G$5="SMAE",IFERROR(INDEX('Base SMAE'!$E$13:$E$2638,MATCH($B19,'Base SMAE'!$A$13:$A$2638,0)),"gramos"),"gramos"))) ->  | G19: =IF($B19="","",IF($G$5="SMAE",IFERROR(INDEX('Base SMAE'!$B$13:$B$2638,MATCH($B19,'Base SMAE'!$A$13:$A$2638,0)),IFERROR(INDEX('Base USDA'!$D$6:$D$5436,MATCH($B19,'Base USDA'!$B$6:$B$5436,0)),"")),IFERROR(INDEX('Base USDA'!$D$6:$D$5436,MATCH($B19,'Base USDA'!$B$6:$B$5436,0)),IFERROR(INDEX('Base SMAE'!$B$13:$B$2638,MATCH($B19,'Base SMAE'!$A$13:$A$2638,0)),"")))) ->  | H19: =IF($B19="","",IF($G$5="SMAE",IFERROR(INDEX('Base SMAE'!$G$13:$G$2638,MATCH($B19,'Base SMAE'!$A$13:$A$2638,0)),""),100)) ->  | I19: =IF($B19="","",IF($G$5="SMAE",IFERROR(INDEX('Base SMAE'!$D$13:$D$2638,MATCH($B19,'Base SMAE'!$A$13:$A$2638,0)),""),100)) ->  | J19: =IF(OR($B19="",$E19=""),"",IF($G$5="SMAE",IF(IFERROR((INDEX('Base SMAE'!$H$13:$H$2638,MATCH($B19,'Base SMAE'!$A$13:$A$2638,0)))*F19,"")="",IFERROR((INDEX('Base USDA'!$E$6:$E$5436,MATCH($B19,'Base USDA'!$B$6:$B$5436,0)))*F19,""),IFERROR((INDEX('Base SMAE'!$H$13:$H$2638,MATCH($B19,'Base SMAE'!$A$13:$A$2638,0)))*F19,"")),IF(IFERROR((INDEX('Base USDA'!$E$6:$E$5436,MATCH($B19,'Base USDA'!$B$6:$B$5436,0)))*F19,"")="",IFERROR((INDEX('Base SMAE'!$H$13:$H$2638,MATCH($B19,'Base SMAE'!$A$13:$A$2638,0)))*F19,""),IFERROR((INDEX('Base USDA'!$E$6:$E$5436,MATCH($B19,'Base USDA'!$B$6:$B$5436,0)))*F19,"")))) ->  | K19: =IF(OR($B19="",$E19=""),"",IF($G$5="SMAE",IF(IFERROR((INDEX('Base SMAE'!$I$13:$I$2638,MATCH($B19,'Base SMAE'!$A$13:$A$2638,0)))*F19,"")="",IFERROR((INDEX('Base USDA'!$F$6:$F$5436,MATCH($B19,'Base USDA'!$B$6:$B$5436,0)))*F19,""),IFERROR((INDEX('Base SMAE'!$I$13:$I$2638,MATCH($B19,'Base SMAE'!$A$13:$A$2638,0)))*F19,"")),IF(IFERROR((INDEX('Base USDA'!$F$6:$F$5436,MATCH($B19,'Base USDA'!$B$6:$B$5436,0)))*F19,"")="",IFERROR((INDEX('Base SMAE'!$I$13:$I$2638,MATCH($B19,'Base SMAE'!$A$13:$A$2638,0)))*F19,""),IFERROR((INDEX('Base USDA'!$F$6:$F$5436,MATCH($B19,'Base USDA'!$B$6:$B$5436,0)))*F19,"")))) ->  | L19: =IF(OR($B19="",$E19=""),"",IF($G$5="SMAE",IF(IFERROR((INDEX('Base SMAE'!$J$13:$J$2638,MATCH($B19,'Base SMAE'!$A$13:$A$2638,0)))*F19,"")="",IFERROR((INDEX('Base USDA'!$J$6:$J$5436,MATCH($B19,'Base USDA'!$B$6:$B$5436,0)))*F19,""),IFERROR((INDEX('Base SMAE'!$J$13:$J$2638,MATCH($B19,'Base SMAE'!$A$13:$A$2638,0)))*F19,"")),IF(IFERROR((INDEX('Base USDA'!$J$6:$J$5436,MATCH($B19,'Base USDA'!$B$6:$B$5436,0)))*F19,"")="",IFERROR((INDEX('Base SMAE'!$J$13:$J$2638,MATCH($B19,'Base SMAE'!$A$13:$A$2638,0)))*F19,""),IFERROR((INDEX('Base USDA'!$J$6:$J$5436,MATCH($B19,'Base USDA'!$B$6:$B$5436,0)))*F19,"")))) ->  | M19: =IF(OR($B19="",$E19=""),"",IF($G$5="SMAE",IF(IFERROR((INDEX('Base SMAE'!$K$13:$K$2638,MATCH($B19,'Base SMAE'!$A$13:$A$2638,0)))*F19,"")="",IFERROR((INDEX('Base USDA'!$G$6:$G$5436,MATCH($B19,'Base USDA'!$B$6:$B$5436,0)))*F19,""),IFERROR((INDEX('Base SMAE'!$K$13:$K$2638,MATCH($B19,'Base SMAE'!$A$13:$A$2638,0)))*F19,"")),IF(IFERROR((INDEX('Base USDA'!$G$6:$G$5436,MATCH($B19,'Base USDA'!$B$6:$B$5436,0)))*F19,"")="",IFERROR((INDEX('Base SMAE'!$K$13:$K$2638,MATCH($B19,'Base SMAE'!$A$13:$A$2638,0)))*F19,""),IFERROR((INDEX('Base USDA'!$G$6:$G$5436,MATCH($B19,'Base USDA'!$B$6:$B$5436,0)))*F19,"")))) ->  | N19: =IF(OR($B19="",$E19=""),"",IF($G$5="SMAE",IF(IFERROR((INDEX('Base SMAE'!$L$13:$L$2638,MATCH($B19,'Base SMAE'!$A$13:$A$2638,0)))*F19,"")="",IFERROR((INDEX('Base USDA'!$I$6:$I$5436,MATCH($B19,'Base USDA'!$B$6:$B$5436,0)))*F19,""),IFERROR((INDEX('Base SMAE'!$L$13:$L$2638,MATCH($B19,'Base SMAE'!$A$13:$A$2638,0)))*F19,"")),IF(IFERROR((INDEX('Base USDA'!$I$6:$I$5436,MATCH($B19,'Base USDA'!$B$6:$B$5436,0)))*F19,"")="",IFERROR((INDEX('Base SMAE'!$L$13:$L$2638,MATCH($B19,'Base SMAE'!$A$13:$A$2638,0)))*F19,""),IFERROR((INDEX('Base USDA'!$I$6:$I$5436,MATCH($B19,'Base USDA'!$B$6:$B$5436,0)))*F19,"")))) ->  | R19: =IF($P19="","",IF($Q19="Gramos","gramos",IF($G$5="SMAE",IFERROR(INDEX('Base SMAE'!$E$13:$E$2638,MATCH($P19,'Base SMAE'!$A$13:$A$2638,0)),"gramos"),"gramos"))) ->  | U19: =IF($P19="","",IF($G$5="SMAE",IFERROR(INDEX('Base SMAE'!$B$13:$B$2638,MATCH($P19,'Base SMAE'!$A$13:$A$2638,0)),IFERROR(INDEX('Base USDA'!$D$6:$D$5436,MATCH($P19,'Base USDA'!$B$6:$B$5436,0)),"")),IFERROR(INDEX('Base USDA'!$D$6:$D$5436,MATCH($P19,'Base USDA'!$B$6:$B$5436,0)),IFERROR(INDEX('Base SMAE'!$B$13:$B$2638,MATCH($P19,'Base SMAE'!$A$13:$A$2638,0)),"")))) ->  | V19: =IF($P19="","",IF($G$5="SMAE",IFERROR(INDEX('Base SMAE'!$G$13:$G$2638,MATCH($P19,'Base SMAE'!$A$13:$A$2638,0)),""),100)) ->  | W19: =IF($P19="","",IF($G$5="SMAE",IFERROR(INDEX('Base SMAE'!$D$13:$D$2638,MATCH($P19,'Base SMAE'!$A$13:$A$2638,0)),""),100)) ->  | X19: =IF(OR($P19="",$S19=""),"",IF($G$5="SMAE",IF(IFERROR((INDEX('Base SMAE'!$H$13:$H$2638,MATCH($P19,'Base SMAE'!$A$13:$A$2638,0)))*T19,"")="",IFERROR((INDEX('Base USDA'!$E$6:$E$5436,MATCH($P19,'Base USDA'!$B$6:$B$5436,0)))*T19,""),IFERROR((INDEX('Base SMAE'!$H$13:$H$2638,MATCH($P19,'Base SMAE'!$A$13:$A$2638,0)))*T19,"")),IF(IFERROR((INDEX('Base USDA'!$E$6:$E$5436,MATCH($P19,'Base USDA'!$B$6:$B$5436,0)))*T19,"")="",IFERROR((INDEX('Base SMAE'!$H$13:$H$2638,MATCH($P19,'Base SMAE'!$A$13:$A$2638,0)))*T19,""),IFERROR((INDEX('Base USDA'!$E$6:$E$5436,MATCH($P19,'Base USDA'!$B$6:$B$5436,0)))*T19,"")))) ->  | Y19: =IF(OR($P19="",$S19=""),"",IF($G$5="SMAE",IF(IFERROR((INDEX('Base SMAE'!$I$13:$I$2638,MATCH($P19,'Base SMAE'!$A$13:$A$2638,0)))*T19,"")="",IFERROR((INDEX('Base USDA'!$F$6:$F$5436,MATCH($P19,'Base USDA'!$B$6:$B$5436,0)))*T19,""),IFERROR((INDEX('Base SMAE'!$I$13:$I$2638,MATCH($P19,'Base SMAE'!$A$13:$A$2638,0)))*T19,"")),IF(IFERROR((INDEX('Base USDA'!$F$6:$F$5436,MATCH($P19,'Base USDA'!$B$6:$B$5436,0)))*T19,"")="",IFERROR((INDEX('Base SMAE'!$I$13:$I$2638,MATCH($P19,'Base SMAE'!$A$13:$A$2638,0)))*T19,""),IFERROR((INDEX('Base USDA'!$F$6:$F$5436,MATCH($P19,'Base USDA'!$B$6:$B$5436,0)))*T19,"")))) ->  | Z19: =IF(OR($P19="",$S19=""),"",IF($G$5="SMAE",IF(IFERROR((INDEX('Base SMAE'!$J$13:$J$2638,MATCH($P19,'Base SMAE'!$A$13:$A$2638,0)))*T19,"")="",IFERROR((INDEX('Base USDA'!$J$6:$J$5436,MATCH($P19,'Base USDA'!$B$6:$B$5436,0)))*T19,""),IFERROR((INDEX('Base SMAE'!$J$13:$J$2638,MATCH($P19,'Base SMAE'!$A$13:$A$2638,0)))*T19,"")),IF(IFERROR((INDEX('Base USDA'!$J$6:$J$5436,MATCH($P19,'Base USDA'!$B$6:$B$5436,0)))*T19,"")="",IFERROR((INDEX('Base SMAE'!$J$13:$J$2638,MATCH($P19,'Base SMAE'!$A$13:$A$2638,0)))*T19,""),IFERROR((INDEX('Base USDA'!$J$6:$J$5436,MATCH($P19,'Base USDA'!$B$6:$B$5436,0)))*T19,"")))) ->  | AA19: =IF(OR($P19="",$S19=""),"",IF($G$5="SMAE",IF(IFERROR((INDEX('Base SMAE'!$K$13:$K$2638,MATCH($P19,'Base SMAE'!$A$13:$A$2638,0)))*T19,"")="",IFERROR((INDEX('Base USDA'!$G$6:$G$5436,MATCH($P19,'Base USDA'!$B$6:$B$5436,0)))*T19,""),IFERROR((INDEX('Base SMAE'!$K$13:$K$2638,MATCH($P19,'Base SMAE'!$A$13:$A$2638,0)))*T19,"")),IF(IFERROR((INDEX('Base USDA'!$G$6:$G$5436,MATCH($P19,'Base USDA'!$B$6:$B$5436,0)))*T19,"")="",IFERROR((INDEX('Base SMAE'!$K$13:$K$2638,MATCH($P19,'Base SMAE'!$A$13:$A$2638,0)))*T19,""),IFERROR((INDEX('Base USDA'!$G$6:$G$5436,MATCH($P19,'Base USDA'!$B$6:$B$5436,0)))*T19,"")))) ->  | AB19: =IF(OR($P19="",$S19=""),"",IF($G$5="SMAE",IF(IFERROR((INDEX('Base SMAE'!$L$13:$L$2638,MATCH($P19,'Base SMAE'!$A$13:$A$2638,0)))*T19,"")="",IFERROR((INDEX('Base USDA'!$I$6:$I$5436,MATCH($P19,'Base USDA'!$B$6:$B$5436,0)))*T19,""),IFERROR((INDEX('Base SMAE'!$L$13:$L$2638,MATCH($P19,'Base SMAE'!$A$13:$A$2638,0)))*T19,"")),IF(IFERROR((INDEX('Base USDA'!$I$6:$I$5436,MATCH($P19,'Base USDA'!$B$6:$B$5436,0)))*T19,"")="",IFERROR((INDEX('Base SMAE'!$L$13:$L$2638,MATCH($P19,'Base SMAE'!$A$13:$A$2638,0)))*T19,""),IFERROR((INDEX('Base USDA'!$I$6:$I$5436,MATCH($P19,'Base USDA'!$B$6:$B$5436,0)))*T19,"")))) ->  | AF19: =IF($AD19="","",IF($AE19="Gramos","gramos",IF($G$5="SMAE",IFERROR(INDEX('Base SMAE'!$E$13:$E$2638,MATCH($AD19,'Base SMAE'!$A$13:$A$2638,0)),"gramos"),"gramos"))) ->  | AI19: =IF($AD19="","",IF($G$5="SMAE",IFERROR(INDEX('Base SMAE'!$B$13:$B$2638,MATCH($AD19,'Base SMAE'!$A$13:$A$2638,0)),IFERROR(INDEX('Base USDA'!$D$6:$D$5436,MATCH($AD19,'Base USDA'!$B$6:$B$5436,0)),"")),IFERROR(INDEX('Base USDA'!$D$6:$D$5436,MATCH($AD19,'Base USDA'!$B$6:$B$5436,0)),IFERROR(INDEX('Base SMAE'!$B$13:$B$2638,MATCH($AD19,'Base SMAE'!$A$13:$A$2638,0)),"")))) ->  | AJ19: =IF($AD19="","",IF($G$5="SMAE",IFERROR(INDEX('Base SMAE'!$G$13:$G$2638,MATCH($AD19,'Base SMAE'!$A$13:$A$2638,0)),""),100)) ->  | AK19: =IF($AD19="","",IF($G$5="SMAE",IFERROR(INDEX('Base SMAE'!$D$13:$D$2638,MATCH($AD19,'Base SMAE'!$A$13:$A$2638,0)),""),100)) ->  | AL19: =IF(OR($AD19="",$AG19=""),"",IF($G$5="SMAE",IF(IFERROR((INDEX('Base SMAE'!$H$13:$H$2638,MATCH($AD19,'Base SMAE'!$A$13:$A$2638,0)))*AH19,"")="",IFERROR((INDEX('Base USDA'!$E$6:$E$5436,MATCH($AD19,'Base USDA'!$B$6:$B$5436,0)))*AH19,""),IFERROR((INDEX('Base SMAE'!$H$13:$H$2638,MATCH($AD19,'Base SMAE'!$A$13:$A$2638,0)))*AH19,"")),IF(IFERROR((INDEX('Base USDA'!$E$6:$E$5436,MATCH($AD19,'Base USDA'!$B$6:$B$5436,0)))*AH19,"")="",IFERROR((INDEX('Base SMAE'!$H$13:$H$2638,MATCH($AD19,'Base SMAE'!$A$13:$A$2638,0)))*AH19,""),IFERROR((INDEX('Base USDA'!$E$6:$E$5436,MATCH($AD19,'Base USDA'!$B$6:$B$5436,0)))*AH19,"")))) ->  | AM19: =IF(OR($AD19="",$AG19=""),"",IF($G$5="SMAE",IF(IFERROR((INDEX('Base SMAE'!$I$13:$I$2638,MATCH($AD19,'Base SMAE'!$A$13:$A$2638,0)))*AH19,"")="",IFERROR((INDEX('Base USDA'!$F$6:$F$5436,MATCH($AD19,'Base USDA'!$B$6:$B$5436,0)))*AH19,""),IFERROR((INDEX('Base SMAE'!$I$13:$I$2638,MATCH($AD19,'Base SMAE'!$A$13:$A$2638,0)))*AH19,"")),IF(IFERROR((INDEX('Base USDA'!$F$6:$F$5436,MATCH($AD19,'Base USDA'!$B$6:$B$5436,0)))*AH19,"")="",IFERROR((INDEX('Base SMAE'!$I$13:$I$2638,MATCH($AD19,'Base SMAE'!$A$13:$A$2638,0)))*AH19,""),IFERROR((INDEX('Base USDA'!$F$6:$F$5436,MATCH($AD19,'Base USDA'!$B$6:$B$5436,0)))*AH19,"")))) ->  | AN19: =IF(OR($AD19="",$AG19=""),"",IF($G$5="SMAE",IF(IFERROR((INDEX('Base SMAE'!$J$13:$J$2638,MATCH($AD19,'Base SMAE'!$A$13:$A$2638,0)))*AH19,"")="",IFERROR((INDEX('Base USDA'!$J$6:$J$5436,MATCH($AD19,'Base USDA'!$B$6:$B$5436,0)))*AH19,""),IFERROR((INDEX('Base SMAE'!$J$13:$J$2638,MATCH($AD19,'Base SMAE'!$A$13:$A$2638,0)))*AH19,"")),IF(IFERROR((INDEX('Base USDA'!$J$6:$J$5436,MATCH($AD19,'Base USDA'!$B$6:$B$5436,0)))*AH19,"")="",IFERROR((INDEX('Base SMAE'!$J$13:$J$2638,MATCH($AD19,'Base SMAE'!$A$13:$A$2638,0)))*AH19,""),IFERROR((INDEX('Base USDA'!$J$6:$J$5436,MATCH($AD19,'Base USDA'!$B$6:$B$5436,0)))*AH19,"")))) ->  | AO19: =IF(OR($AD19="",$AG19=""),"",IF($G$5="SMAE",IF(IFERROR((INDEX('Base SMAE'!$K$13:$K$2638,MATCH($AD19,'Base SMAE'!$A$13:$A$2638,0)))*AH19,"")="",IFERROR((INDEX('Base USDA'!$G$6:$G$5436,MATCH($AD19,'Base USDA'!$B$6:$B$5436,0)))*AH19,""),IFERROR((INDEX('Base SMAE'!$K$13:$K$2638,MATCH($AD19,'Base SMAE'!$A$13:$A$2638,0)))*AH19,"")),IF(IFERROR((INDEX('Base USDA'!$G$6:$G$5436,MATCH($AD19,'Base USDA'!$B$6:$B$5436,0)))*AH19,"")="",IFERROR((INDEX('Base SMAE'!$K$13:$K$2638,MATCH($AD19,'Base SMAE'!$A$13:$A$2638,0)))*AH19,""),IFERROR((INDEX('Base USDA'!$G$6:$G$5436,MATCH($AD19,'Base USDA'!$B$6:$B$5436,0)))*AH19,"")))) ->  | AP19: =IF(OR($AD19="",$AG19=""),"",IF($G$5="SMAE",IF(IFERROR((INDEX('Base SMAE'!$L$13:$L$2638,MATCH($AD19,'Base SMAE'!$A$13:$A$2638,0)))*AH19,"")="",IFERROR((INDEX('Base USDA'!$I$6:$I$5436,MATCH($AD19,'Base USDA'!$B$6:$B$5436,0)))*AH19,""),IFERROR((INDEX('Base SMAE'!$L$13:$L$2638,MATCH($AD19,'Base SMAE'!$A$13:$A$2638,0)))*AH19,"")),IF(IFERROR((INDEX('Base USDA'!$I$6:$I$5436,MATCH($AD19,'Base USDA'!$B$6:$B$5436,0)))*AH19,"")="",IFERROR((INDEX('Base SMAE'!$L$13:$L$2638,MATCH($AD19,'Base SMAE'!$A$13:$A$2638,0)))*AH19,""),IFERROR((INDEX('Base USDA'!$I$6:$I$5436,MATCH($AD19,'Base USDA'!$B$6:$B$5436,0)))*AH19,"")))) ->  | AT19: =IF($AR19="","",IF($AS19="Gramos","gramos",IF($G$5="SMAE",IFERROR(INDEX('Base SMAE'!$E$13:$E$2638,MATCH($AR19,'Base SMAE'!$A$13:$A$2638,0)),"gramos"),"gramos"))) ->  | AW19: =IF($AR19="","",IF($G$5="SMAE",IFERROR(INDEX('Base SMAE'!$B$13:$B$2638,MATCH($AR19,'Base SMAE'!$A$13:$A$2638,0)),IFERROR(INDEX('Base USDA'!$D$6:$D$5436,MATCH($AR19,'Base USDA'!$B$6:$B$5436,0)),"")),IFERROR(INDEX('Base USDA'!$D$6:$D$5436,MATCH($AR19,'Base USDA'!$B$6:$B$5436,0)),IFERROR(INDEX('Base SMAE'!$B$13:$B$2638,MATCH($AR19,'Base SMAE'!$A$13:$A$2638,0)),"")))) ->  | AX19: =IF($AR19="","",IF($G$5="SMAE",IFERROR(INDEX('Base SMAE'!$G$13:$G$2638,MATCH($AR19,'Base SMAE'!$A$13:$A$2638,0)),""),100)) ->  | AY19: =IF($AR19="","",IF($G$5="SMAE",IFERROR(INDEX('Base SMAE'!$D$13:$D$2638,MATCH($AR19,'Base SMAE'!$A$13:$A$2638,0)),""),100)) ->  | AZ19: =IF(OR($AR19="",$AU19=""),"",IF($G$5="SMAE",IF(IFERROR((INDEX('Base SMAE'!$H$13:$H$2638,MATCH($AR19,'Base SMAE'!$A$13:$A$2638,0)))*AV19,"")="",IFERROR((INDEX('Base USDA'!$E$6:$E$5436,MATCH($AR19,'Base USDA'!$B$6:$B$5436,0)))*AV19,""),IFERROR((INDEX('Base SMAE'!$H$13:$H$2638,MATCH($AR19,'Base SMAE'!$A$13:$A$2638,0)))*AV19,"")),IF(IFERROR((INDEX('Base USDA'!$E$6:$E$5436,MATCH($AR19,'Base USDA'!$B$6:$B$5436,0)))*AV19,"")="",IFERROR((INDEX('Base SMAE'!$H$13:$H$2638,MATCH($AR19,'Base SMAE'!$A$13:$A$2638,0)))*AV19,""),IFERROR((INDEX('Base USDA'!$E$6:$E$5436,MATCH($AR19,'Base USDA'!$B$6:$B$5436,0)))*AV19,"")))) ->  | BA19: =IF(OR($AR19="",$AU19=""),"",IF($G$5="SMAE",IF(IFERROR((INDEX('Base SMAE'!$I$13:$I$2638,MATCH($AR19,'Base SMAE'!$A$13:$A$2638,0)))*AV19,"")="",IFERROR((INDEX('Base USDA'!$F$6:$F$5436,MATCH($AR19,'Base USDA'!$B$6:$B$5436,0)))*AV19,""),IFERROR((INDEX('Base SMAE'!$I$13:$I$2638,MATCH($AR19,'Base SMAE'!$A$13:$A$2638,0)))*AV19,"")),IF(IFERROR((INDEX('Base USDA'!$F$6:$F$5436,MATCH($AR19,'Base USDA'!$B$6:$B$5436,0)))*AV19,"")="",IFERROR((INDEX('Base SMAE'!$I$13:$I$2638,MATCH($AR19,'Base SMAE'!$A$13:$A$2638,0)))*AV19,""),IFERROR((INDEX('Base USDA'!$F$6:$F$5436,MATCH($AR19,'Base USDA'!$B$6:$B$5436,0)))*AV19,"")))) ->  | BB19: =IF(OR($AR19="",$AU19=""),"",IF($G$5="SMAE",IF(IFERROR((INDEX('Base SMAE'!$J$13:$J$2638,MATCH($AR19,'Base SMAE'!$A$13:$A$2638,0)))*AV19,"")="",IFERROR((INDEX('Base USDA'!$J$6:$J$5436,MATCH($AR19,'Base USDA'!$B$6:$B$5436,0)))*AV19,""),IFERROR((INDEX('Base SMAE'!$J$13:$J$2638,MATCH($AR19,'Base SMAE'!$A$13:$A$2638,0)))*AV19,"")),IF(IFERROR((INDEX('Base USDA'!$J$6:$J$5436,MATCH($AR19,'Base USDA'!$B$6:$B$5436,0)))*AV19,"")="",IFERROR((INDEX('Base SMAE'!$J$13:$J$2638,MATCH($AR19,'Base SMAE'!$A$13:$A$2638,0)))*AV19,""),IFERROR((INDEX('Base USDA'!$J$6:$J$5436,MATCH($AR19,'Base USDA'!$B$6:$B$5436,0)))*AV19,"")))) ->  | BC19: =IF(OR($AR19="",$AU19=""),"",IF($G$5="SMAE",IF(IFERROR((INDEX('Base SMAE'!$K$13:$K$2638,MATCH($AR19,'Base SMAE'!$A$13:$A$2638,0)))*AV19,"")="",IFERROR((INDEX('Base USDA'!$G$6:$G$5436,MATCH($AR19,'Base USDA'!$B$6:$B$5436,0)))*AV19,""),IFERROR((INDEX('Base SMAE'!$K$13:$K$2638,MATCH($AR19,'Base SMAE'!$A$13:$A$2638,0)))*AV19,"")),IF(IFERROR((INDEX('Base USDA'!$G$6:$G$5436,MATCH($AR19,'Base USDA'!$B$6:$B$5436,0)))*AV19,"")="",IFERROR((INDEX('Base SMAE'!$K$13:$K$2638,MATCH($AR19,'Base SMAE'!$A$13:$A$2638,0)))*AV19,""),IFERROR((INDEX('Base USDA'!$G$6:$G$5436,MATCH($AR19,'Base USDA'!$B$6:$B$5436,0)))*AV19,"")))) ->  | BD19: =IF(OR($AR19="",$AU19=""),"",IF($G$5="SMAE",IF(IFERROR((INDEX('Base SMAE'!$L$13:$L$2638,MATCH($AR19,'Base SMAE'!$A$13:$A$2638,0)))*AV19,"")="",IFERROR((INDEX('Base USDA'!$I$6:$I$5436,MATCH($AR19,'Base USDA'!$B$6:$B$5436,0)))*AV19,""),IFERROR((INDEX('Base SMAE'!$L$13:$L$2638,MATCH($AR19,'Base SMAE'!$A$13:$A$2638,0)))*AV19,"")),IF(IFERROR((INDEX('Base USDA'!$I$6:$I$5436,MATCH($AR19,'Base USDA'!$B$6:$B$5436,0)))*AV19,"")="",IFERROR((INDEX('Base SMAE'!$L$13:$L$2638,MATCH($AR19,'Base SMAE'!$A$13:$A$2638,0)))*AV19,""),IFERROR((INDEX('Base USDA'!$I$6:$I$5436,MATCH($AR19,'Base USDA'!$B$6:$B$5436,0)))*AV19,"")))) ->  | BH19: LECHE C/A | BI19: =SUMIF(G15:G24,"LECHE C/A",F15:F24)+SUMIF(G37:G46,"LECHE C/A",F37:F46)+SUMIF(G59:G68,"LECHE C/A",F59:F68)+SUMIF(G81:G90,"LECHE C/A",F81:F90)+SUMIF(G103:G112,"LECHE C/A",F103:F112) -> 0 | BJ19: =SUMIF(U15:U24,"LECHE C/A",T15:T24)+SUMIF(U37:U46,"LECHE C/A",T37:T46)+SUMIF(U59:U68,"LECHE C/A",T59:T68)+SUMIF(U81:U90,"LECHE C/A",T81:T90)+SUMIF(U103:U112,"LECHE C/A",T103:T112) -> 0 | BK19: =SUMIF(AI15:AI24,"LECHE C/A",AH15:AH24)+SUMIF(AI37:AI46,"LECHE C/A",AH37:AH46)+SUMIF(AI59:AI68,"LECHE C/A",AH59:AH68)+SUMIF(AI81:AI90,"LECHE C/A",AH81:AH90)+SUMIF(AI103:AI112,"LECHE C/A",AH103:AH112) -> 0 | BL19: =SUMIF(AW15:AW24,"LECHE C/A",AV15:AV24)+SUMIF(AW37:AW46,"LECHE C/A",AV37:AV46)+SUMIF(AW59:AW68,"LECHE C/A",AV59:AV68)+SUMIF(AW81:AW90,"LECHE C/A",AV81:AV90)+SUMIF(AW103:AW112,"LECHE C/A",AV103:AV112) -> 0 | CB19: =IF($B19="",0,IF(ISNUMBER(MATCH($B19,'Base SMAE'!$A$13:$A$2638,0)),IFERROR($F19,0),0)) -> 0 | CC19: =IF($B19="",0,IF(ISNUMBER(MATCH($B19,'Base SMAE'!$A$13:$A$2638,0)),0,IFERROR(IF($C19="Gramos",$E19,IFERROR(($E19/$I19)*$H19,0))/100,0))) -> 0 | CD19: =IF($P19="",0,IF(ISNUMBER(MATCH($P19,'Base SMAE'!$A$13:$A$2638,0)),IFERROR($T19,0),0)) -> 0 | CE19: =IF($P19="",0,IF(ISNUMBER(MATCH($P19,'Base SMAE'!$A$13:$A$2638,0)),0,IFERROR(IF($Q19="Gramos",$S19,IFERROR(($S19/$W19)*$V19,0))/100,0))) -> 0 | CF19: =IF($AD19="",0,IF(ISNUMBER(MATCH($AD19,'Base SMAE'!$A$13:$A$2638,0)),IFERROR($AH19,0),0)) -> 0 | CG19: =IF($AD19="",0,IF(ISNUMBER(MATCH($AD19,'Base SMAE'!$A$13:$A$2638,0)),0,IFERROR(IF($AE19="Gramos",$AG19,IFERROR(($AG19/$AK19)*$AJ19,0))/100,0))) -> 0 | CH19: =IF($AR19="",0,IF(ISNUMBER(MATCH($AR19,'Base SMAE'!$A$13:$A$2638,0)),IFERROR($AV19,0),0)) -> 0 | CI19: =IF($AR19="",0,IF(ISNUMBER(MATCH($AR19,'Base SMAE'!$A$13:$A$2638,0)),0,IFERROR(IF($AS19="Gramos",$AU19,IFERROR(($AU19/$AY19)*$AX19,0))/100,0))) -> 0
D20: =IF($B20="","",IF($C20="Gramos","gramos",IF($G$5="SMAE",IFERROR(INDEX('Base SMAE'!$E$13:$E$2638,MATCH($B20,'Base SMAE'!$A$13:$A$2638,0)),"gramos"),"gramos"))) ->  | G20: =IF($B20="","",IF($G$5="SMAE",IFERROR(INDEX('Base SMAE'!$B$13:$B$2638,MATCH($B20,'Base SMAE'!$A$13:$A$2638,0)),IFERROR(INDEX('Base USDA'!$D$6:$D$5436,MATCH($B20,'Base USDA'!$B$6:$B$5436,0)),"")),IFERROR(INDEX('Base USDA'!$D$6:$D$5436,MATCH($B20,'Base USDA'!$B$6:$B$5436,0)),IFERROR(INDEX('Base SMAE'!$B$13:$B$2638,MATCH($B20,'Base SMAE'!$A$13:$A$2638,0)),"")))) ->  | H20: =IF($B20="","",IF($G$5="SMAE",IFERROR(INDEX('Base SMAE'!$G$13:$G$2638,MATCH($B20,'Base SMAE'!$A$13:$A$2638,0)),""),100)) ->  | I20: =IF($B20="","",IF($G$5="SMAE",IFERROR(INDEX('Base SMAE'!$D$13:$D$2638,MATCH($B20,'Base SMAE'!$A$13:$A$2638,0)),""),100)) ->  | J20: =IF(OR($B20="",$E20=""),"",IF($G$5="SMAE",IF(IFERROR((INDEX('Base SMAE'!$H$13:$H$2638,MATCH($B20,'Base SMAE'!$A$13:$A$2638,0)))*F20,"")="",IFERROR((INDEX('Base USDA'!$E$6:$E$5436,MATCH($B20,'Base USDA'!$B$6:$B$5436,0)))*F20,""),IFERROR((INDEX('Base SMAE'!$H$13:$H$2638,MATCH($B20,'Base SMAE'!$A$13:$A$2638,0)))*F20,"")),IF(IFERROR((INDEX('Base USDA'!$E$6:$E$5436,MATCH($B20,'Base USDA'!$B$6:$B$5436,0)))*F20,"")="",IFERROR((INDEX('Base SMAE'!$H$13:$H$2638,MATCH($B20,'Base SMAE'!$A$13:$A$2638,0)))*F20,""),IFERROR((INDEX('Base USDA'!$E$6:$E$5436,MATCH($B20,'Base USDA'!$B$6:$B$5436,0)))*F20,"")))) ->  | K20: =IF(OR($B20="",$E20=""),"",IF($G$5="SMAE",IF(IFERROR((INDEX('Base SMAE'!$I$13:$I$2638,MATCH($B20,'Base SMAE'!$A$13:$A$2638,0)))*F20,"")="",IFERROR((INDEX('Base USDA'!$F$6:$F$5436,MATCH($B20,'Base USDA'!$B$6:$B$5436,0)))*F20,""),IFERROR((INDEX('Base SMAE'!$I$13:$I$2638,MATCH($B20,'Base SMAE'!$A$13:$A$2638,0)))*F20,"")),IF(IFERROR((INDEX('Base USDA'!$F$6:$F$5436,MATCH($B20,'Base USDA'!$B$6:$B$5436,0)))*F20,"")="",IFERROR((INDEX('Base SMAE'!$I$13:$I$2638,MATCH($B20,'Base SMAE'!$A$13:$A$2638,0)))*F20,""),IFERROR((INDEX('Base USDA'!$F$6:$F$5436,MATCH($B20,'Base USDA'!$B$6:$B$5436,0)))*F20,"")))) ->  | L20: =IF(OR($B20="",$E20=""),"",IF($G$5="SMAE",IF(IFERROR((INDEX('Base SMAE'!$J$13:$J$2638,MATCH($B20,'Base SMAE'!$A$13:$A$2638,0)))*F20,"")="",IFERROR((INDEX('Base USDA'!$J$6:$J$5436,MATCH($B20,'Base USDA'!$B$6:$B$5436,0)))*F20,""),IFERROR((INDEX('Base SMAE'!$J$13:$J$2638,MATCH($B20,'Base SMAE'!$A$13:$A$2638,0)))*F20,"")),IF(IFERROR((INDEX('Base USDA'!$J$6:$J$5436,MATCH($B20,'Base USDA'!$B$6:$B$5436,0)))*F20,"")="",IFERROR((INDEX('Base SMAE'!$J$13:$J$2638,MATCH($B20,'Base SMAE'!$A$13:$A$2638,0)))*F20,""),IFERROR((INDEX('Base USDA'!$J$6:$J$5436,MATCH($B20,'Base USDA'!$B$6:$B$5436,0)))*F20,"")))) ->  | M20: =IF(OR($B20="",$E20=""),"",IF($G$5="SMAE",IF(IFERROR((INDEX('Base SMAE'!$K$13:$K$2638,MATCH($B20,'Base SMAE'!$A$13:$A$2638,0)))*F20,"")="",IFERROR((INDEX('Base USDA'!$G$6:$G$5436,MATCH($B20,'Base USDA'!$B$6:$B$5436,0)))*F20,""),IFERROR((INDEX('Base SMAE'!$K$13:$K$2638,MATCH($B20,'Base SMAE'!$A$13:$A$2638,0)))*F20,"")),IF(IFERROR((INDEX('Base USDA'!$G$6:$G$5436,MATCH($B20,'Base USDA'!$B$6:$B$5436,0)))*F20,"")="",IFERROR((INDEX('Base SMAE'!$K$13:$K$2638,MATCH($B20,'Base SMAE'!$A$13:$A$2638,0)))*F20,""),IFERROR((INDEX('Base USDA'!$G$6:$G$5436,MATCH($B20,'Base USDA'!$B$6:$B$5436,0)))*F20,"")))) ->  | N20: =IF(OR($B20="",$E20=""),"",IF($G$5="SMAE",IF(IFERROR((INDEX('Base SMAE'!$L$13:$L$2638,MATCH($B20,'Base SMAE'!$A$13:$A$2638,0)))*F20,"")="",IFERROR((INDEX('Base USDA'!$I$6:$I$5436,MATCH($B20,'Base USDA'!$B$6:$B$5436,0)))*F20,""),IFERROR((INDEX('Base SMAE'!$L$13:$L$2638,MATCH($B20,'Base SMAE'!$A$13:$A$2638,0)))*F20,"")),IF(IFERROR((INDEX('Base USDA'!$I$6:$I$5436,MATCH($B20,'Base USDA'!$B$6:$B$5436,0)))*F20,"")="",IFERROR((INDEX('Base SMAE'!$L$13:$L$2638,MATCH($B20,'Base SMAE'!$A$13:$A$2638,0)))*F20,""),IFERROR((INDEX('Base USDA'!$I$6:$I$5436,MATCH($B20,'Base USDA'!$B$6:$B$5436,0)))*F20,"")))) ->  | R20: =IF($P20="","",IF($Q20="Gramos","gramos",IF($G$5="SMAE",IFERROR(INDEX('Base SMAE'!$E$13:$E$2638,MATCH($P20,'Base SMAE'!$A$13:$A$2638,0)),"gramos"),"gramos"))) ->  | U20: =IF($P20="","",IF($G$5="SMAE",IFERROR(INDEX('Base SMAE'!$B$13:$B$2638,MATCH($P20,'Base SMAE'!$A$13:$A$2638,0)),IFERROR(INDEX('Base USDA'!$D$6:$D$5436,MATCH($P20,'Base USDA'!$B$6:$B$5436,0)),"")),IFERROR(INDEX('Base USDA'!$D$6:$D$5436,MATCH($P20,'Base USDA'!$B$6:$B$5436,0)),IFERROR(INDEX('Base SMAE'!$B$13:$B$2638,MATCH($P20,'Base SMAE'!$A$13:$A$2638,0)),"")))) ->  | V20: =IF($P20="","",IF($G$5="SMAE",IFERROR(INDEX('Base SMAE'!$G$13:$G$2638,MATCH($P20,'Base SMAE'!$A$13:$A$2638,0)),""),100)) ->  | W20: =IF($P20="","",IF($G$5="SMAE",IFERROR(INDEX('Base SMAE'!$D$13:$D$2638,MATCH($P20,'Base SMAE'!$A$13:$A$2638,0)),""),100)) ->  | X20: =IF(OR($P20="",$S20=""),"",IF($G$5="SMAE",IF(IFERROR((INDEX('Base SMAE'!$H$13:$H$2638,MATCH($P20,'Base SMAE'!$A$13:$A$2638,0)))*T20,"")="",IFERROR((INDEX('Base USDA'!$E$6:$E$5436,MATCH($P20,'Base USDA'!$B$6:$B$5436,0)))*T20,""),IFERROR((INDEX('Base SMAE'!$H$13:$H$2638,MATCH($P20,'Base SMAE'!$A$13:$A$2638,0)))*T20,"")),IF(IFERROR((INDEX('Base USDA'!$E$6:$E$5436,MATCH($P20,'Base USDA'!$B$6:$B$5436,0)))*T20,"")="",IFERROR((INDEX('Base SMAE'!$H$13:$H$2638,MATCH($P20,'Base SMAE'!$A$13:$A$2638,0)))*T20,""),IFERROR((INDEX('Base USDA'!$E$6:$E$5436,MATCH($P20,'Base USDA'!$B$6:$B$5436,0)))*T20,"")))) ->  | Y20: =IF(OR($P20="",$S20=""),"",IF($G$5="SMAE",IF(IFERROR((INDEX('Base SMAE'!$I$13:$I$2638,MATCH($P20,'Base SMAE'!$A$13:$A$2638,0)))*T20,"")="",IFERROR((INDEX('Base USDA'!$F$6:$F$5436,MATCH($P20,'Base USDA'!$B$6:$B$5436,0)))*T20,""),IFERROR((INDEX('Base SMAE'!$I$13:$I$2638,MATCH($P20,'Base SMAE'!$A$13:$A$2638,0)))*T20,"")),IF(IFERROR((INDEX('Base USDA'!$F$6:$F$5436,MATCH($P20,'Base USDA'!$B$6:$B$5436,0)))*T20,"")="",IFERROR((INDEX('Base SMAE'!$I$13:$I$2638,MATCH($P20,'Base SMAE'!$A$13:$A$2638,0)))*T20,""),IFERROR((INDEX('Base USDA'!$F$6:$F$5436,MATCH($P20,'Base USDA'!$B$6:$B$5436,0)))*T20,"")))) ->  | Z20: =IF(OR($P20="",$S20=""),"",IF($G$5="SMAE",IF(IFERROR((INDEX('Base SMAE'!$J$13:$J$2638,MATCH($P20,'Base SMAE'!$A$13:$A$2638,0)))*T20,"")="",IFERROR((INDEX('Base USDA'!$J$6:$J$5436,MATCH($P20,'Base USDA'!$B$6:$B$5436,0)))*T20,""),IFERROR((INDEX('Base SMAE'!$J$13:$J$2638,MATCH($P20,'Base SMAE'!$A$13:$A$2638,0)))*T20,"")),IF(IFERROR((INDEX('Base USDA'!$J$6:$J$5436,MATCH($P20,'Base USDA'!$B$6:$B$5436,0)))*T20,"")="",IFERROR((INDEX('Base SMAE'!$J$13:$J$2638,MATCH($P20,'Base SMAE'!$A$13:$A$2638,0)))*T20,""),IFERROR((INDEX('Base USDA'!$J$6:$J$5436,MATCH($P20,'Base USDA'!$B$6:$B$5436,0)))*T20,"")))) ->  | AA20: =IF(OR($P20="",$S20=""),"",IF($G$5="SMAE",IF(IFERROR((INDEX('Base SMAE'!$K$13:$K$2638,MATCH($P20,'Base SMAE'!$A$13:$A$2638,0)))*T20,"")="",IFERROR((INDEX('Base USDA'!$G$6:$G$5436,MATCH($P20,'Base USDA'!$B$6:$B$5436,0)))*T20,""),IFERROR((INDEX('Base SMAE'!$K$13:$K$2638,MATCH($P20,'Base SMAE'!$A$13:$A$2638,0)))*T20,"")),IF(IFERROR((INDEX('Base USDA'!$G$6:$G$5436,MATCH($P20,'Base USDA'!$B$6:$B$5436,0)))*T20,"")="",IFERROR((INDEX('Base SMAE'!$K$13:$K$2638,MATCH($P20,'Base SMAE'!$A$13:$A$2638,0)))*T20,""),IFERROR((INDEX('Base USDA'!$G$6:$G$5436,MATCH($P20,'Base USDA'!$B$6:$B$5436,0)))*T20,"")))) ->  | AB20: =IF(OR($P20="",$S20=""),"",IF($G$5="SMAE",IF(IFERROR((INDEX('Base SMAE'!$L$13:$L$2638,MATCH($P20,'Base SMAE'!$A$13:$A$2638,0)))*T20,"")="",IFERROR((INDEX('Base USDA'!$I$6:$I$5436,MATCH($P20,'Base USDA'!$B$6:$B$5436,0)))*T20,""),IFERROR((INDEX('Base SMAE'!$L$13:$L$2638,MATCH($P20,'Base SMAE'!$A$13:$A$2638,0)))*T20,"")),IF(IFERROR((INDEX('Base USDA'!$I$6:$I$5436,MATCH($P20,'Base USDA'!$B$6:$B$5436,0)))*T20,"")="",IFERROR((INDEX('Base SMAE'!$L$13:$L$2638,MATCH($P20,'Base SMAE'!$A$13:$A$2638,0)))*T20,""),IFERROR((INDEX('Base USDA'!$I$6:$I$5436,MATCH($P20,'Base USDA'!$B$6:$B$5436,0)))*T20,"")))) ->  | AF20: =IF($AD20="","",IF($AE20="Gramos","gramos",IF($G$5="SMAE",IFERROR(INDEX('Base SMAE'!$E$13:$E$2638,MATCH($AD20,'Base SMAE'!$A$13:$A$2638,0)),"gramos"),"gramos"))) ->  | AI20: =IF($AD20="","",IF($G$5="SMAE",IFERROR(INDEX('Base SMAE'!$B$13:$B$2638,MATCH($AD20,'Base SMAE'!$A$13:$A$2638,0)),IFERROR(INDEX('Base USDA'!$D$6:$D$5436,MATCH($AD20,'Base USDA'!$B$6:$B$5436,0)),"")),IFERROR(INDEX('Base USDA'!$D$6:$D$5436,MATCH($AD20,'Base USDA'!$B$6:$B$5436,0)),IFERROR(INDEX('Base SMAE'!$B$13:$B$2638,MATCH($AD20,'Base SMAE'!$A$13:$A$2638,0)),"")))) ->  | AJ20: =IF($AD20="","",IF($G$5="SMAE",IFERROR(INDEX('Base SMAE'!$G$13:$G$2638,MATCH($AD20,'Base SMAE'!$A$13:$A$2638,0)),""),100)) ->  | AK20: =IF($AD20="","",IF($G$5="SMAE",IFERROR(INDEX('Base SMAE'!$D$13:$D$2638,MATCH($AD20,'Base SMAE'!$A$13:$A$2638,0)),""),100)) ->  | AL20: =IF(OR($AD20="",$AG20=""),"",IF($G$5="SMAE",IF(IFERROR((INDEX('Base SMAE'!$H$13:$H$2638,MATCH($AD20,'Base SMAE'!$A$13:$A$2638,0)))*AH20,"")="",IFERROR((INDEX('Base USDA'!$E$6:$E$5436,MATCH($AD20,'Base USDA'!$B$6:$B$5436,0)))*AH20,""),IFERROR((INDEX('Base SMAE'!$H$13:$H$2638,MATCH($AD20,'Base SMAE'!$A$13:$A$2638,0)))*AH20,"")),IF(IFERROR((INDEX('Base USDA'!$E$6:$E$5436,MATCH($AD20,'Base USDA'!$B$6:$B$5436,0)))*AH20,"")="",IFERROR((INDEX('Base SMAE'!$H$13:$H$2638,MATCH($AD20,'Base SMAE'!$A$13:$A$2638,0)))*AH20,""),IFERROR((INDEX('Base USDA'!$E$6:$E$5436,MATCH($AD20,'Base USDA'!$B$6:$B$5436,0)))*AH20,"")))) ->  | AM20: =IF(OR($AD20="",$AG20=""),"",IF($G$5="SMAE",IF(IFERROR((INDEX('Base SMAE'!$I$13:$I$2638,MATCH($AD20,'Base SMAE'!$A$13:$A$2638,0)))*AH20,"")="",IFERROR((INDEX('Base USDA'!$F$6:$F$5436,MATCH($AD20,'Base USDA'!$B$6:$B$5436,0)))*AH20,""),IFERROR((INDEX('Base SMAE'!$I$13:$I$2638,MATCH($AD20,'Base SMAE'!$A$13:$A$2638,0)))*AH20,"")),IF(IFERROR((INDEX('Base USDA'!$F$6:$F$5436,MATCH($AD20,'Base USDA'!$B$6:$B$5436,0)))*AH20,"")="",IFERROR((INDEX('Base SMAE'!$I$13:$I$2638,MATCH($AD20,'Base SMAE'!$A$13:$A$2638,0)))*AH20,""),IFERROR((INDEX('Base USDA'!$F$6:$F$5436,MATCH($AD20,'Base USDA'!$B$6:$B$5436,0)))*AH20,"")))) ->  | AN20: =IF(OR($AD20="",$AG20=""),"",IF($G$5="SMAE",IF(IFERROR((INDEX('Base SMAE'!$J$13:$J$2638,MATCH($AD20,'Base SMAE'!$A$13:$A$2638,0)))*AH20,"")="",IFERROR((INDEX('Base USDA'!$J$6:$J$5436,MATCH($AD20,'Base USDA'!$B$6:$B$5436,0)))*AH20,""),IFERROR((INDEX('Base SMAE'!$J$13:$J$2638,MATCH($AD20,'Base SMAE'!$A$13:$A$2638,0)))*AH20,"")),IF(IFERROR((INDEX('Base USDA'!$J$6:$J$5436,MATCH($AD20,'Base USDA'!$B$6:$B$5436,0)))*AH20,"")="",IFERROR((INDEX('Base SMAE'!$J$13:$J$2638,MATCH($AD20,'Base SMAE'!$A$13:$A$2638,0)))*AH20,""),IFERROR((INDEX('Base USDA'!$J$6:$J$5436,MATCH($AD20,'Base USDA'!$B$6:$B$5436,0)))*AH20,"")))) ->  | AO20: =IF(OR($AD20="",$AG20=""),"",IF($G$5="SMAE",IF(IFERROR((INDEX('Base SMAE'!$K$13:$K$2638,MATCH($AD20,'Base SMAE'!$A$13:$A$2638,0)))*AH20,"")="",IFERROR((INDEX('Base USDA'!$G$6:$G$5436,MATCH($AD20,'Base USDA'!$B$6:$B$5436,0)))*AH20,""),IFERROR((INDEX('Base SMAE'!$K$13:$K$2638,MATCH($AD20,'Base SMAE'!$A$13:$A$2638,0)))*AH20,"")),IF(IFERROR((INDEX('Base USDA'!$G$6:$G$5436,MATCH($AD20,'Base USDA'!$B$6:$B$5436,0)))*AH20,"")="",IFERROR((INDEX('Base SMAE'!$K$13:$K$2638,MATCH($AD20,'Base SMAE'!$A$13:$A$2638,0)))*AH20,""),IFERROR((INDEX('Base USDA'!$G$6:$G$5436,MATCH($AD20,'Base USDA'!$B$6:$B$5436,0)))*AH20,"")))) ->  | AP20: =IF(OR($AD20="",$AG20=""),"",IF($G$5="SMAE",IF(IFERROR((INDEX('Base SMAE'!$L$13:$L$2638,MATCH($AD20,'Base SMAE'!$A$13:$A$2638,0)))*AH20,"")="",IFERROR((INDEX('Base USDA'!$I$6:$I$5436,MATCH($AD20,'Base USDA'!$B$6:$B$5436,0)))*AH20,""),IFERROR((INDEX('Base SMAE'!$L$13:$L$2638,MATCH($AD20,'Base SMAE'!$A$13:$A$2638,0)))*AH20,"")),IF(IFERROR((INDEX('Base USDA'!$I$6:$I$5436,MATCH($AD20,'Base USDA'!$B$6:$B$5436,0)))*AH20,"")="",IFERROR((INDEX('Base SMAE'!$L$13:$L$2638,MATCH($AD20,'Base SMAE'!$A$13:$A$2638,0)))*AH20,""),IFERROR((INDEX('Base USDA'!$I$6:$I$5436,MATCH($AD20,'Base USDA'!$B$6:$B$5436,0)))*AH20,"")))) ->  | AT20: =IF($AR20="","",IF($AS20="Gramos","gramos",IF($G$5="SMAE",IFERROR(INDEX('Base SMAE'!$E$13:$E$2638,MATCH($AR20,'Base SMAE'!$A$13:$A$2638,0)),"gramos"),"gramos"))) ->  | AW20: =IF($AR20="","",IF($G$5="SMAE",IFERROR(INDEX('Base SMAE'!$B$13:$B$2638,MATCH($AR20,'Base SMAE'!$A$13:$A$2638,0)),IFERROR(INDEX('Base USDA'!$D$6:$D$5436,MATCH($AR20,'Base USDA'!$B$6:$B$5436,0)),"")),IFERROR(INDEX('Base USDA'!$D$6:$D$5436,MATCH($AR20,'Base USDA'!$B$6:$B$5436,0)),IFERROR(INDEX('Base SMAE'!$B$13:$B$2638,MATCH($AR20,'Base SMAE'!$A$13:$A$2638,0)),"")))) ->  | AX20: =IF($AR20="","",IF($G$5="SMAE",IFERROR(INDEX('Base SMAE'!$G$13:$G$2638,MATCH($AR20,'Base SMAE'!$A$13:$A$2638,0)),""),100)) ->  | AY20: =IF($AR20="","",IF($G$5="SMAE",IFERROR(INDEX('Base SMAE'!$D$13:$D$2638,MATCH($AR20,'Base SMAE'!$A$13:$A$2638,0)),""),100)) ->  | AZ20: =IF(OR($AR20="",$AU20=""),"",IF($G$5="SMAE",IF(IFERROR((INDEX('Base SMAE'!$H$13:$H$2638,MATCH($AR20,'Base SMAE'!$A$13:$A$2638,0)))*AV20,"")="",IFERROR((INDEX('Base USDA'!$E$6:$E$5436,MATCH($AR20,'Base USDA'!$B$6:$B$5436,0)))*AV20,""),IFERROR((INDEX('Base SMAE'!$H$13:$H$2638,MATCH($AR20,'Base SMAE'!$A$13:$A$2638,0)))*AV20,"")),IF(IFERROR((INDEX('Base USDA'!$E$6:$E$5436,MATCH($AR20,'Base USDA'!$B$6:$B$5436,0)))*AV20,"")="",IFERROR((INDEX('Base SMAE'!$H$13:$H$2638,MATCH($AR20,'Base SMAE'!$A$13:$A$2638,0)))*AV20,""),IFERROR((INDEX('Base USDA'!$E$6:$E$5436,MATCH($AR20,'Base USDA'!$B$6:$B$5436,0)))*AV20,"")))) ->  | BA20: =IF(OR($AR20="",$AU20=""),"",IF($G$5="SMAE",IF(IFERROR((INDEX('Base SMAE'!$I$13:$I$2638,MATCH($AR20,'Base SMAE'!$A$13:$A$2638,0)))*AV20,"")="",IFERROR((INDEX('Base USDA'!$F$6:$F$5436,MATCH($AR20,'Base USDA'!$B$6:$B$5436,0)))*AV20,""),IFERROR((INDEX('Base SMAE'!$I$13:$I$2638,MATCH($AR20,'Base SMAE'!$A$13:$A$2638,0)))*AV20,"")),IF(IFERROR((INDEX('Base USDA'!$F$6:$F$5436,MATCH($AR20,'Base USDA'!$B$6:$B$5436,0)))*AV20,"")="",IFERROR((INDEX('Base SMAE'!$I$13:$I$2638,MATCH($AR20,'Base SMAE'!$A$13:$A$2638,0)))*AV20,""),IFERROR((INDEX('Base USDA'!$F$6:$F$5436,MATCH($AR20,'Base USDA'!$B$6:$B$5436,0)))*AV20,"")))) ->  | BB20: =IF(OR($AR20="",$AU20=""),"",IF($G$5="SMAE",IF(IFERROR((INDEX('Base SMAE'!$J$13:$J$2638,MATCH($AR20,'Base SMAE'!$A$13:$A$2638,0)))*AV20,"")="",IFERROR((INDEX('Base USDA'!$J$6:$J$5436,MATCH($AR20,'Base USDA'!$B$6:$B$5436,0)))*AV20,""),IFERROR((INDEX('Base SMAE'!$J$13:$J$2638,MATCH($AR20,'Base SMAE'!$A$13:$A$2638,0)))*AV20,"")),IF(IFERROR((INDEX('Base USDA'!$J$6:$J$5436,MATCH($AR20,'Base USDA'!$B$6:$B$5436,0)))*AV20,"")="",IFERROR((INDEX('Base SMAE'!$J$13:$J$2638,MATCH($AR20,'Base SMAE'!$A$13:$A$2638,0)))*AV20,""),IFERROR((INDEX('Base USDA'!$J$6:$J$5436,MATCH($AR20,'Base USDA'!$B$6:$B$5436,0)))*AV20,"")))) ->  | BC20: =IF(OR($AR20="",$AU20=""),"",IF($G$5="SMAE",IF(IFERROR((INDEX('Base SMAE'!$K$13:$K$2638,MATCH($AR20,'Base SMAE'!$A$13:$A$2638,0)))*AV20,"")="",IFERROR((INDEX('Base USDA'!$G$6:$G$5436,MATCH($AR20,'Base USDA'!$B$6:$B$5436,0)))*AV20,""),IFERROR((INDEX('Base SMAE'!$K$13:$K$2638,MATCH($AR20,'Base SMAE'!$A$13:$A$2638,0)))*AV20,"")),IF(IFERROR((INDEX('Base USDA'!$G$6:$G$5436,MATCH($AR20,'Base USDA'!$B$6:$B$5436,0)))*AV20,"")="",IFERROR((INDEX('Base SMAE'!$K$13:$K$2638,MATCH($AR20,'Base SMAE'!$A$13:$A$2638,0)))*AV20,""),IFERROR((INDEX('Base USDA'!$G$6:$G$5436,MATCH($AR20,'Base USDA'!$B$6:$B$5436,0)))*AV20,"")))) ->  | BD20: =IF(OR($AR20="",$AU20=""),"",IF($G$5="SMAE",IF(IFERROR((INDEX('Base SMAE'!$L$13:$L$2638,MATCH($AR20,'Base SMAE'!$A$13:$A$2638,0)))*AV20,"")="",IFERROR((INDEX('Base USDA'!$I$6:$I$5436,MATCH($AR20,'Base USDA'!$B$6:$B$5436,0)))*AV20,""),IFERROR((INDEX('Base SMAE'!$L$13:$L$2638,MATCH($AR20,'Base SMAE'!$A$13:$A$2638,0)))*AV20,"")),IF(IFERROR((INDEX('Base USDA'!$I$6:$I$5436,MATCH($AR20,'Base USDA'!$B$6:$B$5436,0)))*AV20,"")="",IFERROR((INDEX('Base SMAE'!$L$13:$L$2638,MATCH($AR20,'Base SMAE'!$A$13:$A$2638,0)))*AV20,""),IFERROR((INDEX('Base USDA'!$I$6:$I$5436,MATCH($AR20,'Base USDA'!$B$6:$B$5436,0)))*AV20,"")))) ->  | BH20: LECHE DES | BI20: =SUMIF(G15:G24,"LECHE DES",F15:F24)+SUMIF(G37:G46,"LECHE DES",F37:F46)+SUMIF(G59:G68,"LECHE DES",F59:F68)+SUMIF(G81:G90,"LECHE DES",F81:F90)+SUMIF(G103:G112,"LECHE DES",F103:F112) -> 0 | BJ20: =SUMIF(U15:U24,"LECHE DES",T15:T24)+SUMIF(U37:U46,"LECHE DES",T37:T46)+SUMIF(U59:U68,"LECHE DES",T59:T68)+SUMIF(U81:U90,"LECHE DES",T81:T90)+SUMIF(U103:U112,"LECHE DES",T103:T112) -> 0 | BK20: =SUMIF(AI15:AI24,"LECHE DES",AH15:AH24)+SUMIF(AI37:AI46,"LECHE DES",AH37:AH46)+SUMIF(AI59:AI68,"LECHE DES",AH59:AH68)+SUMIF(AI81:AI90,"LECHE DES",AH81:AH90)+SUMIF(AI103:AI112,"LECHE DES",AH103:AH112) -> 0 | BL20: =SUMIF(AW15:AW24,"LECHE DES",AV15:AV24)+SUMIF(AW37:AW46,"LECHE DES",AV37:AV46)+SUMIF(AW59:AW68,"LECHE DES",AV59:AV68)+SUMIF(AW81:AW90,"LECHE DES",AV81:AV90)+SUMIF(AW103:AW112,"LECHE DES",AV103:AV112) -> 0 | CB20: =IF($B20="",0,IF(ISNUMBER(MATCH($B20,'Base SMAE'!$A$13:$A$2638,0)),IFERROR($F20,0),0)) -> 0 | CC20: =IF($B20="",0,IF(ISNUMBER(MATCH($B20,'Base SMAE'!$A$13:$A$2638,0)),0,IFERROR(IF($C20="Gramos",$E20,IFERROR(($E20/$I20)*$H20,0))/100,0))) -> 0 | CD20: =IF($P20="",0,IF(ISNUMBER(MATCH($P20,'Base SMAE'!$A$13:$A$2638,0)),IFERROR($T20,0),0)) -> 0 | CE20: =IF($P20="",0,IF(ISNUMBER(MATCH($P20,'Base SMAE'!$A$13:$A$2638,0)),0,IFERROR(IF($Q20="Gramos",$S20,IFERROR(($S20/$W20)*$V20,0))/100,0))) -> 0 | CF20: =IF($AD20="",0,IF(ISNUMBER(MATCH($AD20,'Base SMAE'!$A$13:$A$2638,0)),IFERROR($AH20,0),0)) -> 0 | CG20: =IF($AD20="",0,IF(ISNUMBER(MATCH($AD20,'Base SMAE'!$A$13:$A$2638,0)),0,IFERROR(IF($AE20="Gramos",$AG20,IFERROR(($AG20/$AK20)*$AJ20,0))/100,0))) -> 0 | CH20: =IF($AR20="",0,IF(ISNUMBER(MATCH($AR20,'Base SMAE'!$A$13:$A$2638,0)),IFERROR($AV20,0),0)) -> 0 | CI20: =IF($AR20="",0,IF(ISNUMBER(MATCH($AR20,'Base SMAE'!$A$13:$A$2638,0)),0,IFERROR(IF($AS20="Gramos",$AU20,IFERROR(($AU20/$AY20)*$AX20,0))/100,0))) -> 0
D21: =IF($B21="","",IF($C21="Gramos","gramos",IF($G$5="SMAE",IFERROR(INDEX('Base SMAE'!$E$13:$E$2638,MATCH($B21,'Base SMAE'!$A$13:$A$2638,0)),"gramos"),"gramos"))) ->  | G21: =IF($B21="","",IF($G$5="SMAE",IFERROR(INDEX('Base SMAE'!$B$13:$B$2638,MATCH($B21,'Base SMAE'!$A$13:$A$2638,0)),IFERROR(INDEX('Base USDA'!$D$6:$D$5436,MATCH($B21,'Base USDA'!$B$6:$B$5436,0)),"")),IFERROR(INDEX('Base USDA'!$D$6:$D$5436,MATCH($B21,'Base USDA'!$B$6:$B$5436,0)),IFERROR(INDEX('Base SMAE'!$B$13:$B$2638,MATCH($B21,'Base SMAE'!$A$13:$A$2638,0)),"")))) ->  | H21: =IF($B21="","",IF($G$5="SMAE",IFERROR(INDEX('Base SMAE'!$G$13:$G$2638,MATCH($B21,'Base SMAE'!$A$13:$A$2638,0)),""),100)) ->  | I21: =IF($B21="","",IF($G$5="SMAE",IFERROR(INDEX('Base SMAE'!$D$13:$D$2638,MATCH($B21,'Base SMAE'!$A$13:$A$2638,0)),""),100)) ->  | J21: =IF(OR($B21="",$E21=""),"",IF($G$5="SMAE",IF(IFERROR((INDEX('Base SMAE'!$H$13:$H$2638,MATCH($B21,'Base SMAE'!$A$13:$A$2638,0)))*F21,"")="",IFERROR((INDEX('Base USDA'!$E$6:$E$5436,MATCH($B21,'Base USDA'!$B$6:$B$5436,0)))*F21,""),IFERROR((INDEX('Base SMAE'!$H$13:$H$2638,MATCH($B21,'Base SMAE'!$A$13:$A$2638,0)))*F21,"")),IF(IFERROR((INDEX('Base USDA'!$E$6:$E$5436,MATCH($B21,'Base USDA'!$B$6:$B$5436,0)))*F21,"")="",IFERROR((INDEX('Base SMAE'!$H$13:$H$2638,MATCH($B21,'Base SMAE'!$A$13:$A$2638,0)))*F21,""),IFERROR((INDEX('Base USDA'!$E$6:$E$5436,MATCH($B21,'Base USDA'!$B$6:$B$5436,0)))*F21,"")))) ->  | K21: =IF(OR($B21="",$E21=""),"",IF($G$5="SMAE",IF(IFERROR((INDEX('Base SMAE'!$I$13:$I$2638,MATCH($B21,'Base SMAE'!$A$13:$A$2638,0)))*F21,"")="",IFERROR((INDEX('Base USDA'!$F$6:$F$5436,MATCH($B21,'Base USDA'!$B$6:$B$5436,0)))*F21,""),IFERROR((INDEX('Base SMAE'!$I$13:$I$2638,MATCH($B21,'Base SMAE'!$A$13:$A$2638,0)))*F21,"")),IF(IFERROR((INDEX('Base USDA'!$F$6:$F$5436,MATCH($B21,'Base USDA'!$B$6:$B$5436,0)))*F21,"")="",IFERROR((INDEX('Base SMAE'!$I$13:$I$2638,MATCH($B21,'Base SMAE'!$A$13:$A$2638,0)))*F21,""),IFERROR((INDEX('Base USDA'!$F$6:$F$5436,MATCH($B21,'Base USDA'!$B$6:$B$5436,0)))*F21,"")))) ->  | L21: =IF(OR($B21="",$E21=""),"",IF($G$5="SMAE",IF(IFERROR((INDEX('Base SMAE'!$J$13:$J$2638,MATCH($B21,'Base SMAE'!$A$13:$A$2638,0)))*F21,"")="",IFERROR((INDEX('Base USDA'!$J$6:$J$5436,MATCH($B21,'Base USDA'!$B$6:$B$5436,0)))*F21,""),IFERROR((INDEX('Base SMAE'!$J$13:$J$2638,MATCH($B21,'Base SMAE'!$A$13:$A$2638,0)))*F21,"")),IF(IFERROR((INDEX('Base USDA'!$J$6:$J$5436,MATCH($B21,'Base USDA'!$B$6:$B$5436,0)))*F21,"")="",IFERROR((INDEX('Base SMAE'!$J$13:$J$2638,MATCH($B21,'Base SMAE'!$A$13:$A$2638,0)))*F21,""),IFERROR((INDEX('Base USDA'!$J$6:$J$5436,MATCH($B21,'Base USDA'!$B$6:$B$5436,0)))*F21,"")))) ->  | M21: =IF(OR($B21="",$E21=""),"",IF($G$5="SMAE",IF(IFERROR((INDEX('Base SMAE'!$K$13:$K$2638,MATCH($B21,'Base SMAE'!$A$13:$A$2638,0)))*F21,"")="",IFERROR((INDEX('Base USDA'!$G$6:$G$5436,MATCH($B21,'Base USDA'!$B$6:$B$5436,0)))*F21,""),IFERROR((INDEX('Base SMAE'!$K$13:$K$2638,MATCH($B21,'Base SMAE'!$A$13:$A$2638,0)))*F21,"")),IF(IFERROR((INDEX('Base USDA'!$G$6:$G$5436,MATCH($B21,'Base USDA'!$B$6:$B$5436,0)))*F21,"")="",IFERROR((INDEX('Base SMAE'!$K$13:$K$2638,MATCH($B21,'Base SMAE'!$A$13:$A$2638,0)))*F21,""),IFERROR((INDEX('Base USDA'!$G$6:$G$5436,MATCH($B21,'Base USDA'!$B$6:$B$5436,0)))*F21,"")))) ->  | N21: =IF(OR($B21="",$E21=""),"",IF($G$5="SMAE",IF(IFERROR((INDEX('Base SMAE'!$L$13:$L$2638,MATCH($B21,'Base SMAE'!$A$13:$A$2638,0)))*F21,"")="",IFERROR((INDEX('Base USDA'!$I$6:$I$5436,MATCH($B21,'Base USDA'!$B$6:$B$5436,0)))*F21,""),IFERROR((INDEX('Base SMAE'!$L$13:$L$2638,MATCH($B21,'Base SMAE'!$A$13:$A$2638,0)))*F21,"")),IF(IFERROR((INDEX('Base USDA'!$I$6:$I$5436,MATCH($B21,'Base USDA'!$B$6:$B$5436,0)))*F21,"")="",IFERROR((INDEX('Base SMAE'!$L$13:$L$2638,MATCH($B21,'Base SMAE'!$A$13:$A$2638,0)))*F21,""),IFERROR((INDEX('Base USDA'!$I$6:$I$5436,MATCH($B21,'Base USDA'!$B$6:$B$5436,0)))*F21,"")))) ->  | R21: =IF($P21="","",IF($Q21="Gramos","gramos",IF($G$5="SMAE",IFERROR(INDEX('Base SMAE'!$E$13:$E$2638,MATCH($P21,'Base SMAE'!$A$13:$A$2638,0)),"gramos"),"gramos"))) ->  | U21: =IF($P21="","",IF($G$5="SMAE",IFERROR(INDEX('Base SMAE'!$B$13:$B$2638,MATCH($P21,'Base SMAE'!$A$13:$A$2638,0)),IFERROR(INDEX('Base USDA'!$D$6:$D$5436,MATCH($P21,'Base USDA'!$B$6:$B$5436,0)),"")),IFERROR(INDEX('Base USDA'!$D$6:$D$5436,MATCH($P21,'Base USDA'!$B$6:$B$5436,0)),IFERROR(INDEX('Base SMAE'!$B$13:$B$2638,MATCH($P21,'Base SMAE'!$A$13:$A$2638,0)),"")))) ->  | V21: =IF($P21="","",IF($G$5="SMAE",IFERROR(INDEX('Base SMAE'!$G$13:$G$2638,MATCH($P21,'Base SMAE'!$A$13:$A$2638,0)),""),100)) ->  | W21: =IF($P21="","",IF($G$5="SMAE",IFERROR(INDEX('Base SMAE'!$D$13:$D$2638,MATCH($P21,'Base SMAE'!$A$13:$A$2638,0)),""),100)) ->  | X21: =IF(OR($P21="",$S21=""),"",IF($G$5="SMAE",IF(IFERROR((INDEX('Base SMAE'!$H$13:$H$2638,MATCH($P21,'Base SMAE'!$A$13:$A$2638,0)))*T21,"")="",IFERROR((INDEX('Base USDA'!$E$6:$E$5436,MATCH($P21,'Base USDA'!$B$6:$B$5436,0)))*T21,""),IFERROR((INDEX('Base SMAE'!$H$13:$H$2638,MATCH($P21,'Base SMAE'!$A$13:$A$2638,0)))*T21,"")),IF(IFERROR((INDEX('Base USDA'!$E$6:$E$5436,MATCH($P21,'Base USDA'!$B$6:$B$5436,0)))*T21,"")="",IFERROR((INDEX('Base SMAE'!$H$13:$H$2638,MATCH($P21,'Base SMAE'!$A$13:$A$2638,0)))*T21,""),IFERROR((INDEX('Base USDA'!$E$6:$E$5436,MATCH($P21,'Base USDA'!$B$6:$B$5436,0)))*T21,"")))) ->  | Y21: =IF(OR($P21="",$S21=""),"",IF($G$5="SMAE",IF(IFERROR((INDEX('Base SMAE'!$I$13:$I$2638,MATCH($P21,'Base SMAE'!$A$13:$A$2638,0)))*T21,"")="",IFERROR((INDEX('Base USDA'!$F$6:$F$5436,MATCH($P21,'Base USDA'!$B$6:$B$5436,0)))*T21,""),IFERROR((INDEX('Base SMAE'!$I$13:$I$2638,MATCH($P21,'Base SMAE'!$A$13:$A$2638,0)))*T21,"")),IF(IFERROR((INDEX('Base USDA'!$F$6:$F$5436,MATCH($P21,'Base USDA'!$B$6:$B$5436,0)))*T21,"")="",IFERROR((INDEX('Base SMAE'!$I$13:$I$2638,MATCH($P21,'Base SMAE'!$A$13:$A$2638,0)))*T21,""),IFERROR((INDEX('Base USDA'!$F$6:$F$5436,MATCH($P21,'Base USDA'!$B$6:$B$5436,0)))*T21,"")))) ->  | Z21: =IF(OR($P21="",$S21=""),"",IF($G$5="SMAE",IF(IFERROR((INDEX('Base SMAE'!$J$13:$J$2638,MATCH($P21,'Base SMAE'!$A$13:$A$2638,0)))*T21,"")="",IFERROR((INDEX('Base USDA'!$J$6:$J$5436,MATCH($P21,'Base USDA'!$B$6:$B$5436,0)))*T21,""),IFERROR((INDEX('Base SMAE'!$J$13:$J$2638,MATCH($P21,'Base SMAE'!$A$13:$A$2638,0)))*T21,"")),IF(IFERROR((INDEX('Base USDA'!$J$6:$J$5436,MATCH($P21,'Base USDA'!$B$6:$B$5436,0)))*T21,"")="",IFERROR((INDEX('Base SMAE'!$J$13:$J$2638,MATCH($P21,'Base SMAE'!$A$13:$A$2638,0)))*T21,""),IFERROR((INDEX('Base USDA'!$J$6:$J$5436,MATCH($P21,'Base USDA'!$B$6:$B$5436,0)))*T21,"")))) ->  | AA21: =IF(OR($P21="",$S21=""),"",IF($G$5="SMAE",IF(IFERROR((INDEX('Base SMAE'!$K$13:$K$2638,MATCH($P21,'Base SMAE'!$A$13:$A$2638,0)))*T21,"")="",IFERROR((INDEX('Base USDA'!$G$6:$G$5436,MATCH($P21,'Base USDA'!$B$6:$B$5436,0)))*T21,""),IFERROR((INDEX('Base SMAE'!$K$13:$K$2638,MATCH($P21,'Base SMAE'!$A$13:$A$2638,0)))*T21,"")),IF(IFERROR((INDEX('Base USDA'!$G$6:$G$5436,MATCH($P21,'Base USDA'!$B$6:$B$5436,0)))*T21,"")="",IFERROR((INDEX('Base SMAE'!$K$13:$K$2638,MATCH($P21,'Base SMAE'!$A$13:$A$2638,0)))*T21,""),IFERROR((INDEX('Base USDA'!$G$6:$G$5436,MATCH($P21,'Base USDA'!$B$6:$B$5436,0)))*T21,"")))) ->  | AB21: =IF(OR($P21="",$S21=""),"",IF($G$5="SMAE",IF(IFERROR((INDEX('Base SMAE'!$L$13:$L$2638,MATCH($P21,'Base SMAE'!$A$13:$A$2638,0)))*T21,"")="",IFERROR((INDEX('Base USDA'!$I$6:$I$5436,MATCH($P21,'Base USDA'!$B$6:$B$5436,0)))*T21,""),IFERROR((INDEX('Base SMAE'!$L$13:$L$2638,MATCH($P21,'Base SMAE'!$A$13:$A$2638,0)))*T21,"")),IF(IFERROR((INDEX('Base USDA'!$I$6:$I$5436,MATCH($P21,'Base USDA'!$B$6:$B$5436,0)))*T21,"")="",IFERROR((INDEX('Base SMAE'!$L$13:$L$2638,MATCH($P21,'Base SMAE'!$A$13:$A$2638,0)))*T21,""),IFERROR((INDEX('Base USDA'!$I$6:$I$5436,MATCH($P21,'Base USDA'!$B$6:$B$5436,0)))*T21,"")))) ->  | AF21: =IF($AD21="","",IF($AE21="Gramos","gramos",IF($G$5="SMAE",IFERROR(INDEX('Base SMAE'!$E$13:$E$2638,MATCH($AD21,'Base SMAE'!$A$13:$A$2638,0)),"gramos"),"gramos"))) ->  | AI21: =IF($AD21="","",IF($G$5="SMAE",IFERROR(INDEX('Base SMAE'!$B$13:$B$2638,MATCH($AD21,'Base SMAE'!$A$13:$A$2638,0)),IFERROR(INDEX('Base USDA'!$D$6:$D$5436,MATCH($AD21,'Base USDA'!$B$6:$B$5436,0)),"")),IFERROR(INDEX('Base USDA'!$D$6:$D$5436,MATCH($AD21,'Base USDA'!$B$6:$B$5436,0)),IFERROR(INDEX('Base SMAE'!$B$13:$B$2638,MATCH($AD21,'Base SMAE'!$A$13:$A$2638,0)),"")))) ->  | AJ21: =IF($AD21="","",IF($G$5="SMAE",IFERROR(INDEX('Base SMAE'!$G$13:$G$2638,MATCH($AD21,'Base SMAE'!$A$13:$A$2638,0)),""),100)) ->  | AK21: =IF($AD21="","",IF($G$5="SMAE",IFERROR(INDEX('Base SMAE'!$D$13:$D$2638,MATCH($AD21,'Base SMAE'!$A$13:$A$2638,0)),""),100)) ->  | AL21: =IF(OR($AD21="",$AG21=""),"",IF($G$5="SMAE",IF(IFERROR((INDEX('Base SMAE'!$H$13:$H$2638,MATCH($AD21,'Base SMAE'!$A$13:$A$2638,0)))*AH21,"")="",IFERROR((INDEX('Base USDA'!$E$6:$E$5436,MATCH($AD21,'Base USDA'!$B$6:$B$5436,0)))*AH21,""),IFERROR((INDEX('Base SMAE'!$H$13:$H$2638,MATCH($AD21,'Base SMAE'!$A$13:$A$2638,0)))*AH21,"")),IF(IFERROR((INDEX('Base USDA'!$E$6:$E$5436,MATCH($AD21,'Base USDA'!$B$6:$B$5436,0)))*AH21,"")="",IFERROR((INDEX('Base SMAE'!$H$13:$H$2638,MATCH($AD21,'Base SMAE'!$A$13:$A$2638,0)))*AH21,""),IFERROR((INDEX('Base USDA'!$E$6:$E$5436,MATCH($AD21,'Base USDA'!$B$6:$B$5436,0)))*AH21,"")))) ->  | AM21: =IF(OR($AD21="",$AG21=""),"",IF($G$5="SMAE",IF(IFERROR((INDEX('Base SMAE'!$I$13:$I$2638,MATCH($AD21,'Base SMAE'!$A$13:$A$2638,0)))*AH21,"")="",IFERROR((INDEX('Base USDA'!$F$6:$F$5436,MATCH($AD21,'Base USDA'!$B$6:$B$5436,0)))*AH21,""),IFERROR((INDEX('Base SMAE'!$I$13:$I$2638,MATCH($AD21,'Base SMAE'!$A$13:$A$2638,0)))*AH21,"")),IF(IFERROR((INDEX('Base USDA'!$F$6:$F$5436,MATCH($AD21,'Base USDA'!$B$6:$B$5436,0)))*AH21,"")="",IFERROR((INDEX('Base SMAE'!$I$13:$I$2638,MATCH($AD21,'Base SMAE'!$A$13:$A$2638,0)))*AH21,""),IFERROR((INDEX('Base USDA'!$F$6:$F$5436,MATCH($AD21,'Base USDA'!$B$6:$B$5436,0)))*AH21,"")))) ->  | AN21: =IF(OR($AD21="",$AG21=""),"",IF($G$5="SMAE",IF(IFERROR((INDEX('Base SMAE'!$J$13:$J$2638,MATCH($AD21,'Base SMAE'!$A$13:$A$2638,0)))*AH21,"")="",IFERROR((INDEX('Base USDA'!$J$6:$J$5436,MATCH($AD21,'Base USDA'!$B$6:$B$5436,0)))*AH21,""),IFERROR((INDEX('Base SMAE'!$J$13:$J$2638,MATCH($AD21,'Base SMAE'!$A$13:$A$2638,0)))*AH21,"")),IF(IFERROR((INDEX('Base USDA'!$J$6:$J$5436,MATCH($AD21,'Base USDA'!$B$6:$B$5436,0)))*AH21,"")="",IFERROR((INDEX('Base SMAE'!$J$13:$J$2638,MATCH($AD21,'Base SMAE'!$A$13:$A$2638,0)))*AH21,""),IFERROR((INDEX('Base USDA'!$J$6:$J$5436,MATCH($AD21,'Base USDA'!$B$6:$B$5436,0)))*AH21,"")))) ->  | AO21: =IF(OR($AD21="",$AG21=""),"",IF($G$5="SMAE",IF(IFERROR((INDEX('Base SMAE'!$K$13:$K$2638,MATCH($AD21,'Base SMAE'!$A$13:$A$2638,0)))*AH21,"")="",IFERROR((INDEX('Base USDA'!$G$6:$G$5436,MATCH($AD21,'Base USDA'!$B$6:$B$5436,0)))*AH21,""),IFERROR((INDEX('Base SMAE'!$K$13:$K$2638,MATCH($AD21,'Base SMAE'!$A$13:$A$2638,0)))*AH21,"")),IF(IFERROR((INDEX('Base USDA'!$G$6:$G$5436,MATCH($AD21,'Base USDA'!$B$6:$B$5436,0)))*AH21,"")="",IFERROR((INDEX('Base SMAE'!$K$13:$K$2638,MATCH($AD21,'Base SMAE'!$A$13:$A$2638,0)))*AH21,""),IFERROR((INDEX('Base USDA'!$G$6:$G$5436,MATCH($AD21,'Base USDA'!$B$6:$B$5436,0)))*AH21,"")))) ->  | AP21: =IF(OR($AD21="",$AG21=""),"",IF($G$5="SMAE",IF(IFERROR((INDEX('Base SMAE'!$L$13:$L$2638,MATCH($AD21,'Base SMAE'!$A$13:$A$2638,0)))*AH21,"")="",IFERROR((INDEX('Base USDA'!$I$6:$I$5436,MATCH($AD21,'Base USDA'!$B$6:$B$5436,0)))*AH21,""),IFERROR((INDEX('Base SMAE'!$L$13:$L$2638,MATCH($AD21,'Base SMAE'!$A$13:$A$2638,0)))*AH21,"")),IF(IFERROR((INDEX('Base USDA'!$I$6:$I$5436,MATCH($AD21,'Base USDA'!$B$6:$B$5436,0)))*AH21,"")="",IFERROR((INDEX('Base SMAE'!$L$13:$L$2638,MATCH($AD21,'Base SMAE'!$A$13:$A$2638,0)))*AH21,""),IFERROR((INDEX('Base USDA'!$I$6:$I$5436,MATCH($AD21,'Base USDA'!$B$6:$B$5436,0)))*AH21,"")))) ->  | AT21: =IF($AR21="","",IF($AS21="Gramos","gramos",IF($G$5="SMAE",IFERROR(INDEX('Base SMAE'!$E$13:$E$2638,MATCH($AR21,'Base SMAE'!$A$13:$A$2638,0)),"gramos"),"gramos"))) ->  | AW21: =IF($AR21="","",IF($G$5="SMAE",IFERROR(INDEX('Base SMAE'!$B$13:$B$2638,MATCH($AR21,'Base SMAE'!$A$13:$A$2638,0)),IFERROR(INDEX('Base USDA'!$D$6:$D$5436,MATCH($AR21,'Base USDA'!$B$6:$B$5436,0)),"")),IFERROR(INDEX('Base USDA'!$D$6:$D$5436,MATCH($AR21,'Base USDA'!$B$6:$B$5436,0)),IFERROR(INDEX('Base SMAE'!$B$13:$B$2638,MATCH($AR21,'Base SMAE'!$A$13:$A$2638,0)),"")))) ->  | AX21: =IF($AR21="","",IF($G$5="SMAE",IFERROR(INDEX('Base SMAE'!$G$13:$G$2638,MATCH($AR21,'Base SMAE'!$A$13:$A$2638,0)),""),100)) ->  | AY21: =IF($AR21="","",IF($G$5="SMAE",IFERROR(INDEX('Base SMAE'!$D$13:$D$2638,MATCH($AR21,'Base SMAE'!$A$13:$A$2638,0)),""),100)) ->  | AZ21: =IF(OR($AR21="",$AU21=""),"",IF($G$5="SMAE",IF(IFERROR((INDEX('Base SMAE'!$H$13:$H$2638,MATCH($AR21,'Base SMAE'!$A$13:$A$2638,0)))*AV21,"")="",IFERROR((INDEX('Base USDA'!$E$6:$E$5436,MATCH($AR21,'Base USDA'!$B$6:$B$5436,0)))*AV21,""),IFERROR((INDEX('Base SMAE'!$H$13:$H$2638,MATCH($AR21,'Base SMAE'!$A$13:$A$2638,0)))*AV21,"")),IF(IFERROR((INDEX('Base USDA'!$E$6:$E$5436,MATCH($AR21,'Base USDA'!$B$6:$B$5436,0)))*AV21,"")="",IFERROR((INDEX('Base SMAE'!$H$13:$H$2638,MATCH($AR21,'Base SMAE'!$A$13:$A$2638,0)))*AV21,""),IFERROR((INDEX('Base USDA'!$E$6:$E$5436,MATCH($AR21,'Base USDA'!$B$6:$B$5436,0)))*AV21,"")))) ->  | BA21: =IF(OR($AR21="",$AU21=""),"",IF($G$5="SMAE",IF(IFERROR((INDEX('Base SMAE'!$I$13:$I$2638,MATCH($AR21,'Base SMAE'!$A$13:$A$2638,0)))*AV21,"")="",IFERROR((INDEX('Base USDA'!$F$6:$F$5436,MATCH($AR21,'Base USDA'!$B$6:$B$5436,0)))*AV21,""),IFERROR((INDEX('Base SMAE'!$I$13:$I$2638,MATCH($AR21,'Base SMAE'!$A$13:$A$2638,0)))*AV21,"")),IF(IFERROR((INDEX('Base USDA'!$F$6:$F$5436,MATCH($AR21,'Base USDA'!$B$6:$B$5436,0)))*AV21,"")="",IFERROR((INDEX('Base SMAE'!$I$13:$I$2638,MATCH($AR21,'Base SMAE'!$A$13:$A$2638,0)))*AV21,""),IFERROR((INDEX('Base USDA'!$F$6:$F$5436,MATCH($AR21,'Base USDA'!$B$6:$B$5436,0)))*AV21,"")))) ->  | BB21: =IF(OR($AR21="",$AU21=""),"",IF($G$5="SMAE",IF(IFERROR((INDEX('Base SMAE'!$J$13:$J$2638,MATCH($AR21,'Base SMAE'!$A$13:$A$2638,0)))*AV21,"")="",IFERROR((INDEX('Base USDA'!$J$6:$J$5436,MATCH($AR21,'Base USDA'!$B$6:$B$5436,0)))*AV21,""),IFERROR((INDEX('Base SMAE'!$J$13:$J$2638,MATCH($AR21,'Base SMAE'!$A$13:$A$2638,0)))*AV21,"")),IF(IFERROR((INDEX('Base USDA'!$J$6:$J$5436,MATCH($AR21,'Base USDA'!$B$6:$B$5436,0)))*AV21,"")="",IFERROR((INDEX('Base SMAE'!$J$13:$J$2638,MATCH($AR21,'Base SMAE'!$A$13:$A$2638,0)))*AV21,""),IFERROR((INDEX('Base USDA'!$J$6:$J$5436,MATCH($AR21,'Base USDA'!$B$6:$B$5436,0)))*AV21,"")))) ->  | BC21: =IF(OR($AR21="",$AU21=""),"",IF($G$5="SMAE",IF(IFERROR((INDEX('Base SMAE'!$K$13:$K$2638,MATCH($AR21,'Base SMAE'!$A$13:$A$2638,0)))*AV21,"")="",IFERROR((INDEX('Base USDA'!$G$6:$G$5436,MATCH($AR21,'Base USDA'!$B$6:$B$5436,0)))*AV21,""),IFERROR((INDEX('Base SMAE'!$K$13:$K$2638,MATCH($AR21,'Base SMAE'!$A$13:$A$2638,0)))*AV21,"")),IF(IFERROR((INDEX('Base USDA'!$G$6:$G$5436,MATCH($AR21,'Base USDA'!$B$6:$B$5436,0)))*AV21,"")="",IFERROR((INDEX('Base SMAE'!$K$13:$K$2638,MATCH($AR21,'Base SMAE'!$A$13:$A$2638,0)))*AV21,""),IFERROR((INDEX('Base USDA'!$G$6:$G$5436,MATCH($AR21,'Base USDA'!$B$6:$B$5436,0)))*AV21,"")))) ->  | BD21: =IF(OR($AR21="",$AU21=""),"",IF($G$5="SMAE",IF(IFERROR((INDEX('Base SMAE'!$L$13:$L$2638,MATCH($AR21,'Base SMAE'!$A$13:$A$2638,0)))*AV21,"")="",IFERROR((INDEX('Base USDA'!$I$6:$I$5436,MATCH($AR21,'Base USDA'!$B$6:$B$5436,0)))*AV21,""),IFERROR((INDEX('Base SMAE'!$L$13:$L$2638,MATCH($AR21,'Base SMAE'!$A$13:$A$2638,0)))*AV21,"")),IF(IFERROR((INDEX('Base USDA'!$I$6:$I$5436,MATCH($AR21,'Base USDA'!$B$6:$B$5436,0)))*AV21,"")="",IFERROR((INDEX('Base SMAE'!$L$13:$L$2638,MATCH($AR21,'Base SMAE'!$A$13:$A$2638,0)))*AV21,""),IFERROR((INDEX('Base USDA'!$I$6:$I$5436,MATCH($AR21,'Base USDA'!$B$6:$B$5436,0)))*AV21,"")))) ->  | BH21: LECHE ENTERA | BI21: =SUMIF(G15:G24,"LECHE ENTERA",F15:F24)+SUMIF(G37:G46,"LECHE ENTERA",F37:F46)+SUMIF(G59:G68,"LECHE ENTERA",F59:F68)+SUMIF(G81:G90,"LECHE ENTERA",F81:F90)+SUMIF(G103:G112,"LECHE ENTERA",F103:F112) -> 0 | BJ21: =SUMIF(U15:U24,"LECHE ENTERA",T15:T24)+SUMIF(U37:U46,"LECHE ENTERA",T37:T46)+SUMIF(U59:U68,"LECHE ENTERA",T59:T68)+SUMIF(U81:U90,"LECHE ENTERA",T81:T90)+SUMIF(U103:U112,"LECHE ENTERA",T103:T112) -> 0 | BK21: =SUMIF(AI15:AI24,"LECHE ENTERA",AH15:AH24)+SUMIF(AI37:AI46,"LECHE ENTERA",AH37:AH46)+SUMIF(AI59:AI68,"LECHE ENTERA",AH59:AH68)+SUMIF(AI81:AI90,"LECHE ENTERA",AH81:AH90)+SUMIF(AI103:AI112,"LECHE ENTERA",AH103:AH112) -> 0 | BL21: =SUMIF(AW15:AW24,"LECHE ENTERA",AV15:AV24)+SUMIF(AW37:AW46,"LECHE ENTERA",AV37:AV46)+SUMIF(AW59:AW68,"LECHE ENTERA",AV59:AV68)+SUMIF(AW81:AW90,"LECHE ENTERA",AV81:AV90)+SUMIF(AW103:AW112,"LECHE ENTERA",AV103:AV112) -> 0 | CB21: =IF($B21="",0,IF(ISNUMBER(MATCH($B21,'Base SMAE'!$A$13:$A$2638,0)),IFERROR($F21,0),0)) -> 0 | CC21: =IF($B21="",0,IF(ISNUMBER(MATCH($B21,'Base SMAE'!$A$13:$A$2638,0)),0,IFERROR(IF($C21="Gramos",$E21,IFERROR(($E21/$I21)*$H21,0))/100,0))) -> 0 | CD21: =IF($P21="",0,IF(ISNUMBER(MATCH($P21,'Base SMAE'!$A$13:$A$2638,0)),IFERROR($T21,0),0)) -> 0 | CE21: =IF($P21="",0,IF(ISNUMBER(MATCH($P21,'Base SMAE'!$A$13:$A$2638,0)),0,IFERROR(IF($Q21="Gramos",$S21,IFERROR(($S21/$W21)*$V21,0))/100,0))) -> 0 | CF21: =IF($AD21="",0,IF(ISNUMBER(MATCH($AD21,'Base SMAE'!$A$13:$A$2638,0)),IFERROR($AH21,0),0)) -> 0 | CG21: =IF($AD21="",0,IF(ISNUMBER(MATCH($AD21,'Base SMAE'!$A$13:$A$2638,0)),0,IFERROR(IF($AE21="Gramos",$AG21,IFERROR(($AG21/$AK21)*$AJ21,0))/100,0))) -> 0 | CH21: =IF($AR21="",0,IF(ISNUMBER(MATCH($AR21,'Base SMAE'!$A$13:$A$2638,0)),IFERROR($AV21,0),0)) -> 0 | CI21: =IF($AR21="",0,IF(ISNUMBER(MATCH($AR21,'Base SMAE'!$A$13:$A$2638,0)),0,IFERROR(IF($AS21="Gramos",$AU21,IFERROR(($AU21/$AY21)*$AX21,0))/100,0))) -> 0
D22: =IF($B22="","",IF($C22="Gramos","gramos",IF($G$5="SMAE",IFERROR(INDEX('Base SMAE'!$E$13:$E$2638,MATCH($B22,'Base SMAE'!$A$13:$A$2638,0)),"gramos"),"gramos"))) ->  | G22: =IF($B22="","",IF($G$5="SMAE",IFERROR(INDEX('Base SMAE'!$B$13:$B$2638,MATCH($B22,'Base SMAE'!$A$13:$A$2638,0)),IFERROR(INDEX('Base USDA'!$D$6:$D$5436,MATCH($B22,'Base USDA'!$B$6:$B$5436,0)),"")),IFERROR(INDEX('Base USDA'!$D$6:$D$5436,MATCH($B22,'Base USDA'!$B$6:$B$5436,0)),IFERROR(INDEX('Base SMAE'!$B$13:$B$2638,MATCH($B22,'Base SMAE'!$A$13:$A$2638,0)),"")))) ->  | H22: =IF($B22="","",IF($G$5="SMAE",IFERROR(INDEX('Base SMAE'!$G$13:$G$2638,MATCH($B22,'Base SMAE'!$A$13:$A$2638,0)),""),100)) ->  | I22: =IF($B22="","",IF($G$5="SMAE",IFERROR(INDEX('Base SMAE'!$D$13:$D$2638,MATCH($B22,'Base SMAE'!$A$13:$A$2638,0)),""),100)) ->  | J22: =IF(OR($B22="",$E22=""),"",IF($G$5="SMAE",IF(IFERROR((INDEX('Base SMAE'!$H$13:$H$2638,MATCH($B22,'Base SMAE'!$A$13:$A$2638,0)))*F22,"")="",IFERROR((INDEX('Base USDA'!$E$6:$E$5436,MATCH($B22,'Base USDA'!$B$6:$B$5436,0)))*F22,""),IFERROR((INDEX('Base SMAE'!$H$13:$H$2638,MATCH($B22,'Base SMAE'!$A$13:$A$2638,0)))*F22,"")),IF(IFERROR((INDEX('Base USDA'!$E$6:$E$5436,MATCH($B22,'Base USDA'!$B$6:$B$5436,0)))*F22,"")="",IFERROR((INDEX('Base SMAE'!$H$13:$H$2638,MATCH($B22,'Base SMAE'!$A$13:$A$2638,0)))*F22,""),IFERROR((INDEX('Base USDA'!$E$6:$E$5436,MATCH($B22,'Base USDA'!$B$6:$B$5436,0)))*F22,"")))) ->  | K22: =IF(OR($B22="",$E22=""),"",IF($G$5="SMAE",IF(IFERROR((INDEX('Base SMAE'!$I$13:$I$2638,MATCH($B22,'Base SMAE'!$A$13:$A$2638,0)))*F22,"")="",IFERROR((INDEX('Base USDA'!$F$6:$F$5436,MATCH($B22,'Base USDA'!$B$6:$B$5436,0)))*F22,""),IFERROR((INDEX('Base SMAE'!$I$13:$I$2638,MATCH($B22,'Base SMAE'!$A$13:$A$2638,0)))*F22,"")),IF(IFERROR((INDEX('Base USDA'!$F$6:$F$5436,MATCH($B22,'Base USDA'!$B$6:$B$5436,0)))*F22,"")="",IFERROR((INDEX('Base SMAE'!$I$13:$I$2638,MATCH($B22,'Base SMAE'!$A$13:$A$2638,0)))*F22,""),IFERROR((INDEX('Base USDA'!$F$6:$F$5436,MATCH($B22,'Base USDA'!$B$6:$B$5436,0)))*F22,"")))) ->  | L22: =IF(OR($B22="",$E22=""),"",IF($G$5="SMAE",IF(IFERROR((INDEX('Base SMAE'!$J$13:$J$2638,MATCH($B22,'Base SMAE'!$A$13:$A$2638,0)))*F22,"")="",IFERROR((INDEX('Base USDA'!$J$6:$J$5436,MATCH($B22,'Base USDA'!$B$6:$B$5436,0)))*F22,""),IFERROR((INDEX('Base SMAE'!$J$13:$J$2638,MATCH($B22,'Base SMAE'!$A$13:$A$2638,0)))*F22,"")),IF(IFERROR((INDEX('Base USDA'!$J$6:$J$5436,MATCH($B22,'Base USDA'!$B$6:$B$5436,0)))*F22,"")="",IFERROR((INDEX('Base SMAE'!$J$13:$J$2638,MATCH($B22,'Base SMAE'!$A$13:$A$2638,0)))*F22,""),IFERROR((INDEX('Base USDA'!$J$6:$J$5436,MATCH($B22,'Base USDA'!$B$6:$B$5436,0)))*F22,"")))) ->  | M22: =IF(OR($B22="",$E22=""),"",IF($G$5="SMAE",IF(IFERROR((INDEX('Base SMAE'!$K$13:$K$2638,MATCH($B22,'Base SMAE'!$A$13:$A$2638,0)))*F22,"")="",IFERROR((INDEX('Base USDA'!$G$6:$G$5436,MATCH($B22,'Base USDA'!$B$6:$B$5436,0)))*F22,""),IFERROR((INDEX('Base SMAE'!$K$13:$K$2638,MATCH($B22,'Base SMAE'!$A$13:$A$2638,0)))*F22,"")),IF(IFERROR((INDEX('Base USDA'!$G$6:$G$5436,MATCH($B22,'Base USDA'!$B$6:$B$5436,0)))*F22,"")="",IFERROR((INDEX('Base SMAE'!$K$13:$K$2638,MATCH($B22,'Base SMAE'!$A$13:$A$2638,0)))*F22,""),IFERROR((INDEX('Base USDA'!$G$6:$G$5436,MATCH($B22,'Base USDA'!$B$6:$B$5436,0)))*F22,"")))) ->  | N22: =IF(OR($B22="",$E22=""),"",IF($G$5="SMAE",IF(IFERROR((INDEX('Base SMAE'!$L$13:$L$2638,MATCH($B22,'Base SMAE'!$A$13:$A$2638,0)))*F22,"")="",IFERROR((INDEX('Base USDA'!$I$6:$I$5436,MATCH($B22,'Base USDA'!$B$6:$B$5436,0)))*F22,""),IFERROR((INDEX('Base SMAE'!$L$13:$L$2638,MATCH($B22,'Base SMAE'!$A$13:$A$2638,0)))*F22,"")),IF(IFERROR((INDEX('Base USDA'!$I$6:$I$5436,MATCH($B22,'Base USDA'!$B$6:$B$5436,0)))*F22,"")="",IFERROR((INDEX('Base SMAE'!$L$13:$L$2638,MATCH($B22,'Base SMAE'!$A$13:$A$2638,0)))*F22,""),IFERROR((INDEX('Base USDA'!$I$6:$I$5436,MATCH($B22,'Base USDA'!$B$6:$B$5436,0)))*F22,"")))) ->  | R22: =IF($P22="","",IF($Q22="Gramos","gramos",IF($G$5="SMAE",IFERROR(INDEX('Base SMAE'!$E$13:$E$2638,MATCH($P22,'Base SMAE'!$A$13:$A$2638,0)),"gramos"),"gramos"))) ->  | U22: =IF($P22="","",IF($G$5="SMAE",IFERROR(INDEX('Base SMAE'!$B$13:$B$2638,MATCH($P22,'Base SMAE'!$A$13:$A$2638,0)),IFERROR(INDEX('Base USDA'!$D$6:$D$5436,MATCH($P22,'Base USDA'!$B$6:$B$5436,0)),"")),IFERROR(INDEX('Base USDA'!$D$6:$D$5436,MATCH($P22,'Base USDA'!$B$6:$B$5436,0)),IFERROR(INDEX('Base SMAE'!$B$13:$B$2638,MATCH($P22,'Base SMAE'!$A$13:$A$2638,0)),"")))) ->  | V22: =IF($P22="","",IF($G$5="SMAE",IFERROR(INDEX('Base SMAE'!$G$13:$G$2638,MATCH($P22,'Base SMAE'!$A$13:$A$2638,0)),""),100)) ->  | W22: =IF($P22="","",IF($G$5="SMAE",IFERROR(INDEX('Base SMAE'!$D$13:$D$2638,MATCH($P22,'Base SMAE'!$A$13:$A$2638,0)),""),100)) ->  | X22: =IF(OR($P22="",$S22=""),"",IF($G$5="SMAE",IF(IFERROR((INDEX('Base SMAE'!$H$13:$H$2638,MATCH($P22,'Base SMAE'!$A$13:$A$2638,0)))*T22,"")="",IFERROR((INDEX('Base USDA'!$E$6:$E$5436,MATCH($P22,'Base USDA'!$B$6:$B$5436,0)))*T22,""),IFERROR((INDEX('Base SMAE'!$H$13:$H$2638,MATCH($P22,'Base SMAE'!$A$13:$A$2638,0)))*T22,"")),IF(IFERROR((INDEX('Base USDA'!$E$6:$E$5436,MATCH($P22,'Base USDA'!$B$6:$B$5436,0)))*T22,"")="",IFERROR((INDEX('Base SMAE'!$H$13:$H$2638,MATCH($P22,'Base SMAE'!$A$13:$A$2638,0)))*T22,""),IFERROR((INDEX('Base USDA'!$E$6:$E$5436,MATCH($P22,'Base USDA'!$B$6:$B$5436,0)))*T22,"")))) ->  | Y22: =IF(OR($P22="",$S22=""),"",IF($G$5="SMAE",IF(IFERROR((INDEX('Base SMAE'!$I$13:$I$2638,MATCH($P22,'Base SMAE'!$A$13:$A$2638,0)))*T22,"")="",IFERROR((INDEX('Base USDA'!$F$6:$F$5436,MATCH($P22,'Base USDA'!$B$6:$B$5436,0)))*T22,""),IFERROR((INDEX('Base SMAE'!$I$13:$I$2638,MATCH($P22,'Base SMAE'!$A$13:$A$2638,0)))*T22,"")),IF(IFERROR((INDEX('Base USDA'!$F$6:$F$5436,MATCH($P22,'Base USDA'!$B$6:$B$5436,0)))*T22,"")="",IFERROR((INDEX('Base SMAE'!$I$13:$I$2638,MATCH($P22,'Base SMAE'!$A$13:$A$2638,0)))*T22,""),IFERROR((INDEX('Base USDA'!$F$6:$F$5436,MATCH($P22,'Base USDA'!$B$6:$B$5436,0)))*T22,"")))) ->  | Z22: =IF(OR($P22="",$S22=""),"",IF($G$5="SMAE",IF(IFERROR((INDEX('Base SMAE'!$J$13:$J$2638,MATCH($P22,'Base SMAE'!$A$13:$A$2638,0)))*T22,"")="",IFERROR((INDEX('Base USDA'!$J$6:$J$5436,MATCH($P22,'Base USDA'!$B$6:$B$5436,0)))*T22,""),IFERROR((INDEX('Base SMAE'!$J$13:$J$2638,MATCH($P22,'Base SMAE'!$A$13:$A$2638,0)))*T22,"")),IF(IFERROR((INDEX('Base USDA'!$J$6:$J$5436,MATCH($P22,'Base USDA'!$B$6:$B$5436,0)))*T22,"")="",IFERROR((INDEX('Base SMAE'!$J$13:$J$2638,MATCH($P22,'Base SMAE'!$A$13:$A$2638,0)))*T22,""),IFERROR((INDEX('Base USDA'!$J$6:$J$5436,MATCH($P22,'Base USDA'!$B$6:$B$5436,0)))*T22,"")))) ->  | AA22: =IF(OR($P22="",$S22=""),"",IF($G$5="SMAE",IF(IFERROR((INDEX('Base SMAE'!$K$13:$K$2638,MATCH($P22,'Base SMAE'!$A$13:$A$2638,0)))*T22,"")="",IFERROR((INDEX('Base USDA'!$G$6:$G$5436,MATCH($P22,'Base USDA'!$B$6:$B$5436,0)))*T22,""),IFERROR((INDEX('Base SMAE'!$K$13:$K$2638,MATCH($P22,'Base SMAE'!$A$13:$A$2638,0)))*T22,"")),IF(IFERROR((INDEX('Base USDA'!$G$6:$G$5436,MATCH($P22,'Base USDA'!$B$6:$B$5436,0)))*T22,"")="",IFERROR((INDEX('Base SMAE'!$K$13:$K$2638,MATCH($P22,'Base SMAE'!$A$13:$A$2638,0)))*T22,""),IFERROR((INDEX('Base USDA'!$G$6:$G$5436,MATCH($P22,'Base USDA'!$B$6:$B$5436,0)))*T22,"")))) ->  | AB22: =IF(OR($P22="",$S22=""),"",IF($G$5="SMAE",IF(IFERROR((INDEX('Base SMAE'!$L$13:$L$2638,MATCH($P22,'Base SMAE'!$A$13:$A$2638,0)))*T22,"")="",IFERROR((INDEX('Base USDA'!$I$6:$I$5436,MATCH($P22,'Base USDA'!$B$6:$B$5436,0)))*T22,""),IFERROR((INDEX('Base SMAE'!$L$13:$L$2638,MATCH($P22,'Base SMAE'!$A$13:$A$2638,0)))*T22,"")),IF(IFERROR((INDEX('Base USDA'!$I$6:$I$5436,MATCH($P22,'Base USDA'!$B$6:$B$5436,0)))*T22,"")="",IFERROR((INDEX('Base SMAE'!$L$13:$L$2638,MATCH($P22,'Base SMAE'!$A$13:$A$2638,0)))*T22,""),IFERROR((INDEX('Base USDA'!$I$6:$I$5436,MATCH($P22,'Base USDA'!$B$6:$B$5436,0)))*T22,"")))) ->  | AF22: =IF($AD22="","",IF($AE22="Gramos","gramos",IF($G$5="SMAE",IFERROR(INDEX('Base SMAE'!$E$13:$E$2638,MATCH($AD22,'Base SMAE'!$A$13:$A$2638,0)),"gramos"),"gramos"))) ->  | AI22: =IF($AD22="","",IF($G$5="SMAE",IFERROR(INDEX('Base SMAE'!$B$13:$B$2638,MATCH($AD22,'Base SMAE'!$A$13:$A$2638,0)),IFERROR(INDEX('Base USDA'!$D$6:$D$5436,MATCH($AD22,'Base USDA'!$B$6:$B$5436,0)),"")),IFERROR(INDEX('Base USDA'!$D$6:$D$5436,MATCH($AD22,'Base USDA'!$B$6:$B$5436,0)),IFERROR(INDEX('Base SMAE'!$B$13:$B$2638,MATCH($AD22,'Base SMAE'!$A$13:$A$2638,0)),"")))) ->  | AJ22: =IF($AD22="","",IF($G$5="SMAE",IFERROR(INDEX('Base SMAE'!$G$13:$G$2638,MATCH($AD22,'Base SMAE'!$A$13:$A$2638,0)),""),100)) ->  | AK22: =IF($AD22="","",IF($G$5="SMAE",IFERROR(INDEX('Base SMAE'!$D$13:$D$2638,MATCH($AD22,'Base SMAE'!$A$13:$A$2638,0)),""),100)) ->  | AL22: =IF(OR($AD22="",$AG22=""),"",IF($G$5="SMAE",IF(IFERROR((INDEX('Base SMAE'!$H$13:$H$2638,MATCH($AD22,'Base SMAE'!$A$13:$A$2638,0)))*AH22,"")="",IFERROR((INDEX('Base USDA'!$E$6:$E$5436,MATCH($AD22,'Base USDA'!$B$6:$B$5436,0)))*AH22,""),IFERROR((INDEX('Base SMAE'!$H$13:$H$2638,MATCH($AD22,'Base SMAE'!$A$13:$A$2638,0)))*AH22,"")),IF(IFERROR((INDEX('Base USDA'!$E$6:$E$5436,MATCH($AD22,'Base USDA'!$B$6:$B$5436,0)))*AH22,"")="",IFERROR((INDEX('Base SMAE'!$H$13:$H$2638,MATCH($AD22,'Base SMAE'!$A$13:$A$2638,0)))*AH22,""),IFERROR((INDEX('Base USDA'!$E$6:$E$5436,MATCH($AD22,'Base USDA'!$B$6:$B$5436,0)))*AH22,"")))) ->  | AM22: =IF(OR($AD22="",$AG22=""),"",IF($G$5="SMAE",IF(IFERROR((INDEX('Base SMAE'!$I$13:$I$2638,MATCH($AD22,'Base SMAE'!$A$13:$A$2638,0)))*AH22,"")="",IFERROR((INDEX('Base USDA'!$F$6:$F$5436,MATCH($AD22,'Base USDA'!$B$6:$B$5436,0)))*AH22,""),IFERROR((INDEX('Base SMAE'!$I$13:$I$2638,MATCH($AD22,'Base SMAE'!$A$13:$A$2638,0)))*AH22,"")),IF(IFERROR((INDEX('Base USDA'!$F$6:$F$5436,MATCH($AD22,'Base USDA'!$B$6:$B$5436,0)))*AH22,"")="",IFERROR((INDEX('Base SMAE'!$I$13:$I$2638,MATCH($AD22,'Base SMAE'!$A$13:$A$2638,0)))*AH22,""),IFERROR((INDEX('Base USDA'!$F$6:$F$5436,MATCH($AD22,'Base USDA'!$B$6:$B$5436,0)))*AH22,"")))) ->  | AN22: =IF(OR($AD22="",$AG22=""),"",IF($G$5="SMAE",IF(IFERROR((INDEX('Base SMAE'!$J$13:$J$2638,MATCH($AD22,'Base SMAE'!$A$13:$A$2638,0)))*AH22,"")="",IFERROR((INDEX('Base USDA'!$J$6:$J$5436,MATCH($AD22,'Base USDA'!$B$6:$B$5436,0)))*AH22,""),IFERROR((INDEX('Base SMAE'!$J$13:$J$2638,MATCH($AD22,'Base SMAE'!$A$13:$A$2638,0)))*AH22,"")),IF(IFERROR((INDEX('Base USDA'!$J$6:$J$5436,MATCH($AD22,'Base USDA'!$B$6:$B$5436,0)))*AH22,"")="",IFERROR((INDEX('Base SMAE'!$J$13:$J$2638,MATCH($AD22,'Base SMAE'!$A$13:$A$2638,0)))*AH22,""),IFERROR((INDEX('Base USDA'!$J$6:$J$5436,MATCH($AD22,'Base USDA'!$B$6:$B$5436,0)))*AH22,"")))) ->  | AO22: =IF(OR($AD22="",$AG22=""),"",IF($G$5="SMAE",IF(IFERROR((INDEX('Base SMAE'!$K$13:$K$2638,MATCH($AD22,'Base SMAE'!$A$13:$A$2638,0)))*AH22,"")="",IFERROR((INDEX('Base USDA'!$G$6:$G$5436,MATCH($AD22,'Base USDA'!$B$6:$B$5436,0)))*AH22,""),IFERROR((INDEX('Base SMAE'!$K$13:$K$2638,MATCH($AD22,'Base SMAE'!$A$13:$A$2638,0)))*AH22,"")),IF(IFERROR((INDEX('Base USDA'!$G$6:$G$5436,MATCH($AD22,'Base USDA'!$B$6:$B$5436,0)))*AH22,"")="",IFERROR((INDEX('Base SMAE'!$K$13:$K$2638,MATCH($AD22,'Base SMAE'!$A$13:$A$2638,0)))*AH22,""),IFERROR((INDEX('Base USDA'!$G$6:$G$5436,MATCH($AD22,'Base USDA'!$B$6:$B$5436,0)))*AH22,"")))) ->  | AP22: =IF(OR($AD22="",$AG22=""),"",IF($G$5="SMAE",IF(IFERROR((INDEX('Base SMAE'!$L$13:$L$2638,MATCH($AD22,'Base SMAE'!$A$13:$A$2638,0)))*AH22,"")="",IFERROR((INDEX('Base USDA'!$I$6:$I$5436,MATCH($AD22,'Base USDA'!$B$6:$B$5436,0)))*AH22,""),IFERROR((INDEX('Base SMAE'!$L$13:$L$2638,MATCH($AD22,'Base SMAE'!$A$13:$A$2638,0)))*AH22,"")),IF(IFERROR((INDEX('Base USDA'!$I$6:$I$5436,MATCH($AD22,'Base USDA'!$B$6:$B$5436,0)))*AH22,"")="",IFERROR((INDEX('Base SMAE'!$L$13:$L$2638,MATCH($AD22,'Base SMAE'!$A$13:$A$2638,0)))*AH22,""),IFERROR((INDEX('Base USDA'!$I$6:$I$5436,MATCH($AD22,'Base USDA'!$B$6:$B$5436,0)))*AH22,"")))) ->  | AT22: =IF($AR22="","",IF($AS22="Gramos","gramos",IF($G$5="SMAE",IFERROR(INDEX('Base SMAE'!$E$13:$E$2638,MATCH($AR22,'Base SMAE'!$A$13:$A$2638,0)),"gramos"),"gramos"))) ->  | AW22: =IF($AR22="","",IF($G$5="SMAE",IFERROR(INDEX('Base SMAE'!$B$13:$B$2638,MATCH($AR22,'Base SMAE'!$A$13:$A$2638,0)),IFERROR(INDEX('Base USDA'!$D$6:$D$5436,MATCH($AR22,'Base USDA'!$B$6:$B$5436,0)),"")),IFERROR(INDEX('Base USDA'!$D$6:$D$5436,MATCH($AR22,'Base USDA'!$B$6:$B$5436,0)),IFERROR(INDEX('Base SMAE'!$B$13:$B$2638,MATCH($AR22,'Base SMAE'!$A$13:$A$2638,0)),"")))) ->  | AX22: =IF($AR22="","",IF($G$5="SMAE",IFERROR(INDEX('Base SMAE'!$G$13:$G$2638,MATCH($AR22,'Base SMAE'!$A$13:$A$2638,0)),""),100)) ->  | AY22: =IF($AR22="","",IF($G$5="SMAE",IFERROR(INDEX('Base SMAE'!$D$13:$D$2638,MATCH($AR22,'Base SMAE'!$A$13:$A$2638,0)),""),100)) ->  | AZ22: =IF(OR($AR22="",$AU22=""),"",IF($G$5="SMAE",IF(IFERROR((INDEX('Base SMAE'!$H$13:$H$2638,MATCH($AR22,'Base SMAE'!$A$13:$A$2638,0)))*AV22,"")="",IFERROR((INDEX('Base USDA'!$E$6:$E$5436,MATCH($AR22,'Base USDA'!$B$6:$B$5436,0)))*AV22,""),IFERROR((INDEX('Base SMAE'!$H$13:$H$2638,MATCH($AR22,'Base SMAE'!$A$13:$A$2638,0)))*AV22,"")),IF(IFERROR((INDEX('Base USDA'!$E$6:$E$5436,MATCH($AR22,'Base USDA'!$B$6:$B$5436,0)))*AV22,"")="",IFERROR((INDEX('Base SMAE'!$H$13:$H$2638,MATCH($AR22,'Base SMAE'!$A$13:$A$2638,0)))*AV22,""),IFERROR((INDEX('Base USDA'!$E$6:$E$5436,MATCH($AR22,'Base USDA'!$B$6:$B$5436,0)))*AV22,"")))) ->  | BA22: =IF(OR($AR22="",$AU22=""),"",IF($G$5="SMAE",IF(IFERROR((INDEX('Base SMAE'!$I$13:$I$2638,MATCH($AR22,'Base SMAE'!$A$13:$A$2638,0)))*AV22,"")="",IFERROR((INDEX('Base USDA'!$F$6:$F$5436,MATCH($AR22,'Base USDA'!$B$6:$B$5436,0)))*AV22,""),IFERROR((INDEX('Base SMAE'!$I$13:$I$2638,MATCH($AR22,'Base SMAE'!$A$13:$A$2638,0)))*AV22,"")),IF(IFERROR((INDEX('Base USDA'!$F$6:$F$5436,MATCH($AR22,'Base USDA'!$B$6:$B$5436,0)))*AV22,"")="",IFERROR((INDEX('Base SMAE'!$I$13:$I$2638,MATCH($AR22,'Base SMAE'!$A$13:$A$2638,0)))*AV22,""),IFERROR((INDEX('Base USDA'!$F$6:$F$5436,MATCH($AR22,'Base USDA'!$B$6:$B$5436,0)))*AV22,"")))) ->  | BB22: =IF(OR($AR22="",$AU22=""),"",IF($G$5="SMAE",IF(IFERROR((INDEX('Base SMAE'!$J$13:$J$2638,MATCH($AR22,'Base SMAE'!$A$13:$A$2638,0)))*AV22,"")="",IFERROR((INDEX('Base USDA'!$J$6:$J$5436,MATCH($AR22,'Base USDA'!$B$6:$B$5436,0)))*AV22,""),IFERROR((INDEX('Base SMAE'!$J$13:$J$2638,MATCH($AR22,'Base SMAE'!$A$13:$A$2638,0)))*AV22,"")),IF(IFERROR((INDEX('Base USDA'!$J$6:$J$5436,MATCH($AR22,'Base USDA'!$B$6:$B$5436,0)))*AV22,"")="",IFERROR((INDEX('Base SMAE'!$J$13:$J$2638,MATCH($AR22,'Base SMAE'!$A$13:$A$2638,0)))*AV22,""),IFERROR((INDEX('Base USDA'!$J$6:$J$5436,MATCH($AR22,'Base USDA'!$B$6:$B$5436,0)))*AV22,"")))) ->  | BC22: =IF(OR($AR22="",$AU22=""),"",IF($G$5="SMAE",IF(IFERROR((INDEX('Base SMAE'!$K$13:$K$2638,MATCH($AR22,'Base SMAE'!$A$13:$A$2638,0)))*AV22,"")="",IFERROR((INDEX('Base USDA'!$G$6:$G$5436,MATCH($AR22,'Base USDA'!$B$6:$B$5436,0)))*AV22,""),IFERROR((INDEX('Base SMAE'!$K$13:$K$2638,MATCH($AR22,'Base SMAE'!$A$13:$A$2638,0)))*AV22,"")),IF(IFERROR((INDEX('Base USDA'!$G$6:$G$5436,MATCH($AR22,'Base USDA'!$B$6:$B$5436,0)))*AV22,"")="",IFERROR((INDEX('Base SMAE'!$K$13:$K$2638,MATCH($AR22,'Base SMAE'!$A$13:$A$2638,0)))*AV22,""),IFERROR((INDEX('Base USDA'!$G$6:$G$5436,MATCH($AR22,'Base USDA'!$B$6:$B$5436,0)))*AV22,"")))) ->  | BD22: =IF(OR($AR22="",$AU22=""),"",IF($G$5="SMAE",IF(IFERROR((INDEX('Base SMAE'!$L$13:$L$2638,MATCH($AR22,'Base SMAE'!$A$13:$A$2638,0)))*AV22,"")="",IFERROR((INDEX('Base USDA'!$I$6:$I$5436,MATCH($AR22,'Base USDA'!$B$6:$B$5436,0)))*AV22,""),IFERROR((INDEX('Base SMAE'!$L$13:$L$2638,MATCH($AR22,'Base SMAE'!$A$13:$A$2638,0)))*AV22,"")),IF(IFERROR((INDEX('Base USDA'!$I$6:$I$5436,MATCH($AR22,'Base USDA'!$B$6:$B$5436,0)))*AV22,"")="",IFERROR((INDEX('Base SMAE'!$L$13:$L$2638,MATCH($AR22,'Base SMAE'!$A$13:$A$2638,0)))*AV22,""),IFERROR((INDEX('Base USDA'!$I$6:$I$5436,MATCH($AR22,'Base USDA'!$B$6:$B$5436,0)))*AV22,"")))) ->  | BH22: LECHE SEMI | BI22: =SUMIF(G15:G24,"LECHE SEMI",F15:F24)+SUMIF(G37:G46,"LECHE SEMI",F37:F46)+SUMIF(G59:G68,"LECHE SEMI",F59:F68)+SUMIF(G81:G90,"LECHE SEMI",F81:F90)+SUMIF(G103:G112,"LECHE SEMI",F103:F112) -> 0 | BJ22: =SUMIF(U15:U24,"LECHE SEMI",T15:T24)+SUMIF(U37:U46,"LECHE SEMI",T37:T46)+SUMIF(U59:U68,"LECHE SEMI",T59:T68)+SUMIF(U81:U90,"LECHE SEMI",T81:T90)+SUMIF(U103:U112,"LECHE SEMI",T103:T112) -> 0 | BK22: =SUMIF(AI15:AI24,"LECHE SEMI",AH15:AH24)+SUMIF(AI37:AI46,"LECHE SEMI",AH37:AH46)+SUMIF(AI59:AI68,"LECHE SEMI",AH59:AH68)+SUMIF(AI81:AI90,"LECHE SEMI",AH81:AH90)+SUMIF(AI103:AI112,"LECHE SEMI",AH103:AH112) -> 0 | BL22: =SUMIF(AW15:AW24,"LECHE SEMI",AV15:AV24)+SUMIF(AW37:AW46,"LECHE SEMI",AV37:AV46)+SUMIF(AW59:AW68,"LECHE SEMI",AV59:AV68)+SUMIF(AW81:AW90,"LECHE SEMI",AV81:AV90)+SUMIF(AW103:AW112,"LECHE SEMI",AV103:AV112) -> 0 | CB22: =IF($B22="",0,IF(ISNUMBER(MATCH($B22,'Base SMAE'!$A$13:$A$2638,0)),IFERROR($F22,0),0)) -> 0 | CC22: =IF($B22="",0,IF(ISNUMBER(MATCH($B22,'Base SMAE'!$A$13:$A$2638,0)),0,IFERROR(IF($C22="Gramos",$E22,IFERROR(($E22/$I22)*$H22,0))/100,0))) -> 0 | CD22: =IF($P22="",0,IF(ISNUMBER(MATCH($P22,'Base SMAE'!$A$13:$A$2638,0)),IFERROR($T22,0),0)) -> 0 | CE22: =IF($P22="",0,IF(ISNUMBER(MATCH($P22,'Base SMAE'!$A$13:$A$2638,0)),0,IFERROR(IF($Q22="Gramos",$S22,IFERROR(($S22/$W22)*$V22,0))/100,0))) -> 0 | CF22: =IF($AD22="",0,IF(ISNUMBER(MATCH($AD22,'Base SMAE'!$A$13:$A$2638,0)),IFERROR($AH22,0),0)) -> 0 | CG22: =IF($AD22="",0,IF(ISNUMBER(MATCH($AD22,'Base SMAE'!$A$13:$A$2638,0)),0,IFERROR(IF($AE22="Gramos",$AG22,IFERROR(($AG22/$AK22)*$AJ22,0))/100,0))) -> 0 | CH22: =IF($AR22="",0,IF(ISNUMBER(MATCH($AR22,'Base SMAE'!$A$13:$A$2638,0)),IFERROR($AV22,0),0)) -> 0 | CI22: =IF($AR22="",0,IF(ISNUMBER(MATCH($AR22,'Base SMAE'!$A$13:$A$2638,0)),0,IFERROR(IF($AS22="Gramos",$AU22,IFERROR(($AU22/$AY22)*$AX22,0))/100,0))) -> 0
D23: =IF($B23="","",IF($C23="Gramos","gramos",IF($G$5="SMAE",IFERROR(INDEX('Base SMAE'!$E$13:$E$2638,MATCH($B23,'Base SMAE'!$A$13:$A$2638,0)),"gramos"),"gramos"))) ->  | G23: =IF($B23="","",IF($G$5="SMAE",IFERROR(INDEX('Base SMAE'!$B$13:$B$2638,MATCH($B23,'Base SMAE'!$A$13:$A$2638,0)),IFERROR(INDEX('Base USDA'!$D$6:$D$5436,MATCH($B23,'Base USDA'!$B$6:$B$5436,0)),"")),IFERROR(INDEX('Base USDA'!$D$6:$D$5436,MATCH($B23,'Base USDA'!$B$6:$B$5436,0)),IFERROR(INDEX('Base SMAE'!$B$13:$B$2638,MATCH($B23,'Base SMAE'!$A$13:$A$2638,0)),"")))) ->  | H23: =IF($B23="","",IF($G$5="SMAE",IFERROR(INDEX('Base SMAE'!$G$13:$G$2638,MATCH($B23,'Base SMAE'!$A$13:$A$2638,0)),""),100)) ->  | I23: =IF($B23="","",IF($G$5="SMAE",IFERROR(INDEX('Base SMAE'!$D$13:$D$2638,MATCH($B23,'Base SMAE'!$A$13:$A$2638,0)),""),100)) ->  | J23: =IF(OR($B23="",$E23=""),"",IF($G$5="SMAE",IF(IFERROR((INDEX('Base SMAE'!$H$13:$H$2638,MATCH($B23,'Base SMAE'!$A$13:$A$2638,0)))*F23,"")="",IFERROR((INDEX('Base USDA'!$E$6:$E$5436,MATCH($B23,'Base USDA'!$B$6:$B$5436,0)))*F23,""),IFERROR((INDEX('Base SMAE'!$H$13:$H$2638,MATCH($B23,'Base SMAE'!$A$13:$A$2638,0)))*F23,"")),IF(IFERROR((INDEX('Base USDA'!$E$6:$E$5436,MATCH($B23,'Base USDA'!$B$6:$B$5436,0)))*F23,"")="",IFERROR((INDEX('Base SMAE'!$H$13:$H$2638,MATCH($B23,'Base SMAE'!$A$13:$A$2638,0)))*F23,""),IFERROR((INDEX('Base USDA'!$E$6:$E$5436,MATCH($B23,'Base USDA'!$B$6:$B$5436,0)))*F23,"")))) ->  | K23: =IF(OR($B23="",$E23=""),"",IF($G$5="SMAE",IF(IFERROR((INDEX('Base SMAE'!$I$13:$I$2638,MATCH($B23,'Base SMAE'!$A$13:$A$2638,0)))*F23,"")="",IFERROR((INDEX('Base USDA'!$F$6:$F$5436,MATCH($B23,'Base USDA'!$B$6:$B$5436,0)))*F23,""),IFERROR((INDEX('Base SMAE'!$I$13:$I$2638,MATCH($B23,'Base SMAE'!$A$13:$A$2638,0)))*F23,"")),IF(IFERROR((INDEX('Base USDA'!$F$6:$F$5436,MATCH($B23,'Base USDA'!$B$6:$B$5436,0)))*F23,"")="",IFERROR((INDEX('Base SMAE'!$I$13:$I$2638,MATCH($B23,'Base SMAE'!$A$13:$A$2638,0)))*F23,""),IFERROR((INDEX('Base USDA'!$F$6:$F$5436,MATCH($B23,'Base USDA'!$B$6:$B$5436,0)))*F23,"")))) ->  | L23: =IF(OR($B23="",$E23=""),"",IF($G$5="SMAE",IF(IFERROR((INDEX('Base SMAE'!$J$13:$J$2638,MATCH($B23,'Base SMAE'!$A$13:$A$2638,0)))*F23,"")="",IFERROR((INDEX('Base USDA'!$J$6:$J$5436,MATCH($B23,'Base USDA'!$B$6:$B$5436,0)))*F23,""),IFERROR((INDEX('Base SMAE'!$J$13:$J$2638,MATCH($B23,'Base SMAE'!$A$13:$A$2638,0)))*F23,"")),IF(IFERROR((INDEX('Base USDA'!$J$6:$J$5436,MATCH($B23,'Base USDA'!$B$6:$B$5436,0)))*F23,"")="",IFERROR((INDEX('Base SMAE'!$J$13:$J$2638,MATCH($B23,'Base SMAE'!$A$13:$A$2638,0)))*F23,""),IFERROR((INDEX('Base USDA'!$J$6:$J$5436,MATCH($B23,'Base USDA'!$B$6:$B$5436,0)))*F23,"")))) ->  | M23: =IF(OR($B23="",$E23=""),"",IF($G$5="SMAE",IF(IFERROR((INDEX('Base SMAE'!$K$13:$K$2638,MATCH($B23,'Base SMAE'!$A$13:$A$2638,0)))*F23,"")="",IFERROR((INDEX('Base USDA'!$G$6:$G$5436,MATCH($B23,'Base USDA'!$B$6:$B$5436,0)))*F23,""),IFERROR((INDEX('Base SMAE'!$K$13:$K$2638,MATCH($B23,'Base SMAE'!$A$13:$A$2638,0)))*F23,"")),IF(IFERROR((INDEX('Base USDA'!$G$6:$G$5436,MATCH($B23,'Base USDA'!$B$6:$B$5436,0)))*F23,"")="",IFERROR((INDEX('Base SMAE'!$K$13:$K$2638,MATCH($B23,'Base SMAE'!$A$13:$A$2638,0)))*F23,""),IFERROR((INDEX('Base USDA'!$G$6:$G$5436,MATCH($B23,'Base USDA'!$B$6:$B$5436,0)))*F23,"")))) ->  | N23: =IF(OR($B23="",$E23=""),"",IF($G$5="SMAE",IF(IFERROR((INDEX('Base SMAE'!$L$13:$L$2638,MATCH($B23,'Base SMAE'!$A$13:$A$2638,0)))*F23,"")="",IFERROR((INDEX('Base USDA'!$I$6:$I$5436,MATCH($B23,'Base USDA'!$B$6:$B$5436,0)))*F23,""),IFERROR((INDEX('Base SMAE'!$L$13:$L$2638,MATCH($B23,'Base SMAE'!$A$13:$A$2638,0)))*F23,"")),IF(IFERROR((INDEX('Base USDA'!$I$6:$I$5436,MATCH($B23,'Base USDA'!$B$6:$B$5436,0)))*F23,"")="",IFERROR((INDEX('Base SMAE'!$L$13:$L$2638,MATCH($B23,'Base SMAE'!$A$13:$A$2638,0)))*F23,""),IFERROR((INDEX('Base USDA'!$I$6:$I$5436,MATCH($B23,'Base USDA'!$B$6:$B$5436,0)))*F23,"")))) ->  | R23: =IF($P23="","",IF($Q23="Gramos","gramos",IF($G$5="SMAE",IFERROR(INDEX('Base SMAE'!$E$13:$E$2638,MATCH($P23,'Base SMAE'!$A$13:$A$2638,0)),"gramos"),"gramos"))) ->  | U23: =IF($P23="","",IF($G$5="SMAE",IFERROR(INDEX('Base SMAE'!$B$13:$B$2638,MATCH($P23,'Base SMAE'!$A$13:$A$2638,0)),IFERROR(INDEX('Base USDA'!$D$6:$D$5436,MATCH($P23,'Base USDA'!$B$6:$B$5436,0)),"")),IFERROR(INDEX('Base USDA'!$D$6:$D$5436,MATCH($P23,'Base USDA'!$B$6:$B$5436,0)),IFERROR(INDEX('Base SMAE'!$B$13:$B$2638,MATCH($P23,'Base SMAE'!$A$13:$A$2638,0)),"")))) ->  | V23: =IF($P23="","",IF($G$5="SMAE",IFERROR(INDEX('Base SMAE'!$G$13:$G$2638,MATCH($P23,'Base SMAE'!$A$13:$A$2638,0)),""),100)) ->  | W23: =IF($P23="","",IF($G$5="SMAE",IFERROR(INDEX('Base SMAE'!$D$13:$D$2638,MATCH($P23,'Base SMAE'!$A$13:$A$2638,0)),""),100)) ->  | X23: =IF(OR($P23="",$S23=""),"",IF($G$5="SMAE",IF(IFERROR((INDEX('Base SMAE'!$H$13:$H$2638,MATCH($P23,'Base SMAE'!$A$13:$A$2638,0)))*T23,"")="",IFERROR((INDEX('Base USDA'!$E$6:$E$5436,MATCH($P23,'Base USDA'!$B$6:$B$5436,0)))*T23,""),IFERROR((INDEX('Base SMAE'!$H$13:$H$2638,MATCH($P23,'Base SMAE'!$A$13:$A$2638,0)))*T23,"")),IF(IFERROR((INDEX('Base USDA'!$E$6:$E$5436,MATCH($P23,'Base USDA'!$B$6:$B$5436,0)))*T23,"")="",IFERROR((INDEX('Base SMAE'!$H$13:$H$2638,MATCH($P23,'Base SMAE'!$A$13:$A$2638,0)))*T23,""),IFERROR((INDEX('Base USDA'!$E$6:$E$5436,MATCH($P23,'Base USDA'!$B$6:$B$5436,0)))*T23,"")))) ->  | Y23: =IF(OR($P23="",$S23=""),"",IF($G$5="SMAE",IF(IFERROR((INDEX('Base SMAE'!$I$13:$I$2638,MATCH($P23,'Base SMAE'!$A$13:$A$2638,0)))*T23,"")="",IFERROR((INDEX('Base USDA'!$F$6:$F$5436,MATCH($P23,'Base USDA'!$B$6:$B$5436,0)))*T23,""),IFERROR((INDEX('Base SMAE'!$I$13:$I$2638,MATCH($P23,'Base SMAE'!$A$13:$A$2638,0)))*T23,"")),IF(IFERROR((INDEX('Base USDA'!$F$6:$F$5436,MATCH($P23,'Base USDA'!$B$6:$B$5436,0)))*T23,"")="",IFERROR((INDEX('Base SMAE'!$I$13:$I$2638,MATCH($P23,'Base SMAE'!$A$13:$A$2638,0)))*T23,""),IFERROR((INDEX('Base USDA'!$F$6:$F$5436,MATCH($P23,'Base USDA'!$B$6:$B$5436,0)))*T23,"")))) ->  | Z23: =IF(OR($P23="",$S23=""),"",IF($G$5="SMAE",IF(IFERROR((INDEX('Base SMAE'!$J$13:$J$2638,MATCH($P23,'Base SMAE'!$A$13:$A$2638,0)))*T23,"")="",IFERROR((INDEX('Base USDA'!$J$6:$J$5436,MATCH($P23,'Base USDA'!$B$6:$B$5436,0)))*T23,""),IFERROR((INDEX('Base SMAE'!$J$13:$J$2638,MATCH($P23,'Base SMAE'!$A$13:$A$2638,0)))*T23,"")),IF(IFERROR((INDEX('Base USDA'!$J$6:$J$5436,MATCH($P23,'Base USDA'!$B$6:$B$5436,0)))*T23,"")="",IFERROR((INDEX('Base SMAE'!$J$13:$J$2638,MATCH($P23,'Base SMAE'!$A$13:$A$2638,0)))*T23,""),IFERROR((INDEX('Base USDA'!$J$6:$J$5436,MATCH($P23,'Base USDA'!$B$6:$B$5436,0)))*T23,"")))) ->  | AA23: =IF(OR($P23="",$S23=""),"",IF($G$5="SMAE",IF(IFERROR((INDEX('Base SMAE'!$K$13:$K$2638,MATCH($P23,'Base SMAE'!$A$13:$A$2638,0)))*T23,"")="",IFERROR((INDEX('Base USDA'!$G$6:$G$5436,MATCH($P23,'Base USDA'!$B$6:$B$5436,0)))*T23,""),IFERROR((INDEX('Base SMAE'!$K$13:$K$2638,MATCH($P23,'Base SMAE'!$A$13:$A$2638,0)))*T23,"")),IF(IFERROR((INDEX('Base USDA'!$G$6:$G$5436,MATCH($P23,'Base USDA'!$B$6:$B$5436,0)))*T23,"")="",IFERROR((INDEX('Base SMAE'!$K$13:$K$2638,MATCH($P23,'Base SMAE'!$A$13:$A$2638,0)))*T23,""),IFERROR((INDEX('Base USDA'!$G$6:$G$5436,MATCH($P23,'Base USDA'!$B$6:$B$5436,0)))*T23,"")))) ->  | AB23: =IF(OR($P23="",$S23=""),"",IF($G$5="SMAE",IF(IFERROR((INDEX('Base SMAE'!$L$13:$L$2638,MATCH($P23,'Base SMAE'!$A$13:$A$2638,0)))*T23,"")="",IFERROR((INDEX('Base USDA'!$I$6:$I$5436,MATCH($P23,'Base USDA'!$B$6:$B$5436,0)))*T23,""),IFERROR((INDEX('Base SMAE'!$L$13:$L$2638,MATCH($P23,'Base SMAE'!$A$13:$A$2638,0)))*T23,"")),IF(IFERROR((INDEX('Base USDA'!$I$6:$I$5436,MATCH($P23,'Base USDA'!$B$6:$B$5436,0)))*T23,"")="",IFERROR((INDEX('Base SMAE'!$L$13:$L$2638,MATCH($P23,'Base SMAE'!$A$13:$A$2638,0)))*T23,""),IFERROR((INDEX('Base USDA'!$I$6:$I$5436,MATCH($P23,'Base USDA'!$B$6:$B$5436,0)))*T23,"")))) ->  | AF23: =IF($AD23="","",IF($AE23="Gramos","gramos",IF($G$5="SMAE",IFERROR(INDEX('Base SMAE'!$E$13:$E$2638,MATCH($AD23,'Base SMAE'!$A$13:$A$2638,0)),"gramos"),"gramos"))) ->  | AI23: =IF($AD23="","",IF($G$5="SMAE",IFERROR(INDEX('Base SMAE'!$B$13:$B$2638,MATCH($AD23,'Base SMAE'!$A$13:$A$2638,0)),IFERROR(INDEX('Base USDA'!$D$6:$D$5436,MATCH($AD23,'Base USDA'!$B$6:$B$5436,0)),"")),IFERROR(INDEX('Base USDA'!$D$6:$D$5436,MATCH($AD23,'Base USDA'!$B$6:$B$5436,0)),IFERROR(INDEX('Base SMAE'!$B$13:$B$2638,MATCH($AD23,'Base SMAE'!$A$13:$A$2638,0)),"")))) ->  | AJ23: =IF($AD23="","",IF($G$5="SMAE",IFERROR(INDEX('Base SMAE'!$G$13:$G$2638,MATCH($AD23,'Base SMAE'!$A$13:$A$2638,0)),""),100)) ->  | AK23: =IF($AD23="","",IF($G$5="SMAE",IFERROR(INDEX('Base SMAE'!$D$13:$D$2638,MATCH($AD23,'Base SMAE'!$A$13:$A$2638,0)),""),100)) ->  | AL23: =IF(OR($AD23="",$AG23=""),"",IF($G$5="SMAE",IF(IFERROR((INDEX('Base SMAE'!$H$13:$H$2638,MATCH($AD23,'Base SMAE'!$A$13:$A$2638,0)))*AH23,"")="",IFERROR((INDEX('Base USDA'!$E$6:$E$5436,MATCH($AD23,'Base USDA'!$B$6:$B$5436,0)))*AH23,""),IFERROR((INDEX('Base SMAE'!$H$13:$H$2638,MATCH($AD23,'Base SMAE'!$A$13:$A$2638,0)))*AH23,"")),IF(IFERROR((INDEX('Base USDA'!$E$6:$E$5436,MATCH($AD23,'Base USDA'!$B$6:$B$5436,0)))*AH23,"")="",IFERROR((INDEX('Base SMAE'!$H$13:$H$2638,MATCH($AD23,'Base SMAE'!$A$13:$A$2638,0)))*AH23,""),IFERROR((INDEX('Base USDA'!$E$6:$E$5436,MATCH($AD23,'Base USDA'!$B$6:$B$5436,0)))*AH23,"")))) ->  | AM23: =IF(OR($AD23="",$AG23=""),"",IF($G$5="SMAE",IF(IFERROR((INDEX('Base SMAE'!$I$13:$I$2638,MATCH($AD23,'Base SMAE'!$A$13:$A$2638,0)))*AH23,"")="",IFERROR((INDEX('Base USDA'!$F$6:$F$5436,MATCH($AD23,'Base USDA'!$B$6:$B$5436,0)))*AH23,""),IFERROR((INDEX('Base SMAE'!$I$13:$I$2638,MATCH($AD23,'Base SMAE'!$A$13:$A$2638,0)))*AH23,"")),IF(IFERROR((INDEX('Base USDA'!$F$6:$F$5436,MATCH($AD23,'Base USDA'!$B$6:$B$5436,0)))*AH23,"")="",IFERROR((INDEX('Base SMAE'!$I$13:$I$2638,MATCH($AD23,'Base SMAE'!$A$13:$A$2638,0)))*AH23,""),IFERROR((INDEX('Base USDA'!$F$6:$F$5436,MATCH($AD23,'Base USDA'!$B$6:$B$5436,0)))*AH23,"")))) ->  | AN23: =IF(OR($AD23="",$AG23=""),"",IF($G$5="SMAE",IF(IFERROR((INDEX('Base SMAE'!$J$13:$J$2638,MATCH($AD23,'Base SMAE'!$A$13:$A$2638,0)))*AH23,"")="",IFERROR((INDEX('Base USDA'!$J$6:$J$5436,MATCH($AD23,'Base USDA'!$B$6:$B$5436,0)))*AH23,""),IFERROR((INDEX('Base SMAE'!$J$13:$J$2638,MATCH($AD23,'Base SMAE'!$A$13:$A$2638,0)))*AH23,"")),IF(IFERROR((INDEX('Base USDA'!$J$6:$J$5436,MATCH($AD23,'Base USDA'!$B$6:$B$5436,0)))*AH23,"")="",IFERROR((INDEX('Base SMAE'!$J$13:$J$2638,MATCH($AD23,'Base SMAE'!$A$13:$A$2638,0)))*AH23,""),IFERROR((INDEX('Base USDA'!$J$6:$J$5436,MATCH($AD23,'Base USDA'!$B$6:$B$5436,0)))*AH23,"")))) ->  | AO23: =IF(OR($AD23="",$AG23=""),"",IF($G$5="SMAE",IF(IFERROR((INDEX('Base SMAE'!$K$13:$K$2638,MATCH($AD23,'Base SMAE'!$A$13:$A$2638,0)))*AH23,"")="",IFERROR((INDEX('Base USDA'!$G$6:$G$5436,MATCH($AD23,'Base USDA'!$B$6:$B$5436,0)))*AH23,""),IFERROR((INDEX('Base SMAE'!$K$13:$K$2638,MATCH($AD23,'Base SMAE'!$A$13:$A$2638,0)))*AH23,"")),IF(IFERROR((INDEX('Base USDA'!$G$6:$G$5436,MATCH($AD23,'Base USDA'!$B$6:$B$5436,0)))*AH23,"")="",IFERROR((INDEX('Base SMAE'!$K$13:$K$2638,MATCH($AD23,'Base SMAE'!$A$13:$A$2638,0)))*AH23,""),IFERROR((INDEX('Base USDA'!$G$6:$G$5436,MATCH($AD23,'Base USDA'!$B$6:$B$5436,0)))*AH23,"")))) ->  | AP23: =IF(OR($AD23="",$AG23=""),"",IF($G$5="SMAE",IF(IFERROR((INDEX('Base SMAE'!$L$13:$L$2638,MATCH($AD23,'Base SMAE'!$A$13:$A$2638,0)))*AH23,"")="",IFERROR((INDEX('Base USDA'!$I$6:$I$5436,MATCH($AD23,'Base USDA'!$B$6:$B$5436,0)))*AH23,""),IFERROR((INDEX('Base SMAE'!$L$13:$L$2638,MATCH($AD23,'Base SMAE'!$A$13:$A$2638,0)))*AH23,"")),IF(IFERROR((INDEX('Base USDA'!$I$6:$I$5436,MATCH($AD23,'Base USDA'!$B$6:$B$5436,0)))*AH23,"")="",IFERROR((INDEX('Base SMAE'!$L$13:$L$2638,MATCH($AD23,'Base SMAE'!$A$13:$A$2638,0)))*AH23,""),IFERROR((INDEX('Base USDA'!$I$6:$I$5436,MATCH($AD23,'Base USDA'!$B$6:$B$5436,0)))*AH23,"")))) ->  | AT23: =IF($AR23="","",IF($AS23="Gramos","gramos",IF($G$5="SMAE",IFERROR(INDEX('Base SMAE'!$E$13:$E$2638,MATCH($AR23,'Base SMAE'!$A$13:$A$2638,0)),"gramos"),"gramos"))) ->  | AW23: =IF($AR23="","",IF($G$5="SMAE",IFERROR(INDEX('Base SMAE'!$B$13:$B$2638,MATCH($AR23,'Base SMAE'!$A$13:$A$2638,0)),IFERROR(INDEX('Base USDA'!$D$6:$D$5436,MATCH($AR23,'Base USDA'!$B$6:$B$5436,0)),"")),IFERROR(INDEX('Base USDA'!$D$6:$D$5436,MATCH($AR23,'Base USDA'!$B$6:$B$5436,0)),IFERROR(INDEX('Base SMAE'!$B$13:$B$2638,MATCH($AR23,'Base SMAE'!$A$13:$A$2638,0)),"")))) ->  | AX23: =IF($AR23="","",IF($G$5="SMAE",IFERROR(INDEX('Base SMAE'!$G$13:$G$2638,MATCH($AR23,'Base SMAE'!$A$13:$A$2638,0)),""),100)) ->  | AY23: =IF($AR23="","",IF($G$5="SMAE",IFERROR(INDEX('Base SMAE'!$D$13:$D$2638,MATCH($AR23,'Base SMAE'!$A$13:$A$2638,0)),""),100)) ->  | AZ23: =IF(OR($AR23="",$AU23=""),"",IF($G$5="SMAE",IF(IFERROR((INDEX('Base SMAE'!$H$13:$H$2638,MATCH($AR23,'Base SMAE'!$A$13:$A$2638,0)))*AV23,"")="",IFERROR((INDEX('Base USDA'!$E$6:$E$5436,MATCH($AR23,'Base USDA'!$B$6:$B$5436,0)))*AV23,""),IFERROR((INDEX('Base SMAE'!$H$13:$H$2638,MATCH($AR23,'Base SMAE'!$A$13:$A$2638,0)))*AV23,"")),IF(IFERROR((INDEX('Base USDA'!$E$6:$E$5436,MATCH($AR23,'Base USDA'!$B$6:$B$5436,0)))*AV23,"")="",IFERROR((INDEX('Base SMAE'!$H$13:$H$2638,MATCH($AR23,'Base SMAE'!$A$13:$A$2638,0)))*AV23,""),IFERROR((INDEX('Base USDA'!$E$6:$E$5436,MATCH($AR23,'Base USDA'!$B$6:$B$5436,0)))*AV23,"")))) ->  | BA23: =IF(OR($AR23="",$AU23=""),"",IF($G$5="SMAE",IF(IFERROR((INDEX('Base SMAE'!$I$13:$I$2638,MATCH($AR23,'Base SMAE'!$A$13:$A$2638,0)))*AV23,"")="",IFERROR((INDEX('Base USDA'!$F$6:$F$5436,MATCH($AR23,'Base USDA'!$B$6:$B$5436,0)))*AV23,""),IFERROR((INDEX('Base SMAE'!$I$13:$I$2638,MATCH($AR23,'Base SMAE'!$A$13:$A$2638,0)))*AV23,"")),IF(IFERROR((INDEX('Base USDA'!$F$6:$F$5436,MATCH($AR23,'Base USDA'!$B$6:$B$5436,0)))*AV23,"")="",IFERROR((INDEX('Base SMAE'!$I$13:$I$2638,MATCH($AR23,'Base SMAE'!$A$13:$A$2638,0)))*AV23,""),IFERROR((INDEX('Base USDA'!$F$6:$F$5436,MATCH($AR23,'Base USDA'!$B$6:$B$5436,0)))*AV23,"")))) ->  | BB23: =IF(OR($AR23="",$AU23=""),"",IF($G$5="SMAE",IF(IFERROR((INDEX('Base SMAE'!$J$13:$J$2638,MATCH($AR23,'Base SMAE'!$A$13:$A$2638,0)))*AV23,"")="",IFERROR((INDEX('Base USDA'!$J$6:$J$5436,MATCH($AR23,'Base USDA'!$B$6:$B$5436,0)))*AV23,""),IFERROR((INDEX('Base SMAE'!$J$13:$J$2638,MATCH($AR23,'Base SMAE'!$A$13:$A$2638,0)))*AV23,"")),IF(IFERROR((INDEX('Base USDA'!$J$6:$J$5436,MATCH($AR23,'Base USDA'!$B$6:$B$5436,0)))*AV23,"")="",IFERROR((INDEX('Base SMAE'!$J$13:$J$2638,MATCH($AR23,'Base SMAE'!$A$13:$A$2638,0)))*AV23,""),IFERROR((INDEX('Base USDA'!$J$6:$J$5436,MATCH($AR23,'Base USDA'!$B$6:$B$5436,0)))*AV23,"")))) ->  | BC23: =IF(OR($AR23="",$AU23=""),"",IF($G$5="SMAE",IF(IFERROR((INDEX('Base SMAE'!$K$13:$K$2638,MATCH($AR23,'Base SMAE'!$A$13:$A$2638,0)))*AV23,"")="",IFERROR((INDEX('Base USDA'!$G$6:$G$5436,MATCH($AR23,'Base USDA'!$B$6:$B$5436,0)))*AV23,""),IFERROR((INDEX('Base SMAE'!$K$13:$K$2638,MATCH($AR23,'Base SMAE'!$A$13:$A$2638,0)))*AV23,"")),IF(IFERROR((INDEX('Base USDA'!$G$6:$G$5436,MATCH($AR23,'Base USDA'!$B$6:$B$5436,0)))*AV23,"")="",IFERROR((INDEX('Base SMAE'!$K$13:$K$2638,MATCH($AR23,'Base SMAE'!$A$13:$A$2638,0)))*AV23,""),IFERROR((INDEX('Base USDA'!$G$6:$G$5436,MATCH($AR23,'Base USDA'!$B$6:$B$5436,0)))*AV23,"")))) ->  | BD23: =IF(OR($AR23="",$AU23=""),"",IF($G$5="SMAE",IF(IFERROR((INDEX('Base SMAE'!$L$13:$L$2638,MATCH($AR23,'Base SMAE'!$A$13:$A$2638,0)))*AV23,"")="",IFERROR((INDEX('Base USDA'!$I$6:$I$5436,MATCH($AR23,'Base USDA'!$B$6:$B$5436,0)))*AV23,""),IFERROR((INDEX('Base SMAE'!$L$13:$L$2638,MATCH($AR23,'Base SMAE'!$A$13:$A$2638,0)))*AV23,"")),IF(IFERROR((INDEX('Base USDA'!$I$6:$I$5436,MATCH($AR23,'Base USDA'!$B$6:$B$5436,0)))*AV23,"")="",IFERROR((INDEX('Base SMAE'!$L$13:$L$2638,MATCH($AR23,'Base SMAE'!$A$13:$A$2638,0)))*AV23,""),IFERROR((INDEX('Base USDA'!$I$6:$I$5436,MATCH($AR23,'Base USDA'!$B$6:$B$5436,0)))*AV23,"")))) ->  | BH23: LEGUMINOSAS | BI23: =SUMIF(G15:G24,"LEGUMINOSAS",F15:F24)+SUMIF(G37:G46,"LEGUMINOSAS",F37:F46)+SUMIF(G59:G68,"LEGUMINOSAS",F59:F68)+SUMIF(G81:G90,"LEGUMINOSAS",F81:F90)+SUMIF(G103:G112,"LEGUMINOSAS",F103:F112) -> 0 | BJ23: =SUMIF(U15:U24,"LEGUMINOSAS",T15:T24)+SUMIF(U37:U46,"LEGUMINOSAS",T37:T46)+SUMIF(U59:U68,"LEGUMINOSAS",T59:T68)+SUMIF(U81:U90,"LEGUMINOSAS",T81:T90)+SUMIF(U103:U112,"LEGUMINOSAS",T103:T112) -> 0 | BK23: =SUMIF(AI15:AI24,"LEGUMINOSAS",AH15:AH24)+SUMIF(AI37:AI46,"LEGUMINOSAS",AH37:AH46)+SUMIF(AI59:AI68,"LEGUMINOSAS",AH59:AH68)+SUMIF(AI81:AI90,"LEGUMINOSAS",AH81:AH90)+SUMIF(AI103:AI112,"LEGUMINOSAS",AH103:AH112) -> 0 | BL23: =SUMIF(AW15:AW24,"LEGUMINOSAS",AV15:AV24)+SUMIF(AW37:AW46,"LEGUMINOSAS",AV37:AV46)+SUMIF(AW59:AW68,"LEGUMINOSAS",AV59:AV68)+SUMIF(AW81:AW90,"LEGUMINOSAS",AV81:AV90)+SUMIF(AW103:AW112,"LEGUMINOSAS",AV103:AV112) -> 0 | CB23: =IF($B23="",0,IF(ISNUMBER(MATCH($B23,'Base SMAE'!$A$13:$A$2638,0)),IFERROR($F23,0),0)) -> 0 | CC23: =IF($B23="",0,IF(ISNUMBER(MATCH($B23,'Base SMAE'!$A$13:$A$2638,0)),0,IFERROR(IF($C23="Gramos",$E23,IFERROR(($E23/$I23)*$H23,0))/100,0))) -> 0 | CD23: =IF($P23="",0,IF(ISNUMBER(MATCH($P23,'Base SMAE'!$A$13:$A$2638,0)),IFERROR($T23,0),0)) -> 0 | CE23: =IF($P23="",0,IF(ISNUMBER(MATCH($P23,'Base SMAE'!$A$13:$A$2638,0)),0,IFERROR(IF($Q23="Gramos",$S23,IFERROR(($S23/$W23)*$V23,0))/100,0))) -> 0 | CF23: =IF($AD23="",0,IF(ISNUMBER(MATCH($AD23,'Base SMAE'!$A$13:$A$2638,0)),IFERROR($AH23,0),0)) -> 0 | CG23: =IF($AD23="",0,IF(ISNUMBER(MATCH($AD23,'Base SMAE'!$A$13:$A$2638,0)),0,IFERROR(IF($AE23="Gramos",$AG23,IFERROR(($AG23/$AK23)*$AJ23,0))/100,0))) -> 0 | CH23: =IF($AR23="",0,IF(ISNUMBER(MATCH($AR23,'Base SMAE'!$A$13:$A$2638,0)),IFERROR($AV23,0),0)) -> 0 | CI23: =IF($AR23="",0,IF(ISNUMBER(MATCH($AR23,'Base SMAE'!$A$13:$A$2638,0)),0,IFERROR(IF($AS23="Gramos",$AU23,IFERROR(($AU23/$AY23)*$AX23,0))/100,0))) -> 0
D24: =IF($B24="","",IF($C24="Gramos","gramos",IF($G$5="SMAE",IFERROR(INDEX('Base SMAE'!$E$13:$E$2638,MATCH($B24,'Base SMAE'!$A$13:$A$2638,0)),"gramos"),"gramos"))) ->  | G24: =IF($B24="","",IF($G$5="SMAE",IFERROR(INDEX('Base SMAE'!$B$13:$B$2638,MATCH($B24,'Base SMAE'!$A$13:$A$2638,0)),IFERROR(INDEX('Base USDA'!$D$6:$D$5436,MATCH($B24,'Base USDA'!$B$6:$B$5436,0)),"")),IFERROR(INDEX('Base USDA'!$D$6:$D$5436,MATCH($B24,'Base USDA'!$B$6:$B$5436,0)),IFERROR(INDEX('Base SMAE'!$B$13:$B$2638,MATCH($B24,'Base SMAE'!$A$13:$A$2638,0)),"")))) ->  | H24: =IF($B24="","",IF($G$5="SMAE",IFERROR(INDEX('Base SMAE'!$G$13:$G$2638,MATCH($B24,'Base SMAE'!$A$13:$A$2638,0)),""),100)) ->  | I24: =IF($B24="","",IF($G$5="SMAE",IFERROR(INDEX('Base SMAE'!$D$13:$D$2638,MATCH($B24,'Base SMAE'!$A$13:$A$2638,0)),""),100)) ->  | J24: =IF(OR($B24="",$E24=""),"",IF($G$5="SMAE",IF(IFERROR((INDEX('Base SMAE'!$H$13:$H$2638,MATCH($B24,'Base SMAE'!$A$13:$A$2638,0)))*F24,"")="",IFERROR((INDEX('Base USDA'!$E$6:$E$5436,MATCH($B24,'Base USDA'!$B$6:$B$5436,0)))*F24,""),IFERROR((INDEX('Base SMAE'!$H$13:$H$2638,MATCH($B24,'Base SMAE'!$A$13:$A$2638,0)))*F24,"")),IF(IFERROR((INDEX('Base USDA'!$E$6:$E$5436,MATCH($B24,'Base USDA'!$B$6:$B$5436,0)))*F24,"")="",IFERROR((INDEX('Base SMAE'!$H$13:$H$2638,MATCH($B24,'Base SMAE'!$A$13:$A$2638,0)))*F24,""),IFERROR((INDEX('Base USDA'!$E$6:$E$5436,MATCH($B24,'Base USDA'!$B$6:$B$5436,0)))*F24,"")))) ->  | K24: =IF(OR($B24="",$E24=""),"",IF($G$5="SMAE",IF(IFERROR((INDEX('Base SMAE'!$I$13:$I$2638,MATCH($B24,'Base SMAE'!$A$13:$A$2638,0)))*F24,"")="",IFERROR((INDEX('Base USDA'!$F$6:$F$5436,MATCH($B24,'Base USDA'!$B$6:$B$5436,0)))*F24,""),IFERROR((INDEX('Base SMAE'!$I$13:$I$2638,MATCH($B24,'Base SMAE'!$A$13:$A$2638,0)))*F24,"")),IF(IFERROR((INDEX('Base USDA'!$F$6:$F$5436,MATCH($B24,'Base USDA'!$B$6:$B$5436,0)))*F24,"")="",IFERROR((INDEX('Base SMAE'!$I$13:$I$2638,MATCH($B24,'Base SMAE'!$A$13:$A$2638,0)))*F24,""),IFERROR((INDEX('Base USDA'!$F$6:$F$5436,MATCH($B24,'Base USDA'!$B$6:$B$5436,0)))*F24,"")))) ->  | L24: =IF(OR($B24="",$E24=""),"",IF($G$5="SMAE",IF(IFERROR((INDEX('Base SMAE'!$J$13:$J$2638,MATCH($B24,'Base SMAE'!$A$13:$A$2638,0)))*F24,"")="",IFERROR((INDEX('Base USDA'!$J$6:$J$5436,MATCH($B24,'Base USDA'!$B$6:$B$5436,0)))*F24,""),IFERROR((INDEX('Base SMAE'!$J$13:$J$2638,MATCH($B24,'Base SMAE'!$A$13:$A$2638,0)))*F24,"")),IF(IFERROR((INDEX('Base USDA'!$J$6:$J$5436,MATCH($B24,'Base USDA'!$B$6:$B$5436,0)))*F24,"")="",IFERROR((INDEX('Base SMAE'!$J$13:$J$2638,MATCH($B24,'Base SMAE'!$A$13:$A$2638,0)))*F24,""),IFERROR((INDEX('Base USDA'!$J$6:$J$5436,MATCH($B24,'Base USDA'!$B$6:$B$5436,0)))*F24,"")))) ->  | M24: =IF(OR($B24="",$E24=""),"",IF($G$5="SMAE",IF(IFERROR((INDEX('Base SMAE'!$K$13:$K$2638,MATCH($B24,'Base SMAE'!$A$13:$A$2638,0)))*F24,"")="",IFERROR((INDEX('Base USDA'!$G$6:$G$5436,MATCH($B24,'Base USDA'!$B$6:$B$5436,0)))*F24,""),IFERROR((INDEX('Base SMAE'!$K$13:$K$2638,MATCH($B24,'Base SMAE'!$A$13:$A$2638,0)))*F24,"")),IF(IFERROR((INDEX('Base USDA'!$G$6:$G$5436,MATCH($B24,'Base USDA'!$B$6:$B$5436,0)))*F24,"")="",IFERROR((INDEX('Base SMAE'!$K$13:$K$2638,MATCH($B24,'Base SMAE'!$A$13:$A$2638,0)))*F24,""),IFERROR((INDEX('Base USDA'!$G$6:$G$5436,MATCH($B24,'Base USDA'!$B$6:$B$5436,0)))*F24,"")))) ->  | N24: =IF(OR($B24="",$E24=""),"",IF($G$5="SMAE",IF(IFERROR((INDEX('Base SMAE'!$L$13:$L$2638,MATCH($B24,'Base SMAE'!$A$13:$A$2638,0)))*F24,"")="",IFERROR((INDEX('Base USDA'!$I$6:$I$5436,MATCH($B24,'Base USDA'!$B$6:$B$5436,0)))*F24,""),IFERROR((INDEX('Base SMAE'!$L$13:$L$2638,MATCH($B24,'Base SMAE'!$A$13:$A$2638,0)))*F24,"")),IF(IFERROR((INDEX('Base USDA'!$I$6:$I$5436,MATCH($B24,'Base USDA'!$B$6:$B$5436,0)))*F24,"")="",IFERROR((INDEX('Base SMAE'!$L$13:$L$2638,MATCH($B24,'Base SMAE'!$A$13:$A$2638,0)))*F24,""),IFERROR((INDEX('Base USDA'!$I$6:$I$5436,MATCH($B24,'Base USDA'!$B$6:$B$5436,0)))*F24,"")))) ->  | R24: =IF($P24="","",IF($Q24="Gramos","gramos",IF($G$5="SMAE",IFERROR(INDEX('Base SMAE'!$E$13:$E$2638,MATCH($P24,'Base SMAE'!$A$13:$A$2638,0)),"gramos"),"gramos"))) ->  | U24: =IF($P24="","",IF($G$5="SMAE",IFERROR(INDEX('Base SMAE'!$B$13:$B$2638,MATCH($P24,'Base SMAE'!$A$13:$A$2638,0)),IFERROR(INDEX('Base USDA'!$D$6:$D$5436,MATCH($P24,'Base USDA'!$B$6:$B$5436,0)),"")),IFERROR(INDEX('Base USDA'!$D$6:$D$5436,MATCH($P24,'Base USDA'!$B$6:$B$5436,0)),IFERROR(INDEX('Base SMAE'!$B$13:$B$2638,MATCH($P24,'Base SMAE'!$A$13:$A$2638,0)),"")))) ->  | V24: =IF($P24="","",IF($G$5="SMAE",IFERROR(INDEX('Base SMAE'!$G$13:$G$2638,MATCH($P24,'Base SMAE'!$A$13:$A$2638,0)),""),100)) ->  | W24: =IF($P24="","",IF($G$5="SMAE",IFERROR(INDEX('Base SMAE'!$D$13:$D$2638,MATCH($P24,'Base SMAE'!$A$13:$A$2638,0)),""),100)) ->  | X24: =IF(OR($P24="",$S24=""),"",IF($G$5="SMAE",IF(IFERROR((INDEX('Base SMAE'!$H$13:$H$2638,MATCH($P24,'Base SMAE'!$A$13:$A$2638,0)))*T24,"")="",IFERROR((INDEX('Base USDA'!$E$6:$E$5436,MATCH($P24,'Base USDA'!$B$6:$B$5436,0)))*T24,""),IFERROR((INDEX('Base SMAE'!$H$13:$H$2638,MATCH($P24,'Base SMAE'!$A$13:$A$2638,0)))*T24,"")),IF(IFERROR((INDEX('Base USDA'!$E$6:$E$5436,MATCH($P24,'Base USDA'!$B$6:$B$5436,0)))*T24,"")="",IFERROR((INDEX('Base SMAE'!$H$13:$H$2638,MATCH($P24,'Base SMAE'!$A$13:$A$2638,0)))*T24,""),IFERROR((INDEX('Base USDA'!$E$6:$E$5436,MATCH($P24,'Base USDA'!$B$6:$B$5436,0)))*T24,"")))) ->  | Y24: =IF(OR($P24="",$S24=""),"",IF($G$5="SMAE",IF(IFERROR((INDEX('Base SMAE'!$I$13:$I$2638,MATCH($P24,'Base SMAE'!$A$13:$A$2638,0)))*T24,"")="",IFERROR((INDEX('Base USDA'!$F$6:$F$5436,MATCH($P24,'Base USDA'!$B$6:$B$5436,0)))*T24,""),IFERROR((INDEX('Base SMAE'!$I$13:$I$2638,MATCH($P24,'Base SMAE'!$A$13:$A$2638,0)))*T24,"")),IF(IFERROR((INDEX('Base USDA'!$F$6:$F$5436,MATCH($P24,'Base USDA'!$B$6:$B$5436,0)))*T24,"")="",IFERROR((INDEX('Base SMAE'!$I$13:$I$2638,MATCH($P24,'Base SMAE'!$A$13:$A$2638,0)))*T24,""),IFERROR((INDEX('Base USDA'!$F$6:$F$5436,MATCH($P24,'Base USDA'!$B$6:$B$5436,0)))*T24,"")))) ->  | Z24: =IF(OR($P24="",$S24=""),"",IF($G$5="SMAE",IF(IFERROR((INDEX('Base SMAE'!$J$13:$J$2638,MATCH($P24,'Base SMAE'!$A$13:$A$2638,0)))*T24,"")="",IFERROR((INDEX('Base USDA'!$J$6:$J$5436,MATCH($P24,'Base USDA'!$B$6:$B$5436,0)))*T24,""),IFERROR((INDEX('Base SMAE'!$J$13:$J$2638,MATCH($P24,'Base SMAE'!$A$13:$A$2638,0)))*T24,"")),IF(IFERROR((INDEX('Base USDA'!$J$6:$J$5436,MATCH($P24,'Base USDA'!$B$6:$B$5436,0)))*T24,"")="",IFERROR((INDEX('Base SMAE'!$J$13:$J$2638,MATCH($P24,'Base SMAE'!$A$13:$A$2638,0)))*T24,""),IFERROR((INDEX('Base USDA'!$J$6:$J$5436,MATCH($P24,'Base USDA'!$B$6:$B$5436,0)))*T24,"")))) ->  | AA24: =IF(OR($P24="",$S24=""),"",IF($G$5="SMAE",IF(IFERROR((INDEX('Base SMAE'!$K$13:$K$2638,MATCH($P24,'Base SMAE'!$A$13:$A$2638,0)))*T24,"")="",IFERROR((INDEX('Base USDA'!$G$6:$G$5436,MATCH($P24,'Base USDA'!$B$6:$B$5436,0)))*T24,""),IFERROR((INDEX('Base SMAE'!$K$13:$K$2638,MATCH($P24,'Base SMAE'!$A$13:$A$2638,0)))*T24,"")),IF(IFERROR((INDEX('Base USDA'!$G$6:$G$5436,MATCH($P24,'Base USDA'!$B$6:$B$5436,0)))*T24,"")="",IFERROR((INDEX('Base SMAE'!$K$13:$K$2638,MATCH($P24,'Base SMAE'!$A$13:$A$2638,0)))*T24,""),IFERROR((INDEX('Base USDA'!$G$6:$G$5436,MATCH($P24,'Base USDA'!$B$6:$B$5436,0)))*T24,"")))) ->  | AB24: =IF(OR($P24="",$S24=""),"",IF($G$5="SMAE",IF(IFERROR((INDEX('Base SMAE'!$L$13:$L$2638,MATCH($P24,'Base SMAE'!$A$13:$A$2638,0)))*T24,"")="",IFERROR((INDEX('Base USDA'!$I$6:$I$5436,MATCH($P24,'Base USDA'!$B$6:$B$5436,0)))*T24,""),IFERROR((INDEX('Base SMAE'!$L$13:$L$2638,MATCH($P24,'Base SMAE'!$A$13:$A$2638,0)))*T24,"")),IF(IFERROR((INDEX('Base USDA'!$I$6:$I$5436,MATCH($P24,'Base USDA'!$B$6:$B$5436,0)))*T24,"")="",IFERROR((INDEX('Base SMAE'!$L$13:$L$2638,MATCH($P24,'Base SMAE'!$A$13:$A$2638,0)))*T24,""),IFERROR((INDEX('Base USDA'!$I$6:$I$5436,MATCH($P24,'Base USDA'!$B$6:$B$5436,0)))*T24,"")))) ->  | AF24: =IF($AD24="","",IF($AE24="Gramos","gramos",IF($G$5="SMAE",IFERROR(INDEX('Base SMAE'!$E$13:$E$2638,MATCH($AD24,'Base SMAE'!$A$13:$A$2638,0)),"gramos"),"gramos"))) ->  | AI24: =IF($AD24="","",IF($G$5="SMAE",IFERROR(INDEX('Base SMAE'!$B$13:$B$2638,MATCH($AD24,'Base SMAE'!$A$13:$A$2638,0)),IFERROR(INDEX('Base USDA'!$D$6:$D$5436,MATCH($AD24,'Base USDA'!$B$6:$B$5436,0)),"")),IFERROR(INDEX('Base USDA'!$D$6:$D$5436,MATCH($AD24,'Base USDA'!$B$6:$B$5436,0)),IFERROR(INDEX('Base SMAE'!$B$13:$B$2638,MATCH($AD24,'Base SMAE'!$A$13:$A$2638,0)),"")))) ->  | AJ24: =IF($AD24="","",IF($G$5="SMAE",IFERROR(INDEX('Base SMAE'!$G$13:$G$2638,MATCH($AD24,'Base SMAE'!$A$13:$A$2638,0)),""),100)) ->  | AK24: =IF($AD24="","",IF($G$5="SMAE",IFERROR(INDEX('Base SMAE'!$D$13:$D$2638,MATCH($AD24,'Base SMAE'!$A$13:$A$2638,0)),""),100)) ->  | AL24: =IF(OR($AD24="",$AG24=""),"",IF($G$5="SMAE",IF(IFERROR((INDEX('Base SMAE'!$H$13:$H$2638,MATCH($AD24,'Base SMAE'!$A$13:$A$2638,0)))*AH24,"")="",IFERROR((INDEX('Base USDA'!$E$6:$E$5436,MATCH($AD24,'Base USDA'!$B$6:$B$5436,0)))*AH24,""),IFERROR((INDEX('Base SMAE'!$H$13:$H$2638,MATCH($AD24,'Base SMAE'!$A$13:$A$2638,0)))*AH24,"")),IF(IFERROR((INDEX('Base USDA'!$E$6:$E$5436,MATCH($AD24,'Base USDA'!$B$6:$B$5436,0)))*AH24,"")="",IFERROR((INDEX('Base SMAE'!$H$13:$H$2638,MATCH($AD24,'Base SMAE'!$A$13:$A$2638,0)))*AH24,""),IFERROR((INDEX('Base USDA'!$E$6:$E$5436,MATCH($AD24,'Base USDA'!$B$6:$B$5436,0)))*AH24,"")))) ->  | AM24: =IF(OR($AD24="",$AG24=""),"",IF($G$5="SMAE",IF(IFERROR((INDEX('Base SMAE'!$I$13:$I$2638,MATCH($AD24,'Base SMAE'!$A$13:$A$2638,0)))*AH24,"")="",IFERROR((INDEX('Base USDA'!$F$6:$F$5436,MATCH($AD24,'Base USDA'!$B$6:$B$5436,0)))*AH24,""),IFERROR((INDEX('Base SMAE'!$I$13:$I$2638,MATCH($AD24,'Base SMAE'!$A$13:$A$2638,0)))*AH24,"")),IF(IFERROR((INDEX('Base USDA'!$F$6:$F$5436,MATCH($AD24,'Base USDA'!$B$6:$B$5436,0)))*AH24,"")="",IFERROR((INDEX('Base SMAE'!$I$13:$I$2638,MATCH($AD24,'Base SMAE'!$A$13:$A$2638,0)))*AH24,""),IFERROR((INDEX('Base USDA'!$F$6:$F$5436,MATCH($AD24,'Base USDA'!$B$6:$B$5436,0)))*AH24,"")))) ->  | AN24: =IF(OR($AD24="",$AG24=""),"",IF($G$5="SMAE",IF(IFERROR((INDEX('Base SMAE'!$J$13:$J$2638,MATCH($AD24,'Base SMAE'!$A$13:$A$2638,0)))*AH24,"")="",IFERROR((INDEX('Base USDA'!$J$6:$J$5436,MATCH($AD24,'Base USDA'!$B$6:$B$5436,0)))*AH24,""),IFERROR((INDEX('Base SMAE'!$J$13:$J$2638,MATCH($AD24,'Base SMAE'!$A$13:$A$2638,0)))*AH24,"")),IF(IFERROR((INDEX('Base USDA'!$J$6:$J$5436,MATCH($AD24,'Base USDA'!$B$6:$B$5436,0)))*AH24,"")="",IFERROR((INDEX('Base SMAE'!$J$13:$J$2638,MATCH($AD24,'Base SMAE'!$A$13:$A$2638,0)))*AH24,""),IFERROR((INDEX('Base USDA'!$J$6:$J$5436,MATCH($AD24,'Base USDA'!$B$6:$B$5436,0)))*AH24,"")))) ->  | AO24: =IF(OR($AD24="",$AG24=""),"",IF($G$5="SMAE",IF(IFERROR((INDEX('Base SMAE'!$K$13:$K$2638,MATCH($AD24,'Base SMAE'!$A$13:$A$2638,0)))*AH24,"")="",IFERROR((INDEX('Base USDA'!$G$6:$G$5436,MATCH($AD24,'Base USDA'!$B$6:$B$5436,0)))*AH24,""),IFERROR((INDEX('Base SMAE'!$K$13:$K$2638,MATCH($AD24,'Base SMAE'!$A$13:$A$2638,0)))*AH24,"")),IF(IFERROR((INDEX('Base USDA'!$G$6:$G$5436,MATCH($AD24,'Base USDA'!$B$6:$B$5436,0)))*AH24,"")="",IFERROR((INDEX('Base SMAE'!$K$13:$K$2638,MATCH($AD24,'Base SMAE'!$A$13:$A$2638,0)))*AH24,""),IFERROR((INDEX('Base USDA'!$G$6:$G$5436,MATCH($AD24,'Base USDA'!$B$6:$B$5436,0)))*AH24,"")))) ->  | AP24: =IF(OR($AD24="",$AG24=""),"",IF($G$5="SMAE",IF(IFERROR((INDEX('Base SMAE'!$L$13:$L$2638,MATCH($AD24,'Base SMAE'!$A$13:$A$2638,0)))*AH24,"")="",IFERROR((INDEX('Base USDA'!$I$6:$I$5436,MATCH($AD24,'Base USDA'!$B$6:$B$5436,0)))*AH24,""),IFERROR((INDEX('Base SMAE'!$L$13:$L$2638,MATCH($AD24,'Base SMAE'!$A$13:$A$2638,0)))*AH24,"")),IF(IFERROR((INDEX('Base USDA'!$I$6:$I$5436,MATCH($AD24,'Base USDA'!$B$6:$B$5436,0)))*AH24,"")="",IFERROR((INDEX('Base SMAE'!$L$13:$L$2638,MATCH($AD24,'Base SMAE'!$A$13:$A$2638,0)))*AH24,""),IFERROR((INDEX('Base USDA'!$I$6:$I$5436,MATCH($AD24,'Base USDA'!$B$6:$B$5436,0)))*AH24,"")))) ->  | AT24: =IF($AR24="","",IF($AS24="Gramos","gramos",IF($G$5="SMAE",IFERROR(INDEX('Base SMAE'!$E$13:$E$2638,MATCH($AR24,'Base SMAE'!$A$13:$A$2638,0)),"gramos"),"gramos"))) ->  | AW24: =IF($AR24="","",IF($G$5="SMAE",IFERROR(INDEX('Base SMAE'!$B$13:$B$2638,MATCH($AR24,'Base SMAE'!$A$13:$A$2638,0)),IFERROR(INDEX('Base USDA'!$D$6:$D$5436,MATCH($AR24,'Base USDA'!$B$6:$B$5436,0)),"")),IFERROR(INDEX('Base USDA'!$D$6:$D$5436,MATCH($AR24,'Base USDA'!$B$6:$B$5436,0)),IFERROR(INDEX('Base SMAE'!$B$13:$B$2638,MATCH($AR24,'Base SMAE'!$A$13:$A$2638,0)),"")))) ->  | AX24: =IF($AR24="","",IF($G$5="SMAE",IFERROR(INDEX('Base SMAE'!$G$13:$G$2638,MATCH($AR24,'Base SMAE'!$A$13:$A$2638,0)),""),100)) ->  | AY24: =IF($AR24="","",IF($G$5="SMAE",IFERROR(INDEX('Base SMAE'!$D$13:$D$2638,MATCH($AR24,'Base SMAE'!$A$13:$A$2638,0)),""),100)) ->  | AZ24: =IF(OR($AR24="",$AU24=""),"",IF($G$5="SMAE",IF(IFERROR((INDEX('Base SMAE'!$H$13:$H$2638,MATCH($AR24,'Base SMAE'!$A$13:$A$2638,0)))*AV24,"")="",IFERROR((INDEX('Base USDA'!$E$6:$E$5436,MATCH($AR24,'Base USDA'!$B$6:$B$5436,0)))*AV24,""),IFERROR((INDEX('Base SMAE'!$H$13:$H$2638,MATCH($AR24,'Base SMAE'!$A$13:$A$2638,0)))*AV24,"")),IF(IFERROR((INDEX('Base USDA'!$E$6:$E$5436,MATCH($AR24,'Base USDA'!$B$6:$B$5436,0)))*AV24,"")="",IFERROR((INDEX('Base SMAE'!$H$13:$H$2638,MATCH($AR24,'Base SMAE'!$A$13:$A$2638,0)))*AV24,""),IFERROR((INDEX('Base USDA'!$E$6:$E$5436,MATCH($AR24,'Base USDA'!$B$6:$B$5436,0)))*AV24,"")))) ->  | BA24: =IF(OR($AR24="",$AU24=""),"",IF($G$5="SMAE",IF(IFERROR((INDEX('Base SMAE'!$I$13:$I$2638,MATCH($AR24,'Base SMAE'!$A$13:$A$2638,0)))*AV24,"")="",IFERROR((INDEX('Base USDA'!$F$6:$F$5436,MATCH($AR24,'Base USDA'!$B$6:$B$5436,0)))*AV24,""),IFERROR((INDEX('Base SMAE'!$I$13:$I$2638,MATCH($AR24,'Base SMAE'!$A$13:$A$2638,0)))*AV24,"")),IF(IFERROR((INDEX('Base USDA'!$F$6:$F$5436,MATCH($AR24,'Base USDA'!$B$6:$B$5436,0)))*AV24,"")="",IFERROR((INDEX('Base SMAE'!$I$13:$I$2638,MATCH($AR24,'Base SMAE'!$A$13:$A$2638,0)))*AV24,""),IFERROR((INDEX('Base USDA'!$F$6:$F$5436,MATCH($AR24,'Base USDA'!$B$6:$B$5436,0)))*AV24,"")))) ->  | BB24: =IF(OR($AR24="",$AU24=""),"",IF($G$5="SMAE",IF(IFERROR((INDEX('Base SMAE'!$J$13:$J$2638,MATCH($AR24,'Base SMAE'!$A$13:$A$2638,0)))*AV24,"")="",IFERROR((INDEX('Base USDA'!$J$6:$J$5436,MATCH($AR24,'Base USDA'!$B$6:$B$5436,0)))*AV24,""),IFERROR((INDEX('Base SMAE'!$J$13:$J$2638,MATCH($AR24,'Base SMAE'!$A$13:$A$2638,0)))*AV24,"")),IF(IFERROR((INDEX('Base USDA'!$J$6:$J$5436,MATCH($AR24,'Base USDA'!$B$6:$B$5436,0)))*AV24,"")="",IFERROR((INDEX('Base SMAE'!$J$13:$J$2638,MATCH($AR24,'Base SMAE'!$A$13:$A$2638,0)))*AV24,""),IFERROR((INDEX('Base USDA'!$J$6:$J$5436,MATCH($AR24,'Base USDA'!$B$6:$B$5436,0)))*AV24,"")))) ->  | BC24: =IF(OR($AR24="",$AU24=""),"",IF($G$5="SMAE",IF(IFERROR((INDEX('Base SMAE'!$K$13:$K$2638,MATCH($AR24,'Base SMAE'!$A$13:$A$2638,0)))*AV24,"")="",IFERROR((INDEX('Base USDA'!$G$6:$G$5436,MATCH($AR24,'Base USDA'!$B$6:$B$5436,0)))*AV24,""),IFERROR((INDEX('Base SMAE'!$K$13:$K$2638,MATCH($AR24,'Base SMAE'!$A$13:$A$2638,0)))*AV24,"")),IF(IFERROR((INDEX('Base USDA'!$G$6:$G$5436,MATCH($AR24,'Base USDA'!$B$6:$B$5436,0)))*AV24,"")="",IFERROR((INDEX('Base SMAE'!$K$13:$K$2638,MATCH($AR24,'Base SMAE'!$A$13:$A$2638,0)))*AV24,""),IFERROR((INDEX('Base USDA'!$G$6:$G$5436,MATCH($AR24,'Base USDA'!$B$6:$B$5436,0)))*AV24,"")))) ->  | BD24: =IF(OR($AR24="",$AU24=""),"",IF($G$5="SMAE",IF(IFERROR((INDEX('Base SMAE'!$L$13:$L$2638,MATCH($AR24,'Base SMAE'!$A$13:$A$2638,0)))*AV24,"")="",IFERROR((INDEX('Base USDA'!$I$6:$I$5436,MATCH($AR24,'Base USDA'!$B$6:$B$5436,0)))*AV24,""),IFERROR((INDEX('Base SMAE'!$L$13:$L$2638,MATCH($AR24,'Base SMAE'!$A$13:$A$2638,0)))*AV24,"")),IF(IFERROR((INDEX('Base USDA'!$I$6:$I$5436,MATCH($AR24,'Base USDA'!$B$6:$B$5436,0)))*AV24,"")="",IFERROR((INDEX('Base SMAE'!$L$13:$L$2638,MATCH($AR24,'Base SMAE'!$A$13:$A$2638,0)))*AV24,""),IFERROR((INDEX('Base USDA'!$I$6:$I$5436,MATCH($AR24,'Base USDA'!$B$6:$B$5436,0)))*AV24,"")))) ->  | BH24: Libres | BI24: =SUMIF(G15:G24,"Libres",F15:F24)+SUMIF(G37:G46,"Libres",F37:F46)+SUMIF(G59:G68,"Libres",F59:F68)+SUMIF(G81:G90,"Libres",F81:F90)+SUMIF(G103:G112,"Libres",F103:F112) -> 0 | BJ24: =SUMIF(U15:U24,"Libres",T15:T24)+SUMIF(U37:U46,"Libres",T37:T46)+SUMIF(U59:U68,"Libres",T59:T68)+SUMIF(U81:U90,"Libres",T81:T90)+SUMIF(U103:U112,"Libres",T103:T112) -> 0 | BK24: =SUMIF(AI15:AI24,"Libres",AH15:AH24)+SUMIF(AI37:AI46,"Libres",AH37:AH46)+SUMIF(AI59:AI68,"Libres",AH59:AH68)+SUMIF(AI81:AI90,"Libres",AH81:AH90)+SUMIF(AI103:AI112,"Libres",AH103:AH112) -> 0 | BL24: =SUMIF(AW15:AW24,"Libres",AV15:AV24)+SUMIF(AW37:AW46,"Libres",AV37:AV46)+SUMIF(AW59:AW68,"Libres",AV59:AV68)+SUMIF(AW81:AW90,"Libres",AV81:AV90)+SUMIF(AW103:AW112,"Libres",AV103:AV112) -> 0 | CB24: =IF($B24="",0,IF(ISNUMBER(MATCH($B24,'Base SMAE'!$A$13:$A$2638,0)),IFERROR($F24,0),0)) -> 0 | CC24: =IF($B24="",0,IF(ISNUMBER(MATCH($B24,'Base SMAE'!$A$13:$A$2638,0)),0,IFERROR(IF($C24="Gramos",$E24,IFERROR(($E24/$I24)*$H24,0))/100,0))) -> 0 | CD24: =IF($P24="",0,IF(ISNUMBER(MATCH($P24,'Base SMAE'!$A$13:$A$2638,0)),IFERROR($T24,0),0)) -> 0 | CE24: =IF($P24="",0,IF(ISNUMBER(MATCH($P24,'Base SMAE'!$A$13:$A$2638,0)),0,IFERROR(IF($Q24="Gramos",$S24,IFERROR(($S24/$W24)*$V24,0))/100,0))) -> 0 | CF24: =IF($AD24="",0,IF(ISNUMBER(MATCH($AD24,'Base SMAE'!$A$13:$A$2638,0)),IFERROR($AH24,0),0)) -> 0 | CG24: =IF($AD24="",0,IF(ISNUMBER(MATCH($AD24,'Base SMAE'!$A$13:$A$2638,0)),0,IFERROR(IF($AE24="Gramos",$AG24,IFERROR(($AG24/$AK24)*$AJ24,0))/100,0))) -> 0 | CH24: =IF($AR24="",0,IF(ISNUMBER(MATCH($AR24,'Base SMAE'!$A$13:$A$2638,0)),IFERROR($AV24,0),0)) -> 0 | CI24: =IF($AR24="",0,IF(ISNUMBER(MATCH($AR24,'Base SMAE'!$A$13:$A$2638,0)),0,IFERROR(IF($AS24="Gramos",$AU24,IFERROR(($AU24/$AY24)*$AX24,0))/100,0))) -> 0
B25: MACRONUTRIMENTOS DE ESTE TIEMPO DE COMIDA (por opción) | P25: MACRONUTRIMENTOS DE ESTE TIEMPO DE COMIDA (por opción) | AD25: MACRONUTRIMENTOS DE ESTE TIEMPO DE COMIDA (por opción) | AR25: MACRONUTRIMENTOS DE ESTE TIEMPO DE COMIDA (por opción) | BH25: Suplementos | BI25: =SUMIF(G15:G24,"Suplementos",F15:F24)+SUMIF(G37:G46,"Suplementos",F37:F46)+SUMIF(G59:G68,"Suplementos",F59:F68)+SUMIF(G81:G90,"Suplementos",F81:F90)+SUMIF(G103:G112,"Suplementos",F103:F112) -> 0 | BJ25: =SUMIF(U15:U24,"Suplementos",T15:T24)+SUMIF(U37:U46,"Suplementos",T37:T46)+SUMIF(U59:U68,"Suplementos",T59:T68)+SUMIF(U81:U90,"Suplementos",T81:T90)+SUMIF(U103:U112,"Suplementos",T103:T112) -> 0 | BK25: =SUMIF(AI15:AI24,"Suplementos",AH15:AH24)+SUMIF(AI37:AI46,"Suplementos",AH37:AH46)+SUMIF(AI59:AI68,"Suplementos",AH59:AH68)+SUMIF(AI81:AI90,"Suplementos",AH81:AH90)+SUMIF(AI103:AI112,"Suplementos",AH103:AH112) -> 0 | BL25: =SUMIF(AW15:AW24,"Suplementos",AV15:AV24)+SUMIF(AW37:AW46,"Suplementos",AV37:AV46)+SUMIF(AW59:AW68,"Suplementos",AV59:AV68)+SUMIF(AW81:AW90,"Suplementos",AV81:AV90)+SUMIF(AW103:AW112,"Suplementos",AV103:AV112) -> 0
B26: Opción 1 | C26: Kcal | D26: Prot(g) | E26: Grasa(g) | F26: HC(g) | G26: Fibra(g) | P26: Opción 2 | Q26: Kcal | R26: Prot(g) | S26: Grasa(g) | T26: HC(g) | U26: Fibra(g) | AD26: Opción 3 | AE26: Kcal | AF26: Prot(g) | AG26: Grasa(g) | AH26: HC(g) | AI26: Fibra(g) | AR26: Opción 4 | AS26: Kcal | AT26: Prot(g) | AU26: Grasa(g) | AV26: HC(g) | AW26: Fibra(g) | BH26: VERDURAS | BI26: =SUMIF(G15:G24,"VERDURAS",F15:F24)+SUMIF(G37:G46,"VERDURAS",F37:F46)+SUMIF(G59:G68,"VERDURAS",F59:F68)+SUMIF(G81:G90,"VERDURAS",F81:F90)+SUMIF(G103:G112,"VERDURAS",F103:F112) -> 0 | BJ26: =SUMIF(U15:U24,"VERDURAS",T15:T24)+SUMIF(U37:U46,"VERDURAS",T37:T46)+SUMIF(U59:U68,"VERDURAS",T59:T68)+SUMIF(U81:U90,"VERDURAS",T81:T90)+SUMIF(U103:U112,"VERDURAS",T103:T112) -> 0 | BK26: =SUMIF(AI15:AI24,"VERDURAS",AH15:AH24)+SUMIF(AI37:AI46,"VERDURAS",AH37:AH46)+SUMIF(AI59:AI68,"VERDURAS",AH59:AH68)+SUMIF(AI81:AI90,"VERDURAS",AH81:AH90)+SUMIF(AI103:AI112,"VERDURAS",AH103:AH112) -> 0 | BL26: =SUMIF(AW15:AW24,"VERDURAS",AV15:AV24)+SUMIF(AW37:AW46,"VERDURAS",AV37:AV46)+SUMIF(AW59:AW68,"VERDURAS",AV59:AV68)+SUMIF(AW81:AW90,"VERDURAS",AV81:AV90)+SUMIF(AW103:AW112,"VERDURAS",AV103:AV112) -> 0
C27: =SUM(J15:J24) -> 0 | D27: =SUM(K15:K24) -> 0 | E27: =SUM(L15:L24) -> 0 | F27: =SUM(M15:M24) -> 0 | G27: =SUM(N15:N24) -> 0 | Q27: =SUM(X15:X24) -> 0 | R27: =SUM(Y15:Y24) -> 0 | S27: =SUM(Z15:Z24) -> 0 | T27: =SUM(AA15:AA24) -> 0 | U27: =SUM(AB15:AB24) -> 0 | AE27: =SUM(AL15:AL24) -> 0 | AF27: =SUM(AM15:AM24) -> 0 | AG27: =SUM(AN15:AN24) -> 0 | AH27: =SUM(AO15:AO24) -> 0 | AI27: =SUM(AP15:AP24) -> 0 | AS27: =SUM(AZ15:AZ24) -> 0 | AT27: =SUM(BA15:BA24) -> 0 | AU27: =SUM(BB15:BB24) -> 0 | AV27: =SUM(BC15:BC24) -> 0 | AW27: =SUM(BD15:BD24) -> 0
BH28: MICRONUTRIMENTOS DEL DÍA · consumido vs. recomendado
B29: Comida | P29: Comida | AD29: Desayuno | AR29: Desayuno | BH29: Base SMAE y, para lo que no esté en ella, Base USDA. Cada alimento aporta desde una sola. | BN29: Opción 1
B30: Opción 1 | P30: Opción 2 | AD30: Opción 3 | AR30: Opción 4 | BH30: Nutrimento | BI30: Opc.1 | BJ30: Opc.2 | BK30: Opc.3 | BL30: Opc.4 | BM30: Recomendado | BN30: Avance ↑
BH31: Fibra (g) | BI31: =ROUND(SUMPRODUCT(SUMIF('Base SMAE'!$A$13:$A$2638,$B$15:$B$24,'Base SMAE'!$L$13:$L$2638),$CB$15:$CB$24)+SUMPRODUCT(SUMIF('Base USDA'!$B$6:$B$5436,$B$15:$B$24,'Base USDA'!$I$6:$I$5436),$CC$15:$CC$24)+SUMPRODUCT(SUMIF('Base SMAE'!$A$13:$A$2638,$B$37:$B$46,'Base SMAE'!$L$13:$L$2638),$CB$37:$CB$46)+SUMPRODUCT(SUMIF('Base USDA'!$B$6:$B$5436,$B$37:$B$46,'Base USDA'!$I$6:$I$5436),$CC$37:$CC$46)+SUMPRODUCT(SUMIF('Base SMAE'!$A$13:$A$2638,$B$59:$B$68,'Base SMAE'!$L$13:$L$2638),$CB$59:$CB$68)+SUMPRODUCT(SUMIF('Base USDA'!$B$6:$B$5436,$B$59:$B$68,'Base USDA'!$I$6:$I$5436),$CC$59:$CC$68)+SUMPRODUCT(SUMIF('Base SMAE'!$A$13:$A$2638,$B$81:$B$90,'Base SMAE'!$L$13:$L$2638),$CB$81:$CB$90)+SUMPRODUCT(SUMIF('Base USDA'!$B$6:$B$5436,$B$81:$B$90,'Base USDA'!$I$6:$I$5436),$CC$81:$CC$90)+SUMPRODUCT(SUMIF('Base SMAE'!$A$13:$A$2638,$B$103:$B$112,'Base SMAE'!$L$13:$L$2638),$CB$103:$CB$112)+SUMPRODUCT(SUMIF('Base USDA'!$B$6:$B$5436,$B$103:$B$112,'Base USDA'!$I$6:$I$5436),$CC$103:$CC$112),1) -> 0 | BJ31: =ROUND(SUMPRODUCT(SUMIF('Base SMAE'!$A$13:$A$2638,$P$15:$P$24,'Base SMAE'!$L$13:$L$2638),$CD$15:$CD$24)+SUMPRODUCT(SUMIF('Base USDA'!$B$6:$B$5436,$P$15:$P$24,'Base USDA'!$I$6:$I$5436),$CE$15:$CE$24)+SUMPRODUCT(SUMIF('Base SMAE'!$A$13:$A$2638,$P$37:$P$46,'Base SMAE'!$L$13:$L$2638),$CD$37:$CD$46)+SUMPRODUCT(SUMIF('Base USDA'!$B$6:$B$5436,$P$37:$P$46,'Base USDA'!$I$6:$I$5436),$CE$37:$CE$46)+SUMPRODUCT(SUMIF('Base SMAE'!$A$13:$A$2638,$P$59:$P$68,'Base SMAE'!$L$13:$L$2638),$CD$59:$CD$68)+SUMPRODUCT(SUMIF('Base USDA'!$B$6:$B$5436,$P$59:$P$68,'Base USDA'!$I$6:$I$5436),$CE$59:$CE$68)+SUMPRODUCT(SUMIF('Base SMAE'!$A$13:$A$2638,$P$81:$P$90,'Base SMAE'!$L$13:$L$2638),$CD$81:$CD$90)+SUMPRODUCT(SUMIF('Base USDA'!$B$6:$B$5436,$P$81:$P$90,'Base USDA'!$I$6:$I$5436),$CE$81:$CE$90)+SUMPRODUCT(SUMIF('Base SMAE'!$A$13:$A$2638,$P$103:$P$112,'Base SMAE'!$L$13:$L$2638),$CD$103:$CD$112)+SUMPRODUCT(SUMIF('Base USDA'!$B$6:$B$5436,$P$103:$P$112,'Base USDA'!$I$6:$I$5436),$CE$103:$CE$112),1) -> 0 | BK31: =ROUND(SUMPRODUCT(SUMIF('Base SMAE'!$A$13:$A$2638,$AD$15:$AD$24,'Base SMAE'!$L$13:$L$2638),$CF$15:$CF$24)+SUMPRODUCT(SUMIF('Base USDA'!$B$6:$B$5436,$AD$15:$AD$24,'Base USDA'!$I$6:$I$5436),$CG$15:$CG$24)+SUMPRODUCT(SUMIF('Base SMAE'!$A$13:$A$2638,$AD$37:$AD$46,'Base SMAE'!$L$13:$L$2638),$CF$37:$CF$46)+SUMPRODUCT(SUMIF('Base USDA'!$B$6:$B$5436,$AD$37:$AD$46,'Base USDA'!$I$6:$I$5436),$CG$37:$CG$46)+SUMPRODUCT(SUMIF('Base SMAE'!$A$13:$A$2638,$AD$59:$AD$68,'Base SMAE'!$L$13:$L$2638),$CF$59:$CF$68)+SUMPRODUCT(SUMIF('Base USDA'!$B$6:$B$5436,$AD$59:$AD$68,'Base USDA'!$I$6:$I$5436),$CG$59:$CG$68)+SUMPRODUCT(SUMIF('Base SMAE'!$A$13:$A$2638,$AD$81:$AD$90,'Base SMAE'!$L$13:$L$2638),$CF$81:$CF$90)+SUMPRODUCT(SUMIF('Base USDA'!$B$6:$B$5436,$AD$81:$AD$90,'Base USDA'!$I$6:$I$5436),$CG$81:$CG$90)+SUMPRODUCT(SUMIF('Base SMAE'!$A$13:$A$2638,$AD$103:$AD$112,'Base SMAE'!$L$13:$L$2638),$CF$103:$CF$112)+SUMPRODUCT(SUMIF('Base USDA'!$B$6:$B$5436,$AD$103:$AD$112,'Base USDA'!$I$6:$I$5436),$CG$103:$CG$112),1) -> 0 | BL31: =ROUND(SUMPRODUCT(SUMIF('Base SMAE'!$A$13:$A$2638,$AR$15:$AR$24,'Base SMAE'!$L$13:$L$2638),$CH$15:$CH$24)+SUMPRODUCT(SUMIF('Base USDA'!$B$6:$B$5436,$AR$15:$AR$24,'Base USDA'!$I$6:$I$5436),$CI$15:$CI$24)+SUMPRODUCT(SUMIF('Base SMAE'!$A$13:$A$2638,$AR$37:$AR$46,'Base SMAE'!$L$13:$L$2638),$CH$37:$CH$46)+SUMPRODUCT(SUMIF('Base USDA'!$B$6:$B$5436,$AR$37:$AR$46,'Base USDA'!$I$6:$I$5436),$CI$37:$CI$46)+SUMPRODUCT(SUMIF('Base SMAE'!$A$13:$A$2638,$AR$59:$AR$68,'Base SMAE'!$L$13:$L$2638),$CH$59:$CH$68)+SUMPRODUCT(SUMIF('Base USDA'!$B$6:$B$5436,$AR$59:$AR$68,'Base USDA'!$I$6:$I$5436),$CI$59:$CI$68)+SUMPRODUCT(SUMIF('Base SMAE'!$A$13:$A$2638,$AR$81:$AR$90,'Base SMAE'!$L$13:$L$2638),$CH$81:$CH$90)+SUMPRODUCT(SUMIF('Base USDA'!$B$6:$B$5436,$AR$81:$AR$90,'Base USDA'!$I$6:$I$5436),$CI$81:$CI$90)+SUMPRODUCT(SUMIF('Base SMAE'!$A$13:$A$2638,$AR$103:$AR$112,'Base SMAE'!$L$13:$L$2638),$CH$103:$CH$112)+SUMPRODUCT(SUMIF('Base USDA'!$B$6:$B$5436,$AR$103:$AR$112,'Base USDA'!$I$6:$I$5436),$CI$103:$CI$112),1) -> 0 | BM31: =30 -> 30 | BN31: =IF($BM31=0,"",MIN(1,CHOOSE(IFERROR(VALUE(RIGHT($BN$29,1)),1),BI31,BJ31,BK31,BL31)/$BM31)) -> 0
B32: Preparación: | P32: Preparación: | AD32: Preparación: | AR32: Preparación: | BH32: Colesterol (mg) | BI32: =ROUND(SUMPRODUCT(SUMIF('Base SMAE'!$A$13:$A$2638,$B$15:$B$24,'Base SMAE'!$M$13:$M$2638),$CB$15:$CB$24)+SUMPRODUCT(SUMIF('Base USDA'!$B$6:$B$5436,$B$15:$B$24,'Base USDA'!$N$6:$N$5436),$CC$15:$CC$24)+SUMPRODUCT(SUMIF('Base SMAE'!$A$13:$A$2638,$B$37:$B$46,'Base SMAE'!$M$13:$M$2638),$CB$37:$CB$46)+SUMPRODUCT(SUMIF('Base USDA'!$B$6:$B$5436,$B$37:$B$46,'Base USDA'!$N$6:$N$5436),$CC$37:$CC$46)+SUMPRODUCT(SUMIF('Base SMAE'!$A$13:$A$2638,$B$59:$B$68,'Base SMAE'!$M$13:$M$2638),$CB$59:$CB$68)+SUMPRODUCT(SUMIF('Base USDA'!$B$6:$B$5436,$B$59:$B$68,'Base USDA'!$N$6:$N$5436),$CC$59:$CC$68)+SUMPRODUCT(SUMIF('Base SMAE'!$A$13:$A$2638,$B$81:$B$90,'Base SMAE'!$M$13:$M$2638),$CB$81:$CB$90)+SUMPRODUCT(SUMIF('Base USDA'!$B$6:$B$5436,$B$81:$B$90,'Base USDA'!$N$6:$N$5436),$CC$81:$CC$90)+SUMPRODUCT(SUMIF('Base SMAE'!$A$13:$A$2638,$B$103:$B$112,'Base SMAE'!$M$13:$M$2638),$CB$103:$CB$112)+SUMPRODUCT(SUMIF('Base USDA'!$B$6:$B$5436,$B$103:$B$112,'Base USDA'!$N$6:$N$5436),$CC$103:$CC$112),1) -> 0 | BJ32: =ROUND(SUMPRODUCT(SUMIF('Base SMAE'!$A$13:$A$2638,$P$15:$P$24,'Base SMAE'!$M$13:$M$2638),$CD$15:$CD$24)+SUMPRODUCT(SUMIF('Base USDA'!$B$6:$B$5436,$P$15:$P$24,'Base USDA'!$N$6:$N$5436),$CE$15:$CE$24)+SUMPRODUCT(SUMIF('Base SMAE'!$A$13:$A$2638,$P$37:$P$46,'Base SMAE'!$M$13:$M$2638),$CD$37:$CD$46)+SUMPRODUCT(SUMIF('Base USDA'!$B$6:$B$5436,$P$37:$P$46,'Base USDA'!$N$6:$N$5436),$CE$37:$CE$46)+SUMPRODUCT(SUMIF('Base SMAE'!$A$13:$A$2638,$P$59:$P$68,'Base SMAE'!$M$13:$M$2638),$CD$59:$CD$68)+SUMPRODUCT(SUMIF('Base USDA'!$B$6:$B$5436,$P$59:$P$68,'Base USDA'!$N$6:$N$5436),$CE$59:$CE$68)+SUMPRODUCT(SUMIF('Base SMAE'!$A$13:$A$2638,$P$81:$P$90,'Base SMAE'!$M$13:$M$2638),$CD$81:$CD$90)+SUMPRODUCT(SUMIF('Base USDA'!$B$6:$B$5436,$P$81:$P$90,'Base USDA'!$N$6:$N$5436),$CE$81:$CE$90)+SUMPRODUCT(SUMIF('Base SMAE'!$A$13:$A$2638,$P$103:$P$112,'Base SMAE'!$M$13:$M$2638),$CD$103:$CD$112)+SUMPRODUCT(SUMIF('Base USDA'!$B$6:$B$5436,$P$103:$P$112,'Base USDA'!$N$6:$N$5436),$CE$103:$CE$112),1) -> 0 | BK32: =ROUND(SUMPRODUCT(SUMIF('Base SMAE'!$A$13:$A$2638,$AD$15:$AD$24,'Base SMAE'!$M$13:$M$2638),$CF$15:$CF$24)+SUMPRODUCT(SUMIF('Base USDA'!$B$6:$B$5436,$AD$15:$AD$24,'Base USDA'!$N$6:$N$5436),$CG$15:$CG$24)+SUMPRODUCT(SUMIF('Base SMAE'!$A$13:$A$2638,$AD$37:$AD$46,'Base SMAE'!$M$13:$M$2638),$CF$37:$CF$46)+SUMPRODUCT(SUMIF('Base USDA'!$B$6:$B$5436,$AD$37:$AD$46,'Base USDA'!$N$6:$N$5436),$CG$37:$CG$46)+SUMPRODUCT(SUMIF('Base SMAE'!$A$13:$A$2638,$AD$59:$AD$68,'Base SMAE'!$M$13:$M$2638),$CF$59:$CF$68)+SUMPRODUCT(SUMIF('Base USDA'!$B$6:$B$5436,$AD$59:$AD$68,'Base USDA'!$N$6:$N$5436),$CG$59:$CG$68)+SUMPRODUCT(SUMIF('Base SMAE'!$A$13:$A$2638,$AD$81:$AD$90,'Base SMAE'!$M$13:$M$2638),$CF$81:$CF$90)+SUMPRODUCT(SUMIF('Base USDA'!$B$6:$B$5436,$AD$81:$AD$90,'Base USDA'!$N$6:$N$5436),$CG$81:$CG$90)+SUMPRODUCT(SUMIF('Base SMAE'!$A$13:$A$2638,$AD$103:$AD$112,'Base SMAE'!$M$13:$M$2638),$CF$103:$CF$112)+SUMPRODUCT(SUMIF('Base USDA'!$B$6:$B$5436,$AD$103:$AD$112,'Base USDA'!$N$6:$N$5436),$CG$103:$CG$112),1) -> 0 | BL32: =ROUND(SUMPRODUCT(SUMIF('Base SMAE'!$A$13:$A$2638,$AR$15:$AR$24,'Base SMAE'!$M$13:$M$2638),$CH$15:$CH$24)+SUMPRODUCT(SUMIF('Base USDA'!$B$6:$B$5436,$AR$15:$AR$24,'Base USDA'!$N$6:$N$5436),$CI$15:$CI$24)+SUMPRODUCT(SUMIF('Base SMAE'!$A$13:$A$2638,$AR$37:$AR$46,'Base SMAE'!$M$13:$M$2638),$CH$37:$CH$46)+SUMPRODUCT(SUMIF('Base USDA'!$B$6:$B$5436,$AR$37:$AR$46,'Base USDA'!$N$6:$N$5436),$CI$37:$CI$46)+SUMPRODUCT(SUMIF('Base SMAE'!$A$13:$A$2638,$AR$59:$AR$68,'Base SMAE'!$M$13:$M$2638),$CH$59:$CH$68)+SUMPRODUCT(SUMIF('Base USDA'!$B$6:$B$5436,$AR$59:$AR$68,'Base USDA'!$N$6:$N$5436),$CI$59:$CI$68)+SUMPRODUCT(SUMIF('Base SMAE'!$A$13:$A$2638,$AR$81:$AR$90,'Base SMAE'!$M$13:$M$2638),$CH$81:$CH$90)+SUMPRODUCT(SUMIF('Base USDA'!$B$6:$B$5436,$AR$81:$AR$90,'Base USDA'!$N$6:$N$5436),$CI$81:$CI$90)+SUMPRODUCT(SUMIF('Base SMAE'!$A$13:$A$2638,$AR$103:$AR$112,'Base SMAE'!$M$13:$M$2638),$CH$103:$CH$112)+SUMPRODUCT(SUMIF('Base USDA'!$B$6:$B$5436,$AR$103:$AR$112,'Base USDA'!$N$6:$N$5436),$CI$103:$CI$112),1) -> 0 | BM32: =300 -> 300 | BN32: 0
BH33: AG saturados (g) | BI33: =ROUND(SUMPRODUCT(SUMIF('Base SMAE'!$A$13:$A$2638,$B$15:$B$24,'Base SMAE'!$N$13:$N$2638),$CB$15:$CB$24)+SUMPRODUCT(SUMIF('Base USDA'!$B$6:$B$5436,$B$15:$B$24,'Base USDA'!$K$6:$K$5436),$CC$15:$CC$24)+SUMPRODUCT(SUMIF('Base SMAE'!$A$13:$A$2638,$B$37:$B$46,'Base SMAE'!$N$13:$N$2638),$CB$37:$CB$46)+SUMPRODUCT(SUMIF('Base USDA'!$B$6:$B$5436,$B$37:$B$46,'Base USDA'!$K$6:$K$5436),$CC$37:$CC$46)+SUMPRODUCT(SUMIF('Base SMAE'!$A$13:$A$2638,$B$59:$B$68,'Base SMAE'!$N$13:$N$2638),$CB$59:$CB$68)+SUMPRODUCT(SUMIF('Base USDA'!$B$6:$B$5436,$B$59:$B$68,'Base USDA'!$K$6:$K$5436),$CC$59:$CC$68)+SUMPRODUCT(SUMIF('Base SMAE'!$A$13:$A$2638,$B$81:$B$90,'Base SMAE'!$N$13:$N$2638),$CB$81:$CB$90)+SUMPRODUCT(SUMIF('Base USDA'!$B$6:$B$5436,$B$81:$B$90,'Base USDA'!$K$6:$K$5436),$CC$81:$CC$90)+SUMPRODUCT(SUMIF('Base SMAE'!$A$13:$A$2638,$B$103:$B$112,'Base SMAE'!$N$13:$N$2638),$CB$103:$CB$112)+SUMPRODUCT(SUMIF('Base USDA'!$B$6:$B$5436,$B$103:$B$112,'Base USDA'!$K$6:$K$5436),$CC$103:$CC$112),1) -> 0 | BJ33: =ROUND(SUMPRODUCT(SUMIF('Base SMAE'!$A$13:$A$2638,$P$15:$P$24,'Base SMAE'!$N$13:$N$2638),$CD$15:$CD$24)+SUMPRODUCT(SUMIF('Base USDA'!$B$6:$B$5436,$P$15:$P$24,'Base USDA'!$K$6:$K$5436),$CE$15:$CE$24)+SUMPRODUCT(SUMIF('Base SMAE'!$A$13:$A$2638,$P$37:$P$46,'Base SMAE'!$N$13:$N$2638),$CD$37:$CD$46)+SUMPRODUCT(SUMIF('Base USDA'!$B$6:$B$5436,$P$37:$P$46,'Base USDA'!$K$6:$K$5436),$CE$37:$CE$46)+SUMPRODUCT(SUMIF('Base SMAE'!$A$13:$A$2638,$P$59:$P$68,'Base SMAE'!$N$13:$N$2638),$CD$59:$CD$68)+SUMPRODUCT(SUMIF('Base USDA'!$B$6:$B$5436,$P$59:$P$68,'Base USDA'!$K$6:$K$5436),$CE$59:$CE$68)+SUMPRODUCT(SUMIF('Base SMAE'!$A$13:$A$2638,$P$81:$P$90,'Base SMAE'!$N$13:$N$2638),$CD$81:$CD$90)+SUMPRODUCT(SUMIF('Base USDA'!$B$6:$B$5436,$P$81:$P$90,'Base USDA'!$K$6:$K$5436),$CE$81:$CE$90)+SUMPRODUCT(SUMIF('Base SMAE'!$A$13:$A$2638,$P$103:$P$112,'Base SMAE'!$N$13:$N$2638),$CD$103:$CD$112)+SUMPRODUCT(SUMIF('Base USDA'!$B$6:$B$5436,$P$103:$P$112,'Base USDA'!$K$6:$K$5436),$CE$103:$CE$112),1) -> 0 | BK33: =ROUND(SUMPRODUCT(SUMIF('Base SMAE'!$A$13:$A$2638,$AD$15:$AD$24,'Base SMAE'!$N$13:$N$2638),$CF$15:$CF$24)+SUMPRODUCT(SUMIF('Base USDA'!$B$6:$B$5436,$AD$15:$AD$24,'Base USDA'!$K$6:$K$5436),$CG$15:$CG$24)+SUMPRODUCT(SUMIF('Base SMAE'!$A$13:$A$2638,$AD$37:$AD$46,'Base SMAE'!$N$13:$N$2638),$CF$37:$CF$46)+SUMPRODUCT(SUMIF('Base USDA'!$B$6:$B$5436,$AD$37:$AD$46,'Base USDA'!$K$6:$K$5436),$CG$37:$CG$46)+SUMPRODUCT(SUMIF('Base SMAE'!$A$13:$A$2638,$AD$59:$AD$68,'Base SMAE'!$N$13:$N$2638),$CF$59:$CF$68)+SUMPRODUCT(SUMIF('Base USDA'!$B$6:$B$5436,$AD$59:$AD$68,'Base USDA'!$K$6:$K$5436),$CG$59:$CG$68)+SUMPRODUCT(SUMIF('Base SMAE'!$A$13:$A$2638,$AD$81:$AD$90,'Base SMAE'!$N$13:$N$2638),$CF$81:$CF$90)+SUMPRODUCT(SUMIF('Base USDA'!$B$6:$B$5436,$AD$81:$AD$90,'Base USDA'!$K$6:$K$5436),$CG$81:$CG$90)+SUMPRODUCT(SUMIF('Base SMAE'!$A$13:$A$2638,$AD$103:$AD$112,'Base SMAE'!$N$13:$N$2638),$CF$103:$CF$112)+SUMPRODUCT(SUMIF('Base USDA'!$B$6:$B$5436,$AD$103:$AD$112,'Base USDA'!$K$6:$K$5436),$CG$103:$CG$112),1) -> 0 | BL33: =ROUND(SUMPRODUCT(SUMIF('Base SMAE'!$A$13:$A$2638,$AR$15:$AR$24,'Base SMAE'!$N$13:$N$2638),$CH$15:$CH$24)+SUMPRODUCT(SUMIF('Base USDA'!$B$6:$B$5436,$AR$15:$AR$24,'Base USDA'!$K$6:$K$5436),$CI$15:$CI$24)+SUMPRODUCT(SUMIF('Base SMAE'!$A$13:$A$2638,$AR$37:$AR$46,'Base SMAE'!$N$13:$N$2638),$CH$37:$CH$46)+SUMPRODUCT(SUMIF('Base USDA'!$B$6:$B$5436,$AR$37:$AR$46,'Base USDA'!$K$6:$K$5436),$CI$37:$CI$46)+SUMPRODUCT(SUMIF('Base SMAE'!$A$13:$A$2638,$AR$59:$AR$68,'Base SMAE'!$N$13:$N$2638),$CH$59:$CH$68)+SUMPRODUCT(SUMIF('Base USDA'!$B$6:$B$5436,$AR$59:$AR$68,'Base USDA'!$K$6:$K$5436),$CI$59:$CI$68)+SUMPRODUCT(SUMIF('Base SMAE'!$A$13:$A$2638,$AR$81:$AR$90,'Base SMAE'!$N$13:$N$2638),$CH$81:$CH$90)+SUMPRODUCT(SUMIF('Base USDA'!$B$6:$B$5436,$AR$81:$AR$90,'Base USDA'!$K$6:$K$5436),$CI$81:$CI$90)+SUMPRODUCT(SUMIF('Base SMAE'!$A$13:$A$2638,$AR$103:$AR$112,'Base SMAE'!$N$13:$N$2638),$CH$103:$CH$112)+SUMPRODUCT(SUMIF('Base USDA'!$B$6:$B$5436,$AR$103:$AR$112,'Base USDA'!$K$6:$K$5436),$CI$103:$CI$112),1) -> 0 | BM33: =22 -> 22 | BN33: 0
BH34: AG monoinsaturados (g) | BI34: =ROUND(SUMPRODUCT(SUMIF('Base SMAE'!$A$13:$A$2638,$B$15:$B$24,'Base SMAE'!$O$13:$O$2638),$CB$15:$CB$24)+SUMPRODUCT(SUMIF('Base USDA'!$B$6:$B$5436,$B$15:$B$24,'Base USDA'!$L$6:$L$5436),$CC$15:$CC$24)+SUMPRODUCT(SUMIF('Base SMAE'!$A$13:$A$2638,$B$37:$B$46,'Base SMAE'!$O$13:$O$2638),$CB$37:$CB$46)+SUMPRODUCT(SUMIF('Base USDA'!$B$6:$B$5436,$B$37:$B$46,'Base USDA'!$L$6:$L$5436),$CC$37:$CC$46)+SUMPRODUCT(SUMIF('Base SMAE'!$A$13:$A$2638,$B$59:$B$68,'Base SMAE'!$O$13:$O$2638),$CB$59:$CB$68)+SUMPRODUCT(SUMIF('Base USDA'!$B$6:$B$5436,$B$59:$B$68,'Base USDA'!$L$6:$L$5436),$CC$59:$CC$68)+SUMPRODUCT(SUMIF('Base SMAE'!$A$13:$A$2638,$B$81:$B$90,'Base SMAE'!$O$13:$O$2638),$CB$81:$CB$90)+SUMPRODUCT(SUMIF('Base USDA'!$B$6:$B$5436,$B$81:$B$90,'Base USDA'!$L$6:$L$5436),$CC$81:$CC$90)+SUMPRODUCT(SUMIF('Base SMAE'!$A$13:$A$2638,$B$103:$B$112,'Base SMAE'!$O$13:$O$2638),$CB$103:$CB$112)+SUMPRODUCT(SUMIF('Base USDA'!$B$6:$B$5436,$B$103:$B$112,'Base USDA'!$L$6:$L$5436),$CC$103:$CC$112),1) -> 0 | BJ34: =ROUND(SUMPRODUCT(SUMIF('Base SMAE'!$A$13:$A$2638,$P$15:$P$24,'Base SMAE'!$O$13:$O$2638),$CD$15:$CD$24)+SUMPRODUCT(SUMIF('Base USDA'!$B$6:$B$5436,$P$15:$P$24,'Base USDA'!$L$6:$L$5436),$CE$15:$CE$24)+SUMPRODUCT(SUMIF('Base SMAE'!$A$13:$A$2638,$P$37:$P$46,'Base SMAE'!$O$13:$O$2638),$CD$37:$CD$46)+SUMPRODUCT(SUMIF('Base USDA'!$B$6:$B$5436,$P$37:$P$46,'Base USDA'!$L$6:$L$5436),$CE$37:$CE$46)+SUMPRODUCT(SUMIF('Base SMAE'!$A$13:$A$2638,$P$59:$P$68,'Base SMAE'!$O$13:$O$2638),$CD$59:$CD$68)+SUMPRODUCT(SUMIF('Base USDA'!$B$6:$B$5436,$P$59:$P$68,'Base USDA'!$L$6:$L$5436),$CE$59:$CE$68)+SUMPRODUCT(SUMIF('Base SMAE'!$A$13:$A$2638,$P$81:$P$90,'Base SMAE'!$O$13:$O$2638),$CD$81:$CD$90)+SUMPRODUCT(SUMIF('Base USDA'!$B$6:$B$5436,$P$81:$P$90,'Base USDA'!$L$6:$L$5436),$CE$81:$CE$90)+SUMPRODUCT(SUMIF('Base SMAE'!$A$13:$A$2638,$P$103:$P$112,'Base SMAE'!$O$13:$O$2638),$CD$103:$CD$112)+SUMPRODUCT(SUMIF('Base USDA'!$B$6:$B$5436,$P$103:$P$112,'Base USDA'!$L$6:$L$5436),$CE$103:$CE$112),1) -> 0 | BK34: =ROUND(SUMPRODUCT(SUMIF('Base SMAE'!$A$13:$A$2638,$AD$15:$AD$24,'Base SMAE'!$O$13:$O$2638),$CF$15:$CF$24)+SUMPRODUCT(SUMIF('Base USDA'!$B$6:$B$5436,$AD$15:$AD$24,'Base USDA'!$L$6:$L$5436),$CG$15:$CG$24)+SUMPRODUCT(SUMIF('Base SMAE'!$A$13:$A$2638,$AD$37:$AD$46,'Base SMAE'!$O$13:$O$2638),$CF$37:$CF$46)+SUMPRODUCT(SUMIF('Base USDA'!$B$6:$B$5436,$AD$37:$AD$46,'Base USDA'!$L$6:$L$5436),$CG$37:$CG$46)+SUMPRODUCT(SUMIF('Base SMAE'!$A$13:$A$2638,$AD$59:$AD$68,'Base SMAE'!$O$13:$O$2638),$CF$59:$CF$68)+SUMPRODUCT(SUMIF('Base USDA'!$B$6:$B$5436,$AD$59:$AD$68,'Base USDA'!$L$6:$L$5436),$CG$59:$CG$68)+SUMPRODUCT(SUMIF('Base SMAE'!$A$13:$A$2638,$AD$81:$AD$90,'Base SMAE'!$O$13:$O$2638),$CF$81:$CF$90)+SUMPRODUCT(SUMIF('Base USDA'!$B$6:$B$5436,$AD$81:$AD$90,'Base USDA'!$L$6:$L$5436),$CG$81:$CG$90)+SUMPRODUCT(SUMIF('Base SMAE'!$A$13:$A$2638,$AD$103:$AD$112,'Base SMAE'!$O$13:$O$2638),$CF$103:$CF$112)+SUMPRODUCT(SUMIF('Base USDA'!$B$6:$B$5436,$AD$103:$AD$112,'Base USDA'!$L$6:$L$5436),$CG$103:$CG$112),1) -> 0 | BL34: =ROUND(SUMPRODUCT(SUMIF('Base SMAE'!$A$13:$A$2638,$AR$15:$AR$24,'Base SMAE'!$O$13:$O$2638),$CH$15:$CH$24)+SUMPRODUCT(SUMIF('Base USDA'!$B$6:$B$5436,$AR$15:$AR$24,'Base USDA'!$L$6:$L$5436),$CI$15:$CI$24)+SUMPRODUCT(SUMIF('Base SMAE'!$A$13:$A$2638,$AR$37:$AR$46,'Base SMAE'!$O$13:$O$2638),$CH$37:$CH$46)+SUMPRODUCT(SUMIF('Base USDA'!$B$6:$B$5436,$AR$37:$AR$46,'Base USDA'!$L$6:$L$5436),$CI$37:$CI$46)+SUMPRODUCT(SUMIF('Base SMAE'!$A$13:$A$2638,$AR$59:$AR$68,'Base SMAE'!$O$13:$O$2638),$CH$59:$CH$68)+SUMPRODUCT(SUMIF('Base USDA'!$B$6:$B$5436,$AR$59:$AR$68,'Base USDA'!$L$6:$L$5436),$CI$59:$CI$68)+SUMPRODUCT(SUMIF('Base SMAE'!$A$13:$A$2638,$AR$81:$AR$90,'Base SMAE'!$O$13:$O$2638),$CH$81:$CH$90)+SUMPRODUCT(SUMIF('Base USDA'!$B$6:$B$5436,$AR$81:$AR$90,'Base USDA'!$L$6:$L$5436),$CI$81:$CI$90)+SUMPRODUCT(SUMIF('Base SMAE'!$A$13:$A$2638,$AR$103:$AR$112,'Base SMAE'!$O$13:$O$2638),$CH$103:$CH$112)+SUMPRODUCT(SUMIF('Base USDA'!$B$6:$B$5436,$AR$103:$AR$112,'Base USDA'!$L$6:$L$5436),$CI$103:$CI$112),1) -> 0 | BM34: =44 -> 44 | BN34: 0
B35: 📷 Imagen 👆 UN CLIC | P35: 📷 Imagen 👆 UN CLIC | AD35: 📷 Imagen 👆 UN CLIC | AR35: 📷 Imagen 👆 UN CLIC | BH35: AG poliinsaturados (g) | BI35: =ROUND(SUMPRODUCT(SUMIF('Base SMAE'!$A$13:$A$2638,$B$15:$B$24,'Base SMAE'!$P$13:$P$2638),$CB$15:$CB$24)+SUMPRODUCT(SUMIF('Base USDA'!$B$6:$B$5436,$B$15:$B$24,'Base USDA'!$M$6:$M$5436),$CC$15:$CC$24)+SUMPRODUCT(SUMIF('Base SMAE'!$A$13:$A$2638,$B$37:$B$46,'Base SMAE'!$P$13:$P$2638),$CB$37:$CB$46)+SUMPRODUCT(SUMIF('Base USDA'!$B$6:$B$5436,$B$37:$B$46,'Base USDA'!$M$6:$M$5436),$CC$37:$CC$46)+SUMPRODUCT(SUMIF('Base SMAE'!$A$13:$A$2638,$B$59:$B$68,'Base SMAE'!$P$13:$P$2638),$CB$59:$CB$68)+SUMPRODUCT(SUMIF('Base USDA'!$B$6:$B$5436,$B$59:$B$68,'Base USDA'!$M$6:$M$5436),$CC$59:$CC$68)+SUMPRODUCT(SUMIF('Base SMAE'!$A$13:$A$2638,$B$81:$B$90,'Base SMAE'!$P$13:$P$2638),$CB$81:$CB$90)+SUMPRODUCT(SUMIF('Base USDA'!$B$6:$B$5436,$B$81:$B$90,'Base USDA'!$M$6:$M$5436),$CC$81:$CC$90)+SUMPRODUCT(SUMIF('Base SMAE'!$A$13:$A$2638,$B$103:$B$112,'Base SMAE'!$P$13:$P$2638),$CB$103:$CB$112)+SUMPRODUCT(SUMIF('Base USDA'!$B$6:$B$5436,$B$103:$B$112,'Base USDA'!$M$6:$M$5436),$CC$103:$CC$112),1) -> 0 | BJ35: =ROUND(SUMPRODUCT(SUMIF('Base SMAE'!$A$13:$A$2638,$P$15:$P$24,'Base SMAE'!$P$13:$P$2638),$CD$15:$CD$24)+SUMPRODUCT(SUMIF('Base USDA'!$B$6:$B$5436,$P$15:$P$24,'Base USDA'!$M$6:$M$5436),$CE$15:$CE$24)+SUMPRODUCT(SUMIF('Base SMAE'!$A$13:$A$2638,$P$37:$P$46,'Base SMAE'!$P$13:$P$2638),$CD$37:$CD$46)+SUMPRODUCT(SUMIF('Base USDA'!$B$6:$B$5436,$P$37:$P$46,'Base USDA'!$M$6:$M$5436),$CE$37:$CE$46)+SUMPRODUCT(SUMIF('Base SMAE'!$A$13:$A$2638,$P$59:$P$68,'Base SMAE'!$P$13:$P$2638),$CD$59:$CD$68)+SUMPRODUCT(SUMIF('Base USDA'!$B$6:$B$5436,$P$59:$P$68,'Base USDA'!$M$6:$M$5436),$CE$59:$CE$68)+SUMPRODUCT(SUMIF('Base SMAE'!$A$13:$A$2638,$P$81:$P$90,'Base SMAE'!$P$13:$P$2638),$CD$81:$CD$90)+SUMPRODUCT(SUMIF('Base USDA'!$B$6:$B$5436,$P$81:$P$90,'Base USDA'!$M$6:$M$5436),$CE$81:$CE$90)+SUMPRODUCT(SUMIF('Base SMAE'!$A$13:$A$2638,$P$103:$P$112,'Base SMAE'!$P$13:$P$2638),$CD$103:$CD$112)+SUMPRODUCT(SUMIF('Base USDA'!$B$6:$B$5436,$P$103:$P$112,'Base USDA'!$M$6:$M$5436),$CE$103:$CE$112),1) -> 0 | BK35: =ROUND(SUMPRODUCT(SUMIF('Base SMAE'!$A$13:$A$2638,$AD$15:$AD$24,'Base SMAE'!$P$13:$P$2638),$CF$15:$CF$24)+SUMPRODUCT(SUMIF('Base USDA'!$B$6:$B$5436,$AD$15:$AD$24,'Base USDA'!$M$6:$M$5436),$CG$15:$CG$24)+SUMPRODUCT(SUMIF('Base SMAE'!$A$13:$A$2638,$AD$37:$AD$46,'Base SMAE'!$P$13:$P$2638),$CF$37:$CF$46)+SUMPRODUCT(SUMIF('Base USDA'!$B$6:$B$5436,$AD$37:$AD$46,'Base USDA'!$M$6:$M$5436),$CG$37:$CG$46)+SUMPRODUCT(SUMIF('Base SMAE'!$A$13:$A$2638,$AD$59:$AD$68,'Base SMAE'!$P$13:$P$2638),$CF$59:$CF$68)+SUMPRODUCT(SUMIF('Base USDA'!$B$6:$B$5436,$AD$59:$AD$68,'Base USDA'!$M$6:$M$5436),$CG$59:$CG$68)+SUMPRODUCT(SUMIF('Base SMAE'!$A$13:$A$2638,$AD$81:$AD$90,'Base SMAE'!$P$13:$P$2638),$CF$81:$CF$90)+SUMPRODUCT(SUMIF('Base USDA'!$B$6:$B$5436,$AD$81:$AD$90,'Base USDA'!$M$6:$M$5436),$CG$81:$CG$90)+SUMPRODUCT(SUMIF('Base SMAE'!$A$13:$A$2638,$AD$103:$AD$112,'Base SMAE'!$P$13:$P$2638),$CF$103:$CF$112)+SUMPRODUCT(SUMIF('Base USDA'!$B$6:$B$5436,$AD$103:$AD$112,'Base USDA'!$M$6:$M$5436),$CG$103:$CG$112),1) -> 0 | BL35: =ROUND(SUMPRODUCT(SUMIF('Base SMAE'!$A$13:$A$2638,$AR$15:$AR$24,'Base SMAE'!$P$13:$P$2638),$CH$15:$CH$24)+SUMPRODUCT(SUMIF('Base USDA'!$B$6:$B$5436,$AR$15:$AR$24,'Base USDA'!$M$6:$M$5436),$CI$15:$CI$24)+SUMPRODUCT(SUMIF('Base SMAE'!$A$13:$A$2638,$AR$37:$AR$46,'Base SMAE'!$P$13:$P$2638),$CH$37:$CH$46)+SUMPRODUCT(SUMIF('Base USDA'!$B$6:$B$5436,$AR$37:$AR$46,'Base USDA'!$M$6:$M$5436),$CI$37:$CI$46)+SUMPRODUCT(SUMIF('Base SMAE'!$A$13:$A$2638,$AR$59:$AR$68,'Base SMAE'!$P$13:$P$2638),$CH$59:$CH$68)+SUMPRODUCT(SUMIF('Base USDA'!$B$6:$B$5436,$AR$59:$AR$68,'Base USDA'!$M$6:$M$5436),$CI$59:$CI$68)+SUMPRODUCT(SUMIF('Base SMAE'!$A$13:$A$2638,$AR$81:$AR$90,'Base SMAE'!$P$13:$P$2638),$CH$81:$CH$90)+SUMPRODUCT(SUMIF('Base USDA'!$B$6:$B$5436,$AR$81:$AR$90,'Base USDA'!$M$6:$M$5436),$CI$81:$CI$90)+SUMPRODUCT(SUMIF('Base SMAE'!$A$13:$A$2638,$AR$103:$AR$112,'Base SMAE'!$P$13:$P$2638),$CH$103:$CH$112)+SUMPRODUCT(SUMIF('Base USDA'!$B$6:$B$5436,$AR$103:$AR$112,'Base USDA'!$M$6:$M$5436),$CI$103:$CI$112),1) -> 0 | BM35: =22 -> 22 | BN35: 0
B36: Alimento | C36: Medida | D36: (unidad) | E36: Cant. | F36: Eq | G36: Grupo | P36: Alimento | Q36: Medida | R36: (unidad) | S36: Cant. | T36: Eq | U36: Grupo | AD36: Alimento | AE36: Medida | AF36: (unidad) | AG36: Cant. | AH36: Eq | AI36: Grupo | AR36: Alimento | AS36: Medida | AT36: (unidad) | AU36: Cant. | AV36: Eq | AW36: Grupo | BH36: Vitamina A (mcg) | BI36: =ROUND(SUMPRODUCT(SUMIF('Base SMAE'!$A$13:$A$2638,$B$15:$B$24,'Base SMAE'!$S$13:$S$2638),$CB$15:$CB$24)+SUMPRODUCT(SUMIF('Base USDA'!$B$6:$B$5436,$B$15:$B$24,'Base USDA'!$P$6:$P$5436),$CC$15:$CC$24)+SUMPRODUCT(SUMIF('Base SMAE'!$A$13:$A$2638,$B$37:$B$46,'Base SMAE'!$S$13:$S$2638),$CB$37:$CB$46)+SUMPRODUCT(SUMIF('Base USDA'!$B$6:$B$5436,$B$37:$B$46,'Base USDA'!$P$6:$P$5436),$CC$37:$CC$46)+SUMPRODUCT(SUMIF('Base SMAE'!$A$13:$A$2638,$B$59:$B$68,'Base SMAE'!$S$13:$S$2638),$CB$59:$CB$68)+SUMPRODUCT(SUMIF('Base USDA'!$B$6:$B$5436,$B$59:$B$68,'Base USDA'!$P$6:$P$5436),$CC$59:$CC$68)+SUMPRODUCT(SUMIF('Base SMAE'!$A$13:$A$2638,$B$81:$B$90,'Base SMAE'!$S$13:$S$2638),$CB$81:$CB$90)+SUMPRODUCT(SUMIF('Base USDA'!$B$6:$B$5436,$B$81:$B$90,'Base USDA'!$P$6:$P$5436),$CC$81:$CC$90)+SUMPRODUCT(SUMIF('Base SMAE'!$A$13:$A$2638,$B$103:$B$112,'Base SMAE'!$S$13:$S$2638),$CB$103:$CB$112)+SUMPRODUCT(SUMIF('Base USDA'!$B$6:$B$5436,$B$103:$B$112,'Base USDA'!$P$6:$P$5436),$CC$103:$CC$112),1) -> 0 | BJ36: =ROUND(SUMPRODUCT(SUMIF('Base SMAE'!$A$13:$A$2638,$P$15:$P$24,'Base SMAE'!$S$13:$S$2638),$CD$15:$CD$24)+SUMPRODUCT(SUMIF('Base USDA'!$B$6:$B$5436,$P$15:$P$24,'Base USDA'!$P$6:$P$5436),$CE$15:$CE$24)+SUMPRODUCT(SUMIF('Base SMAE'!$A$13:$A$2638,$P$37:$P$46,'Base SMAE'!$S$13:$S$2638),$CD$37:$CD$46)+SUMPRODUCT(SUMIF('Base USDA'!$B$6:$B$5436,$P$37:$P$46,'Base USDA'!$P$6:$P$5436),$CE$37:$CE$46)+SUMPRODUCT(SUMIF('Base SMAE'!$A$13:$A$2638,$P$59:$P$68,'Base SMAE'!$S$13:$S$2638),$CD$59:$CD$68)+SUMPRODUCT(SUMIF('Base USDA'!$B$6:$B$5436,$P$59:$P$68,'Base USDA'!$P$6:$P$5436),$CE$59:$CE$68)+SUMPRODUCT(SUMIF('Base SMAE'!$A$13:$A$2638,$P$81:$P$90,'Base SMAE'!$S$13:$S$2638),$CD$81:$CD$90)+SUMPRODUCT(SUMIF('Base USDA'!$B$6:$B$5436,$P$81:$P$90,'Base USDA'!$P$6:$P$5436),$CE$81:$CE$90)+SUMPRODUCT(SUMIF('Base SMAE'!$A$13:$A$2638,$P$103:$P$112,'Base SMAE'!$S$13:$S$2638),$CD$103:$CD$112)+SUMPRODUCT(SUMIF('Base USDA'!$B$6:$B$5436,$P$103:$P$112,'Base USDA'!$P$6:$P$5436),$CE$103:$CE$112),1) -> 0 | BK36: =ROUND(SUMPRODUCT(SUMIF('Base SMAE'!$A$13:$A$2638,$AD$15:$AD$24,'Base SMAE'!$S$13:$S$2638),$CF$15:$CF$24)+SUMPRODUCT(SUMIF('Base USDA'!$B$6:$B$5436,$AD$15:$AD$24,'Base USDA'!$P$6:$P$5436),$CG$15:$CG$24)+SUMPRODUCT(SUMIF('Base SMAE'!$A$13:$A$2638,$AD$37:$AD$46,'Base SMAE'!$S$13:$S$2638),$CF$37:$CF$46)+SUMPRODUCT(SUMIF('Base USDA'!$B$6:$B$5436,$AD$37:$AD$46,'Base USDA'!$P$6:$P$5436),$CG$37:$CG$46)+SUMPRODUCT(SUMIF('Base SMAE'!$A$13:$A$2638,$AD$59:$AD$68,'Base SMAE'!$S$13:$S$2638),$CF$59:$CF$68)+SUMPRODUCT(SUMIF('Base USDA'!$B$6:$B$5436,$AD$59:$AD$68,'Base USDA'!$P$6:$P$5436),$CG$59:$CG$68)+SUMPRODUCT(SUMIF('Base SMAE'!$A$13:$A$2638,$AD$81:$AD$90,'Base SMAE'!$S$13:$S$2638),$CF$81:$CF$90)+SUMPRODUCT(SUMIF('Base USDA'!$B$6:$B$5436,$AD$81:$AD$90,'Base USDA'!$P$6:$P$5436),$CG$81:$CG$90)+SUMPRODUCT(SUMIF('Base SMAE'!$A$13:$A$2638,$AD$103:$AD$112,'Base SMAE'!$S$13:$S$2638),$CF$103:$CF$112)+SUMPRODUCT(SUMIF('Base USDA'!$B$6:$B$5436,$AD$103:$AD$112,'Base USDA'!$P$6:$P$5436),$CG$103:$CG$112),1) -> 0 | BL36: =ROUND(SUMPRODUCT(SUMIF('Base SMAE'!$A$13:$A$2638,$AR$15:$AR$24,'Base SMAE'!$S$13:$S$2638),$CH$15:$CH$24)+SUMPRODUCT(SUMIF('Base USDA'!$B$6:$B$5436,$AR$15:$AR$24,'Base USDA'!$P$6:$P$5436),$CI$15:$CI$24)+SUMPRODUCT(SUMIF('Base SMAE'!$A$13:$A$2638,$AR$37:$AR$46,'Base SMAE'!$S$13:$S$2638),$CH$37:$CH$46)+SUMPRODUCT(SUMIF('Base USDA'!$B$6:$B$5436,$AR$37:$AR$46,'Base USDA'!$P$6:$P$5436),$CI$37:$CI$46)+SUMPRODUCT(SUMIF('Base SMAE'!$A$13:$A$2638,$AR$59:$AR$68,'Base SMAE'!$S$13:$S$2638),$CH$59:$CH$68)+SUMPRODUCT(SUMIF('Base USDA'!$B$6:$B$5436,$AR$59:$AR$68,'Base USDA'!$P$6:$P$5436),$CI$59:$CI$68)+SUMPRODUCT(SUMIF('Base SMAE'!$A$13:$A$2638,$AR$81:$AR$90,'Base SMAE'!$S$13:$S$2638),$CH$81:$CH$90)+SUMPRODUCT(SUMIF('Base USDA'!$B$6:$B$5436,$AR$81:$AR$90,'Base USDA'!$P$6:$P$5436),$CI$81:$CI$90)+SUMPRODUCT(SUMIF('Base SMAE'!$A$13:$A$2638,$AR$103:$AR$112,'Base SMAE'!$S$13:$S$2638),$CH$103:$CH$112)+SUMPRODUCT(SUMIF('Base USDA'!$B$6:$B$5436,$AR$103:$AR$112,'Base USDA'!$P$6:$P$5436),$CI$103:$CI$112),1) -> 0 | BM36: =900 -> 900 | BN36: 0
D37: =IF($B37="","",IF($C37="Gramos","gramos",IF($G$5="SMAE",IFERROR(INDEX('Base SMAE'!$E$13:$E$2638,MATCH($B37,'Base SMAE'!$A$13:$A$2638,0)),"gramos"),"gramos"))) ->  | F37: =IF(OR($B37="",$E37=""),"",IF($G$5="SMAE",IFERROR(IF($C37="Gramos",$E37/H37,$E37/I37),""),IFERROR($E37/100,""))) ->  | G37: =IF($B37="","",IF($G$5="SMAE",IFERROR(INDEX('Base SMAE'!$B$13:$B$2638,MATCH($B37,'Base SMAE'!$A$13:$A$2638,0)),IFERROR(INDEX('Base USDA'!$D$6:$D$5436,MATCH($B37,'Base USDA'!$B$6:$B$5436,0)),"")),IFERROR(INDEX('Base USDA'!$D$6:$D$5436,MATCH($B37,'Base USDA'!$B$6:$B$5436,0)),IFERROR(INDEX('Base SMAE'!$B$13:$B$2638,MATCH($B37,'Base SMAE'!$A$13:$A$2638,0)),"")))) ->  | H37: =IF($B37="","",IF($G$5="SMAE",IFERROR(INDEX('Base SMAE'!$G$13:$G$2638,MATCH($B37,'Base SMAE'!$A$13:$A$2638,0)),""),100)) ->  | I37: =IF($B37="","",IF($G$5="SMAE",IFERROR(INDEX('Base SMAE'!$D$13:$D$2638,MATCH($B37,'Base SMAE'!$A$13:$A$2638,0)),""),100)) ->  | J37: =IF(OR($B37="",$E37=""),"",IF($G$5="SMAE",IF(IFERROR((INDEX('Base SMAE'!$H$13:$H$2638,MATCH($B37,'Base SMAE'!$A$13:$A$2638,0)))*F37,"")="",IFERROR((INDEX('Base USDA'!$E$6:$E$5436,MATCH($B37,'Base USDA'!$B$6:$B$5436,0)))*F37,""),IFERROR((INDEX('Base SMAE'!$H$13:$H$2638,MATCH($B37,'Base SMAE'!$A$13:$A$2638,0)))*F37,"")),IF(IFERROR((INDEX('Base USDA'!$E$6:$E$5436,MATCH($B37,'Base USDA'!$B$6:$B$5436,0)))*F37,"")="",IFERROR((INDEX('Base SMAE'!$H$13:$H$2638,MATCH($B37,'Base SMAE'!$A$13:$A$2638,0)))*F37,""),IFERROR((INDEX('Base USDA'!$E$6:$E$5436,MATCH($B37,'Base USDA'!$B$6:$B$5436,0)))*F37,"")))) ->  | K37: =IF(OR($B37="",$E37=""),"",IF($G$5="SMAE",IF(IFERROR((INDEX('Base SMAE'!$I$13:$I$2638,MATCH($B37,'Base SMAE'!$A$13:$A$2638,0)))*F37,"")="",IFERROR((INDEX('Base USDA'!$F$6:$F$5436,MATCH($B37,'Base USDA'!$B$6:$B$5436,0)))*F37,""),IFERROR((INDEX('Base SMAE'!$I$13:$I$2638,MATCH($B37,'Base SMAE'!$A$13:$A$2638,0)))*F37,"")),IF(IFERROR((INDEX('Base USDA'!$F$6:$F$5436,MATCH($B37,'Base USDA'!$B$6:$B$5436,0)))*F37,"")="",IFERROR((INDEX('Base SMAE'!$I$13:$I$2638,MATCH($B37,'Base SMAE'!$A$13:$A$2638,0)))*F37,""),IFERROR((INDEX('Base USDA'!$F$6:$F$5436,MATCH($B37,'Base USDA'!$B$6:$B$5436,0)))*F37,"")))) ->  | L37: =IF(OR($B37="",$E37=""),"",IF($G$5="SMAE",IF(IFERROR((INDEX('Base SMAE'!$J$13:$J$2638,MATCH($B37,'Base SMAE'!$A$13:$A$2638,0)))*F37,"")="",IFERROR((INDEX('Base USDA'!$J$6:$J$5436,MATCH($B37,'Base USDA'!$B$6:$B$5436,0)))*F37,""),IFERROR((INDEX('Base SMAE'!$J$13:$J$2638,MATCH($B37,'Base SMAE'!$A$13:$A$2638,0)))*F37,"")),IF(IFERROR((INDEX('Base USDA'!$J$6:$J$5436,MATCH($B37,'Base USDA'!$B$6:$B$5436,0)))*F37,"")="",IFERROR((INDEX('Base SMAE'!$J$13:$J$2638,MATCH($B37,'Base SMAE'!$A$13:$A$2638,0)))*F37,""),IFERROR((INDEX('Base USDA'!$J$6:$J$5436,MATCH($B37,'Base USDA'!$B$6:$B$5436,0)))*F37,"")))) ->  | M37: =IF(OR($B37="",$E37=""),"",IF($G$5="SMAE",IF(IFERROR((INDEX('Base SMAE'!$K$13:$K$2638,MATCH($B37,'Base SMAE'!$A$13:$A$2638,0)))*F37,"")="",IFERROR((INDEX('Base USDA'!$G$6:$G$5436,MATCH($B37,'Base USDA'!$B$6:$B$5436,0)))*F37,""),IFERROR((INDEX('Base SMAE'!$K$13:$K$2638,MATCH($B37,'Base SMAE'!$A$13:$A$2638,0)))*F37,"")),IF(IFERROR((INDEX('Base USDA'!$G$6:$G$5436,MATCH($B37,'Base USDA'!$B$6:$B$5436,0)))*F37,"")="",IFERROR((INDEX('Base SMAE'!$K$13:$K$2638,MATCH($B37,'Base SMAE'!$A$13:$A$2638,0)))*F37,""),IFERROR((INDEX('Base USDA'!$G$6:$G$5436,MATCH($B37,'Base USDA'!$B$6:$B$5436,0)))*F37,"")))) ->  | N37: =IF(OR($B37="",$E37=""),"",IF($G$5="SMAE",IF(IFERROR((INDEX('Base SMAE'!$L$13:$L$2638,MATCH($B37,'Base SMAE'!$A$13:$A$2638,0)))*F37,"")="",IFERROR((INDEX('Base USDA'!$I$6:$I$5436,MATCH($B37,'Base USDA'!$B$6:$B$5436,0)))*F37,""),IFERROR((INDEX('Base SMAE'!$L$13:$L$2638,MATCH($B37,'Base SMAE'!$A$13:$A$2638,0)))*F37,"")),IF(IFERROR((INDEX('Base USDA'!$I$6:$I$5436,MATCH($B37,'Base USDA'!$B$6:$B$5436,0)))*F37,"")="",IFERROR((INDEX('Base SMAE'!$L$13:$L$2638,MATCH($B37,'Base SMAE'!$A$13:$A$2638,0)))*F37,""),IFERROR((INDEX('Base USDA'!$I$6:$I$5436,MATCH($B37,'Base USDA'!$B$6:$B$5436,0)))*F37,"")))) ->  | R37: =IF($P37="","",IF($Q37="Gramos","gramos",IF($G$5="SMAE",IFERROR(INDEX('Base SMAE'!$E$13:$E$2638,MATCH($P37,'Base SMAE'!$A$13:$A$2638,0)),"gramos"),"gramos"))) ->  | T37: =IF(OR($P37="",$S37=""),"",IF($G$5="SMAE",IFERROR(IF($Q37="Gramos",$S37/V37,$S37/W37),""),IFERROR($S37/100,""))) ->  | U37: =IF($P37="","",IF($G$5="SMAE",IFERROR(INDEX('Base SMAE'!$B$13:$B$2638,MATCH($P37,'Base SMAE'!$A$13:$A$2638,0)),IFERROR(INDEX('Base USDA'!$D$6:$D$5436,MATCH($P37,'Base USDA'!$B$6:$B$5436,0)),"")),IFERROR(INDEX('Base USDA'!$D$6:$D$5436,MATCH($P37,'Base USDA'!$B$6:$B$5436,0)),IFERROR(INDEX('Base SMAE'!$B$13:$B$2638,MATCH($P37,'Base SMAE'!$A$13:$A$2638,0)),"")))) ->  | V37: =IF($P37="","",IF($G$5="SMAE",IFERROR(INDEX('Base SMAE'!$G$13:$G$2638,MATCH($P37,'Base SMAE'!$A$13:$A$2638,0)),""),100)) ->  | W37: =IF($P37="","",IF($G$5="SMAE",IFERROR(INDEX('Base SMAE'!$D$13:$D$2638,MATCH($P37,'Base SMAE'!$A$13:$A$2638,0)),""),100)) ->  | X37: =IF(OR($P37="",$S37=""),"",IF($G$5="SMAE",IF(IFERROR((INDEX('Base SMAE'!$H$13:$H$2638,MATCH($P37,'Base SMAE'!$A$13:$A$2638,0)))*T37,"")="",IFERROR((INDEX('Base USDA'!$E$6:$E$5436,MATCH($P37,'Base USDA'!$B$6:$B$5436,0)))*T37,""),IFERROR((INDEX('Base SMAE'!$H$13:$H$2638,MATCH($P37,'Base SMAE'!$A$13:$A$2638,0)))*T37,"")),IF(IFERROR((INDEX('Base USDA'!$E$6:$E$5436,MATCH($P37,'Base USDA'!$B$6:$B$5436,0)))*T37,"")="",IFERROR((INDEX('Base SMAE'!$H$13:$H$2638,MATCH($P37,'Base SMAE'!$A$13:$A$2638,0)))*T37,""),IFERROR((INDEX('Base USDA'!$E$6:$E$5436,MATCH($P37,'Base USDA'!$B$6:$B$5436,0)))*T37,"")))) ->  | Y37: =IF(OR($P37="",$S37=""),"",IF($G$5="SMAE",IF(IFERROR((INDEX('Base SMAE'!$I$13:$I$2638,MATCH($P37,'Base SMAE'!$A$13:$A$2638,0)))*T37,"")="",IFERROR((INDEX('Base USDA'!$F$6:$F$5436,MATCH($P37,'Base USDA'!$B$6:$B$5436,0)))*T37,""),IFERROR((INDEX('Base SMAE'!$I$13:$I$2638,MATCH($P37,'Base SMAE'!$A$13:$A$2638,0)))*T37,"")),IF(IFERROR((INDEX('Base USDA'!$F$6:$F$5436,MATCH($P37,'Base USDA'!$B$6:$B$5436,0)))*T37,"")="",IFERROR((INDEX('Base SMAE'!$I$13:$I$2638,MATCH($P37,'Base SMAE'!$A$13:$A$2638,0)))*T37,""),IFERROR((INDEX('Base USDA'!$F$6:$F$5436,MATCH($P37,'Base USDA'!$B$6:$B$5436,0)))*T37,"")))) ->  | Z37: =IF(OR($P37="",$S37=""),"",IF($G$5="SMAE",IF(IFERROR((INDEX('Base SMAE'!$J$13:$J$2638,MATCH($P37,'Base SMAE'!$A$13:$A$2638,0)))*T37,"")="",IFERROR((INDEX('Base USDA'!$J$6:$J$5436,MATCH($P37,'Base USDA'!$B$6:$B$5436,0)))*T37,""),IFERROR((INDEX('Base SMAE'!$J$13:$J$2638,MATCH($P37,'Base SMAE'!$A$13:$A$2638,0)))*T37,"")),IF(IFERROR((INDEX('Base USDA'!$J$6:$J$5436,MATCH($P37,'Base USDA'!$B$6:$B$5436,0)))*T37,"")="",IFERROR((INDEX('Base SMAE'!$J$13:$J$2638,MATCH($P37,'Base SMAE'!$A$13:$A$2638,0)))*T37,""),IFERROR((INDEX('Base USDA'!$J$6:$J$5436,MATCH($P37,'Base USDA'!$B$6:$B$5436,0)))*T37,"")))) ->  | AA37: =IF(OR($P37="",$S37=""),"",IF($G$5="SMAE",IF(IFERROR((INDEX('Base SMAE'!$K$13:$K$2638,MATCH($P37,'Base SMAE'!$A$13:$A$2638,0)))*T37,"")="",IFERROR((INDEX('Base USDA'!$G$6:$G$5436,MATCH($P37,'Base USDA'!$B$6:$B$5436,0)))*T37,""),IFERROR((INDEX('Base SMAE'!$K$13:$K$2638,MATCH($P37,'Base SMAE'!$A$13:$A$2638,0)))*T37,"")),IF(IFERROR((INDEX('Base USDA'!$G$6:$G$5436,MATCH($P37,'Base USDA'!$B$6:$B$5436,0)))*T37,"")="",IFERROR((INDEX('Base SMAE'!$K$13:$K$2638,MATCH($P37,'Base SMAE'!$A$13:$A$2638,0)))*T37,""),IFERROR((INDEX('Base USDA'!$G$6:$G$5436,MATCH($P37,'Base USDA'!$B$6:$B$5436,0)))*T37,"")))) ->  | AB37: =IF(OR($P37="",$S37=""),"",IF($G$5="SMAE",IF(IFERROR((INDEX('Base SMAE'!$L$13:$L$2638,MATCH($P37,'Base SMAE'!$A$13:$A$2638,0)))*T37,"")="",IFERROR((INDEX('Base USDA'!$I$6:$I$5436,MATCH($P37,'Base USDA'!$B$6:$B$5436,0)))*T37,""),IFERROR((INDEX('Base SMAE'!$L$13:$L$2638,MATCH($P37,'Base SMAE'!$A$13:$A$2638,0)))*T37,"")),IF(IFERROR((INDEX('Base USDA'!$I$6:$I$5436,MATCH($P37,'Base USDA'!$B$6:$B$5436,0)))*T37,"")="",IFERROR((INDEX('Base SMAE'!$L$13:$L$2638,MATCH($P37,'Base SMAE'!$A$13:$A$2638,0)))*T37,""),IFERROR((INDEX('Base USDA'!$I$6:$I$5436,MATCH($P37,'Base USDA'!$B$6:$B$5436,0)))*T37,"")))) ->  | AF37: =IF($AD37="","",IF($AE37="Gramos","gramos",IF($G$5="SMAE",IFERROR(INDEX('Base SMAE'!$E$13:$E$2638,MATCH($AD37,'Base SMAE'!$A$13:$A$2638,0)),"gramos"),"gramos"))) ->  | AH37: =IF(OR($AD37="",$AG37=""),"",IF($G$5="SMAE",IFERROR(IF($AE37="Gramos",$AG37/AJ37,$AG37/AK37),""),IFERROR($AG37/100,""))) ->  | AI37: =IF($AD37="","",IF($G$5="SMAE",IFERROR(INDEX('Base SMAE'!$B$13:$B$2638,MATCH($AD37,'Base SMAE'!$A$13:$A$2638,0)),IFERROR(INDEX('Base USDA'!$D$6:$D$5436,MATCH($AD37,'Base USDA'!$B$6:$B$5436,0)),"")),IFERROR(INDEX('Base USDA'!$D$6:$D$5436,MATCH($AD37,'Base USDA'!$B$6:$B$5436,0)),IFERROR(INDEX('Base SMAE'!$B$13:$B$2638,MATCH($AD37,'Base SMAE'!$A$13:$A$2638,0)),"")))) ->  | AJ37: =IF($AD37="","",IF($G$5="SMAE",IFERROR(INDEX('Base SMAE'!$G$13:$G$2638,MATCH($AD37,'Base SMAE'!$A$13:$A$2638,0)),""),100)) ->  | AK37: =IF($AD37="","",IF($G$5="SMAE",IFERROR(INDEX('Base SMAE'!$D$13:$D$2638,MATCH($AD37,'Base SMAE'!$A$13:$A$2638,0)),""),100)) ->  | AL37: =IF(OR($AD37="",$AG37=""),"",IF($G$5="SMAE",IF(IFERROR((INDEX('Base SMAE'!$H$13:$H$2638,MATCH($AD37,'Base SMAE'!$A$13:$A$2638,0)))*AH37,"")="",IFERROR((INDEX('Base USDA'!$E$6:$E$5436,MATCH($AD37,'Base USDA'!$B$6:$B$5436,0)))*AH37,""),IFERROR((INDEX('Base SMAE'!$H$13:$H$2638,MATCH($AD37,'Base SMAE'!$A$13:$A$2638,0)))*AH37,"")),IF(IFERROR((INDEX('Base USDA'!$E$6:$E$5436,MATCH($AD37,'Base USDA'!$B$6:$B$5436,0)))*AH37,"")="",IFERROR((INDEX('Base SMAE'!$H$13:$H$2638,MATCH($AD37,'Base SMAE'!$A$13:$A$2638,0)))*AH37,""),IFERROR((INDEX('Base USDA'!$E$6:$E$5436,MATCH($AD37,'Base USDA'!$B$6:$B$5436,0)))*AH37,"")))) ->  | AM37: =IF(OR($AD37="",$AG37=""),"",IF($G$5="SMAE",IF(IFERROR((INDEX('Base SMAE'!$I$13:$I$2638,MATCH($AD37,'Base SMAE'!$A$13:$A$2638,0)))*AH37,"")="",IFERROR((INDEX('Base USDA'!$F$6:$F$5436,MATCH($AD37,'Base USDA'!$B$6:$B$5436,0)))*AH37,""),IFERROR((INDEX('Base SMAE'!$I$13:$I$2638,MATCH($AD37,'Base SMAE'!$A$13:$A$2638,0)))*AH37,"")),IF(IFERROR((INDEX('Base USDA'!$F$6:$F$5436,MATCH($AD37,'Base USDA'!$B$6:$B$5436,0)))*AH37,"")="",IFERROR((INDEX('Base SMAE'!$I$13:$I$2638,MATCH($AD37,'Base SMAE'!$A$13:$A$2638,0)))*AH37,""),IFERROR((INDEX('Base USDA'!$F$6:$F$5436,MATCH($AD37,'Base USDA'!$B$6:$B$5436,0)))*AH37,"")))) ->  | AN37: =IF(OR($AD37="",$AG37=""),"",IF($G$5="SMAE",IF(IFERROR((INDEX('Base SMAE'!$J$13:$J$2638,MATCH($AD37,'Base SMAE'!$A$13:$A$2638,0)))*AH37,"")="",IFERROR((INDEX('Base USDA'!$J$6:$J$5436,MATCH($AD37,'Base USDA'!$B$6:$B$5436,0)))*AH37,""),IFERROR((INDEX('Base SMAE'!$J$13:$J$2638,MATCH($AD37,'Base SMAE'!$A$13:$A$2638,0)))*AH37,"")),IF(IFERROR((INDEX('Base USDA'!$J$6:$J$5436,MATCH($AD37,'Base USDA'!$B$6:$B$5436,0)))*AH37,"")="",IFERROR((INDEX('Base SMAE'!$J$13:$J$2638,MATCH($AD37,'Base SMAE'!$A$13:$A$2638,0)))*AH37,""),IFERROR((INDEX('Base USDA'!$J$6:$J$5436,MATCH($AD37,'Base USDA'!$B$6:$B$5436,0)))*AH37,"")))) ->  | AO37: =IF(OR($AD37="",$AG37=""),"",IF($G$5="SMAE",IF(IFERROR((INDEX('Base SMAE'!$K$13:$K$2638,MATCH($AD37,'Base SMAE'!$A$13:$A$2638,0)))*AH37,"")="",IFERROR((INDEX('Base USDA'!$G$6:$G$5436,MATCH($AD37,'Base USDA'!$B$6:$B$5436,0)))*AH37,""),IFERROR((INDEX('Base SMAE'!$K$13:$K$2638,MATCH($AD37,'Base SMAE'!$A$13:$A$2638,0)))*AH37,"")),IF(IFERROR((INDEX('Base USDA'!$G$6:$G$5436,MATCH($AD37,'Base USDA'!$B$6:$B$5436,0)))*AH37,"")="",IFERROR((INDEX('Base SMAE'!$K$13:$K$2638,MATCH($AD37,'Base SMAE'!$A$13:$A$2638,0)))*AH37,""),IFERROR((INDEX('Base USDA'!$G$6:$G$5436,MATCH($AD37,'Base USDA'!$B$6:$B$5436,0)))*AH37,"")))) ->  | AP37: =IF(OR($AD37="",$AG37=""),"",IF($G$5="SMAE",IF(IFERROR((INDEX('Base SMAE'!$L$13:$L$2638,MATCH($AD37,'Base SMAE'!$A$13:$A$2638,0)))*AH37,"")="",IFERROR((INDEX('Base USDA'!$I$6:$I$5436,MATCH($AD37,'Base USDA'!$B$6:$B$5436,0)))*AH37,""),IFERROR((INDEX('Base SMAE'!$L$13:$L$2638,MATCH($AD37,'Base SMAE'!$A$13:$A$2638,0)))*AH37,"")),IF(IFERROR((INDEX('Base USDA'!$I$6:$I$5436,MATCH($AD37,'Base USDA'!$B$6:$B$5436,0)))*AH37,"")="",IFERROR((INDEX('Base SMAE'!$L$13:$L$2638,MATCH($AD37,'Base SMAE'!$A$13:$A$2638,0)))*AH37,""),IFERROR((INDEX('Base USDA'!$I$6:$I$5436,MATCH($AD37,'Base USDA'!$B$6:$B$5436,0)))*AH37,"")))) ->  | AT37: =IF($AR37="","",IF($AS37="Gramos","gramos",IF($G$5="SMAE",IFERROR(INDEX('Base SMAE'!$E$13:$E$2638,MATCH($AR37,'Base SMAE'!$A$13:$A$2638,0)),"gramos"),"gramos"))) ->  | AV37: =IF(OR($AR37="",$AU37=""),"",IF($G$5="SMAE",IFERROR(IF($AS37="Gramos",$AU37/AX37,$AU37/AY37),""),IFERROR($AU37/100,""))) ->  | AW37: =IF($AR37="","",IF($G$5="SMAE",IFERROR(INDEX('Base SMAE'!$B$13:$B$2638,MATCH($AR37,'Base SMAE'!$A$13:$A$2638,0)),IFERROR(INDEX('Base USDA'!$D$6:$D$5436,MATCH($AR37,'Base USDA'!$B$6:$B$5436,0)),"")),IFERROR(INDEX('Base USDA'!$D$6:$D$5436,MATCH($AR37,'Base USDA'!$B$6:$B$5436,0)),IFERROR(INDEX('Base SMAE'!$B$13:$B$2638,MATCH($AR37,'Base SMAE'!$A$13:$A$2638,0)),"")))) ->  | AX37: =IF($AR37="","",IF($G$5="SMAE",IFERROR(INDEX('Base SMAE'!$G$13:$G$2638,MATCH($AR37,'Base SMAE'!$A$13:$A$2638,0)),""),100)) ->  | AY37: =IF($AR37="","",IF($G$5="SMAE",IFERROR(INDEX('Base SMAE'!$D$13:$D$2638,MATCH($AR37,'Base SMAE'!$A$13:$A$2638,0)),""),100)) ->  | AZ37: =IF(OR($AR37="",$AU37=""),"",IF($G$5="SMAE",IF(IFERROR((INDEX('Base SMAE'!$H$13:$H$2638,MATCH($AR37,'Base SMAE'!$A$13:$A$2638,0)))*AV37,"")="",IFERROR((INDEX('Base USDA'!$E$6:$E$5436,MATCH($AR37,'Base USDA'!$B$6:$B$5436,0)))*AV37,""),IFERROR((INDEX('Base SMAE'!$H$13:$H$2638,MATCH($AR37,'Base SMAE'!$A$13:$A$2638,0)))*AV37,"")),IF(IFERROR((INDEX('Base USDA'!$E$6:$E$5436,MATCH($AR37,'Base USDA'!$B$6:$B$5436,0)))*AV37,"")="",IFERROR((INDEX('Base SMAE'!$H$13:$H$2638,MATCH($AR37,'Base SMAE'!$A$13:$A$2638,0)))*AV37,""),IFERROR((INDEX('Base USDA'!$E$6:$E$5436,MATCH($AR37,'Base USDA'!$B$6:$B$5436,0)))*AV37,"")))) ->  | BA37: =IF(OR($AR37="",$AU37=""),"",IF($G$5="SMAE",IF(IFERROR((INDEX('Base SMAE'!$I$13:$I$2638,MATCH($AR37,'Base SMAE'!$A$13:$A$2638,0)))*AV37,"")="",IFERROR((INDEX('Base USDA'!$F$6:$F$5436,MATCH($AR37,'Base USDA'!$B$6:$B$5436,0)))*AV37,""),IFERROR((INDEX('Base SMAE'!$I$13:$I$2638,MATCH($AR37,'Base SMAE'!$A$13:$A$2638,0)))*AV37,"")),IF(IFERROR((INDEX('Base USDA'!$F$6:$F$5436,MATCH($AR37,'Base USDA'!$B$6:$B$5436,0)))*AV37,"")="",IFERROR((INDEX('Base SMAE'!$I$13:$I$2638,MATCH($AR37,'Base SMAE'!$A$13:$A$2638,0)))*AV37,""),IFERROR((INDEX('Base USDA'!$F$6:$F$5436,MATCH($AR37,'Base USDA'!$B$6:$B$5436,0)))*AV37,"")))) ->  | BB37: =IF(OR($AR37="",$AU37=""),"",IF($G$5="SMAE",IF(IFERROR((INDEX('Base SMAE'!$J$13:$J$2638,MATCH($AR37,'Base SMAE'!$A$13:$A$2638,0)))*AV37,"")="",IFERROR((INDEX('Base USDA'!$J$6:$J$5436,MATCH($AR37,'Base USDA'!$B$6:$B$5436,0)))*AV37,""),IFERROR((INDEX('Base SMAE'!$J$13:$J$2638,MATCH($AR37,'Base SMAE'!$A$13:$A$2638,0)))*AV37,"")),IF(IFERROR((INDEX('Base USDA'!$J$6:$J$5436,MATCH($AR37,'Base USDA'!$B$6:$B$5436,0)))*AV37,"")="",IFERROR((INDEX('Base SMAE'!$J$13:$J$2638,MATCH($AR37,'Base SMAE'!$A$13:$A$2638,0)))*AV37,""),IFERROR((INDEX('Base USDA'!$J$6:$J$5436,MATCH($AR37,'Base USDA'!$B$6:$B$5436,0)))*AV37,"")))) ->  | BC37: =IF(OR($AR37="",$AU37=""),"",IF($G$5="SMAE",IF(IFERROR((INDEX('Base SMAE'!$K$13:$K$2638,MATCH($AR37,'Base SMAE'!$A$13:$A$2638,0)))*AV37,"")="",IFERROR((INDEX('Base USDA'!$G$6:$G$5436,MATCH($AR37,'Base USDA'!$B$6:$B$5436,0)))*AV37,""),IFERROR((INDEX('Base SMAE'!$K$13:$K$2638,MATCH($AR37,'Base SMAE'!$A$13:$A$2638,0)))*AV37,"")),IF(IFERROR((INDEX('Base USDA'!$G$6:$G$5436,MATCH($AR37,'Base USDA'!$B$6:$B$5436,0)))*AV37,"")="",IFERROR((INDEX('Base SMAE'!$K$13:$K$2638,MATCH($AR37,'Base SMAE'!$A$13:$A$2638,0)))*AV37,""),IFERROR((INDEX('Base USDA'!$G$6:$G$5436,MATCH($AR37,'Base USDA'!$B$6:$B$5436,0)))*AV37,"")))) ->  | BD37: =IF(OR($AR37="",$AU37=""),"",IF($G$5="SMAE",IF(IFERROR((INDEX('Base SMAE'!$L$13:$L$2638,MATCH($AR37,'Base SMAE'!$A$13:$A$2638,0)))*AV37,"")="",IFERROR((INDEX('Base USDA'!$I$6:$I$5436,MATCH($AR37,'Base USDA'!$B$6:$B$5436,0)))*AV37,""),IFERROR((INDEX('Base SMAE'!$L$13:$L$2638,MATCH($AR37,'Base SMAE'!$A$13:$A$2638,0)))*AV37,"")),IF(IFERROR((INDEX('Base USDA'!$I$6:$I$5436,MATCH($AR37,'Base USDA'!$B$6:$B$5436,0)))*AV37,"")="",IFERROR((INDEX('Base SMAE'!$L$13:$L$2638,MATCH($AR37,'Base SMAE'!$A$13:$A$2638,0)))*AV37,""),IFERROR((INDEX('Base USDA'!$I$6:$I$5436,MATCH($AR37,'Base USDA'!$B$6:$B$5436,0)))*AV37,"")))) ->  | BH37: Vitamina C (mg) | BI37: =ROUND(SUMPRODUCT(SUMIF('Base SMAE'!$A$13:$A$2638,$B$15:$B$24,'Base SMAE'!$R$13:$R$2638),$CB$15:$CB$24)+SUMPRODUCT(SUMIF('Base USDA'!$B$6:$B$5436,$B$15:$B$24,'Base USDA'!$AG$6:$AG$5436),$CC$15:$CC$24)+SUMPRODUCT(SUMIF('Base SMAE'!$A$13:$A$2638,$B$37:$B$46,'Base SMAE'!$R$13:$R$2638),$CB$37:$CB$46)+SUMPRODUCT(SUMIF('Base USDA'!$B$6:$B$5436,$B$37:$B$46,'Base USDA'!$AG$6:$AG$5436),$CC$37:$CC$46)+SUMPRODUCT(SUMIF('Base SMAE'!$A$13:$A$2638,$B$59:$B$68,'Base SMAE'!$R$13:$R$2638),$CB$59:$CB$68)+SUMPRODUCT(SUMIF('Base USDA'!$B$6:$B$5436,$B$59:$B$68,'Base USDA'!$AG$6:$AG$5436),$CC$59:$CC$68)+SUMPRODUCT(SUMIF('Base SMAE'!$A$13:$A$2638,$B$81:$B$90,'Base SMAE'!$R$13:$R$2638),$CB$81:$CB$90)+SUMPRODUCT(SUMIF('Base USDA'!$B$6:$B$5436,$B$81:$B$90,'Base USDA'!$AG$6:$AG$5436),$CC$81:$CC$90)+SUMPRODUCT(SUMIF('Base SMAE'!$A$13:$A$2638,$B$103:$B$112,'Base SMAE'!$R$13:$R$2638),$CB$103:$CB$112)+SUMPRODUCT(SUMIF('Base USDA'!$B$6:$B$5436,$B$103:$B$112,'Base USDA'!$AG$6:$AG$5436),$CC$103:$CC$112),1) -> 0 | BJ37: =ROUND(SUMPRODUCT(SUMIF('Base SMAE'!$A$13:$A$2638,$P$15:$P$24,'Base SMAE'!$R$13:$R$2638),$CD$15:$CD$24)+SUMPRODUCT(SUMIF('Base USDA'!$B$6:$B$5436,$P$15:$P$24,'Base USDA'!$AG$6:$AG$5436),$CE$15:$CE$24)+SUMPRODUCT(SUMIF('Base SMAE'!$A$13:$A$2638,$P$37:$P$46,'Base SMAE'!$R$13:$R$2638),$CD$37:$CD$46)+SUMPRODUCT(SUMIF('Base USDA'!$B$6:$B$5436,$P$37:$P$46,'Base USDA'!$AG$6:$AG$5436),$CE$37:$CE$46)+SUMPRODUCT(SUMIF('Base SMAE'!$A$13:$A$2638,$P$59:$P$68,'Base SMAE'!$R$13:$R$2638),$CD$59:$CD$68)+SUMPRODUCT(SUMIF('Base USDA'!$B$6:$B$5436,$P$59:$P$68,'Base USDA'!$AG$6:$AG$5436),$CE$59:$CE$68)+SUMPRODUCT(SUMIF('Base SMAE'!$A$13:$A$2638,$P$81:$P$90,'Base SMAE'!$R$13:$R$2638),$CD$81:$CD$90)+SUMPRODUCT(SUMIF('Base USDA'!$B$6:$B$5436,$P$81:$P$90,'Base USDA'!$AG$6:$AG$5436),$CE$81:$CE$90)+SUMPRODUCT(SUMIF('Base SMAE'!$A$13:$A$2638,$P$103:$P$112,'Base SMAE'!$R$13:$R$2638),$CD$103:$CD$112)+SUMPRODUCT(SUMIF('Base USDA'!$B$6:$B$5436,$P$103:$P$112,'Base USDA'!$AG$6:$AG$5436),$CE$103:$CE$112),1) -> 0 | BK37: =ROUND(SUMPRODUCT(SUMIF('Base SMAE'!$A$13:$A$2638,$AD$15:$AD$24,'Base SMAE'!$R$13:$R$2638),$CF$15:$CF$24)+SUMPRODUCT(SUMIF('Base USDA'!$B$6:$B$5436,$AD$15:$AD$24,'Base USDA'!$AG$6:$AG$5436),$CG$15:$CG$24)+SUMPRODUCT(SUMIF('Base SMAE'!$A$13:$A$2638,$AD$37:$AD$46,'Base SMAE'!$R$13:$R$2638),$CF$37:$CF$46)+SUMPRODUCT(SUMIF('Base USDA'!$B$6:$B$5436,$AD$37:$AD$46,'Base USDA'!$AG$6:$AG$5436),$CG$37:$CG$46)+SUMPRODUCT(SUMIF('Base SMAE'!$A$13:$A$2638,$AD$59:$AD$68,'Base SMAE'!$R$13:$R$2638),$CF$59:$CF$68)+SUMPRODUCT(SUMIF('Base USDA'!$B$6:$B$5436,$AD$59:$AD$68,'Base USDA'!$AG$6:$AG$5436),$CG$59:$CG$68)+SUMPRODUCT(SUMIF('Base SMAE'!$A$13:$A$2638,$AD$81:$AD$90,'Base SMAE'!$R$13:$R$2638),$CF$81:$CF$90)+SUMPRODUCT(SUMIF('Base USDA'!$B$6:$B$5436,$AD$81:$AD$90,'Base USDA'!$AG$6:$AG$5436),$CG$81:$CG$90)+SUMPRODUCT(SUMIF('Base SMAE'!$A$13:$A$2638,$AD$103:$AD$112,'Base SMAE'!$R$13:$R$2638),$CF$103:$CF$112)+SUMPRODUCT(SUMIF('Base USDA'!$B$6:$B$5436,$AD$103:$AD$112,'Base USDA'!$AG$6:$AG$5436),$CG$103:$CG$112),1) -> 0 | BL37: =ROUND(SUMPRODUCT(SUMIF('Base SMAE'!$A$13:$A$2638,$AR$15:$AR$24,'Base SMAE'!$R$13:$R$2638),$CH$15:$CH$24)+SUMPRODUCT(SUMIF('Base USDA'!$B$6:$B$5436,$AR$15:$AR$24,'Base USDA'!$AG$6:$AG$5436),$CI$15:$CI$24)+SUMPRODUCT(SUMIF('Base SMAE'!$A$13:$A$2638,$AR$37:$AR$46,'Base SMAE'!$R$13:$R$2638),$CH$37:$CH$46)+SUMPRODUCT(SUMIF('Base USDA'!$B$6:$B$5436,$AR$37:$AR$46,'Base USDA'!$AG$6:$AG$5436),$CI$37:$CI$46)+SUMPRODUCT(SUMIF('Base SMAE'!$A$13:$A$2638,$AR$59:$AR$68,'Base SMAE'!$R$13:$R$2638),$CH$59:$CH$68)+SUMPRODUCT(SUMIF('Base USDA'!$B$6:$B$5436,$AR$59:$AR$68,'Base USDA'!$AG$6:$AG$5436),$CI$59:$CI$68)+SUMPRODUCT(SUMIF('Base SMAE'!$A$13:$A$2638,$AR$81:$AR$90,'Base SMAE'!$R$13:$R$2638),$CH$81:$CH$90)+SUMPRODUCT(SUMIF('Base USDA'!$B$6:$B$5436,$AR$81:$AR$90,'Base USDA'!$AG$6:$AG$5436),$CI$81:$CI$90)+SUMPRODUCT(SUMIF('Base SMAE'!$A$13:$A$2638,$AR$103:$AR$112,'Base SMAE'!$R$13:$R$2638),$CH$103:$CH$112)+SUMPRODUCT(SUMIF('Base USDA'!$B$6:$B$5436,$AR$103:$AR$112,'Base USDA'!$AG$6:$AG$5436),$CI$103:$CI$112),1) -> 0 | BM37: =90 -> 90 | BN37: 0 | CB37: =IF($B37="",0,IF(ISNUMBER(MATCH($B37,'Base SMAE'!$A$13:$A$2638,0)),IFERROR($F37,0),0)) -> 0 | CC37: =IF($B37="",0,IF(ISNUMBER(MATCH($B37,'Base SMAE'!$A$13:$A$2638,0)),0,IFERROR(IF($C37="Gramos",$E37,IFERROR(($E37/$I37)*$H37,0))/100,0))) -> 0 | CD37: =IF($P37="",0,IF(ISNUMBER(MATCH($P37,'Base SMAE'!$A$13:$A$2638,0)),IFERROR($T37,0),0)) -> 0 | CE37: =IF($P37="",0,IF(ISNUMBER(MATCH($P37,'Base SMAE'!$A$13:$A$2638,0)),0,IFERROR(IF($Q37="Gramos",$S37,IFERROR(($S37/$W37)*$V37,0))/100,0))) -> 0 | CF37: =IF($AD37="",0,IF(ISNUMBER(MATCH($AD37,'Base SMAE'!$A$13:$A$2638,0)),IFERROR($AH37,0),0)) -> 0 | CG37: =IF($AD37="",0,IF(ISNUMBER(MATCH($AD37,'Base SMAE'!$A$13:$A$2638,0)),0,IFERROR(IF($AE37="Gramos",$AG37,IFERROR(($AG37/$AK37)*$AJ37,0))/100,0))) -> 0 | CH37: =IF($AR37="",0,IF(ISNUMBER(MATCH($AR37,'Base SMAE'!$A$13:$A$2638,0)),IFERROR($AV37,0),0)) -> 0 | CI37: =IF($AR37="",0,IF(ISNUMBER(MATCH($AR37,'Base SMAE'!$A$13:$A$2638,0)),0,IFERROR(IF($AS37="Gramos",$AU37,IFERROR(($AU37/$AY37)*$AX37,0))/100,0))) -> 0
D38: =IF($B38="","",IF($C38="Gramos","gramos",IF($G$5="SMAE",IFERROR(INDEX('Base SMAE'!$E$13:$E$2638,MATCH($B38,'Base SMAE'!$A$13:$A$2638,0)),"gramos"),"gramos"))) ->  | G38: =IF($B38="","",IF($G$5="SMAE",IFERROR(INDEX('Base SMAE'!$B$13:$B$2638,MATCH($B38,'Base SMAE'!$A$13:$A$2638,0)),IFERROR(INDEX('Base USDA'!$D$6:$D$5436,MATCH($B38,'Base USDA'!$B$6:$B$5436,0)),"")),IFERROR(INDEX('Base USDA'!$D$6:$D$5436,MATCH($B38,'Base USDA'!$B$6:$B$5436,0)),IFERROR(INDEX('Base SMAE'!$B$13:$B$2638,MATCH($B38,'Base SMAE'!$A$13:$A$2638,0)),"")))) ->  | H38: =IF($B38="","",IF($G$5="SMAE",IFERROR(INDEX('Base SMAE'!$G$13:$G$2638,MATCH($B38,'Base SMAE'!$A$13:$A$2638,0)),""),100)) ->  | I38: =IF($B38="","",IF($G$5="SMAE",IFERROR(INDEX('Base SMAE'!$D$13:$D$2638,MATCH($B38,'Base SMAE'!$A$13:$A$2638,0)),""),100)) ->  | J38: =IF(OR($B38="",$E38=""),"",IF($G$5="SMAE",IF(IFERROR((INDEX('Base SMAE'!$H$13:$H$2638,MATCH($B38,'Base SMAE'!$A$13:$A$2638,0)))*F38,"")="",IFERROR((INDEX('Base USDA'!$E$6:$E$5436,MATCH($B38,'Base USDA'!$B$6:$B$5436,0)))*F38,""),IFERROR((INDEX('Base SMAE'!$H$13:$H$2638,MATCH($B38,'Base SMAE'!$A$13:$A$2638,0)))*F38,"")),IF(IFERROR((INDEX('Base USDA'!$E$6:$E$5436,MATCH($B38,'Base USDA'!$B$6:$B$5436,0)))*F38,"")="",IFERROR((INDEX('Base SMAE'!$H$13:$H$2638,MATCH($B38,'Base SMAE'!$A$13:$A$2638,0)))*F38,""),IFERROR((INDEX('Base USDA'!$E$6:$E$5436,MATCH($B38,'Base USDA'!$B$6:$B$5436,0)))*F38,"")))) ->  | K38: =IF(OR($B38="",$E38=""),"",IF($G$5="SMAE",IF(IFERROR((INDEX('Base SMAE'!$I$13:$I$2638,MATCH($B38,'Base SMAE'!$A$13:$A$2638,0)))*F38,"")="",IFERROR((INDEX('Base USDA'!$F$6:$F$5436,MATCH($B38,'Base USDA'!$B$6:$B$5436,0)))*F38,""),IFERROR((INDEX('Base SMAE'!$I$13:$I$2638,MATCH($B38,'Base SMAE'!$A$13:$A$2638,0)))*F38,"")),IF(IFERROR((INDEX('Base USDA'!$F$6:$F$5436,MATCH($B38,'Base USDA'!$B$6:$B$5436,0)))*F38,"")="",IFERROR((INDEX('Base SMAE'!$I$13:$I$2638,MATCH($B38,'Base SMAE'!$A$13:$A$2638,0)))*F38,""),IFERROR((INDEX('Base USDA'!$F$6:$F$5436,MATCH($B38,'Base USDA'!$B$6:$B$5436,0)))*F38,"")))) ->  | L38: =IF(OR($B38="",$E38=""),"",IF($G$5="SMAE",IF(IFERROR((INDEX('Base SMAE'!$J$13:$J$2638,MATCH($B38,'Base SMAE'!$A$13:$A$2638,0)))*F38,"")="",IFERROR((INDEX('Base USDA'!$J$6:$J$5436,MATCH($B38,'Base USDA'!$B$6:$B$5436,0)))*F38,""),IFERROR((INDEX('Base SMAE'!$J$13:$J$2638,MATCH($B38,'Base SMAE'!$A$13:$A$2638,0)))*F38,"")),IF(IFERROR((INDEX('Base USDA'!$J$6:$J$5436,MATCH($B38,'Base USDA'!$B$6:$B$5436,0)))*F38,"")="",IFERROR((INDEX('Base SMAE'!$J$13:$J$2638,MATCH($B38,'Base SMAE'!$A$13:$A$2638,0)))*F38,""),IFERROR((INDEX('Base USDA'!$J$6:$J$5436,MATCH($B38,'Base USDA'!$B$6:$B$5436,0)))*F38,"")))) ->  | M38: =IF(OR($B38="",$E38=""),"",IF($G$5="SMAE",IF(IFERROR((INDEX('Base SMAE'!$K$13:$K$2638,MATCH($B38,'Base SMAE'!$A$13:$A$2638,0)))*F38,"")="",IFERROR((INDEX('Base USDA'!$G$6:$G$5436,MATCH($B38,'Base USDA'!$B$6:$B$5436,0)))*F38,""),IFERROR((INDEX('Base SMAE'!$K$13:$K$2638,MATCH($B38,'Base SMAE'!$A$13:$A$2638,0)))*F38,"")),IF(IFERROR((INDEX('Base USDA'!$G$6:$G$5436,MATCH($B38,'Base USDA'!$B$6:$B$5436,0)))*F38,"")="",IFERROR((INDEX('Base SMAE'!$K$13:$K$2638,MATCH($B38,'Base SMAE'!$A$13:$A$2638,0)))*F38,""),IFERROR((INDEX('Base USDA'!$G$6:$G$5436,MATCH($B38,'Base USDA'!$B$6:$B$5436,0)))*F38,"")))) ->  | N38: =IF(OR($B38="",$E38=""),"",IF($G$5="SMAE",IF(IFERROR((INDEX('Base SMAE'!$L$13:$L$2638,MATCH($B38,'Base SMAE'!$A$13:$A$2638,0)))*F38,"")="",IFERROR((INDEX('Base USDA'!$I$6:$I$5436,MATCH($B38,'Base USDA'!$B$6:$B$5436,0)))*F38,""),IFERROR((INDEX('Base SMAE'!$L$13:$L$2638,MATCH($B38,'Base SMAE'!$A$13:$A$2638,0)))*F38,"")),IF(IFERROR((INDEX('Base USDA'!$I$6:$I$5436,MATCH($B38,'Base USDA'!$B$6:$B$5436,0)))*F38,"")="",IFERROR((INDEX('Base SMAE'!$L$13:$L$2638,MATCH($B38,'Base SMAE'!$A$13:$A$2638,0)))*F38,""),IFERROR((INDEX('Base USDA'!$I$6:$I$5436,MATCH($B38,'Base USDA'!$B$6:$B$5436,0)))*F38,"")))) ->  | R38: =IF($P38="","",IF($Q38="Gramos","gramos",IF($G$5="SMAE",IFERROR(INDEX('Base SMAE'!$E$13:$E$2638,MATCH($P38,'Base SMAE'!$A$13:$A$2638,0)),"gramos"),"gramos"))) ->  | U38: =IF($P38="","",IF($G$5="SMAE",IFERROR(INDEX('Base SMAE'!$B$13:$B$2638,MATCH($P38,'Base SMAE'!$A$13:$A$2638,0)),IFERROR(INDEX('Base USDA'!$D$6:$D$5436,MATCH($P38,'Base USDA'!$B$6:$B$5436,0)),"")),IFERROR(INDEX('Base USDA'!$D$6:$D$5436,MATCH($P38,'Base USDA'!$B$6:$B$5436,0)),IFERROR(INDEX('Base SMAE'!$B$13:$B$2638,MATCH($P38,'Base SMAE'!$A$13:$A$2638,0)),"")))) ->  | V38: =IF($P38="","",IF($G$5="SMAE",IFERROR(INDEX('Base SMAE'!$G$13:$G$2638,MATCH($P38,'Base SMAE'!$A$13:$A$2638,0)),""),100)) ->  | W38: =IF($P38="","",IF($G$5="SMAE",IFERROR(INDEX('Base SMAE'!$D$13:$D$2638,MATCH($P38,'Base SMAE'!$A$13:$A$2638,0)),""),100)) ->  | X38: =IF(OR($P38="",$S38=""),"",IF($G$5="SMAE",IF(IFERROR((INDEX('Base SMAE'!$H$13:$H$2638,MATCH($P38,'Base SMAE'!$A$13:$A$2638,0)))*T38,"")="",IFERROR((INDEX('Base USDA'!$E$6:$E$5436,MATCH($P38,'Base USDA'!$B$6:$B$5436,0)))*T38,""),IFERROR((INDEX('Base SMAE'!$H$13:$H$2638,MATCH($P38,'Base SMAE'!$A$13:$A$2638,0)))*T38,"")),IF(IFERROR((INDEX('Base USDA'!$E$6:$E$5436,MATCH($P38,'Base USDA'!$B$6:$B$5436,0)))*T38,"")="",IFERROR((INDEX('Base SMAE'!$H$13:$H$2638,MATCH($P38,'Base SMAE'!$A$13:$A$2638,0)))*T38,""),IFERROR((INDEX('Base USDA'!$E$6:$E$5436,MATCH($P38,'Base USDA'!$B$6:$B$5436,0)))*T38,"")))) ->  | Y38: =IF(OR($P38="",$S38=""),"",IF($G$5="SMAE",IF(IFERROR((INDEX('Base SMAE'!$I$13:$I$2638,MATCH($P38,'Base SMAE'!$A$13:$A$2638,0)))*T38,"")="",IFERROR((INDEX('Base USDA'!$F$6:$F$5436,MATCH($P38,'Base USDA'!$B$6:$B$5436,0)))*T38,""),IFERROR((INDEX('Base SMAE'!$I$13:$I$2638,MATCH($P38,'Base SMAE'!$A$13:$A$2638,0)))*T38,"")),IF(IFERROR((INDEX('Base USDA'!$F$6:$F$5436,MATCH($P38,'Base USDA'!$B$6:$B$5436,0)))*T38,"")="",IFERROR((INDEX('Base SMAE'!$I$13:$I$2638,MATCH($P38,'Base SMAE'!$A$13:$A$2638,0)))*T38,""),IFERROR((INDEX('Base USDA'!$F$6:$F$5436,MATCH($P38,'Base USDA'!$B$6:$B$5436,0)))*T38,"")))) ->  | Z38: =IF(OR($P38="",$S38=""),"",IF($G$5="SMAE",IF(IFERROR((INDEX('Base SMAE'!$J$13:$J$2638,MATCH($P38,'Base SMAE'!$A$13:$A$2638,0)))*T38,"")="",IFERROR((INDEX('Base USDA'!$J$6:$J$5436,MATCH($P38,'Base USDA'!$B$6:$B$5436,0)))*T38,""),IFERROR((INDEX('Base SMAE'!$J$13:$J$2638,MATCH($P38,'Base SMAE'!$A$13:$A$2638,0)))*T38,"")),IF(IFERROR((INDEX('Base USDA'!$J$6:$J$5436,MATCH($P38,'Base USDA'!$B$6:$B$5436,0)))*T38,"")="",IFERROR((INDEX('Base SMAE'!$J$13:$J$2638,MATCH($P38,'Base SMAE'!$A$13:$A$2638,0)))*T38,""),IFERROR((INDEX('Base USDA'!$J$6:$J$5436,MATCH($P38,'Base USDA'!$B$6:$B$5436,0)))*T38,"")))) ->  | AA38: =IF(OR($P38="",$S38=""),"",IF($G$5="SMAE",IF(IFERROR((INDEX('Base SMAE'!$K$13:$K$2638,MATCH($P38,'Base SMAE'!$A$13:$A$2638,0)))*T38,"")="",IFERROR((INDEX('Base USDA'!$G$6:$G$5436,MATCH($P38,'Base USDA'!$B$6:$B$5436,0)))*T38,""),IFERROR((INDEX('Base SMAE'!$K$13:$K$2638,MATCH($P38,'Base SMAE'!$A$13:$A$2638,0)))*T38,"")),IF(IFERROR((INDEX('Base USDA'!$G$6:$G$5436,MATCH($P38,'Base USDA'!$B$6:$B$5436,0)))*T38,"")="",IFERROR((INDEX('Base SMAE'!$K$13:$K$2638,MATCH($P38,'Base SMAE'!$A$13:$A$2638,0)))*T38,""),IFERROR((INDEX('Base USDA'!$G$6:$G$5436,MATCH($P38,'Base USDA'!$B$6:$B$5436,0)))*T38,"")))) ->  | AB38: =IF(OR($P38="",$S38=""),"",IF($G$5="SMAE",IF(IFERROR((INDEX('Base SMAE'!$L$13:$L$2638,MATCH($P38,'Base SMAE'!$A$13:$A$2638,0)))*T38,"")="",IFERROR((INDEX('Base USDA'!$I$6:$I$5436,MATCH($P38,'Base USDA'!$B$6:$B$5436,0)))*T38,""),IFERROR((INDEX('Base SMAE'!$L$13:$L$2638,MATCH($P38,'Base SMAE'!$A$13:$A$2638,0)))*T38,"")),IF(IFERROR((INDEX('Base USDA'!$I$6:$I$5436,MATCH($P38,'Base USDA'!$B$6:$B$5436,0)))*T38,"")="",IFERROR((INDEX('Base SMAE'!$L$13:$L$2638,MATCH($P38,'Base SMAE'!$A$13:$A$2638,0)))*T38,""),IFERROR((INDEX('Base USDA'!$I$6:$I$5436,MATCH($P38,'Base USDA'!$B$6:$B$5436,0)))*T38,"")))) ->  | AF38: =IF($AD38="","",IF($AE38="Gramos","gramos",IF($G$5="SMAE",IFERROR(INDEX('Base SMAE'!$E$13:$E$2638,MATCH($AD38,'Base SMAE'!$A$13:$A$2638,0)),"gramos"),"gramos"))) ->  | AI38: =IF($AD38="","",IF($G$5="SMAE",IFERROR(INDEX('Base SMAE'!$B$13:$B$2638,MATCH($AD38,'Base SMAE'!$A$13:$A$2638,0)),IFERROR(INDEX('Base USDA'!$D$6:$D$5436,MATCH($AD38,'Base USDA'!$B$6:$B$5436,0)),"")),IFERROR(INDEX('Base USDA'!$D$6:$D$5436,MATCH($AD38,'Base USDA'!$B$6:$B$5436,0)),IFERROR(INDEX('Base SMAE'!$B$13:$B$2638,MATCH($AD38,'Base SMAE'!$A$13:$A$2638,0)),"")))) ->  | AJ38: =IF($AD38="","",IF($G$5="SMAE",IFERROR(INDEX('Base SMAE'!$G$13:$G$2638,MATCH($AD38,'Base SMAE'!$A$13:$A$2638,0)),""),100)) ->  | AK38: =IF($AD38="","",IF($G$5="SMAE",IFERROR(INDEX('Base SMAE'!$D$13:$D$2638,MATCH($AD38,'Base SMAE'!$A$13:$A$2638,0)),""),100)) ->  | AL38: =IF(OR($AD38="",$AG38=""),"",IF($G$5="SMAE",IF(IFERROR((INDEX('Base SMAE'!$H$13:$H$2638,MATCH($AD38,'Base SMAE'!$A$13:$A$2638,0)))*AH38,"")="",IFERROR((INDEX('Base USDA'!$E$6:$E$5436,MATCH($AD38,'Base USDA'!$B$6:$B$5436,0)))*AH38,""),IFERROR((INDEX('Base SMAE'!$H$13:$H$2638,MATCH($AD38,'Base SMAE'!$A$13:$A$2638,0)))*AH38,"")),IF(IFERROR((INDEX('Base USDA'!$E$6:$E$5436,MATCH($AD38,'Base USDA'!$B$6:$B$5436,0)))*AH38,"")="",IFERROR((INDEX('Base SMAE'!$H$13:$H$2638,MATCH($AD38,'Base SMAE'!$A$13:$A$2638,0)))*AH38,""),IFERROR((INDEX('Base USDA'!$E$6:$E$5436,MATCH($AD38,'Base USDA'!$B$6:$B$5436,0)))*AH38,"")))) ->  | AM38: =IF(OR($AD38="",$AG38=""),"",IF($G$5="SMAE",IF(IFERROR((INDEX('Base SMAE'!$I$13:$I$2638,MATCH($AD38,'Base SMAE'!$A$13:$A$2638,0)))*AH38,"")="",IFERROR((INDEX('Base USDA'!$F$6:$F$5436,MATCH($AD38,'Base USDA'!$B$6:$B$5436,0)))*AH38,""),IFERROR((INDEX('Base SMAE'!$I$13:$I$2638,MATCH($AD38,'Base SMAE'!$A$13:$A$2638,0)))*AH38,"")),IF(IFERROR((INDEX('Base USDA'!$F$6:$F$5436,MATCH($AD38,'Base USDA'!$B$6:$B$5436,0)))*AH38,"")="",IFERROR((INDEX('Base SMAE'!$I$13:$I$2638,MATCH($AD38,'Base SMAE'!$A$13:$A$2638,0)))*AH38,""),IFERROR((INDEX('Base USDA'!$F$6:$F$5436,MATCH($AD38,'Base USDA'!$B$6:$B$5436,0)))*AH38,"")))) ->  | AN38: =IF(OR($AD38="",$AG38=""),"",IF($G$5="SMAE",IF(IFERROR((INDEX('Base SMAE'!$J$13:$J$2638,MATCH($AD38,'Base SMAE'!$A$13:$A$2638,0)))*AH38,"")="",IFERROR((INDEX('Base USDA'!$J$6:$J$5436,MATCH($AD38,'Base USDA'!$B$6:$B$5436,0)))*AH38,""),IFERROR((INDEX('Base SMAE'!$J$13:$J$2638,MATCH($AD38,'Base SMAE'!$A$13:$A$2638,0)))*AH38,"")),IF(IFERROR((INDEX('Base USDA'!$J$6:$J$5436,MATCH($AD38,'Base USDA'!$B$6:$B$5436,0)))*AH38,"")="",IFERROR((INDEX('Base SMAE'!$J$13:$J$2638,MATCH($AD38,'Base SMAE'!$A$13:$A$2638,0)))*AH38,""),IFERROR((INDEX('Base USDA'!$J$6:$J$5436,MATCH($AD38,'Base USDA'!$B$6:$B$5436,0)))*AH38,"")))) ->  | AO38: =IF(OR($AD38="",$AG38=""),"",IF($G$5="SMAE",IF(IFERROR((INDEX('Base SMAE'!$K$13:$K$2638,MATCH($AD38,'Base SMAE'!$A$13:$A$2638,0)))*AH38,"")="",IFERROR((INDEX('Base USDA'!$G$6:$G$5436,MATCH($AD38,'Base USDA'!$B$6:$B$5436,0)))*AH38,""),IFERROR((INDEX('Base SMAE'!$K$13:$K$2638,MATCH($AD38,'Base SMAE'!$A$13:$A$2638,0)))*AH38,"")),IF(IFERROR((INDEX('Base USDA'!$G$6:$G$5436,MATCH($AD38,'Base USDA'!$B$6:$B$5436,0)))*AH38,"")="",IFERROR((INDEX('Base SMAE'!$K$13:$K$2638,MATCH($AD38,'Base SMAE'!$A$13:$A$2638,0)))*AH38,""),IFERROR((INDEX('Base USDA'!$G$6:$G$5436,MATCH($AD38,'Base USDA'!$B$6:$B$5436,0)))*AH38,"")))) ->  | AP38: =IF(OR($AD38="",$AG38=""),"",IF($G$5="SMAE",IF(IFERROR((INDEX('Base SMAE'!$L$13:$L$2638,MATCH($AD38,'Base SMAE'!$A$13:$A$2638,0)))*AH38,"")="",IFERROR((INDEX('Base USDA'!$I$6:$I$5436,MATCH($AD38,'Base USDA'!$B$6:$B$5436,0)))*AH38,""),IFERROR((INDEX('Base SMAE'!$L$13:$L$2638,MATCH($AD38,'Base SMAE'!$A$13:$A$2638,0)))*AH38,"")),IF(IFERROR((INDEX('Base USDA'!$I$6:$I$5436,MATCH($AD38,'Base USDA'!$B$6:$B$5436,0)))*AH38,"")="",IFERROR((INDEX('Base SMAE'!$L$13:$L$2638,MATCH($AD38,'Base SMAE'!$A$13:$A$2638,0)))*AH38,""),IFERROR((INDEX('Base USDA'!$I$6:$I$5436,MATCH($AD38,'Base USDA'!$B$6:$B$5436,0)))*AH38,"")))) ->  | AT38: =IF($AR38="","",IF($AS38="Gramos","gramos",IF($G$5="SMAE",IFERROR(INDEX('Base SMAE'!$E$13:$E$2638,MATCH($AR38,'Base SMAE'!$A$13:$A$2638,0)),"gramos"),"gramos"))) ->  | AV38: =IF(OR($AR38="",$AU38=""),"",IF($G$5="SMAE",IFERROR(IF($AS38="Gramos",$AU38/AX38,$AU38/AY38),""),IFERROR($AU38/100,""))) ->  | AW38: =IF($AR38="","",IF($G$5="SMAE",IFERROR(INDEX('Base SMAE'!$B$13:$B$2638,MATCH($AR38,'Base SMAE'!$A$13:$A$2638,0)),IFERROR(INDEX('Base USDA'!$D$6:$D$5436,MATCH($AR38,'Base USDA'!$B$6:$B$5436,0)),"")),IFERROR(INDEX('Base USDA'!$D$6:$D$5436,MATCH($AR38,'Base USDA'!$B$6:$B$5436,0)),IFERROR(INDEX('Base SMAE'!$B$13:$B$2638,MATCH($AR38,'Base SMAE'!$A$13:$A$2638,0)),"")))) ->  | AX38: =IF($AR38="","",IF($G$5="SMAE",IFERROR(INDEX('Base SMAE'!$G$13:$G$2638,MATCH($AR38,'Base SMAE'!$A$13:$A$2638,0)),""),100)) ->  | AY38: =IF($AR38="","",IF($G$5="SMAE",IFERROR(INDEX('Base SMAE'!$D$13:$D$2638,MATCH($AR38,'Base SMAE'!$A$13:$A$2638,0)),""),100)) ->  | AZ38: =IF(OR($AR38="",$AU38=""),"",IF($G$5="SMAE",IF(IFERROR((INDEX('Base SMAE'!$H$13:$H$2638,MATCH($AR38,'Base SMAE'!$A$13:$A$2638,0)))*AV38,"")="",IFERROR((INDEX('Base USDA'!$E$6:$E$5436,MATCH($AR38,'Base USDA'!$B$6:$B$5436,0)))*AV38,""),IFERROR((INDEX('Base SMAE'!$H$13:$H$2638,MATCH($AR38,'Base SMAE'!$A$13:$A$2638,0)))*AV38,"")),IF(IFERROR((INDEX('Base USDA'!$E$6:$E$5436,MATCH($AR38,'Base USDA'!$B$6:$B$5436,0)))*AV38,"")="",IFERROR((INDEX('Base SMAE'!$H$13:$H$2638,MATCH($AR38,'Base SMAE'!$A$13:$A$2638,0)))*AV38,""),IFERROR((INDEX('Base USDA'!$E$6:$E$5436,MATCH($AR38,'Base USDA'!$B$6:$B$5436,0)))*AV38,"")))) ->  | BA38: =IF(OR($AR38="",$AU38=""),"",IF($G$5="SMAE",IF(IFERROR((INDEX('Base SMAE'!$I$13:$I$2638,MATCH($AR38,'Base SMAE'!$A$13:$A$2638,0)))*AV38,"")="",IFERROR((INDEX('Base USDA'!$F$6:$F$5436,MATCH($AR38,'Base USDA'!$B$6:$B$5436,0)))*AV38,""),IFERROR((INDEX('Base SMAE'!$I$13:$I$2638,MATCH($AR38,'Base SMAE'!$A$13:$A$2638,0)))*AV38,"")),IF(IFERROR((INDEX('Base USDA'!$F$6:$F$5436,MATCH($AR38,'Base USDA'!$B$6:$B$5436,0)))*AV38,"")="",IFERROR((INDEX('Base SMAE'!$I$13:$I$2638,MATCH($AR38,'Base SMAE'!$A$13:$A$2638,0)))*AV38,""),IFERROR((INDEX('Base USDA'!$F$6:$F$5436,MATCH($AR38,'Base USDA'!$B$6:$B$5436,0)))*AV38,"")))) ->  | BB38: =IF(OR($AR38="",$AU38=""),"",IF($G$5="SMAE",IF(IFERROR((INDEX('Base SMAE'!$J$13:$J$2638,MATCH($AR38,'Base SMAE'!$A$13:$A$2638,0)))*AV38,"")="",IFERROR((INDEX('Base USDA'!$J$6:$J$5436,MATCH($AR38,'Base USDA'!$B$6:$B$5436,0)))*AV38,""),IFERROR((INDEX('Base SMAE'!$J$13:$J$2638,MATCH($AR38,'Base SMAE'!$A$13:$A$2638,0)))*AV38,"")),IF(IFERROR((INDEX('Base USDA'!$J$6:$J$5436,MATCH($AR38,'Base USDA'!$B$6:$B$5436,0)))*AV38,"")="",IFERROR((INDEX('Base SMAE'!$J$13:$J$2638,MATCH($AR38,'Base SMAE'!$A$13:$A$2638,0)))*AV38,""),IFERROR((INDEX('Base USDA'!$J$6:$J$5436,MATCH($AR38,'Base USDA'!$B$6:$B$5436,0)))*AV38,"")))) ->  | BC38: =IF(OR($AR38="",$AU38=""),"",IF($G$5="SMAE",IF(IFERROR((INDEX('Base SMAE'!$K$13:$K$2638,MATCH($AR38,'Base SMAE'!$A$13:$A$2638,0)))*AV38,"")="",IFERROR((INDEX('Base USDA'!$G$6:$G$5436,MATCH($AR38,'Base USDA'!$B$6:$B$5436,0)))*AV38,""),IFERROR((INDEX('Base SMAE'!$K$13:$K$2638,MATCH($AR38,'Base SMAE'!$A$13:$A$2638,0)))*AV38,"")),IF(IFERROR((INDEX('Base USDA'!$G$6:$G$5436,MATCH($AR38,'Base USDA'!$B$6:$B$5436,0)))*AV38,"")="",IFERROR((INDEX('Base SMAE'!$K$13:$K$2638,MATCH($AR38,'Base SMAE'!$A$13:$A$2638,0)))*AV38,""),IFERROR((INDEX('Base USDA'!$G$6:$G$5436,MATCH($AR38,'Base USDA'!$B$6:$B$5436,0)))*AV38,"")))) ->  | BD38: =IF(OR($AR38="",$AU38=""),"",IF($G$5="SMAE",IF(IFERROR((INDEX('Base SMAE'!$L$13:$L$2638,MATCH($AR38,'Base SMAE'!$A$13:$A$2638,0)))*AV38,"")="",IFERROR((INDEX('Base USDA'!$I$6:$I$5436,MATCH($AR38,'Base USDA'!$B$6:$B$5436,0)))*AV38,""),IFERROR((INDEX('Base SMAE'!$L$13:$L$2638,MATCH($AR38,'Base SMAE'!$A$13:$A$2638,0)))*AV38,"")),IF(IFERROR((INDEX('Base USDA'!$I$6:$I$5436,MATCH($AR38,'Base USDA'!$B$6:$B$5436,0)))*AV38,"")="",IFERROR((INDEX('Base SMAE'!$L$13:$L$2638,MATCH($AR38,'Base SMAE'!$A$13:$A$2638,0)))*AV38,""),IFERROR((INDEX('Base USDA'!$I$6:$I$5436,MATCH($AR38,'Base USDA'!$B$6:$B$5436,0)))*AV38,"")))) ->  | BH38: Vitamina D (mcg) | BI38: =ROUND(SUMPRODUCT(SUMIF('Base SMAE'!$A$13:$A$2638,$B$15:$B$24,'Base SMAE'!$AI$13:$AI$2638),$CB$15:$CB$24)+SUMPRODUCT(SUMIF('Base USDA'!$B$6:$B$5436,$B$15:$B$24,'Base USDA'!$AH$6:$AH$5436),$CC$15:$CC$24)+SUMPRODUCT(SUMIF('Base SMAE'!$A$13:$A$2638,$B$37:$B$46,'Base SMAE'!$AI$13:$AI$2638),$CB$37:$CB$46)+SUMPRODUCT(SUMIF('Base USDA'!$B$6:$B$5436,$B$37:$B$46,'Base USDA'!$AH$6:$AH$5436),$CC$37:$CC$46)+SUMPRODUCT(SUMIF('Base SMAE'!$A$13:$A$2638,$B$59:$B$68,'Base SMAE'!$AI$13:$AI$2638),$CB$59:$CB$68)+SUMPRODUCT(SUMIF('Base USDA'!$B$6:$B$5436,$B$59:$B$68,'Base USDA'!$AH$6:$AH$5436),$CC$59:$CC$68)+SUMPRODUCT(SUMIF('Base SMAE'!$A$13:$A$2638,$B$81:$B$90,'Base SMAE'!$AI$13:$AI$2638),$CB$81:$CB$90)+SUMPRODUCT(SUMIF('Base USDA'!$B$6:$B$5436,$B$81:$B$90,'Base USDA'!$AH$6:$AH$5436),$CC$81:$CC$90)+SUMPRODUCT(SUMIF('Base SMAE'!$A$13:$A$2638,$B$103:$B$112,'Base SMAE'!$AI$13:$AI$2638),$CB$103:$CB$112)+SUMPRODUCT(SUMIF('Base USDA'!$B$6:$B$5436,$B$103:$B$112,'Base USDA'!$AH$6:$AH$5436),$CC$103:$CC$112),1) -> 0 | BJ38: =ROUND(SUMPRODUCT(SUMIF('Base SMAE'!$A$13:$A$2638,$P$15:$P$24,'Base SMAE'!$AI$13:$AI$2638),$CD$15:$CD$24)+SUMPRODUCT(SUMIF('Base USDA'!$B$6:$B$5436,$P$15:$P$24,'Base USDA'!$AH$6:$AH$5436),$CE$15:$CE$24)+SUMPRODUCT(SUMIF('Base SMAE'!$A$13:$A$2638,$P$37:$P$46,'Base SMAE'!$AI$13:$AI$2638),$CD$37:$CD$46)+SUMPRODUCT(SUMIF('Base USDA'!$B$6:$B$5436,$P$37:$P$46,'Base USDA'!$AH$6:$AH$5436),$CE$37:$CE$46)+SUMPRODUCT(SUMIF('Base SMAE'!$A$13:$A$2638,$P$59:$P$68,'Base SMAE'!$AI$13:$AI$2638),$CD$59:$CD$68)+SUMPRODUCT(SUMIF('Base USDA'!$B$6:$B$5436,$P$59:$P$68,'Base USDA'!$AH$6:$AH$5436),$CE$59:$CE$68)+SUMPRODUCT(SUMIF('Base SMAE'!$A$13:$A$2638,$P$81:$P$90,'Base SMAE'!$AI$13:$AI$2638),$CD$81:$CD$90)+SUMPRODUCT(SUMIF('Base USDA'!$B$6:$B$5436,$P$81:$P$90,'Base USDA'!$AH$6:$AH$5436),$CE$81:$CE$90)+SUMPRODUCT(SUMIF('Base SMAE'!$A$13:$A$2638,$P$103:$P$112,'Base SMAE'!$AI$13:$AI$2638),$CD$103:$CD$112)+SUMPRODUCT(SUMIF('Base USDA'!$B$6:$B$5436,$P$103:$P$112,'Base USDA'!$AH$6:$AH$5436),$CE$103:$CE$112),1) -> 0 | BK38: =ROUND(SUMPRODUCT(SUMIF('Base SMAE'!$A$13:$A$2638,$AD$15:$AD$24,'Base SMAE'!$AI$13:$AI$2638),$CF$15:$CF$24)+SUMPRODUCT(SUMIF('Base USDA'!$B$6:$B$5436,$AD$15:$AD$24,'Base USDA'!$AH$6:$AH$5436),$CG$15:$CG$24)+SUMPRODUCT(SUMIF('Base SMAE'!$A$13:$A$2638,$AD$37:$AD$46,'Base SMAE'!$AI$13:$AI$2638),$CF$37:$CF$46)+SUMPRODUCT(SUMIF('Base USDA'!$B$6:$B$5436,$AD$37:$AD$46,'Base USDA'!$AH$6:$AH$5436),$CG$37:$CG$46)+SUMPRODUCT(SUMIF('Base SMAE'!$A$13:$A$2638,$AD$59:$AD$68,'Base SMAE'!$AI$13:$AI$2638),$CF$59:$CF$68)+SUMPRODUCT(SUMIF('Base USDA'!$B$6:$B$5436,$AD$59:$AD$68,'Base USDA'!$AH$6:$AH$5436),$CG$59:$CG$68)+SUMPRODUCT(SUMIF('Base SMAE'!$A$13:$A$2638,$AD$81:$AD$90,'Base SMAE'!$AI$13:$AI$2638),$CF$81:$CF$90)+SUMPRODUCT(SUMIF('Base USDA'!$B$6:$B$5436,$AD$81:$AD$90,'Base USDA'!$AH$6:$AH$5436),$CG$81:$CG$90)+SUMPRODUCT(SUMIF('Base SMAE'!$A$13:$A$2638,$AD$103:$AD$112,'Base SMAE'!$AI$13:$AI$2638),$CF$103:$CF$112)+SUMPRODUCT(SUMIF('Base USDA'!$B$6:$B$5436,$AD$103:$AD$112,'Base USDA'!$AH$6:$AH$5436),$CG$103:$CG$112),1) -> 0 | BL38: =ROUND(SUMPRODUCT(SUMIF('Base SMAE'!$A$13:$A$2638,$AR$15:$AR$24,'Base SMAE'!$AI$13:$AI$2638),$CH$15:$CH$24)+SUMPRODUCT(SUMIF('Base USDA'!$B$6:$B$5436,$AR$15:$AR$24,'Base USDA'!$AH$6:$AH$5436),$CI$15:$CI$24)+SUMPRODUCT(SUMIF('Base SMAE'!$A$13:$A$2638,$AR$37:$AR$46,'Base SMAE'!$AI$13:$AI$2638),$CH$37:$CH$46)+SUMPRODUCT(SUMIF('Base USDA'!$B$6:$B$5436,$AR$37:$AR$46,'Base USDA'!$AH$6:$AH$5436),$CI$37:$CI$46)+SUMPRODUCT(SUMIF('Base SMAE'!$A$13:$A$2638,$AR$59:$AR$68,'Base SMAE'!$AI$13:$AI$2638),$CH$59:$CH$68)+SUMPRODUCT(SUMIF('Base USDA'!$B$6:$B$5436,$AR$59:$AR$68,'Base USDA'!$AH$6:$AH$5436),$CI$59:$CI$68)+SUMPRODUCT(SUMIF('Base SMAE'!$A$13:$A$2638,$AR$81:$AR$90,'Base SMAE'!$AI$13:$AI$2638),$CH$81:$CH$90)+SUMPRODUCT(SUMIF('Base USDA'!$B$6:$B$5436,$AR$81:$AR$90,'Base USDA'!$AH$6:$AH$5436),$CI$81:$CI$90)+SUMPRODUCT(SUMIF('Base SMAE'!$A$13:$A$2638,$AR$103:$AR$112,'Base SMAE'!$AI$13:$AI$2638),$CH$103:$CH$112)+SUMPRODUCT(SUMIF('Base USDA'!$B$6:$B$5436,$AR$103:$AR$112,'Base USDA'!$AH$6:$AH$5436),$CI$103:$CI$112),1) -> 0 | BM38: =15 -> 15 | BN38: 0 | CB38: =IF($B38="",0,IF(ISNUMBER(MATCH($B38,'Base SMAE'!$A$13:$A$2638,0)),IFERROR($F38,0),0)) -> 0 | CC38: =IF($B38="",0,IF(ISNUMBER(MATCH($B38,'Base SMAE'!$A$13:$A$2638,0)),0,IFERROR(IF($C38="Gramos",$E38,IFERROR(($E38/$I38)*$H38,0))/100,0))) -> 0 | CD38: =IF($P38="",0,IF(ISNUMBER(MATCH($P38,'Base SMAE'!$A$13:$A$2638,0)),IFERROR($T38,0),0)) -> 0 | CE38: =IF($P38="",0,IF(ISNUMBER(MATCH($P38,'Base SMAE'!$A$13:$A$2638,0)),0,IFERROR(IF($Q38="Gramos",$S38,IFERROR(($S38/$W38)*$V38,0))/100,0))) -> 0 | CF38: =IF($AD38="",0,IF(ISNUMBER(MATCH($AD38,'Base SMAE'!$A$13:$A$2638,0)),IFERROR($AH38,0),0)) -> 0 | CG38: =IF($AD38="",0,IF(ISNUMBER(MATCH($AD38,'Base SMAE'!$A$13:$A$2638,0)),0,IFERROR(IF($AE38="Gramos",$AG38,IFERROR(($AG38/$AK38)*$AJ38,0))/100,0))) -> 0 | CH38: =IF($AR38="",0,IF(ISNUMBER(MATCH($AR38,'Base SMAE'!$A$13:$A$2638,0)),IFERROR($AV38,0),0)) -> 0 | CI38: =IF($AR38="",0,IF(ISNUMBER(MATCH($AR38,'Base SMAE'!$A$13:$A$2638,0)),0,IFERROR(IF($AS38="Gramos",$AU38,IFERROR(($AU38/$AY38)*$AX38,0))/100,0))) -> 0
D39: =IF($B39="","",IF($C39="Gramos","gramos",IF($G$5="SMAE",IFERROR(INDEX('Base SMAE'!$E$13:$E$2638,MATCH($B39,'Base SMAE'!$A$13:$A$2638,0)),"gramos"),"gramos"))) ->  | G39: =IF($B39="","",IF($G$5="SMAE",IFERROR(INDEX('Base SMAE'!$B$13:$B$2638,MATCH($B39,'Base SMAE'!$A$13:$A$2638,0)),IFERROR(INDEX('Base USDA'!$D$6:$D$5436,MATCH($B39,'Base USDA'!$B$6:$B$5436,0)),"")),IFERROR(INDEX('Base USDA'!$D$6:$D$5436,MATCH($B39,'Base USDA'!$B$6:$B$5436,0)),IFERROR(INDEX('Base SMAE'!$B$13:$B$2638,MATCH($B39,'Base SMAE'!$A$13:$A$2638,0)),"")))) ->  | H39: =IF($B39="","",IF($G$5="SMAE",IFERROR(INDEX('Base SMAE'!$G$13:$G$2638,MATCH($B39,'Base SMAE'!$A$13:$A$2638,0)),""),100)) ->  | I39: =IF($B39="","",IF($G$5="SMAE",IFERROR(INDEX('Base SMAE'!$D$13:$D$2638,MATCH($B39,'Base SMAE'!$A$13:$A$2638,0)),""),100)) ->  | J39: =IF(OR($B39="",$E39=""),"",IF($G$5="SMAE",IF(IFERROR((INDEX('Base SMAE'!$H$13:$H$2638,MATCH($B39,'Base SMAE'!$A$13:$A$2638,0)))*F39,"")="",IFERROR((INDEX('Base USDA'!$E$6:$E$5436,MATCH($B39,'Base USDA'!$B$6:$B$5436,0)))*F39,""),IFERROR((INDEX('Base SMAE'!$H$13:$H$2638,MATCH($B39,'Base SMAE'!$A$13:$A$2638,0)))*F39,"")),IF(IFERROR((INDEX('Base USDA'!$E$6:$E$5436,MATCH($B39,'Base USDA'!$B$6:$B$5436,0)))*F39,"")="",IFERROR((INDEX('Base SMAE'!$H$13:$H$2638,MATCH($B39,'Base SMAE'!$A$13:$A$2638,0)))*F39,""),IFERROR((INDEX('Base USDA'!$E$6:$E$5436,MATCH($B39,'Base USDA'!$B$6:$B$5436,0)))*F39,"")))) ->  | K39: =IF(OR($B39="",$E39=""),"",IF($G$5="SMAE",IF(IFERROR((INDEX('Base SMAE'!$I$13:$I$2638,MATCH($B39,'Base SMAE'!$A$13:$A$2638,0)))*F39,"")="",IFERROR((INDEX('Base USDA'!$F$6:$F$5436,MATCH($B39,'Base USDA'!$B$6:$B$5436,0)))*F39,""),IFERROR((INDEX('Base SMAE'!$I$13:$I$2638,MATCH($B39,'Base SMAE'!$A$13:$A$2638,0)))*F39,"")),IF(IFERROR((INDEX('Base USDA'!$F$6:$F$5436,MATCH($B39,'Base USDA'!$B$6:$B$5436,0)))*F39,"")="",IFERROR((INDEX('Base SMAE'!$I$13:$I$2638,MATCH($B39,'Base SMAE'!$A$13:$A$2638,0)))*F39,""),IFERROR((INDEX('Base USDA'!$F$6:$F$5436,MATCH($B39,'Base USDA'!$B$6:$B$5436,0)))*F39,"")))) ->  | L39: =IF(OR($B39="",$E39=""),"",IF($G$5="SMAE",IF(IFERROR((INDEX('Base SMAE'!$J$13:$J$2638,MATCH($B39,'Base SMAE'!$A$13:$A$2638,0)))*F39,"")="",IFERROR((INDEX('Base USDA'!$J$6:$J$5436,MATCH($B39,'Base USDA'!$B$6:$B$5436,0)))*F39,""),IFERROR((INDEX('Base SMAE'!$J$13:$J$2638,MATCH($B39,'Base SMAE'!$A$13:$A$2638,0)))*F39,"")),IF(IFERROR((INDEX('Base USDA'!$J$6:$J$5436,MATCH($B39,'Base USDA'!$B$6:$B$5436,0)))*F39,"")="",IFERROR((INDEX('Base SMAE'!$J$13:$J$2638,MATCH($B39,'Base SMAE'!$A$13:$A$2638,0)))*F39,""),IFERROR((INDEX('Base USDA'!$J$6:$J$5436,MATCH($B39,'Base USDA'!$B$6:$B$5436,0)))*F39,"")))) ->  | M39: =IF(OR($B39="",$E39=""),"",IF($G$5="SMAE",IF(IFERROR((INDEX('Base SMAE'!$K$13:$K$2638,MATCH($B39,'Base SMAE'!$A$13:$A$2638,0)))*F39,"")="",IFERROR((INDEX('Base USDA'!$G$6:$G$5436,MATCH($B39,'Base USDA'!$B$6:$B$5436,0)))*F39,""),IFERROR((INDEX('Base SMAE'!$K$13:$K$2638,MATCH($B39,'Base SMAE'!$A$13:$A$2638,0)))*F39,"")),IF(IFERROR((INDEX('Base USDA'!$G$6:$G$5436,MATCH($B39,'Base USDA'!$B$6:$B$5436,0)))*F39,"")="",IFERROR((INDEX('Base SMAE'!$K$13:$K$2638,MATCH($B39,'Base SMAE'!$A$13:$A$2638,0)))*F39,""),IFERROR((INDEX('Base USDA'!$G$6:$G$5436,MATCH($B39,'Base USDA'!$B$6:$B$5436,0)))*F39,"")))) ->  | N39: =IF(OR($B39="",$E39=""),"",IF($G$5="SMAE",IF(IFERROR((INDEX('Base SMAE'!$L$13:$L$2638,MATCH($B39,'Base SMAE'!$A$13:$A$2638,0)))*F39,"")="",IFERROR((INDEX('Base USDA'!$I$6:$I$5436,MATCH($B39,'Base USDA'!$B$6:$B$5436,0)))*F39,""),IFERROR((INDEX('Base SMAE'!$L$13:$L$2638,MATCH($B39,'Base SMAE'!$A$13:$A$2638,0)))*F39,"")),IF(IFERROR((INDEX('Base USDA'!$I$6:$I$5436,MATCH($B39,'Base USDA'!$B$6:$B$5436,0)))*F39,"")="",IFERROR((INDEX('Base SMAE'!$L$13:$L$2638,MATCH($B39,'Base SMAE'!$A$13:$A$2638,0)))*F39,""),IFERROR((INDEX('Base USDA'!$I$6:$I$5436,MATCH($B39,'Base USDA'!$B$6:$B$5436,0)))*F39,"")))) ->  | R39: =IF($P39="","",IF($Q39="Gramos","gramos",IF($G$5="SMAE",IFERROR(INDEX('Base SMAE'!$E$13:$E$2638,MATCH($P39,'Base SMAE'!$A$13:$A$2638,0)),"gramos"),"gramos"))) ->  | U39: =IF($P39="","",IF($G$5="SMAE",IFERROR(INDEX('Base SMAE'!$B$13:$B$2638,MATCH($P39,'Base SMAE'!$A$13:$A$2638,0)),IFERROR(INDEX('Base USDA'!$D$6:$D$5436,MATCH($P39,'Base USDA'!$B$6:$B$5436,0)),"")),IFERROR(INDEX('Base USDA'!$D$6:$D$5436,MATCH($P39,'Base USDA'!$B$6:$B$5436,0)),IFERROR(INDEX('Base SMAE'!$B$13:$B$2638,MATCH($P39,'Base SMAE'!$A$13:$A$2638,0)),"")))) ->  | V39: =IF($P39="","",IF($G$5="SMAE",IFERROR(INDEX('Base SMAE'!$G$13:$G$2638,MATCH($P39,'Base SMAE'!$A$13:$A$2638,0)),""),100)) ->  | W39: =IF($P39="","",IF($G$5="SMAE",IFERROR(INDEX('Base SMAE'!$D$13:$D$2638,MATCH($P39,'Base SMAE'!$A$13:$A$2638,0)),""),100)) ->  | X39: =IF(OR($P39="",$S39=""),"",IF($G$5="SMAE",IF(IFERROR((INDEX('Base SMAE'!$H$13:$H$2638,MATCH($P39,'Base SMAE'!$A$13:$A$2638,0)))*T39,"")="",IFERROR((INDEX('Base USDA'!$E$6:$E$5436,MATCH($P39,'Base USDA'!$B$6:$B$5436,0)))*T39,""),IFERROR((INDEX('Base SMAE'!$H$13:$H$2638,MATCH($P39,'Base SMAE'!$A$13:$A$2638,0)))*T39,"")),IF(IFERROR((INDEX('Base USDA'!$E$6:$E$5436,MATCH($P39,'Base USDA'!$B$6:$B$5436,0)))*T39,"")="",IFERROR((INDEX('Base SMAE'!$H$13:$H$2638,MATCH($P39,'Base SMAE'!$A$13:$A$2638,0)))*T39,""),IFERROR((INDEX('Base USDA'!$E$6:$E$5436,MATCH($P39,'Base USDA'!$B$6:$B$5436,0)))*T39,"")))) ->  | Y39: =IF(OR($P39="",$S39=""),"",IF($G$5="SMAE",IF(IFERROR((INDEX('Base SMAE'!$I$13:$I$2638,MATCH($P39,'Base SMAE'!$A$13:$A$2638,0)))*T39,"")="",IFERROR((INDEX('Base USDA'!$F$6:$F$5436,MATCH($P39,'Base USDA'!$B$6:$B$5436,0)))*T39,""),IFERROR((INDEX('Base SMAE'!$I$13:$I$2638,MATCH($P39,'Base SMAE'!$A$13:$A$2638,0)))*T39,"")),IF(IFERROR((INDEX('Base USDA'!$F$6:$F$5436,MATCH($P39,'Base USDA'!$B$6:$B$5436,0)))*T39,"")="",IFERROR((INDEX('Base SMAE'!$I$13:$I$2638,MATCH($P39,'Base SMAE'!$A$13:$A$2638,0)))*T39,""),IFERROR((INDEX('Base USDA'!$F$6:$F$5436,MATCH($P39,'Base USDA'!$B$6:$B$5436,0)))*T39,"")))) ->  | Z39: =IF(OR($P39="",$S39=""),"",IF($G$5="SMAE",IF(IFERROR((INDEX('Base SMAE'!$J$13:$J$2638,MATCH($P39,'Base SMAE'!$A$13:$A$2638,0)))*T39,"")="",IFERROR((INDEX('Base USDA'!$J$6:$J$5436,MATCH($P39,'Base USDA'!$B$6:$B$5436,0)))*T39,""),IFERROR((INDEX('Base SMAE'!$J$13:$J$2638,MATCH($P39,'Base SMAE'!$A$13:$A$2638,0)))*T39,"")),IF(IFERROR((INDEX('Base USDA'!$J$6:$J$5436,MATCH($P39,'Base USDA'!$B$6:$B$5436,0)))*T39,"")="",IFERROR((INDEX('Base SMAE'!$J$13:$J$2638,MATCH($P39,'Base SMAE'!$A$13:$A$2638,0)))*T39,""),IFERROR((INDEX('Base USDA'!$J$6:$J$5436,MATCH($P39,'Base USDA'!$B$6:$B$5436,0)))*T39,"")))) ->  | AA39: =IF(OR($P39="",$S39=""),"",IF($G$5="SMAE",IF(IFERROR((INDEX('Base SMAE'!$K$13:$K$2638,MATCH($P39,'Base SMAE'!$A$13:$A$2638,0)))*T39,"")="",IFERROR((INDEX('Base USDA'!$G$6:$G$5436,MATCH($P39,'Base USDA'!$B$6:$B$5436,0)))*T39,""),IFERROR((INDEX('Base SMAE'!$K$13:$K$2638,MATCH($P39,'Base SMAE'!$A$13:$A$2638,0)))*T39,"")),IF(IFERROR((INDEX('Base USDA'!$G$6:$G$5436,MATCH($P39,'Base USDA'!$B$6:$B$5436,0)))*T39,"")="",IFERROR((INDEX('Base SMAE'!$K$13:$K$2638,MATCH($P39,'Base SMAE'!$A$13:$A$2638,0)))*T39,""),IFERROR((INDEX('Base USDA'!$G$6:$G$5436,MATCH($P39,'Base USDA'!$B$6:$B$5436,0)))*T39,"")))) ->  | AB39: =IF(OR($P39="",$S39=""),"",IF($G$5="SMAE",IF(IFERROR((INDEX('Base SMAE'!$L$13:$L$2638,MATCH($P39,'Base SMAE'!$A$13:$A$2638,0)))*T39,"")="",IFERROR((INDEX('Base USDA'!$I$6:$I$5436,MATCH($P39,'Base USDA'!$B$6:$B$5436,0)))*T39,""),IFERROR((INDEX('Base SMAE'!$L$13:$L$2638,MATCH($P39,'Base SMAE'!$A$13:$A$2638,0)))*T39,"")),IF(IFERROR((INDEX('Base USDA'!$I$6:$I$5436,MATCH($P39,'Base USDA'!$B$6:$B$5436,0)))*T39,"")="",IFERROR((INDEX('Base SMAE'!$L$13:$L$2638,MATCH($P39,'Base SMAE'!$A$13:$A$2638,0)))*T39,""),IFERROR((INDEX('Base USDA'!$I$6:$I$5436,MATCH($P39,'Base USDA'!$B$6:$B$5436,0)))*T39,"")))) ->  | AF39: =IF($AD39="","",IF($AE39="Gramos","gramos",IF($G$5="SMAE",IFERROR(INDEX('Base SMAE'!$E$13:$E$2638,MATCH($AD39,'Base SMAE'!$A$13:$A$2638,0)),"gramos"),"gramos"))) ->  | AI39: =IF($AD39="","",IF($G$5="SMAE",IFERROR(INDEX('Base SMAE'!$B$13:$B$2638,MATCH($AD39,'Base SMAE'!$A$13:$A$2638,0)),IFERROR(INDEX('Base USDA'!$D$6:$D$5436,MATCH($AD39,'Base USDA'!$B$6:$B$5436,0)),"")),IFERROR(INDEX('Base USDA'!$D$6:$D$5436,MATCH($AD39,'Base USDA'!$B$6:$B$5436,0)),IFERROR(INDEX('Base SMAE'!$B$13:$B$2638,MATCH($AD39,'Base SMAE'!$A$13:$A$2638,0)),"")))) ->  | AJ39: =IF($AD39="","",IF($G$5="SMAE",IFERROR(INDEX('Base SMAE'!$G$13:$G$2638,MATCH($AD39,'Base SMAE'!$A$13:$A$2638,0)),""),100)) ->  | AK39: =IF($AD39="","",IF($G$5="SMAE",IFERROR(INDEX('Base SMAE'!$D$13:$D$2638,MATCH($AD39,'Base SMAE'!$A$13:$A$2638,0)),""),100)) ->  | AL39: =IF(OR($AD39="",$AG39=""),"",IF($G$5="SMAE",IF(IFERROR((INDEX('Base SMAE'!$H$13:$H$2638,MATCH($AD39,'Base SMAE'!$A$13:$A$2638,0)))*AH39,"")="",IFERROR((INDEX('Base USDA'!$E$6:$E$5436,MATCH($AD39,'Base USDA'!$B$6:$B$5436,0)))*AH39,""),IFERROR((INDEX('Base SMAE'!$H$13:$H$2638,MATCH($AD39,'Base SMAE'!$A$13:$A$2638,0)))*AH39,"")),IF(IFERROR((INDEX('Base USDA'!$E$6:$E$5436,MATCH($AD39,'Base USDA'!$B$6:$B$5436,0)))*AH39,"")="",IFERROR((INDEX('Base SMAE'!$H$13:$H$2638,MATCH($AD39,'Base SMAE'!$A$13:$A$2638,0)))*AH39,""),IFERROR((INDEX('Base USDA'!$E$6:$E$5436,MATCH($AD39,'Base USDA'!$B$6:$B$5436,0)))*AH39,"")))) ->  | AM39: =IF(OR($AD39="",$AG39=""),"",IF($G$5="SMAE",IF(IFERROR((INDEX('Base SMAE'!$I$13:$I$2638,MATCH($AD39,'Base SMAE'!$A$13:$A$2638,0)))*AH39,"")="",IFERROR((INDEX('Base USDA'!$F$6:$F$5436,MATCH($AD39,'Base USDA'!$B$6:$B$5436,0)))*AH39,""),IFERROR((INDEX('Base SMAE'!$I$13:$I$2638,MATCH($AD39,'Base SMAE'!$A$13:$A$2638,0)))*AH39,"")),IF(IFERROR((INDEX('Base USDA'!$F$6:$F$5436,MATCH($AD39,'Base USDA'!$B$6:$B$5436,0)))*AH39,"")="",IFERROR((INDEX('Base SMAE'!$I$13:$I$2638,MATCH($AD39,'Base SMAE'!$A$13:$A$2638,0)))*AH39,""),IFERROR((INDEX('Base USDA'!$F$6:$F$5436,MATCH($AD39,'Base USDA'!$B$6:$B$5436,0)))*AH39,"")))) ->  | AN39: =IF(OR($AD39="",$AG39=""),"",IF($G$5="SMAE",IF(IFERROR((INDEX('Base SMAE'!$J$13:$J$2638,MATCH($AD39,'Base SMAE'!$A$13:$A$2638,0)))*AH39,"")="",IFERROR((INDEX('Base USDA'!$J$6:$J$5436,MATCH($AD39,'Base USDA'!$B$6:$B$5436,0)))*AH39,""),IFERROR((INDEX('Base SMAE'!$J$13:$J$2638,MATCH($AD39,'Base SMAE'!$A$13:$A$2638,0)))*AH39,"")),IF(IFERROR((INDEX('Base USDA'!$J$6:$J$5436,MATCH($AD39,'Base USDA'!$B$6:$B$5436,0)))*AH39,"")="",IFERROR((INDEX('Base SMAE'!$J$13:$J$2638,MATCH($AD39,'Base SMAE'!$A$13:$A$2638,0)))*AH39,""),IFERROR((INDEX('Base USDA'!$J$6:$J$5436,MATCH($AD39,'Base USDA'!$B$6:$B$5436,0)))*AH39,"")))) ->  | AO39: =IF(OR($AD39="",$AG39=""),"",IF($G$5="SMAE",IF(IFERROR((INDEX('Base SMAE'!$K$13:$K$2638,MATCH($AD39,'Base SMAE'!$A$13:$A$2638,0)))*AH39,"")="",IFERROR((INDEX('Base USDA'!$G$6:$G$5436,MATCH($AD39,'Base USDA'!$B$6:$B$5436,0)))*AH39,""),IFERROR((INDEX('Base SMAE'!$K$13:$K$2638,MATCH($AD39,'Base SMAE'!$A$13:$A$2638,0)))*AH39,"")),IF(IFERROR((INDEX('Base USDA'!$G$6:$G$5436,MATCH($AD39,'Base USDA'!$B$6:$B$5436,0)))*AH39,"")="",IFERROR((INDEX('Base SMAE'!$K$13:$K$2638,MATCH($AD39,'Base SMAE'!$A$13:$A$2638,0)))*AH39,""),IFERROR((INDEX('Base USDA'!$G$6:$G$5436,MATCH($AD39,'Base USDA'!$B$6:$B$5436,0)))*AH39,"")))) ->  | AP39: =IF(OR($AD39="",$AG39=""),"",IF($G$5="SMAE",IF(IFERROR((INDEX('Base SMAE'!$L$13:$L$2638,MATCH($AD39,'Base SMAE'!$A$13:$A$2638,0)))*AH39,"")="",IFERROR((INDEX('Base USDA'!$I$6:$I$5436,MATCH($AD39,'Base USDA'!$B$6:$B$5436,0)))*AH39,""),IFERROR((INDEX('Base SMAE'!$L$13:$L$2638,MATCH($AD39,'Base SMAE'!$A$13:$A$2638,0)))*AH39,"")),IF(IFERROR((INDEX('Base USDA'!$I$6:$I$5436,MATCH($AD39,'Base USDA'!$B$6:$B$5436,0)))*AH39,"")="",IFERROR((INDEX('Base SMAE'!$L$13:$L$2638,MATCH($AD39,'Base SMAE'!$A$13:$A$2638,0)))*AH39,""),IFERROR((INDEX('Base USDA'!$I$6:$I$5436,MATCH($AD39,'Base USDA'!$B$6:$B$5436,0)))*AH39,"")))) ->  | AT39: =IF($AR39="","",IF($AS39="Gramos","gramos",IF($G$5="SMAE",IFERROR(INDEX('Base SMAE'!$E$13:$E$2638,MATCH($AR39,'Base SMAE'!$A$13:$A$2638,0)),"gramos"),"gramos"))) ->  | AW39: =IF($AR39="","",IF($G$5="SMAE",IFERROR(INDEX('Base SMAE'!$B$13:$B$2638,MATCH($AR39,'Base SMAE'!$A$13:$A$2638,0)),IFERROR(INDEX('Base USDA'!$D$6:$D$5436,MATCH($AR39,'Base USDA'!$B$6:$B$5436,0)),"")),IFERROR(INDEX('Base USDA'!$D$6:$D$5436,MATCH($AR39,'Base USDA'!$B$6:$B$5436,0)),IFERROR(INDEX('Base SMAE'!$B$13:$B$2638,MATCH($AR39,'Base SMAE'!$A$13:$A$2638,0)),"")))) ->  | AX39: =IF($AR39="","",IF($G$5="SMAE",IFERROR(INDEX('Base SMAE'!$G$13:$G$2638,MATCH($AR39,'Base SMAE'!$A$13:$A$2638,0)),""),100)) ->  | AY39: =IF($AR39="","",IF($G$5="SMAE",IFERROR(INDEX('Base SMAE'!$D$13:$D$2638,MATCH($AR39,'Base SMAE'!$A$13:$A$2638,0)),""),100)) ->  | AZ39: =IF(OR($AR39="",$AU39=""),"",IF($G$5="SMAE",IF(IFERROR((INDEX('Base SMAE'!$H$13:$H$2638,MATCH($AR39,'Base SMAE'!$A$13:$A$2638,0)))*AV39,"")="",IFERROR((INDEX('Base USDA'!$E$6:$E$5436,MATCH($AR39,'Base USDA'!$B$6:$B$5436,0)))*AV39,""),IFERROR((INDEX('Base SMAE'!$H$13:$H$2638,MATCH($AR39,'Base SMAE'!$A$13:$A$2638,0)))*AV39,"")),IF(IFERROR((INDEX('Base USDA'!$E$6:$E$5436,MATCH($AR39,'Base USDA'!$B$6:$B$5436,0)))*AV39,"")="",IFERROR((INDEX('Base SMAE'!$H$13:$H$2638,MATCH($AR39,'Base SMAE'!$A$13:$A$2638,0)))*AV39,""),IFERROR((INDEX('Base USDA'!$E$6:$E$5436,MATCH($AR39,'Base USDA'!$B$6:$B$5436,0)))*AV39,"")))) ->  | BA39: =IF(OR($AR39="",$AU39=""),"",IF($G$5="SMAE",IF(IFERROR((INDEX('Base SMAE'!$I$13:$I$2638,MATCH($AR39,'Base SMAE'!$A$13:$A$2638,0)))*AV39,"")="",IFERROR((INDEX('Base USDA'!$F$6:$F$5436,MATCH($AR39,'Base USDA'!$B$6:$B$5436,0)))*AV39,""),IFERROR((INDEX('Base SMAE'!$I$13:$I$2638,MATCH($AR39,'Base SMAE'!$A$13:$A$2638,0)))*AV39,"")),IF(IFERROR((INDEX('Base USDA'!$F$6:$F$5436,MATCH($AR39,'Base USDA'!$B$6:$B$5436,0)))*AV39,"")="",IFERROR((INDEX('Base SMAE'!$I$13:$I$2638,MATCH($AR39,'Base SMAE'!$A$13:$A$2638,0)))*AV39,""),IFERROR((INDEX('Base USDA'!$F$6:$F$5436,MATCH($AR39,'Base USDA'!$B$6:$B$5436,0)))*AV39,"")))) ->  | BB39: =IF(OR($AR39="",$AU39=""),"",IF($G$5="SMAE",IF(IFERROR((INDEX('Base SMAE'!$J$13:$J$2638,MATCH($AR39,'Base SMAE'!$A$13:$A$2638,0)))*AV39,"")="",IFERROR((INDEX('Base USDA'!$J$6:$J$5436,MATCH($AR39,'Base USDA'!$B$6:$B$5436,0)))*AV39,""),IFERROR((INDEX('Base SMAE'!$J$13:$J$2638,MATCH($AR39,'Base SMAE'!$A$13:$A$2638,0)))*AV39,"")),IF(IFERROR((INDEX('Base USDA'!$J$6:$J$5436,MATCH($AR39,'Base USDA'!$B$6:$B$5436,0)))*AV39,"")="",IFERROR((INDEX('Base SMAE'!$J$13:$J$2638,MATCH($AR39,'Base SMAE'!$A$13:$A$2638,0)))*AV39,""),IFERROR((INDEX('Base USDA'!$J$6:$J$5436,MATCH($AR39,'Base USDA'!$B$6:$B$5436,0)))*AV39,"")))) ->  | BC39: =IF(OR($AR39="",$AU39=""),"",IF($G$5="SMAE",IF(IFERROR((INDEX('Base SMAE'!$K$13:$K$2638,MATCH($AR39,'Base SMAE'!$A$13:$A$2638,0)))*AV39,"")="",IFERROR((INDEX('Base USDA'!$G$6:$G$5436,MATCH($AR39,'Base USDA'!$B$6:$B$5436,0)))*AV39,""),IFERROR((INDEX('Base SMAE'!$K$13:$K$2638,MATCH($AR39,'Base SMAE'!$A$13:$A$2638,0)))*AV39,"")),IF(IFERROR((INDEX('Base USDA'!$G$6:$G$5436,MATCH($AR39,'Base USDA'!$B$6:$B$5436,0)))*AV39,"")="",IFERROR((INDEX('Base SMAE'!$K$13:$K$2638,MATCH($AR39,'Base SMAE'!$A$13:$A$2638,0)))*AV39,""),IFERROR((INDEX('Base USDA'!$G$6:$G$5436,MATCH($AR39,'Base USDA'!$B$6:$B$5436,0)))*AV39,"")))) ->  | BD39: =IF(OR($AR39="",$AU39=""),"",IF($G$5="SMAE",IF(IFERROR((INDEX('Base SMAE'!$L$13:$L$2638,MATCH($AR39,'Base SMAE'!$A$13:$A$2638,0)))*AV39,"")="",IFERROR((INDEX('Base USDA'!$I$6:$I$5436,MATCH($AR39,'Base USDA'!$B$6:$B$5436,0)))*AV39,""),IFERROR((INDEX('Base SMAE'!$L$13:$L$2638,MATCH($AR39,'Base SMAE'!$A$13:$A$2638,0)))*AV39,"")),IF(IFERROR((INDEX('Base USDA'!$I$6:$I$5436,MATCH($AR39,'Base USDA'!$B$6:$B$5436,0)))*AV39,"")="",IFERROR((INDEX('Base SMAE'!$L$13:$L$2638,MATCH($AR39,'Base SMAE'!$A$13:$A$2638,0)))*AV39,""),IFERROR((INDEX('Base USDA'!$I$6:$I$5436,MATCH($AR39,'Base USDA'!$B$6:$B$5436,0)))*AV39,"")))) ->  | BH39: Vitamina E (mg) | BI39: =ROUND(SUMPRODUCT(SUMIF('Base USDA'!$B$6:$B$5436,$B$15:$B$24,'Base USDA'!$AI$6:$AI$5436),$CC$15:$CC$24)+SUMPRODUCT(SUMIF('Base USDA'!$B$6:$B$5436,$B$37:$B$46,'Base USDA'!$AI$6:$AI$5436),$CC$37:$CC$46)+SUMPRODUCT(SUMIF('Base USDA'!$B$6:$B$5436,$B$59:$B$68,'Base USDA'!$AI$6:$AI$5436),$CC$59:$CC$68)+SUMPRODUCT(SUMIF('Base USDA'!$B$6:$B$5436,$B$81:$B$90,'Base USDA'!$AI$6:$AI$5436),$CC$81:$CC$90)+SUMPRODUCT(SUMIF('Base USDA'!$B$6:$B$5436,$B$103:$B$112,'Base USDA'!$AI$6:$AI$5436),$CC$103:$CC$112),1) -> 0 | BJ39: =ROUND(SUMPRODUCT(SUMIF('Base USDA'!$B$6:$B$5436,$P$15:$P$24,'Base USDA'!$AI$6:$AI$5436),$CE$15:$CE$24)+SUMPRODUCT(SUMIF('Base USDA'!$B$6:$B$5436,$P$37:$P$46,'Base USDA'!$AI$6:$AI$5436),$CE$37:$CE$46)+SUMPRODUCT(SUMIF('Base USDA'!$B$6:$B$5436,$P$59:$P$68,'Base USDA'!$AI$6:$AI$5436),$CE$59:$CE$68)+SUMPRODUCT(SUMIF('Base USDA'!$B$6:$B$5436,$P$81:$P$90,'Base USDA'!$AI$6:$AI$5436),$CE$81:$CE$90)+SUMPRODUCT(SUMIF('Base USDA'!$B$6:$B$5436,$P$103:$P$112,'Base USDA'!$AI$6:$AI$5436),$CE$103:$CE$112),1) -> 0 | BK39: =ROUND(SUMPRODUCT(SUMIF('Base USDA'!$B$6:$B$5436,$AD$15:$AD$24,'Base USDA'!$AI$6:$AI$5436),$CG$15:$CG$24)+SUMPRODUCT(SUMIF('Base USDA'!$B$6:$B$5436,$AD$37:$AD$46,'Base USDA'!$AI$6:$AI$5436),$CG$37:$CG$46)+SUMPRODUCT(SUMIF('Base USDA'!$B$6:$B$5436,$AD$59:$AD$68,'Base USDA'!$AI$6:$AI$5436),$CG$59:$CG$68)+SUMPRODUCT(SUMIF('Base USDA'!$B$6:$B$5436,$AD$81:$AD$90,'Base USDA'!$AI$6:$AI$5436),$CG$81:$CG$90)+SUMPRODUCT(SUMIF('Base USDA'!$B$6:$B$5436,$AD$103:$AD$112,'Base USDA'!$AI$6:$AI$5436),$CG$103:$CG$112),1) -> 0 | BL39: =ROUND(SUMPRODUCT(SUMIF('Base USDA'!$B$6:$B$5436,$AR$15:$AR$24,'Base USDA'!$AI$6:$AI$5436),$CI$15:$CI$24)+SUMPRODUCT(SUMIF('Base USDA'!$B$6:$B$5436,$AR$37:$AR$46,'Base USDA'!$AI$6:$AI$5436),$CI$37:$CI$46)+SUMPRODUCT(SUMIF('Base USDA'!$B$6:$B$5436,$AR$59:$AR$68,'Base USDA'!$AI$6:$AI$5436),$CI$59:$CI$68)+SUMPRODUCT(SUMIF('Base USDA'!$B$6:$B$5436,$AR$81:$AR$90,'Base USDA'!$AI$6:$AI$5436),$CI$81:$CI$90)+SUMPRODUCT(SUMIF('Base USDA'!$B$6:$B$5436,$AR$103:$AR$112,'Base USDA'!$AI$6:$AI$5436),$CI$103:$CI$112),1) -> 0 | BM39: =15 -> 15 | BN39: 0 | CB39: =IF($B39="",0,IF(ISNUMBER(MATCH($B39,'Base SMAE'!$A$13:$A$2638,0)),IFERROR($F39,0),0)) -> 0 | CC39: =IF($B39="",0,IF(ISNUMBER(MATCH($B39,'Base SMAE'!$A$13:$A$2638,0)),0,IFERROR(IF($C39="Gramos",$E39,IFERROR(($E39/$I39)*$H39,0))/100,0))) -> 0 | CD39: =IF($P39="",0,IF(ISNUMBER(MATCH($P39,'Base SMAE'!$A$13:$A$2638,0)),IFERROR($T39,0),0)) -> 0 | CE39: =IF($P39="",0,IF(ISNUMBER(MATCH($P39,'Base SMAE'!$A$13:$A$2638,0)),0,IFERROR(IF($Q39="Gramos",$S39,IFERROR(($S39/$W39)*$V39,0))/100,0))) -> 0 | CF39: =IF($AD39="",0,IF(ISNUMBER(MATCH($AD39,'Base SMAE'!$A$13:$A$2638,0)),IFERROR($AH39,0),0)) -> 0 | CG39: =IF($AD39="",0,IF(ISNUMBER(MATCH($AD39,'Base SMAE'!$A$13:$A$2638,0)),0,IFERROR(IF($AE39="Gramos",$AG39,IFERROR(($AG39/$AK39)*$AJ39,0))/100,0))) -> 0 | CH39: =IF($AR39="",0,IF(ISNUMBER(MATCH($AR39,'Base SMAE'!$A$13:$A$2638,0)),IFERROR($AV39,0),0)) -> 0 | CI39: =IF($AR39="",0,IF(ISNUMBER(MATCH($AR39,'Base SMAE'!$A$13:$A$2638,0)),0,IFERROR(IF($AS39="Gramos",$AU39,IFERROR(($AU39/$AY39)*$AX39,0))/100,0))) -> 0
